Workbook

Sheet Call Data
A1: =RTD("cqg.rtd", ,"ContractData","C."&B6, "Symbol",, "T") -> C.US.CLEJ269150
A2: =_xll.CQGOptions(B6, "1", "-1,0", "Call") -> C.US.CLEJ269100 | K2: =MOD(RTD("cqg.rtd", ,"SystemInfo", "Linetime"),1) -> 06:43:34
A3: C.US.CLEJ269150
A4: =RTD("cqg.rtd", ,"ContractData",A2, "Strike",, "T") -> 9100 | B4: Underlying | M4: =RTD("cqg.rtd", ,"ContractData",B6, "LongDescription",, "T") -> Crude Light (Globex), Apr 26
A5: =RTD("cqg.rtd", ,"ContractData",A3, "Strike",, "T") -> 9150 | B5: Symbol | C5: Live ATM | D5: =RTD("cqg.rtd", ,"ContractData",A1, "LongDescription",, "T") -> Crude Light (Globex), Apr 26 9150 Call | M5: Last | N5: NC
A6: =A5-A4 -> 50 | B6: CLE | C6: Set ATM | D6: Crude Light (Globex), Apr 26 9150 Call | M6: =RTD("cqg.rtd", ,"ContractData",B6, "LastTrade",, "T") -> 91.71 | N6: =RTD("cqg.rtd", ,"ContractData",B6, "NetLastTrade",, "T") -> 4.46
A7: 50
A8: Strike | B8: Symbol | C8: Last | D8: NC | E8: Bid Vol | F8: Bid | G8: Ask | H8: Ask Vol | I8: Volume | J8: Yesterday Vol | K8: Volume Change | L8: Open Int | M8: Prev OI | N8: OI Change
A9: =A10-$A$7 -> 5000 | B9: =LEFT(B10,FIND(A10,B10)-1)&A9 -> C.US.CLEJ265000 | C9: =IF(LEFT(RTD("cqg.rtd", ,"ContractData",B9, "LastTrade",, "T"),3)="768","",RTD("cqg.rtd", ,"ContractData",B9, "LastTrade",, "T")) ->  | D9: =IF(C9="","",RTD("cqg.rtd", ,"ContractData",B9, "NetLastTrade",, "T")) ->  | E9: =IF(LEFT(RTD("cqg.rtd", ,"ContractData",B9, "LastTrade",, "T"),3)="768","",RTD("cqg.rtd", ,"ContractData",B9, "MT_LastBidVolume",, "T")) -> 0 | F9: =IF(LEFT(RTD("cqg.rtd", ,"ContractData",B9, "LastTrade",, "T"),3)="768","",RTD("cqg.rtd", ,"ContractData",B9, "Bid",, "T")) ->  | G9: =IF(LEFT(RTD("cqg.rtd", ,"ContractData",B9, "LastTrade",, "T"),3)="768","",RTD("cqg.rtd", ,"ContractData",B9, "Ask",, "T")) ->  | H9: =IF(LEFT(RTD("cqg.rtd", ,"ContractData",B9, "LastTrade",, "T"),3)="768","",RTD("cqg.rtd", ,"ContractData",B9, "MT_LastAskVolume",, "T")) -> 0 | I9: =IF(LEFT(RTD("cqg.rtd", ,"ContractData",B9, "LastTrade",, "T"),3)="768","",RTD("cqg.rtd", ,"ContractData",B9, "T_CVol",, "T")) -> 0 | J9: =IF(LEFT(RTD("cqg.rtd", ,"ContractData",B9, "LastTrade",, "T"),3)="768","",RTD("cqg.rtd", ,"ContractData",B9, "Y_CVol",, "T")) -> 0 | K9: =IF(LEFT(RTD("cqg.rtd", ,"ContractData",B9, "LastTrade",, "T"),3)="768","",IFERROR(IF(I9>J9,"+"&I9-J9,I9-J9)*1,"")) -> 0 | L9: =IF(LEFT(RTD("cqg.rtd", ,"ContractData",B9, "LastTrade",, "T"),3)="768","",RTD("cqg.rtd",,"StudyData",B9, "Bar",, "ContractOI", "D", "-1",,,,,"T")) -> 9 | M9: =IF(LEFT(RTD("cqg.rtd", ,"ContractData",B9, "LastTrade",, "T"),3)="768","",RTD("cqg.rtd",,"StudyData",B9, "Bar",, "ContractOI", "D", "-2",,,,,"T")) -> 17 | N9: =IF(LEFT(RTD("cqg.rtd", ,"ContractData",B9, "LastTrade",, "T"),3)="768","",IFERROR(IF(L9>M9,"+"&L9-M9,L9-M9)*1,"")) -> -8
A10: 5050 | B10: C.US.CLEJ265050 | C10: =IF(LEFT(RTD("cqg.rtd", ,"ContractData",B10, "LastTrade",, "T"),3)="768","",RTD("cqg.rtd", ,"ContractData",B10, "LastTrade",, "T")) ->  | D10: =IF(C10="","",RTD("cqg.rtd", ,"ContractData",B10, "NetLastTrade",, "T")) ->  | E10: =IF(LEFT(RTD("cqg.rtd", ,"ContractData",B10, "LastTrade",, "T"),3)="768","",RTD("cqg.rtd", ,"ContractData",B10, "MT_LastBidVolume",, "T")) -> 0 | F10: =IF(LEFT(RTD("cqg.rtd", ,"ContractData",B10, "LastTrade",, "T"),3)="768","",RTD("cqg.rtd", ,"ContractData",B10, "Bid",, "T")) ->  | G10: =IF(LEFT(RTD("cqg.rtd", ,"ContractData",B10, "LastTrade",, "T"),3)="768","",RTD("cqg.rtd", ,"ContractData",B10, "Ask",, "T")) ->  | H10: =IF(LEFT(RTD("cqg.rtd", ,"ContractData",B10, "LastTrade",, "T"),3)="768","",RTD("cqg.rtd", ,"ContractData",B10, "MT_LastAskVolume",, "T")) -> 0 | I10: =IF(LEFT(RTD("cqg.rtd", ,"ContractData",B10, "LastTrade",, "T"),3)="768","",RTD("cqg.rtd", ,"ContractData",B10, "T_CVol",, "T")) -> 0 | J10: =IF(LEFT(RTD("cqg.rtd", ,"ContractData",B10, "LastTrade",, "T"),3)="768","",RTD("cqg.rtd", ,"ContractData",B10, "Y_CVol",, "T")) -> 0 | K10: =IF(LEFT(RTD("cqg.rtd", ,"ContractData",B10, "LastTrade",, "T"),3)="768","",IFERROR(IF(I10>J10,"+"&I10-J10,I10-J10)*1,"")) -> 0 | L10: =IF(LEFT(RTD("cqg.rtd", ,"ContractData",B10, "LastTrade",, "T"),3)="768","",RTD("cqg.rtd",,"StudyData",B10, "Bar",, "ContractOI", "D", "-1",,,,,"T")) -> 14 | M10: =IF(LEFT(RTD("cqg.rtd", ,"ContractData",B10, "LastTrade",, "T"),3)="768","",RTD("cqg.rtd",,"StudyData",B10, "Bar",, "ContractOI", "D", "-2",,,,,"T")) -> 14 | N10: =IF(LEFT(RTD("cqg.rtd", ,"ContractData",B10, "LastTrade",, "T"),3)="768","",IFERROR(IF(L10>M10,"+"&L10-M10,L10-M10)*1,"")) -> 0
A11: 5100 | B11: C.US.CLEJ265100 | C11: =IF(LEFT(RTD("cqg.rtd", ,"ContractData",B11, "LastTrade",, "T"),3)="768","",RTD("cqg.rtd", ,"ContractData",B11, "LastTrade",, "T")) ->  | D11: =IF(C11="","",RTD("cqg.rtd", ,"ContractData",B11, "NetLastTrade",, "T")) ->  | E11: =IF(LEFT(RTD("cqg.rtd", ,"ContractData",B11, "LastTrade",, "T"),3)="768","",RTD("cqg.rtd", ,"ContractData",B11, "MT_LastBidVolume",, "T")) -> 0 | F11: =IF(LEFT(RTD("cqg.rtd", ,"ContractData",B11, "LastTrade",, "T"),3)="768","",RTD("cqg.rtd", ,"ContractData",B11, "Bid",, "T")) ->  | G11: =IF(LEFT(RTD("cqg.rtd", ,"ContractData",B11, "LastTrade",, "T"),3)="768","",RTD("cqg.rtd", ,"ContractData",B11, "Ask",, "T")) ->  | H11: =IF(LEFT(RTD("cqg.rtd", ,"ContractData",B11, "LastTrade",, "T"),3)="768","",RTD("cqg.rtd", ,"ContractData",B11, "MT_LastAskVolume",, "T")) -> 0 | I11: =IF(LEFT(RTD("cqg.rtd", ,"ContractData",B11, "LastTrade",, "T"),3)="768","",RTD("cqg.rtd", ,"ContractData",B11, "T_CVol",, "T")) -> 0 | J11: =IF(LEFT(RTD("cqg.rtd", ,"ContractData",B11, "LastTrade",, "T"),3)="768","",RTD("cqg.rtd", ,"ContractData",B11, "Y_CVol",, "T")) -> 0 | K11: =IF(LEFT(RTD("cqg.rtd", ,"ContractData",B11, "LastTrade",, "T"),3)="768","",IFERROR(IF(I11>J11,"+"&I11-J11,I11-J11)*1,"")) -> 0 | L11: =IF(LEFT(RTD("cqg.rtd", ,"ContractData",B11, "LastTrade",, "T"),3)="768","",RTD("cqg.rtd",,"StudyData",B11, "Bar",, "ContractOI", "D", "-1",,,,,"T")) -> 69 | M11: =IF(LEFT(RTD("cqg.rtd", ,"ContractData",B11, "LastTrade",, "T"),3)="768","",RTD("cqg.rtd",,"StudyData",B11, "Bar",, "ContractOI", "D", "-2",,,,,"T")) -> 71 | N11: =IF(LEFT(RTD("cqg.rtd", ,"ContractData",B11, "LastTrade",, "T"),3)="768","",IFERROR(IF(L11>M11,"+"&L11-M11,L11-M11)*1,"")) -> -2
A12: 5150 | B12: C.US.CLEJ265150 | C12: =IF(LEFT(RTD("cqg.rtd", ,"ContractData",B12, "LastTrade",, "T"),3)="768","",RTD("cqg.rtd", ,"ContractData",B12, "LastTrade",, "T")) ->  | D12: =IF(C12="","",RTD("cqg.rtd", ,"ContractData",B12, "NetLastTrade",, "T")) ->  | E12: =IF(LEFT(RTD("cqg.rtd", ,"ContractData",B12, "LastTrade",, "T"),3)="768","",RTD("cqg.rtd", ,"ContractData",B12, "MT_LastBidVolume",, "T")) -> 0 | F12: =IF(LEFT(RTD("cqg.rtd", ,"ContractData",B12, "LastTrade",, "T"),3)="768","",RTD("cqg.rtd", ,"ContractData",B12, "Bid",, "T")) ->  | G12: =IF(LEFT(RTD("cqg.rtd", ,"ContractData",B12, "LastTrade",, "T"),3)="768","",RTD("cqg.rtd", ,"ContractData",B12, "Ask",, "T")) ->  | H12: =IF(LEFT(RTD("cqg.rtd", ,"ContractData",B12, "LastTrade",, "T"),3)="768","",RTD("cqg.rtd", ,"ContractData",B12, "MT_LastAskVolume",, "T")) -> 0 | I12: =IF(LEFT(RTD("cqg.rtd", ,"ContractData",B12, "LastTrade",, "T"),3)="768","",RTD("cqg.rtd", ,"ContractData",B12, "T_CVol",, "T")) -> 0 | J12: =IF(LEFT(RTD("cqg.rtd", ,"ContractData",B12, "LastTrade",, "T"),3)="768","",RTD("cqg.rtd", ,"ContractData",B12, "Y_CVol",, "T")) -> 0 | K12: =IF(LEFT(RTD("cqg.rtd", ,"ContractData",B12, "LastTrade",, "T"),3)="768","",IFERROR(IF(I12>J12,"+"&I12-J12,I12-J12)*1,"")) -> 0 | L12: =IF(LEFT(RTD("cqg.rtd", ,"ContractData",B12, "LastTrade",, "T"),3)="768","",RTD("cqg.rtd",,"StudyData",B12, "Bar",, "ContractOI", "D", "-1",,,,,"T")) ->  | M12: =IF(LEFT(RTD("cqg.rtd", ,"ContractData",B12, "LastTrade",, "T"),3)="768","",RTD("cqg.rtd",,"StudyData",B12, "Bar",, "ContractOI", "D", "-2",,,,,"T")) ->  | N12: =IF(LEFT(RTD("cqg.rtd", ,"ContractData",B12, "LastTrade",, "T"),3)="768","",IFERROR(IF(L12>M12,"+"&L12-M12,L12-M12)*1,"")) -> 
A13: 5200 | B13: C.US.CLEJ265200 | C13: =IF(LEFT(RTD("cqg.rtd", ,"ContractData",B13, "LastTrade",, "T"),3)="768","",RTD("cqg.rtd", ,"ContractData",B13, "LastTrade",, "T")) ->  | D13: =IF(C13="","",RTD("cqg.rtd", ,"ContractData",B13, "NetLastTrade",, "T")) ->  | E13: =IF(LEFT(RTD("cqg.rtd", ,"ContractData",B13, "LastTrade",, "T"),3)="768","",RTD("cqg.rtd", ,"ContractData",B13, "MT_LastBidVolume",, "T")) -> 0 | F13: =IF(LEFT(RTD("cqg.rtd", ,"ContractData",B13, "LastTrade",, "T"),3)="768","",RTD("cqg.rtd", ,"ContractData",B13, "Bid",, "T")) ->  | G13: =IF(LEFT(RTD("cqg.rtd", ,"ContractData",B13, "LastTrade",, "T"),3)="768","",RTD("cqg.rtd", ,"ContractData",B13, "Ask",, "T")) ->  | H13: =IF(LEFT(RTD("cqg.rtd", ,"ContractData",B13, "LastTrade",, "T"),3)="768","",RTD("cqg.rtd", ,"ContractData",B13, "MT_LastAskVolume",, "T")) -> 0 | I13: =IF(LEFT(RTD("cqg.rtd", ,"ContractData",B13, "LastTrade",, "T"),3)="768","",RTD("cqg.rtd", ,"ContractData",B13, "T_CVol",, "T")) -> 0 | J13: =IF(LEFT(RTD("cqg.rtd", ,"ContractData",B13, "LastTrade",, "T"),3)="768","",RTD("cqg.rtd", ,"ContractData",B13, "Y_CVol",, "T")) -> 0 | K13: =IF(LEFT(RTD("cqg.rtd", ,"ContractData",B13, "LastTrade",, "T"),3)="768","",IFERROR(IF(I13>J13,"+"&I13-J13,I13-J13)*1,"")) -> 0 | L13: =IF(LEFT(RTD("cqg.rtd", ,"ContractData",B13, "LastTrade",, "T"),3)="768","",RTD("cqg.rtd",,"StudyData",B13, "Bar",, "ContractOI", "D", "-1",,,,,"T")) -> 2 | M13: =IF(LEFT(RTD("cqg.rtd", ,"ContractData",B13, "LastTrade",, "T"),3)="768","",RTD("cqg.rtd",,"StudyData",B13, "Bar",, "ContractOI", "D", "-2",,,,,"T")) -> 2 | N13: =IF(LEFT(RTD("cqg.rtd", ,"ContractData",B13, "LastTrade",, "T"),3)="768","",IFERROR(IF(L13>M13,"+"&L13-M13,L13-M13)*1,"")) -> 0
A14: 5250 | B14: C.US.CLEJ265250 | C14: =IF(LEFT(RTD("cqg.rtd", ,"ContractData",B14, "LastTrade",, "T"),3)="768","",RTD("cqg.rtd", ,"ContractData",B14, "LastTrade",, "T")) ->  | D14: =IF(C14="","",RTD("cqg.rtd", ,"ContractData",B14, "NetLastTrade",, "T")) ->  | E14: =IF(LEFT(RTD("cqg.rtd", ,"ContractData",B14, "LastTrade",, "T"),3)="768","",RTD("cqg.rtd", ,"ContractData",B14, "MT_LastBidVolume",, "T")) -> 0 | F14: =IF(LEFT(RTD("cqg.rtd", ,"ContractData",B14, "LastTrade",, "T"),3)="768","",RTD("cqg.rtd", ,"ContractData",B14, "Bid",, "T")) ->  | G14: =IF(LEFT(RTD("cqg.rtd", ,"ContractData",B14, "LastTrade",, "T"),3)="768","",RTD("cqg.rtd", ,"ContractData",B14, "Ask",, "T")) ->  | H14: =IF(LEFT(RTD("cqg.rtd", ,"ContractData",B14, "LastTrade",, "T"),3)="768","",RTD("cqg.rtd", ,"ContractData",B14, "MT_LastAskVolume",, "T")) -> 0 | I14: =IF(LEFT(RTD("cqg.rtd", ,"ContractData",B14, "LastTrade",, "T"),3)="768","",RTD("cqg.rtd", ,"ContractData",B14, "T_CVol",, "T")) -> 0 | J14: =IF(LEFT(RTD("cqg.rtd", ,"ContractData",B14, "LastTrade",, "T"),3)="768","",RTD("cqg.rtd", ,"ContractData",B14, "Y_CVol",, "T")) -> 0 | K14: =IF(LEFT(RTD("cqg.rtd", ,"ContractData",B14, "LastTrade",, "T"),3)="768","",IFERROR(IF(I14>J14,"+"&I14-J14,I14-J14)*1,"")) -> 0 | L14: =IF(LEFT(RTD("cqg.rtd", ,"ContractData",B14, "LastTrade",, "T"),3)="768","",RTD("cqg.rtd",,"StudyData",B14, "Bar",, "ContractOI", "D", "-1",,,,,"T")) -> 1 | M14: =IF(LEFT(RTD("cqg.rtd", ,"ContractData",B14, "LastTrade",, "T"),3)="768","",RTD("cqg.rtd",,"StudyData",B14, "Bar",, "ContractOI", "D", "-2",,,,,"T")) -> 1 | N14: =IF(LEFT(RTD("cqg.rtd", ,"ContractData",B14, "LastTrade",, "T"),3)="768","",IFERROR(IF(L14>M14,"+"&L14-M14,L14-M14)*1,"")) -> 0
A15: 5300 | B15: C.US.CLEJ265300 | C15: =IF(LEFT(RTD("cqg.rtd", ,"ContractData",B15, "LastTrade",, "T"),3)="768","",RTD("cqg.rtd", ,"ContractData",B15, "LastTrade",, "T")) -> 25.75 | D15: =IF(C15="","",RTD("cqg.rtd", ,"ContractData",B15, "NetLastTrade",, "T")) ->  | E15: =IF(LEFT(RTD("cqg.rtd", ,"ContractData",B15, "LastTrade",, "T"),3)="768","",RTD("cqg.rtd", ,"ContractData",B15, "MT_LastBidVolume",, "T")) -> 0 | F15: =IF(LEFT(RTD("cqg.rtd", ,"ContractData",B15, "LastTrade",, "T"),3)="768","",RTD("cqg.rtd", ,"ContractData",B15, "Bid",, "T")) ->  | G15: =IF(LEFT(RTD("cqg.rtd", ,"ContractData",B15, "LastTrade",, "T"),3)="768","",RTD("cqg.rtd", ,"ContractData",B15, "Ask",, "T")) ->  | H15: =IF(LEFT(RTD("cqg.rtd", ,"ContractData",B15, "LastTrade",, "T"),3)="768","",RTD("cqg.rtd", ,"ContractData",B15, "MT_LastAskVolume",, "T")) -> 0 | I15: =IF(LEFT(RTD("cqg.rtd", ,"ContractData",B15, "LastTrade",, "T"),3)="768","",RTD("cqg.rtd", ,"ContractData",B15, "T_CVol",, "T")) -> 0 | J15: =IF(LEFT(RTD("cqg.rtd", ,"ContractData",B15, "LastTrade",, "T"),3)="768","",RTD("cqg.rtd", ,"ContractData",B15, "Y_CVol",, "T")) -> 0 | K15: =IF(LEFT(RTD("cqg.rtd", ,"ContractData",B15, "LastTrade",, "T"),3)="768","",IFERROR(IF(I15>J15,"+"&I15-J15,I15-J15)*1,"")) -> 0 | L15: =IF(LEFT(RTD("cqg.rtd", ,"ContractData",B15, "LastTrade",, "T"),3)="768","",RTD("cqg.rtd",,"StudyData",B15, "Bar",, "ContractOI", "D", "-1",,,,,"T")) -> 174 | M15: =IF(LEFT(RTD("cqg.rtd", ,"ContractData",B15, "LastTrade",, "T"),3)="768","",RTD("cqg.rtd",,"StudyData",B15, "Bar",, "ContractOI", "D", "-2",,,,,"T")) -> 174 | N15: =IF(LEFT(RTD("cqg.rtd", ,"ContractData",B15, "LastTrade",, "T"),3)="768","",IFERROR(IF(L15>M15,"+"&L15-M15,L15-M15)*1,"")) -> 0
A16: 5350 | B16: C.US.CLEJ265350 | C16: =IF(LEFT(RTD("cqg.rtd", ,"ContractData",B16, "LastTrade",, "T"),3)="768","",RTD("cqg.rtd", ,"ContractData",B16, "LastTrade",, "T")) ->  | D16: =IF(C16="","",RTD("cqg.rtd", ,"ContractData",B16, "NetLastTrade",, "T")) ->  | E16: =IF(LEFT(RTD("cqg.rtd", ,"ContractData",B16, "LastTrade",, "T"),3)="768","",RTD("cqg.rtd", ,"ContractData",B16, "MT_LastBidVolume",, "T")) -> 0 | F16: =IF(LEFT(RTD("cqg.rtd", ,"ContractData",B16, "LastTrade",, "T"),3)="768","",RTD("cqg.rtd", ,"ContractData",B16, "Bid",, "T")) ->  | G16: =IF(LEFT(RTD("cqg.rtd", ,"ContractData",B16, "LastTrade",, "T"),3)="768","",RTD("cqg.rtd", ,"ContractData",B16, "Ask",, "T")) ->  | H16: =IF(LEFT(RTD("cqg.rtd", ,"ContractData",B16, "LastTrade",, "T"),3)="768","",RTD("cqg.rtd", ,"ContractData",B16, "MT_LastAskVolume",, "T")) -> 0 | I16: =IF(LEFT(RTD("cqg.rtd", ,"ContractData",B16, "LastTrade",, "T"),3)="768","",RTD("cqg.rtd", ,"ContractData",B16, "T_CVol",, "T")) -> 0 | J16: =IF(LEFT(RTD("cqg.rtd", ,"ContractData",B16, "LastTrade",, "T"),3)="768","",RTD("cqg.rtd", ,"ContractData",B16, "Y_CVol",, "T")) -> 0 | K16: =IF(LEFT(RTD("cqg.rtd", ,"ContractData",B16, "LastTrade",, "T"),3)="768","",IFERROR(IF(I16>J16,"+"&I16-J16,I16-J16)*1,"")) -> 0 | L16: =IF(LEFT(RTD("cqg.rtd", ,"ContractData",B16, "LastTrade",, "T"),3)="768","",RTD("cqg.rtd",,"StudyData",B16, "Bar",, "ContractOI", "D", "-1",,,,,"T")) -> 27 | M16: =IF(LEFT(RTD("cqg.rtd", ,"ContractData",B16, "LastTrade",, "T"),3)="768","",RTD("cqg.rtd",,"StudyData",B16, "Bar",, "ContractOI", "D", "-2",,,,,"T")) -> 27 | N16: =IF(LEFT(RTD("cqg.rtd", ,"ContractData",B16, "LastTrade",, "T"),3)="768","",IFERROR(IF(L16>M16,"+"&L16-M16,L16-M16)*1,"")) -> 0
A17: 5400 | B17: C.US.CLEJ265400 | C17: =IF(LEFT(RTD("cqg.rtd", ,"ContractData",B17, "LastTrade",, "T"),3)="768","",RTD("cqg.rtd", ,"ContractData",B17, "LastTrade",, "T")) ->  | D17: =IF(C17="","",RTD("cqg.rtd", ,"ContractData",B17, "NetLastTrade",, "T")) ->  | E17: =IF(LEFT(RTD("cqg.rtd", ,"ContractData",B17, "LastTrade",, "T"),3)="768","",RTD("cqg.rtd", ,"ContractData",B17, "MT_LastBidVolume",, "T")) -> 0 | F17: =IF(LEFT(RTD("cqg.rtd", ,"ContractData",B17, "LastTrade",, "T"),3)="768","",RTD("cqg.rtd", ,"ContractData",B17, "Bid",, "T")) ->  | G17: =IF(LEFT(RTD("cqg.rtd", ,"ContractData",B17, "LastTrade",, "T"),3)="768","",RTD("cqg.rtd", ,"ContractData",B17, "Ask",, "T")) ->  | H17: =IF(LEFT(RTD("cqg.rtd", ,"ContractData",B17, "LastTrade",, "T"),3)="768","",RTD("cqg.rtd", ,"ContractData",B17, "MT_LastAskVolume",, "T")) -> 0 | I17: =IF(LEFT(RTD("cqg.rtd", ,"ContractData",B17, "LastTrade",, "T"),3)="768","",RTD("cqg.rtd", ,"ContractData",B17, "T_CVol",, "T")) -> 0 | J17: =IF(LEFT(RTD("cqg.rtd", ,"ContractData",B17, "LastTrade",, "T"),3)="768","",RTD("cqg.rtd", ,"ContractData",B17, "Y_CVol",, "T")) -> 0 | K17: =IF(LEFT(RTD("cqg.rtd", ,"ContractData",B17, "LastTrade",, "T"),3)="768","",IFERROR(IF(I17>J17,"+"&I17-J17,I17-J17)*1,"")) -> 0 | L17: =IF(LEFT(RTD("cqg.rtd", ,"ContractData",B17, "LastTrade",, "T"),3)="768","",RTD("cqg.rtd",,"StudyData",B17, "Bar",, "ContractOI", "D", "-1",,,,,"T")) -> 90 | M17: =IF(LEFT(RTD("cqg.rtd", ,"ContractData",B17, "LastTrade",, "T"),3)="768","",RTD("cqg.rtd",,"StudyData",B17, "Bar",, "ContractOI", "D", "-2",,,,,"T")) -> 90 | N17: =IF(LEFT(RTD("cqg.rtd", ,"ContractData",B17, "LastTrade",, "T"),3)="768","",IFERROR(IF(L17>M17,"+"&L17-M17,L17-M17)*1,"")) -> 0
A18: 5450 | B18: C.US.CLEJ265450 | C18: =IF(LEFT(RTD("cqg.rtd", ,"ContractData",B18, "LastTrade",, "T"),3)="768","",RTD("cqg.rtd", ,"ContractData",B18, "LastTrade",, "T")) ->  | D18: =IF(C18="","",RTD("cqg.rtd", ,"ContractData",B18, "NetLastTrade",, "T")) ->  | E18: =IF(LEFT(RTD("cqg.rtd", ,"ContractData",B18, "LastTrade",, "T"),3)="768","",RTD("cqg.rtd", ,"ContractData",B18, "MT_LastBidVolume",, "T")) -> 0 | F18: =IF(LEFT(RTD("cqg.rtd", ,"ContractData",B18, "LastTrade",, "T"),3)="768","",RTD("cqg.rtd", ,"ContractData",B18, "Bid",, "T")) ->  | G18: =IF(LEFT(RTD("cqg.rtd", ,"ContractData",B18, "LastTrade",, "T"),3)="768","",RTD("cqg.rtd", ,"ContractData",B18, "Ask",, "T")) ->  | H18: =IF(LEFT(RTD("cqg.rtd", ,"ContractData",B18, "LastTrade",, "T"),3)="768","",RTD("cqg.rtd", ,"ContractData",B18, "MT_LastAskVolume",, "T")) -> 0 | I18: =IF(LEFT(RTD("cqg.rtd", ,"ContractData",B18, "LastTrade",, "T"),3)="768","",RTD("cqg.rtd", ,"ContractData",B18, "T_CVol",, "T")) -> 0 | J18: =IF(LEFT(RTD("cqg.rtd", ,"ContractData",B18, "LastTrade",, "T"),3)="768","",RTD("cqg.rtd", ,"ContractData",B18, "Y_CVol",, "T")) -> 0 | K18: =IF(LEFT(RTD("cqg.rtd", ,"ContractData",B18, "LastTrade",, "T"),3)="768","",IFERROR(IF(I18>J18,"+"&I18-J18,I18-J18)*1,"")) -> 0 | L18: =IF(LEFT(RTD("cqg.rtd", ,"ContractData",B18, "LastTrade",, "T"),3)="768","",RTD("cqg.rtd",,"StudyData",B18, "Bar",, "ContractOI", "D", "-1",,,,,"T")) -> 19 | M18: =IF(LEFT(RTD("cqg.rtd", ,"ContractData",B18, "LastTrade",, "T"),3)="768","",RTD("cqg.rtd",,"StudyData",B18, "Bar",, "ContractOI", "D", "-2",,,,,"T")) -> 19 | N18: =IF(LEFT(RTD("cqg.rtd", ,"ContractData",B18, "LastTrade",, "T"),3)="768","",IFERROR(IF(L18>M18,"+"&L18-M18,L18-M18)*1,"")) -> 0
A19: 5500 | B19: C.US.CLEJ265500 | C19: =IF(LEFT(RTD("cqg.rtd", ,"ContractData",B19, "LastTrade",, "T"),3)="768","",RTD("cqg.rtd", ,"ContractData",B19, "LastTrade",, "T")) ->  | D19: =IF(C19="","",RTD("cqg.rtd", ,"ContractData",B19, "NetLastTrade",, "T")) ->  | E19: =IF(LEFT(RTD("cqg.rtd", ,"ContractData",B19, "LastTrade",, "T"),3)="768","",RTD("cqg.rtd", ,"ContractData",B19, "MT_LastBidVolume",, "T")) -> 0 | F19: =IF(LEFT(RTD("cqg.rtd", ,"ContractData",B19, "LastTrade",, "T"),3)="768","",RTD("cqg.rtd", ,"ContractData",B19, "Bid",, "T")) ->  | G19: =IF(LEFT(RTD("cqg.rtd", ,"ContractData",B19, "LastTrade",, "T"),3)="768","",RTD("cqg.rtd", ,"ContractData",B19, "Ask",, "T")) ->  | H19: =IF(LEFT(RTD("cqg.rtd", ,"ContractData",B19, "LastTrade",, "T"),3)="768","",RTD("cqg.rtd", ,"ContractData",B19, "MT_LastAskVolume",, "T")) -> 0 | I19: =IF(LEFT(RTD("cqg.rtd", ,"ContractData",B19, "LastTrade",, "T"),3)="768","",RTD("cqg.rtd", ,"ContractData",B19, "T_CVol",, "T")) -> 0 | J19: =IF(LEFT(RTD("cqg.rtd", ,"ContractData",B19, "LastTrade",, "T"),3)="768","",RTD("cqg.rtd", ,"ContractData",B19, "Y_CVol",, "T")) -> 0 | K19: =IF(LEFT(RTD("cqg.rtd", ,"ContractData",B19, "LastTrade",, "T"),3)="768","",IFERROR(IF(I19>J19,"+"&I19-J19,I19-J19)*1,"")) -> 0 | L19: =IF(LEFT(RTD("cqg.rtd", ,"ContractData",B19, "LastTrade",, "T"),3)="768","",RTD("cqg.rtd",,"StudyData",B19, "Bar",, "ContractOI", "D", "-1",,,,,"T")) -> 837 | M19: =IF(LEFT(RTD("cqg.rtd", ,"ContractData",B19, "LastTrade",, "T"),3)="768","",RTD("cqg.rtd",,"StudyData",B19, "Bar",, "ContractOI", "D", "-2",,,,,"T")) -> 837 | N19: =IF(LEFT(RTD("cqg.rtd", ,"ContractData",B19, "LastTrade",, "T"),3)="768","",IFERROR(IF(L19>M19,"+"&L19-M19,L19-M19)*1,"")) -> 0
A20: 5550 | B20: C.US.CLEJ265550 | C20: =IF(LEFT(RTD("cqg.rtd", ,"ContractData",B20, "LastTrade",, "T"),3)="768","",RTD("cqg.rtd", ,"ContractData",B20, "LastTrade",, "T")) ->  | D20: =IF(C20="","",RTD("cqg.rtd", ,"ContractData",B20, "NetLastTrade",, "T")) ->  | E20: =IF(LEFT(RTD("cqg.rtd", ,"ContractData",B20, "LastTrade",, "T"),3)="768","",RTD("cqg.rtd", ,"ContractData",B20, "MT_LastBidVolume",, "T")) -> 0 | F20: =IF(LEFT(RTD("cqg.rtd", ,"ContractData",B20, "LastTrade",, "T"),3)="768","",RTD("cqg.rtd", ,"ContractData",B20, "Bid",, "T")) ->  | G20: =IF(LEFT(RTD("cqg.rtd", ,"ContractData",B20, "LastTrade",, "T"),3)="768","",RTD("cqg.rtd", ,"ContractData",B20, "Ask",, "T")) ->  | H20: =IF(LEFT(RTD("cqg.rtd", ,"ContractData",B20, "LastTrade",, "T"),3)="768","",RTD("cqg.rtd", ,"ContractData",B20, "MT_LastAskVolume",, "T")) -> 0 | I20: =IF(LEFT(RTD("cqg.rtd", ,"ContractData",B20, "LastTrade",, "T"),3)="768","",RTD("cqg.rtd", ,"ContractData",B20, "T_CVol",, "T")) -> 0 | J20: =IF(LEFT(RTD("cqg.rtd", ,"ContractData",B20, "LastTrade",, "T"),3)="768","",RTD("cqg.rtd", ,"ContractData",B20, "Y_CVol",, "T")) -> 0 | K20: =IF(LEFT(RTD("cqg.rtd", ,"ContractData",B20, "LastTrade",, "T"),3)="768","",IFERROR(IF(I20>J20,"+"&I20-J20,I20-J20)*1,"")) -> 0 | L20: =IF(LEFT(RTD("cqg.rtd", ,"ContractData",B20, "LastTrade",, "T"),3)="768","",RTD("cqg.rtd",,"StudyData",B20, "Bar",, "ContractOI", "D", "-1",,,,,"T")) -> 55 | M20: =IF(LEFT(RTD("cqg.rtd", ,"ContractData",B20, "LastTrade",, "T"),3)="768","",RTD("cqg.rtd",,"StudyData",B20, "Bar",, "ContractOI", "D", "-2",,,,,"T")) -> 55 | N20: =IF(LEFT(RTD("cqg.rtd", ,"ContractData",B20, "LastTrade",, "T"),3)="768","",IFERROR(IF(L20>M20,"+"&L20-M20,L20-M20)*1,"")) -> 0
A21: 5600 | B21: C.US.CLEJ265600 | C21: =IF(LEFT(RTD("cqg.rtd", ,"ContractData",B21, "LastTrade",, "T"),3)="768","",RTD("cqg.rtd", ,"ContractData",B21, "LastTrade",, "T")) ->  | D21: =IF(C21="","",RTD("cqg.rtd", ,"ContractData",B21, "NetLastTrade",, "T")) ->  | E21: =IF(LEFT(RTD("cqg.rtd", ,"ContractData",B21, "LastTrade",, "T"),3)="768","",RTD("cqg.rtd", ,"ContractData",B21, "MT_LastBidVolume",, "T")) -> 0 | F21: =IF(LEFT(RTD("cqg.rtd", ,"ContractData",B21, "LastTrade",, "T"),3)="768","",RTD("cqg.rtd", ,"ContractData",B21, "Bid",, "T")) ->  | G21: =IF(LEFT(RTD("cqg.rtd", ,"ContractData",B21, "LastTrade",, "T"),3)="768","",RTD("cqg.rtd", ,"ContractData",B21, "Ask",, "T")) ->  | H21: =IF(LEFT(RTD("cqg.rtd", ,"ContractData",B21, "LastTrade",, "T"),3)="768","",RTD("cqg.rtd", ,"ContractData",B21, "MT_LastAskVolume",, "T")) -> 0 | I21: =IF(LEFT(RTD("cqg.rtd", ,"ContractData",B21, "LastTrade",, "T"),3)="768","",RTD("cqg.rtd", ,"ContractData",B21, "T_CVol",, "T")) -> 0 | J21: =IF(LEFT(RTD("cqg.rtd", ,"ContractData",B21, "LastTrade",, "T"),3)="768","",RTD("cqg.rtd", ,"ContractData",B21, "Y_CVol",, "T")) -> 0 | K21: =IF(LEFT(RTD("cqg.rtd", ,"ContractData",B21, "LastTrade",, "T"),3)="768","",IFERROR(IF(I21>J21,"+"&I21-J21,I21-J21)*1,"")) -> 0 | L21: =IF(LEFT(RTD("cqg.rtd", ,"ContractData",B21, "LastTrade",, "T"),3)="768","",RTD("cqg.rtd",,"StudyData",B21, "Bar",, "ContractOI", "D", "-1",,,,,"T")) -> 2835 | M21: =IF(LEFT(RTD("cqg.rtd", ,"ContractData",B21, "LastTrade",, "T"),3)="768","",RTD("cqg.rtd",,"StudyData",B21, "Bar",, "ContractOI", "D", "-2",,,,,"T")) -> 2835 | N21: =IF(LEFT(RTD("cqg.rtd", ,"ContractData",B21, "LastTrade",, "T"),3)="768","",IFERROR(IF(L21>M21,"+"&L21-M21,L21-M21)*1,"")) -> 0
A22: 5650 | B22: C.US.CLEJ265650 | C22: =IF(LEFT(RTD("cqg.rtd", ,"ContractData",B22, "LastTrade",, "T"),3)="768","",RTD("cqg.rtd", ,"ContractData",B22, "LastTrade",, "T")) ->  | D22: =IF(C22="","",RTD("cqg.rtd", ,"ContractData",B22, "NetLastTrade",, "T")) ->  | E22: =IF(LEFT(RTD("cqg.rtd", ,"ContractData",B22, "LastTrade",, "T"),3)="768","",RTD("cqg.rtd", ,"ContractData",B22, "MT_LastBidVolume",, "T")) -> 5 | F22: =IF(LEFT(RTD("cqg.rtd", ,"ContractData",B22, "LastTrade",, "T"),3)="768","",RTD("cqg.rtd", ,"ContractData",B22, "Bid",, "T")) -> 34.32 | G22: =IF(LEFT(RTD("cqg.rtd", ,"ContractData",B22, "LastTrade",, "T"),3)="768","",RTD("cqg.rtd", ,"ContractData",B22, "Ask",, "T")) -> 36.03 | H22: =IF(LEFT(RTD("cqg.rtd", ,"ContractData",B22, "LastTrade",, "T"),3)="768","",RTD("cqg.rtd", ,"ContractData",B22, "MT_LastAskVolume",, "T")) -> 5 | I22: =IF(LEFT(RTD("cqg.rtd", ,"ContractData",B22, "LastTrade",, "T"),3)="768","",RTD("cqg.rtd", ,"ContractData",B22, "T_CVol",, "T")) -> 0 | J22: =IF(LEFT(RTD("cqg.rtd", ,"ContractData",B22, "LastTrade",, "T"),3)="768","",RTD("cqg.rtd", ,"ContractData",B22, "Y_CVol",, "T")) -> 0 | K22: =IF(LEFT(RTD("cqg.rtd", ,"ContractData",B22, "LastTrade",, "T"),3)="768","",IFERROR(IF(I22>J22,"+"&I22-J22,I22-J22)*1,"")) -> 0 | L22: =IF(LEFT(RTD("cqg.rtd", ,"ContractData",B22, "LastTrade",, "T"),3)="768","",RTD("cqg.rtd",,"StudyData",B22, "Bar",, "ContractOI", "D", "-1",,,,,"T")) -> 554 | M22: =IF(LEFT(RTD("cqg.rtd", ,"ContractData",B22, "LastTrade",, "T"),3)="768","",RTD("cqg.rtd",,"StudyData",B22, "Bar",, "ContractOI", "D", "-2",,,,,"T")) -> 554 | N22: =IF(LEFT(RTD("cqg.rtd", ,"ContractData",B22, "LastTrade",, "T"),3)="768","",IFERROR(IF(L22>M22,"+"&L22-M22,L22-M22)*1,"")) -> 0
A23: 5700 | B23: C.US.CLEJ265700 | C23: =IF(LEFT(RTD("cqg.rtd", ,"ContractData",B23, "LastTrade",, "T"),3)="768","",RTD("cqg.rtd", ,"ContractData",B23, "LastTrade",, "T")) -> 34.02 | D23: =IF(C23="","",RTD("cqg.rtd", ,"ContractData",B23, "NetLastTrade",, "T")) ->  | E23: =IF(LEFT(RTD("cqg.rtd", ,"ContractData",B23, "LastTrade",, "T"),3)="768","",RTD("cqg.rtd", ,"ContractData",B23, "MT_LastBidVolume",, "T")) -> 5 | F23: =IF(LEFT(RTD("cqg.rtd", ,"ContractData",B23, "LastTrade",, "T"),3)="768","",RTD("cqg.rtd", ,"ContractData",B23, "Bid",, "T")) -> 33.82 | G23: =IF(LEFT(RTD("cqg.rtd", ,"ContractData",B23, "LastTrade",, "T"),3)="768","",RTD("cqg.rtd", ,"ContractData",B23, "Ask",, "T")) -> 35.53 | H23: =IF(LEFT(RTD("cqg.rtd", ,"ContractData",B23, "LastTrade",, "T"),3)="768","",RTD("cqg.rtd", ,"ContractData",B23, "MT_LastAskVolume",, "T")) -> 5 | I23: =IF(LEFT(RTD("cqg.rtd", ,"ContractData",B23, "LastTrade",, "T"),3)="768","",RTD("cqg.rtd", ,"ContractData",B23, "T_CVol",, "T")) -> 0 | J23: =IF(LEFT(RTD("cqg.rtd", ,"ContractData",B23, "LastTrade",, "T"),3)="768","",RTD("cqg.rtd", ,"ContractData",B23, "Y_CVol",, "T")) -> 0 | K23: =IF(LEFT(RTD("cqg.rtd", ,"ContractData",B23, "LastTrade",, "T"),3)="768","",IFERROR(IF(I23>J23,"+"&I23-J23,I23-J23)*1,"")) -> 0 | L23: =IF(LEFT(RTD("cqg.rtd", ,"ContractData",B23, "LastTrade",, "T"),3)="768","",RTD("cqg.rtd",,"StudyData",B23, "Bar",, "ContractOI", "D", "-1",,,,,"T")) -> 975 | M23: =IF(LEFT(RTD("cqg.rtd", ,"ContractData",B23, "LastTrade",, "T"),3)="768","",RTD("cqg.rtd",,"StudyData",B23, "Bar",, "ContractOI", "D", "-2",,,,,"T")) -> 975 | N23: =IF(LEFT(RTD("cqg.rtd", ,"ContractData",B23, "LastTrade",, "T"),3)="768","",IFERROR(IF(L23>M23,"+"&L23-M23,L23-M23)*1,"")) -> 0
A24: 5750 | B24: C.US.CLEJ265750 | C24: =IF(LEFT(RTD("cqg.rtd", ,"ContractData",B24, "LastTrade",, "T"),3)="768","",RTD("cqg.rtd", ,"ContractData",B24, "LastTrade",, "T")) ->  | D24: =IF(C24="","",RTD("cqg.rtd", ,"ContractData",B24, "NetLastTrade",, "T")) ->  | E24: =IF(LEFT(RTD("cqg.rtd", ,"ContractData",B24, "LastTrade",, "T"),3)="768","",RTD("cqg.rtd", ,"ContractData",B24, "MT_LastBidVolume",, "T")) -> 30 | F24: =IF(LEFT(RTD("cqg.rtd", ,"ContractData",B24, "LastTrade",, "T"),3)="768","",RTD("cqg.rtd", ,"ContractData",B24, "Bid",, "T")) -> 33.32 | G24: =IF(LEFT(RTD("cqg.rtd", ,"ContractData",B24, "LastTrade",, "T"),3)="768","",RTD("cqg.rtd", ,"ContractData",B24, "Ask",, "T")) -> 35.03 | H24: =IF(LEFT(RTD("cqg.rtd", ,"ContractData",B24, "LastTrade",, "T"),3)="768","",RTD("cqg.rtd", ,"ContractData",B24, "MT_LastAskVolume",, "T")) -> 30 | I24: =IF(LEFT(RTD("cqg.rtd", ,"ContractData",B24, "LastTrade",, "T"),3)="768","",RTD("cqg.rtd", ,"ContractData",B24, "T_CVol",, "T")) -> 0 | J24: =IF(LEFT(RTD("cqg.rtd", ,"ContractData",B24, "LastTrade",, "T"),3)="768","",RTD("cqg.rtd", ,"ContractData",B24, "Y_CVol",, "T")) -> 1200 | K24: =IF(LEFT(RTD("cqg.rtd", ,"ContractData",B24, "LastTrade",, "T"),3)="768","",IFERROR(IF(I24>J24,"+"&I24-J24,I24-J24)*1,"")) -> -1200 | L24: =IF(LEFT(RTD("cqg.rtd", ,"ContractData",B24, "LastTrade",, "T"),3)="768","",RTD("cqg.rtd",,"StudyData",B24, "Bar",, "ContractOI", "D", "-1",,,,,"T")) -> 1171 | M24: =IF(LEFT(RTD("cqg.rtd", ,"ContractData",B24, "LastTrade",, "T"),3)="768","",RTD("cqg.rtd",,"StudyData",B24, "Bar",, "ContractOI", "D", "-2",,,,,"T")) -> 1971 | N24: =IF(LEFT(RTD("cqg.rtd", ,"ContractData",B24, "LastTrade",, "T"),3)="768","",IFERROR(IF(L24>M24,"+"&L24-M24,L24-M24)*1,"")) -> -800
A25: 5800 | B25: C.US.CLEJ265800 | C25: =IF(LEFT(RTD("cqg.rtd", ,"ContractData",B25, "LastTrade",, "T"),3)="768","",RTD("cqg.rtd", ,"ContractData",B25, "LastTrade",, "T")) ->  | D25: =IF(C25="","",RTD("cqg.rtd", ,"ContractData",B25, "NetLastTrade",, "T")) ->  | E25: =IF(LEFT(RTD("cqg.rtd", ,"ContractData",B25, "LastTrade",, "T"),3)="768","",RTD("cqg.rtd", ,"ContractData",B25, "MT_LastBidVolume",, "T")) -> 30 | F25: =IF(LEFT(RTD("cqg.rtd", ,"ContractData",B25, "LastTrade",, "T"),3)="768","",RTD("cqg.rtd", ,"ContractData",B25, "Bid",, "T")) -> 32.82 | G25: =IF(LEFT(RTD("cqg.rtd", ,"ContractData",B25, "LastTrade",, "T"),3)="768","",RTD("cqg.rtd", ,"ContractData",B25, "Ask",, "T")) -> 34.54 | H25: =IF(LEFT(RTD("cqg.rtd", ,"ContractData",B25, "LastTrade",, "T"),3)="768","",RTD("cqg.rtd", ,"ContractData",B25, "MT_LastAskVolume",, "T")) -> 30 | I25: =IF(LEFT(RTD("cqg.rtd", ,"ContractData",B25, "LastTrade",, "T"),3)="768","",RTD("cqg.rtd", ,"ContractData",B25, "T_CVol",, "T")) -> 0 | J25: =IF(LEFT(RTD("cqg.rtd", ,"ContractData",B25, "LastTrade",, "T"),3)="768","",RTD("cqg.rtd", ,"ContractData",B25, "Y_CVol",, "T")) -> 600 | K25: =IF(LEFT(RTD("cqg.rtd", ,"ContractData",B25, "LastTrade",, "T"),3)="768","",IFERROR(IF(I25>J25,"+"&I25-J25,I25-J25)*1,"")) -> -600 | L25: =IF(LEFT(RTD("cqg.rtd", ,"ContractData",B25, "LastTrade",, "T"),3)="768","",RTD("cqg.rtd",,"StudyData",B25, "Bar",, "ContractOI", "D", "-1",,,,,"T")) -> 1347 | M25: =IF(LEFT(RTD("cqg.rtd", ,"ContractData",B25, "LastTrade",, "T"),3)="768","",RTD("cqg.rtd",,"StudyData",B25, "Bar",, "ContractOI", "D", "-2",,,,,"T")) -> 1699 | N25: =IF(LEFT(RTD("cqg.rtd", ,"ContractData",B25, "LastTrade",, "T"),3)="768","",IFERROR(IF(L25>M25,"+"&L25-M25,L25-M25)*1,"")) -> -352
A26: 5850 | B26: C.US.CLEJ265850 | C26: =IF(LEFT(RTD("cqg.rtd", ,"ContractData",B26, "LastTrade",, "T"),3)="768","",RTD("cqg.rtd", ,"ContractData",B26, "LastTrade",, "T")) ->  | D26: =IF(C26="","",RTD("cqg.rtd", ,"ContractData",B26, "NetLastTrade",, "T")) ->  | E26: =IF(LEFT(RTD("cqg.rtd", ,"ContractData",B26, "LastTrade",, "T"),3)="768","",RTD("cqg.rtd", ,"ContractData",B26, "MT_LastBidVolume",, "T")) -> 5 | F26: =IF(LEFT(RTD("cqg.rtd", ,"ContractData",B26, "LastTrade",, "T"),3)="768","",RTD("cqg.rtd", ,"ContractData",B26, "Bid",, "T")) -> 32.33 | G26: =IF(LEFT(RTD("cqg.rtd", ,"ContractData",B26, "LastTrade",, "T"),3)="768","",RTD("cqg.rtd", ,"ContractData",B26, "Ask",, "T")) -> 34.04 | H26: =IF(LEFT(RTD("cqg.rtd", ,"ContractData",B26, "LastTrade",, "T"),3)="768","",RTD("cqg.rtd", ,"ContractData",B26, "MT_LastAskVolume",, "T")) -> 5 | I26: =IF(LEFT(RTD("cqg.rtd", ,"ContractData",B26, "LastTrade",, "T"),3)="768","",RTD("cqg.rtd", ,"ContractData",B26, "T_CVol",, "T")) -> 0 | J26: =IF(LEFT(RTD("cqg.rtd", ,"ContractData",B26, "LastTrade",, "T"),3)="768","",RTD("cqg.rtd", ,"ContractData",B26, "Y_CVol",, "T")) -> 0 | K26: =IF(LEFT(RTD("cqg.rtd", ,"ContractData",B26, "LastTrade",, "T"),3)="768","",IFERROR(IF(I26>J26,"+"&I26-J26,I26-J26)*1,"")) -> 0 | L26: =IF(LEFT(RTD("cqg.rtd", ,"ContractData",B26, "LastTrade",, "T"),3)="768","",RTD("cqg.rtd",,"StudyData",B26, "Bar",, "ContractOI", "D", "-1",,,,,"T")) -> 585 | M26: =IF(LEFT(RTD("cqg.rtd", ,"ContractData",B26, "LastTrade",, "T"),3)="768","",RTD("cqg.rtd",,"StudyData",B26, "Bar",, "ContractOI", "D", "-2",,,,,"T")) -> 585 | N26: =IF(LEFT(RTD("cqg.rtd", ,"ContractData",B26, "LastTrade",, "T"),3)="768","",IFERROR(IF(L26>M26,"+"&L26-M26,L26-M26)*1,"")) -> 0
A27: 5900 | B27: C.US.CLEJ265900 | C27: =IF(LEFT(RTD("cqg.rtd", ,"ContractData",B27, "LastTrade",, "T"),3)="768","",RTD("cqg.rtd", ,"ContractData",B27, "LastTrade",, "T")) -> 30.08 | D27: =IF(C27="","",RTD("cqg.rtd", ,"ContractData",B27, "NetLastTrade",, "T")) -> 1.77 | E27: =IF(LEFT(RTD("cqg.rtd", ,"ContractData",B27, "LastTrade",, "T"),3)="768","",RTD("cqg.rtd", ,"ContractData",B27, "MT_LastBidVolume",, "T")) -> 30 | F27: =IF(LEFT(RTD("cqg.rtd", ,"ContractData",B27, "LastTrade",, "T"),3)="768","",RTD("cqg.rtd", ,"ContractData",B27, "Bid",, "T")) -> 31.83 | G27: =IF(LEFT(RTD("cqg.rtd", ,"ContractData",B27, "LastTrade",, "T"),3)="768","",RTD("cqg.rtd", ,"ContractData",B27, "Ask",, "T")) -> 33.5 | H27: =IF(LEFT(RTD("cqg.rtd", ,"ContractData",B27, "LastTrade",, "T"),3)="768","",RTD("cqg.rtd", ,"ContractData",B27, "MT_LastAskVolume",, "T")) -> 29 | I27: =IF(LEFT(RTD("cqg.rtd", ,"ContractData",B27, "LastTrade",, "T"),3)="768","",RTD("cqg.rtd", ,"ContractData",B27, "T_CVol",, "T")) -> 0 | J27: =IF(LEFT(RTD("cqg.rtd", ,"ContractData",B27, "LastTrade",, "T"),3)="768","",RTD("cqg.rtd", ,"ContractData",B27, "Y_CVol",, "T")) -> 0 | K27: =IF(LEFT(RTD("cqg.rtd", ,"ContractData",B27, "LastTrade",, "T"),3)="768","",IFERROR(IF(I27>J27,"+"&I27-J27,I27-J27)*1,"")) -> 0 | L27: =IF(LEFT(RTD("cqg.rtd", ,"ContractData",B27, "LastTrade",, "T"),3)="768","",RTD("cqg.rtd",,"StudyData",B27, "Bar",, "ContractOI", "D", "-1",,,,,"T")) -> 1317 | M27: =IF(LEFT(RTD("cqg.rtd", ,"ContractData",B27, "LastTrade",, "T"),3)="768","",RTD("cqg.rtd",,"StudyData",B27, "Bar",, "ContractOI", "D", "-2",,,,,"T")) -> 1317 | N27: =IF(LEFT(RTD("cqg.rtd", ,"ContractData",B27, "LastTrade",, "T"),3)="768","",IFERROR(IF(L27>M27,"+"&L27-M27,L27-M27)*1,"")) -> 0
A28: 5950 | B28: C.US.CLEJ265950 | C28: =IF(LEFT(RTD("cqg.rtd", ,"ContractData",B28, "LastTrade",, "T"),3)="768","",RTD("cqg.rtd", ,"ContractData",B28, "LastTrade",, "T")) ->  | D28: =IF(C28="","",RTD("cqg.rtd", ,"ContractData",B28, "NetLastTrade",, "T")) ->  | E28: =IF(LEFT(RTD("cqg.rtd", ,"ContractData",B28, "LastTrade",, "T"),3)="768","",RTD("cqg.rtd", ,"ContractData",B28, "MT_LastBidVolume",, "T")) -> 30 | F28: =IF(LEFT(RTD("cqg.rtd", ,"ContractData",B28, "LastTrade",, "T"),3)="768","",RTD("cqg.rtd", ,"ContractData",B28, "Bid",, "T")) -> 31.33 | G28: =IF(LEFT(RTD("cqg.rtd", ,"ContractData",B28, "LastTrade",, "T"),3)="768","",RTD("cqg.rtd", ,"ContractData",B28, "Ask",, "T")) -> 33.04 | H28: =IF(LEFT(RTD("cqg.rtd", ,"ContractData",B28, "LastTrade",, "T"),3)="768","",RTD("cqg.rtd", ,"ContractData",B28, "MT_LastAskVolume",, "T")) -> 30 | I28: =IF(LEFT(RTD("cqg.rtd", ,"ContractData",B28, "LastTrade",, "T"),3)="768","",RTD("cqg.rtd", ,"ContractData",B28, "T_CVol",, "T")) -> 0 | J28: =IF(LEFT(RTD("cqg.rtd", ,"ContractData",B28, "LastTrade",, "T"),3)="768","",RTD("cqg.rtd", ,"ContractData",B28, "Y_CVol",, "T")) -> 0 | K28: =IF(LEFT(RTD("cqg.rtd", ,"ContractData",B28, "LastTrade",, "T"),3)="768","",IFERROR(IF(I28>J28,"+"&I28-J28,I28-J28)*1,"")) -> 0 | L28: =IF(LEFT(RTD("cqg.rtd", ,"ContractData",B28, "LastTrade",, "T"),3)="768","",RTD("cqg.rtd",,"StudyData",B28, "Bar",, "ContractOI", "D", "-1",,,,,"T")) -> 1293 | M28: =IF(LEFT(RTD("cqg.rtd", ,"ContractData",B28, "LastTrade",, "T"),3)="768","",RTD("cqg.rtd",,"StudyData",B28, "Bar",, "ContractOI", "D", "-2",,,,,"T")) -> 1293 | N28: =IF(LEFT(RTD("cqg.rtd", ,"ContractData",B28, "LastTrade",, "T"),3)="768","",IFERROR(IF(L28>M28,"+"&L28-M28,L28-M28)*1,"")) -> 0
A29: 6000 | B29: C.US.CLEJ266000 | C29: =IF(LEFT(RTD("cqg.rtd", ,"ContractData",B29, "LastTrade",, "T"),3)="768","",RTD("cqg.rtd", ,"ContractData",B29, "LastTrade",, "T")) -> 25.13 | D29: =IF(C29="","",RTD("cqg.rtd", ,"ContractData",B29, "NetLastTrade",, "T")) ->  | E29: =IF(LEFT(RTD("cqg.rtd", ,"ContractData",B29, "LastTrade",, "T"),3)="768","",RTD("cqg.rtd", ,"ContractData",B29, "MT_LastBidVolume",, "T")) -> 30 | F29: =IF(LEFT(RTD("cqg.rtd", ,"ContractData",B29, "LastTrade",, "T"),3)="768","",RTD("cqg.rtd", ,"ContractData",B29, "Bid",, "T")) -> 31.14 | G29: =IF(LEFT(RTD("cqg.rtd", ,"ContractData",B29, "LastTrade",, "T"),3)="768","",RTD("cqg.rtd", ,"ContractData",B29, "Ask",, "T")) -> 32.24 | H29: =IF(LEFT(RTD("cqg.rtd", ,"ContractData",B29, "LastTrade",, "T"),3)="768","",RTD("cqg.rtd", ,"ContractData",B29, "MT_LastAskVolume",, "T")) -> 29 | I29: =IF(LEFT(RTD("cqg.rtd", ,"ContractData",B29, "LastTrade",, "T"),3)="768","",RTD("cqg.rtd", ,"ContractData",B29, "T_CVol",, "T")) -> 0 | J29: =IF(LEFT(RTD("cqg.rtd", ,"ContractData",B29, "LastTrade",, "T"),3)="768","",RTD("cqg.rtd", ,"ContractData",B29, "Y_CVol",, "T")) -> 0 | K29: =IF(LEFT(RTD("cqg.rtd", ,"ContractData",B29, "LastTrade",, "T"),3)="768","",IFERROR(IF(I29>J29,"+"&I29-J29,I29-J29)*1,"")) -> 0 | L29: =IF(LEFT(RTD("cqg.rtd", ,"ContractData",B29, "LastTrade",, "T"),3)="768","",RTD("cqg.rtd",,"StudyData",B29, "Bar",, "ContractOI", "D", "-1",,,,,"T")) -> 5845 | M29: =IF(LEFT(RTD("cqg.rtd", ,"ContractData",B29, "LastTrade",, "T"),3)="768","",RTD("cqg.rtd",,"StudyData",B29, "Bar",, "ContractOI", "D", "-2",,,,,"T")) -> 5845 | N29: =IF(LEFT(RTD("cqg.rtd", ,"ContractData",B29, "LastTrade",, "T"),3)="768","",IFERROR(IF(L29>M29,"+"&L29-M29,L29-M29)*1,"")) -> 0
A30: 6050 | B30: C.US.CLEJ266050 | C30: =IF(LEFT(RTD("cqg.rtd", ,"ContractData",B30, "LastTrade",, "T"),3)="768","",RTD("cqg.rtd", ,"ContractData",B30, "LastTrade",, "T")) ->  | D30: =IF(C30="","",RTD("cqg.rtd", ,"ContractData",B30, "NetLastTrade",, "T")) ->  | E30: =IF(LEFT(RTD("cqg.rtd", ,"ContractData",B30, "LastTrade",, "T"),3)="768","",RTD("cqg.rtd", ,"ContractData",B30, "MT_LastBidVolume",, "T")) -> 30 | F30: =IF(LEFT(RTD("cqg.rtd", ,"ContractData",B30, "LastTrade",, "T"),3)="768","",RTD("cqg.rtd", ,"ContractData",B30, "Bid",, "T")) -> 30.51 | G30: =IF(LEFT(RTD("cqg.rtd", ,"ContractData",B30, "LastTrade",, "T"),3)="768","",RTD("cqg.rtd", ,"ContractData",B30, "Ask",, "T")) -> 31.88 | H30: =IF(LEFT(RTD("cqg.rtd", ,"ContractData",B30, "LastTrade",, "T"),3)="768","",RTD("cqg.rtd", ,"ContractData",B30, "MT_LastAskVolume",, "T")) -> 30 | I30: =IF(LEFT(RTD("cqg.rtd", ,"ContractData",B30, "LastTrade",, "T"),3)="768","",RTD("cqg.rtd", ,"ContractData",B30, "T_CVol",, "T")) -> 0 | J30: =IF(LEFT(RTD("cqg.rtd", ,"ContractData",B30, "LastTrade",, "T"),3)="768","",RTD("cqg.rtd", ,"ContractData",B30, "Y_CVol",, "T")) -> 0 | K30: =IF(LEFT(RTD("cqg.rtd", ,"ContractData",B30, "LastTrade",, "T"),3)="768","",IFERROR(IF(I30>J30,"+"&I30-J30,I30-J30)*1,"")) -> 0 | L30: =IF(LEFT(RTD("cqg.rtd", ,"ContractData",B30, "LastTrade",, "T"),3)="768","",RTD("cqg.rtd",,"StudyData",B30, "Bar",, "ContractOI", "D", "-1",,,,,"T")) -> 1872 | M30: =IF(LEFT(RTD("cqg.rtd", ,"ContractData",B30, "LastTrade",, "T"),3)="768","",RTD("cqg.rtd",,"StudyData",B30, "Bar",, "ContractOI", "D", "-2",,,,,"T")) -> 1872 | N30: =IF(LEFT(RTD("cqg.rtd", ,"ContractData",B30, "LastTrade",, "T"),3)="768","",IFERROR(IF(L30>M30,"+"&L30-M30,L30-M30)*1,"")) -> 0
A31: 6100 | B31: C.US.CLEJ266100 | C31: =IF(LEFT(RTD("cqg.rtd", ,"ContractData",B31, "LastTrade",, "T"),3)="768","",RTD("cqg.rtd", ,"ContractData",B31, "LastTrade",, "T")) -> 24.93 | D31: =IF(C31="","",RTD("cqg.rtd", ,"ContractData",B31, "NetLastTrade",, "T")) ->  | E31: =IF(LEFT(RTD("cqg.rtd", ,"ContractData",B31, "LastTrade",, "T"),3)="768","",RTD("cqg.rtd", ,"ContractData",B31, "MT_LastBidVolume",, "T")) -> 30 | F31: =IF(LEFT(RTD("cqg.rtd", ,"ContractData",B31, "LastTrade",, "T"),3)="768","",RTD("cqg.rtd", ,"ContractData",B31, "Bid",, "T")) -> 30.01 | G31: =IF(LEFT(RTD("cqg.rtd", ,"ContractData",B31, "LastTrade",, "T"),3)="768","",RTD("cqg.rtd", ,"ContractData",B31, "Ask",, "T")) -> 31.38 | H31: =IF(LEFT(RTD("cqg.rtd", ,"ContractData",B31, "LastTrade",, "T"),3)="768","",RTD("cqg.rtd", ,"ContractData",B31, "MT_LastAskVolume",, "T")) -> 30 | I31: =IF(LEFT(RTD("cqg.rtd", ,"ContractData",B31, "LastTrade",, "T"),3)="768","",RTD("cqg.rtd", ,"ContractData",B31, "T_CVol",, "T")) -> 0 | J31: =IF(LEFT(RTD("cqg.rtd", ,"ContractData",B31, "LastTrade",, "T"),3)="768","",RTD("cqg.rtd", ,"ContractData",B31, "Y_CVol",, "T")) -> 1 | K31: =IF(LEFT(RTD("cqg.rtd", ,"ContractData",B31, "LastTrade",, "T"),3)="768","",IFERROR(IF(I31>J31,"+"&I31-J31,I31-J31)*1,"")) -> -1 | L31: =IF(LEFT(RTD("cqg.rtd", ,"ContractData",B31, "LastTrade",, "T"),3)="768","",RTD("cqg.rtd",,"StudyData",B31, "Bar",, "ContractOI", "D", "-1",,,,,"T")) -> 3720 | M31: =IF(LEFT(RTD("cqg.rtd", ,"ContractData",B31, "LastTrade",, "T"),3)="768","",RTD("cqg.rtd",,"StudyData",B31, "Bar",, "ContractOI", "D", "-2",,,,,"T")) -> 3720 | N31: =IF(LEFT(RTD("cqg.rtd", ,"ContractData",B31, "LastTrade",, "T"),3)="768","",IFERROR(IF(L31>M31,"+"&L31-M31,L31-M31)*1,"")) -> 0
A32: 6150 | B32: C.US.CLEJ266150 | C32: =IF(LEFT(RTD("cqg.rtd", ,"ContractData",B32, "LastTrade",, "T"),3)="768","",RTD("cqg.rtd", ,"ContractData",B32, "LastTrade",, "T")) -> 18 | D32: =IF(C32="","",RTD("cqg.rtd", ,"ContractData",B32, "NetLastTrade",, "T")) ->  | E32: =IF(LEFT(RTD("cqg.rtd", ,"ContractData",B32, "LastTrade",, "T"),3)="768","",RTD("cqg.rtd", ,"ContractData",B32, "MT_LastBidVolume",, "T")) -> 30 | F32: =IF(LEFT(RTD("cqg.rtd", ,"ContractData",B32, "LastTrade",, "T"),3)="768","",RTD("cqg.rtd", ,"ContractData",B32, "Bid",, "T")) -> 29.52 | G32: =IF(LEFT(RTD("cqg.rtd", ,"ContractData",B32, "LastTrade",, "T"),3)="768","",RTD("cqg.rtd", ,"ContractData",B32, "Ask",, "T")) -> 30.89 | H32: =IF(LEFT(RTD("cqg.rtd", ,"ContractData",B32, "LastTrade",, "T"),3)="768","",RTD("cqg.rtd", ,"ContractData",B32, "MT_LastAskVolume",, "T")) -> 30 | I32: =IF(LEFT(RTD("cqg.rtd", ,"ContractData",B32, "LastTrade",, "T"),3)="768","",RTD("cqg.rtd", ,"ContractData",B32, "T_CVol",, "T")) -> 0 | J32: =IF(LEFT(RTD("cqg.rtd", ,"ContractData",B32, "LastTrade",, "T"),3)="768","",RTD("cqg.rtd", ,"ContractData",B32, "Y_CVol",, "T")) -> 300 | K32: =IF(LEFT(RTD("cqg.rtd", ,"ContractData",B32, "LastTrade",, "T"),3)="768","",IFERROR(IF(I32>J32,"+"&I32-J32,I32-J32)*1,"")) -> -300 | L32: =IF(LEFT(RTD("cqg.rtd", ,"ContractData",B32, "LastTrade",, "T"),3)="768","",RTD("cqg.rtd",,"StudyData",B32, "Bar",, "ContractOI", "D", "-1",,,,,"T")) -> 1771 | M32: =IF(LEFT(RTD("cqg.rtd", ,"ContractData",B32, "LastTrade",, "T"),3)="768","",RTD("cqg.rtd",,"StudyData",B32, "Bar",, "ContractOI", "D", "-2",,,,,"T")) -> 1771 | N32: =IF(LEFT(RTD("cqg.rtd", ,"ContractData",B32, "LastTrade",, "T"),3)="768","",IFERROR(IF(L32>M32,"+"&L32-M32,L32-M32)*1,"")) -> 0
A33: =A34-$A$7 -> 6200 | B33: =LEFT(B34,FIND(A34,B34)-1)&A33 -> C.US.CLEJ266200 | C33: =IF(LEFT(RTD("cqg.rtd", ,"ContractData",B33, "LastTrade",, "T"),3)="768","",RTD("cqg.rtd", ,"ContractData",B33, "LastTrade",, "T")) -> 50.7 | D33: =IF(C33="","",RTD("cqg.rtd", ,"ContractData",B33, "NetLastTrade",, "T")) -> 25.33 | E33: =IF(LEFT(RTD("cqg.rtd", ,"ContractData",B33, "LastTrade",, "T"),3)="768","",RTD("cqg.rtd", ,"ContractData",B33, "MT_LastBidVolume",, "T")) -> 30 | F33: =IF(LEFT(RTD("cqg.rtd", ,"ContractData",B33, "LastTrade",, "T"),3)="768","",RTD("cqg.rtd", ,"ContractData",B33, "Bid",, "T")) -> 29.03 | G33: =IF(LEFT(RTD("cqg.rtd", ,"ContractData",B33, "LastTrade",, "T"),3)="768","",RTD("cqg.rtd", ,"ContractData",B33, "Ask",, "T")) -> 30.39 | H33: =IF(LEFT(RTD("cqg.rtd", ,"ContractData",B33, "LastTrade",, "T"),3)="768","",RTD("cqg.rtd", ,"ContractData",B33, "MT_LastAskVolume",, "T")) -> 30 | I33: =IF(LEFT(RTD("cqg.rtd", ,"ContractData",B33, "LastTrade",, "T"),3)="768","",RTD("cqg.rtd", ,"ContractData",B33, "T_CVol",, "T")) -> 0 | J33: =IF(LEFT(RTD("cqg.rtd", ,"ContractData",B33, "LastTrade",, "T"),3)="768","",RTD("cqg.rtd", ,"ContractData",B33, "Y_CVol",, "T")) -> 400 | K33: =IF(LEFT(RTD("cqg.rtd", ,"ContractData",B33, "LastTrade",, "T"),3)="768","",IFERROR(IF(I33>J33,"+"&I33-J33,I33-J33)*1,"")) -> -400 | L33: =IF(LEFT(RTD("cqg.rtd", ,"ContractData",B33, "LastTrade",, "T"),3)="768","",RTD("cqg.rtd",,"StudyData",B33, "Bar",, "ContractOI", "D", "-1",,,,,"T")) -> 8235 | M33: =IF(LEFT(RTD("cqg.rtd", ,"ContractData",B33, "LastTrade",, "T"),3)="768","",RTD("cqg.rtd",,"StudyData",B33, "Bar",, "ContractOI", "D", "-2",,,,,"T")) -> 8235 | N33: =IF(LEFT(RTD("cqg.rtd", ,"ContractData",B33, "LastTrade",, "T"),3)="768","",IFERROR(IF(L33>M33,"+"&L33-M33,L33-M33)*1,"")) -> 0
A34: 6250 | B34: C.US.CLEJ266250 | C34: =IF(LEFT(RTD("cqg.rtd", ,"ContractData",B34, "LastTrade",, "T"),3)="768","",RTD("cqg.rtd", ,"ContractData",B34, "LastTrade",, "T")) -> 17.18 | D34: =IF(C34="","",RTD("cqg.rtd", ,"ContractData",B34, "NetLastTrade",, "T")) ->  | E34: =IF(LEFT(RTD("cqg.rtd", ,"ContractData",B34, "LastTrade",, "T"),3)="768","",RTD("cqg.rtd", ,"ContractData",B34, "MT_LastBidVolume",, "T")) -> 30 | F34: =IF(LEFT(RTD("cqg.rtd", ,"ContractData",B34, "LastTrade",, "T"),3)="768","",RTD("cqg.rtd", ,"ContractData",B34, "Bid",, "T")) -> 28.53 | G34: =IF(LEFT(RTD("cqg.rtd", ,"ContractData",B34, "LastTrade",, "T"),3)="768","",RTD("cqg.rtd", ,"ContractData",B34, "Ask",, "T")) -> 29.9 | H34: =IF(LEFT(RTD("cqg.rtd", ,"ContractData",B34, "LastTrade",, "T"),3)="768","",RTD("cqg.rtd", ,"ContractData",B34, "MT_LastAskVolume",, "T")) -> 30 | I34: =IF(LEFT(RTD("cqg.rtd", ,"ContractData",B34, "LastTrade",, "T"),3)="768","",RTD("cqg.rtd", ,"ContractData",B34, "T_CVol",, "T")) -> 0 | J34: =IF(LEFT(RTD("cqg.rtd", ,"ContractData",B34, "LastTrade",, "T"),3)="768","",RTD("cqg.rtd", ,"ContractData",B34, "Y_CVol",, "T")) -> 100 | K34: =IF(LEFT(RTD("cqg.rtd", ,"ContractData",B34, "LastTrade",, "T"),3)="768","",IFERROR(IF(I34>J34,"+"&I34-J34,I34-J34)*1,"")) -> -100 | L34: =IF(LEFT(RTD("cqg.rtd", ,"ContractData",B34, "LastTrade",, "T"),3)="768","",RTD("cqg.rtd",,"StudyData",B34, "Bar",, "ContractOI", "D", "-1",,,,,"T")) -> 3269 | M34: =IF(LEFT(RTD("cqg.rtd", ,"ContractData",B34, "LastTrade",, "T"),3)="768","",RTD("cqg.rtd",,"StudyData",B34, "Bar",, "ContractOI", "D", "-2",,,,,"T")) -> 3269 | N34: =IF(LEFT(RTD("cqg.rtd", ,"ContractData",B34, "LastTrade",, "T"),3)="768","",IFERROR(IF(L34>M34,"+"&L34-M34,L34-M34)*1,"")) -> 0
A35: 6300 | B35: C.US.CLEJ266300 | C35: =IF(LEFT(RTD("cqg.rtd", ,"ContractData",B35, "LastTrade",, "T"),3)="768","",RTD("cqg.rtd", ,"ContractData",B35, "LastTrade",, "T")) -> 23.83 | D35: =IF(C35="","",RTD("cqg.rtd", ,"ContractData",B35, "NetLastTrade",, "T")) -> -0.56 | E35: =IF(LEFT(RTD("cqg.rtd", ,"ContractData",B35, "LastTrade",, "T"),3)="768","",RTD("cqg.rtd", ,"ContractData",B35, "MT_LastBidVolume",, "T")) -> 30 | F35: =IF(LEFT(RTD("cqg.rtd", ,"ContractData",B35, "LastTrade",, "T"),3)="768","",RTD("cqg.rtd", ,"ContractData",B35, "Bid",, "T")) -> 28.04 | G35: =IF(LEFT(RTD("cqg.rtd", ,"ContractData",B35, "LastTrade",, "T"),3)="768","",RTD("cqg.rtd", ,"ContractData",B35, "Ask",, "T")) -> 29.37 | H35: =IF(LEFT(RTD("cqg.rtd", ,"ContractData",B35, "LastTrade",, "T"),3)="768","",RTD("cqg.rtd", ,"ContractData",B35, "MT_LastAskVolume",, "T")) -> 29 | I35: =IF(LEFT(RTD("cqg.rtd", ,"ContractData",B35, "LastTrade",, "T"),3)="768","",RTD("cqg.rtd", ,"ContractData",B35, "T_CVol",, "T")) -> 0 | J35: =IF(LEFT(RTD("cqg.rtd", ,"ContractData",B35, "LastTrade",, "T"),3)="768","",RTD("cqg.rtd", ,"ContractData",B35, "Y_CVol",, "T")) -> 16 | K35: =IF(LEFT(RTD("cqg.rtd", ,"ContractData",B35, "LastTrade",, "T"),3)="768","",IFERROR(IF(I35>J35,"+"&I35-J35,I35-J35)*1,"")) -> -16 | L35: =IF(LEFT(RTD("cqg.rtd", ,"ContractData",B35, "LastTrade",, "T"),3)="768","",RTD("cqg.rtd",,"StudyData",B35, "Bar",, "ContractOI", "D", "-1",,,,,"T")) -> 6691 | M35: =IF(LEFT(RTD("cqg.rtd", ,"ContractData",B35, "LastTrade",, "T"),3)="768","",RTD("cqg.rtd",,"StudyData",B35, "Bar",, "ContractOI", "D", "-2",,,,,"T")) -> 6707 | N35: =IF(LEFT(RTD("cqg.rtd", ,"ContractData",B35, "LastTrade",, "T"),3)="768","",IFERROR(IF(L35>M35,"+"&L35-M35,L35-M35)*1,"")) -> -16
A36: 6350 | B36: C.US.CLEJ266350 | C36: =IF(LEFT(RTD("cqg.rtd", ,"ContractData",B36, "LastTrade",, "T"),3)="768","",RTD("cqg.rtd", ,"ContractData",B36, "LastTrade",, "T")) -> 23.6 | D36: =IF(C36="","",RTD("cqg.rtd", ,"ContractData",B36, "NetLastTrade",, "T")) ->  | E36: =IF(LEFT(RTD("cqg.rtd", ,"ContractData",B36, "LastTrade",, "T"),3)="768","",RTD("cqg.rtd", ,"ContractData",B36, "MT_LastBidVolume",, "T")) -> 30 | F36: =IF(LEFT(RTD("cqg.rtd", ,"ContractData",B36, "LastTrade",, "T"),3)="768","",RTD("cqg.rtd", ,"ContractData",B36, "Bid",, "T")) -> 27.55 | G36: =IF(LEFT(RTD("cqg.rtd", ,"ContractData",B36, "LastTrade",, "T"),3)="768","",RTD("cqg.rtd", ,"ContractData",B36, "Ask",, "T")) -> 28.91 | H36: =IF(LEFT(RTD("cqg.rtd", ,"ContractData",B36, "LastTrade",, "T"),3)="768","",RTD("cqg.rtd", ,"ContractData",B36, "MT_LastAskVolume",, "T")) -> 30 | I36: =IF(LEFT(RTD("cqg.rtd", ,"ContractData",B36, "LastTrade",, "T"),3)="768","",RTD("cqg.rtd", ,"ContractData",B36, "T_CVol",, "T")) -> 0 | J36: =IF(LEFT(RTD("cqg.rtd", ,"ContractData",B36, "LastTrade",, "T"),3)="768","",RTD("cqg.rtd", ,"ContractData",B36, "Y_CVol",, "T")) -> 0 | K36: =IF(LEFT(RTD("cqg.rtd", ,"ContractData",B36, "LastTrade",, "T"),3)="768","",IFERROR(IF(I36>J36,"+"&I36-J36,I36-J36)*1,"")) -> 0 | L36: =IF(LEFT(RTD("cqg.rtd", ,"ContractData",B36, "LastTrade",, "T"),3)="768","",RTD("cqg.rtd",,"StudyData",B36, "Bar",, "ContractOI", "D", "-1",,,,,"T")) -> 5200 | M36: =IF(LEFT(RTD("cqg.rtd", ,"ContractData",B36, "LastTrade",, "T"),3)="768","",RTD("cqg.rtd",,"StudyData",B36, "Bar",, "ContractOI", "D", "-2",,,,,"T")) -> 5200 | N36: =IF(LEFT(RTD("cqg.rtd", ,"ContractData",B36, "LastTrade",, "T"),3)="768","",IFERROR(IF(L36>M36,"+"&L36-M36,L36-M36)*1,"")) -> 0
A37: 6400 | B37: C.US.CLEJ266400 | C37: =IF(LEFT(RTD("cqg.rtd", ,"ContractData",B37, "LastTrade",, "T"),3)="768","",RTD("cqg.rtd", ,"ContractData",B37, "LastTrade",, "T")) -> 19.31 | D37: =IF(C37="","",RTD("cqg.rtd", ,"ContractData",B37, "NetLastTrade",, "T")) ->  | E37: =IF(LEFT(RTD("cqg.rtd", ,"ContractData",B37, "LastTrade",, "T"),3)="768","",RTD("cqg.rtd", ,"ContractData",B37, "MT_LastBidVolume",, "T")) -> 30 | F37: =IF(LEFT(RTD("cqg.rtd", ,"ContractData",B37, "LastTrade",, "T"),3)="768","",RTD("cqg.rtd", ,"ContractData",B37, "Bid",, "T")) -> 27.06 | G37: =IF(LEFT(RTD("cqg.rtd", ,"ContractData",B37, "LastTrade",, "T"),3)="768","",RTD("cqg.rtd", ,"ContractData",B37, "Ask",, "T")) -> 28.42 | H37: =IF(LEFT(RTD("cqg.rtd", ,"ContractData",B37, "LastTrade",, "T"),3)="768","",RTD("cqg.rtd", ,"ContractData",B37, "MT_LastAskVolume",, "T")) -> 30 | I37: =IF(LEFT(RTD("cqg.rtd", ,"ContractData",B37, "LastTrade",, "T"),3)="768","",RTD("cqg.rtd", ,"ContractData",B37, "T_CVol",, "T")) -> 5 | J37: =IF(LEFT(RTD("cqg.rtd", ,"ContractData",B37, "LastTrade",, "T"),3)="768","",RTD("cqg.rtd", ,"ContractData",B37, "Y_CVol",, "T")) -> 3 | K37: =IF(LEFT(RTD("cqg.rtd", ,"ContractData",B37, "LastTrade",, "T"),3)="768","",IFERROR(IF(I37>J37,"+"&I37-J37,I37-J37)*1,"")) -> 2 | L37: =IF(LEFT(RTD("cqg.rtd", ,"ContractData",B37, "LastTrade",, "T"),3)="768","",RTD("cqg.rtd",,"StudyData",B37, "Bar",, "ContractOI", "D", "-1",,,,,"T")) -> 2578 | M37: =IF(LEFT(RTD("cqg.rtd", ,"ContractData",B37, "LastTrade",, "T"),3)="768","",RTD("cqg.rtd",,"StudyData",B37, "Bar",, "ContractOI", "D", "-2",,,,,"T")) -> 2581 | N37: =IF(LEFT(RTD("cqg.rtd", ,"ContractData",B37, "LastTrade",, "T"),3)="768","",IFERROR(IF(L37>M37,"+"&L37-M37,L37-M37)*1,"")) -> -3
A38: 6450 | B38: C.US.CLEJ266450 | C38: =IF(LEFT(RTD("cqg.rtd", ,"ContractData",B38, "LastTrade",, "T"),3)="768","",RTD("cqg.rtd", ,"ContractData",B38, "LastTrade",, "T")) -> 23 | D38: =IF(C38="","",RTD("cqg.rtd", ,"ContractData",B38, "NetLastTrade",, "T")) ->  | E38: =IF(LEFT(RTD("cqg.rtd", ,"ContractData",B38, "LastTrade",, "T"),3)="768","",RTD("cqg.rtd", ,"ContractData",B38, "MT_LastBidVolume",, "T")) -> 5 | F38: =IF(LEFT(RTD("cqg.rtd", ,"ContractData",B38, "LastTrade",, "T"),3)="768","",RTD("cqg.rtd", ,"ContractData",B38, "Bid",, "T")) -> 26.4 | G38: =IF(LEFT(RTD("cqg.rtd", ,"ContractData",B38, "LastTrade",, "T"),3)="768","",RTD("cqg.rtd", ,"ContractData",B38, "Ask",, "T")) -> 28.1 | H38: =IF(LEFT(RTD("cqg.rtd", ,"ContractData",B38, "LastTrade",, "T"),3)="768","",RTD("cqg.rtd", ,"ContractData",B38, "MT_LastAskVolume",, "T")) -> 5 | I38: =IF(LEFT(RTD("cqg.rtd", ,"ContractData",B38, "LastTrade",, "T"),3)="768","",RTD("cqg.rtd", ,"ContractData",B38, "T_CVol",, "T")) -> 0 | J38: =IF(LEFT(RTD("cqg.rtd", ,"ContractData",B38, "LastTrade",, "T"),3)="768","",RTD("cqg.rtd", ,"ContractData",B38, "Y_CVol",, "T")) -> 0 | K38: =IF(LEFT(RTD("cqg.rtd", ,"ContractData",B38, "LastTrade",, "T"),3)="768","",IFERROR(IF(I38>J38,"+"&I38-J38,I38-J38)*1,"")) -> 0 | L38: =IF(LEFT(RTD("cqg.rtd", ,"ContractData",B38, "LastTrade",, "T"),3)="768","",RTD("cqg.rtd",,"StudyData",B38, "Bar",, "ContractOI", "D", "-1",,,,,"T")) -> 845 | M38: =IF(LEFT(RTD("cqg.rtd", ,"ContractData",B38, "LastTrade",, "T"),3)="768","",RTD("cqg.rtd",,"StudyData",B38, "Bar",, "ContractOI", "D", "-2",,,,,"T")) -> 845 | N38: =IF(LEFT(RTD("cqg.rtd", ,"ContractData",B38, "LastTrade",, "T"),3)="768","",IFERROR(IF(L38>M38,"+"&L38-M38,L38-M38)*1,"")) -> 0
A39: 6500 | B39: C.US.CLEJ266500 | C39: =IF(LEFT(RTD("cqg.rtd", ,"ContractData",B39, "LastTrade",, "T"),3)="768","",RTD("cqg.rtd", ,"ContractData",B39, "LastTrade",, "T")) -> 27.31 | D39: =IF(C39="","",RTD("cqg.rtd", ,"ContractData",B39, "NetLastTrade",, "T")) -> 4.84 | E39: =IF(LEFT(RTD("cqg.rtd", ,"ContractData",B39, "LastTrade",, "T"),3)="768","",RTD("cqg.rtd", ,"ContractData",B39, "MT_LastBidVolume",, "T")) -> 1 | F39: =IF(LEFT(RTD("cqg.rtd", ,"ContractData",B39, "LastTrade",, "T"),3)="768","",RTD("cqg.rtd", ,"ContractData",B39, "Bid",, "T")) -> 26.58 | G39: =IF(LEFT(RTD("cqg.rtd", ,"ContractData",B39, "LastTrade",, "T"),3)="768","",RTD("cqg.rtd", ,"ContractData",B39, "Ask",, "T")) -> 27.1 | H39: =IF(LEFT(RTD("cqg.rtd", ,"ContractData",B39, "LastTrade",, "T"),3)="768","",RTD("cqg.rtd", ,"ContractData",B39, "MT_LastAskVolume",, "T")) -> 1 | I39: =IF(LEFT(RTD("cqg.rtd", ,"ContractData",B39, "LastTrade",, "T"),3)="768","",RTD("cqg.rtd", ,"ContractData",B39, "T_CVol",, "T")) -> 4 | J39: =IF(LEFT(RTD("cqg.rtd", ,"ContractData",B39, "LastTrade",, "T"),3)="768","",RTD("cqg.rtd", ,"ContractData",B39, "Y_CVol",, "T")) -> 25 | K39: =IF(LEFT(RTD("cqg.rtd", ,"ContractData",B39, "LastTrade",, "T"),3)="768","",IFERROR(IF(I39>J39,"+"&I39-J39,I39-J39)*1,"")) -> -21 | L39: =IF(LEFT(RTD("cqg.rtd", ,"ContractData",B39, "LastTrade",, "T"),3)="768","",RTD("cqg.rtd",,"StudyData",B39, "Bar",, "ContractOI", "D", "-1",,,,,"T")) -> 15094 | M39: =IF(LEFT(RTD("cqg.rtd", ,"ContractData",B39, "LastTrade",, "T"),3)="768","",RTD("cqg.rtd",,"StudyData",B39, "Bar",, "ContractOI", "D", "-2",,,,,"T")) -> 15104 | N39: =IF(LEFT(RTD("cqg.rtd", ,"ContractData",B39, "LastTrade",, "T"),3)="768","",IFERROR(IF(L39>M39,"+"&L39-M39,L39-M39)*1,"")) -> -10
A40: 6550 | B40: C.US.CLEJ266550 | C40: =IF(LEFT(RTD("cqg.rtd", ,"ContractData",B40, "LastTrade",, "T"),3)="768","",RTD("cqg.rtd", ,"ContractData",B40, "LastTrade",, "T")) -> 15.95 | D40: =IF(C40="","",RTD("cqg.rtd", ,"ContractData",B40, "NetLastTrade",, "T")) -> -6.05 | E40: =IF(LEFT(RTD("cqg.rtd", ,"ContractData",B40, "LastTrade",, "T"),3)="768","",RTD("cqg.rtd", ,"ContractData",B40, "MT_LastBidVolume",, "T")) -> 1 | F40: =IF(LEFT(RTD("cqg.rtd", ,"ContractData",B40, "LastTrade",, "T"),3)="768","",RTD("cqg.rtd", ,"ContractData",B40, "Bid",, "T")) -> 26.09 | G40: =IF(LEFT(RTD("cqg.rtd", ,"ContractData",B40, "LastTrade",, "T"),3)="768","",RTD("cqg.rtd", ,"ContractData",B40, "Ask",, "T")) -> 26.61 | H40: =IF(LEFT(RTD("cqg.rtd", ,"ContractData",B40, "LastTrade",, "T"),3)="768","",RTD("cqg.rtd", ,"ContractData",B40, "MT_LastAskVolume",, "T")) -> 1 | I40: =IF(LEFT(RTD("cqg.rtd", ,"ContractData",B40, "LastTrade",, "T"),3)="768","",RTD("cqg.rtd", ,"ContractData",B40, "T_CVol",, "T")) -> 0 | J40: =IF(LEFT(RTD("cqg.rtd", ,"ContractData",B40, "LastTrade",, "T"),3)="768","",RTD("cqg.rtd", ,"ContractData",B40, "Y_CVol",, "T")) -> 0 | K40: =IF(LEFT(RTD("cqg.rtd", ,"ContractData",B40, "LastTrade",, "T"),3)="768","",IFERROR(IF(I40>J40,"+"&I40-J40,I40-J40)*1,"")) -> 0 | L40: =IF(LEFT(RTD("cqg.rtd", ,"ContractData",B40, "LastTrade",, "T"),3)="768","",RTD("cqg.rtd",,"StudyData",B40, "Bar",, "ContractOI", "D", "-1",,,,,"T")) -> 1154 | M40: =IF(LEFT(RTD("cqg.rtd", ,"ContractData",B40, "LastTrade",, "T"),3)="768","",RTD("cqg.rtd",,"StudyData",B40, "Bar",, "ContractOI", "D", "-2",,,,,"T")) -> 1154 | N40: =IF(LEFT(RTD("cqg.rtd", ,"ContractData",B40, "LastTrade",, "T"),3)="768","",IFERROR(IF(L40>M40,"+"&L40-M40,L40-M40)*1,"")) -> 0
A41: 6600 | B41: C.US.CLEJ266600 | C41: =IF(LEFT(RTD("cqg.rtd", ,"ContractData",B41, "LastTrade",, "T"),3)="768","",RTD("cqg.rtd", ,"ContractData",B41, "LastTrade",, "T")) -> 20.22 | D41: =IF(C41="","",RTD("cqg.rtd", ,"ContractData",B41, "NetLastTrade",, "T")) -> -1.3 | E41: =IF(LEFT(RTD("cqg.rtd", ,"ContractData",B41, "LastTrade",, "T"),3)="768","",RTD("cqg.rtd", ,"ContractData",B41, "MT_LastBidVolume",, "T")) -> 1 | F41: =IF(LEFT(RTD("cqg.rtd", ,"ContractData",B41, "LastTrade",, "T"),3)="768","",RTD("cqg.rtd", ,"ContractData",B41, "Bid",, "T")) -> 25.6 | G41: =IF(LEFT(RTD("cqg.rtd", ,"ContractData",B41, "LastTrade",, "T"),3)="768","",RTD("cqg.rtd", ,"ContractData",B41, "Ask",, "T")) -> 26.12 | H41: =IF(LEFT(RTD("cqg.rtd", ,"ContractData",B41, "LastTrade",, "T"),3)="768","",RTD("cqg.rtd", ,"ContractData",B41, "MT_LastAskVolume",, "T")) -> 1 | I41: =IF(LEFT(RTD("cqg.rtd", ,"ContractData",B41, "LastTrade",, "T"),3)="768","",RTD("cqg.rtd", ,"ContractData",B41, "T_CVol",, "T")) -> 5 | J41: =IF(LEFT(RTD("cqg.rtd", ,"ContractData",B41, "LastTrade",, "T"),3)="768","",RTD("cqg.rtd", ,"ContractData",B41, "Y_CVol",, "T")) -> 26 | K41: =IF(LEFT(RTD("cqg.rtd", ,"ContractData",B41, "LastTrade",, "T"),3)="768","",IFERROR(IF(I41>J41,"+"&I41-J41,I41-J41)*1,"")) -> -21 | L41: =IF(LEFT(RTD("cqg.rtd", ,"ContractData",B41, "LastTrade",, "T"),3)="768","",RTD("cqg.rtd",,"StudyData",B41, "Bar",, "ContractOI", "D", "-1",,,,,"T")) -> 4122 | M41: =IF(LEFT(RTD("cqg.rtd", ,"ContractData",B41, "LastTrade",, "T"),3)="768","",RTD("cqg.rtd",,"StudyData",B41, "Bar",, "ContractOI", "D", "-2",,,,,"T")) -> 4123 | N41: =IF(LEFT(RTD("cqg.rtd", ,"ContractData",B41, "LastTrade",, "T"),3)="768","",IFERROR(IF(L41>M41,"+"&L41-M41,L41-M41)*1,"")) -> -1
A42: 6650 | B42: C.US.CLEJ266650 | C42: =IF(LEFT(RTD("cqg.rtd", ,"ContractData",B42, "LastTrade",, "T"),3)="768","",RTD("cqg.rtd", ,"ContractData",B42, "LastTrade",, "T")) -> 21.64 | D42: =IF(C42="","",RTD("cqg.rtd", ,"ContractData",B42, "NetLastTrade",, "T")) -> 0.58 | E42: =IF(LEFT(RTD("cqg.rtd", ,"ContractData",B42, "LastTrade",, "T"),3)="768","",RTD("cqg.rtd", ,"ContractData",B42, "MT_LastBidVolume",, "T")) -> 1 | F42: =IF(LEFT(RTD("cqg.rtd", ,"ContractData",B42, "LastTrade",, "T"),3)="768","",RTD("cqg.rtd", ,"ContractData",B42, "Bid",, "T")) -> 25.12 | G42: =IF(LEFT(RTD("cqg.rtd", ,"ContractData",B42, "LastTrade",, "T"),3)="768","",RTD("cqg.rtd", ,"ContractData",B42, "Ask",, "T")) -> 25.62 | H42: =IF(LEFT(RTD("cqg.rtd", ,"ContractData",B42, "LastTrade",, "T"),3)="768","",RTD("cqg.rtd", ,"ContractData",B42, "MT_LastAskVolume",, "T")) -> 1 | I42: =IF(LEFT(RTD("cqg.rtd", ,"ContractData",B42, "LastTrade",, "T"),3)="768","",RTD("cqg.rtd", ,"ContractData",B42, "T_CVol",, "T")) -> 0 | J42: =IF(LEFT(RTD("cqg.rtd", ,"ContractData",B42, "LastTrade",, "T"),3)="768","",RTD("cqg.rtd", ,"ContractData",B42, "Y_CVol",, "T")) -> 1 | K42: =IF(LEFT(RTD("cqg.rtd", ,"ContractData",B42, "LastTrade",, "T"),3)="768","",IFERROR(IF(I42>J42,"+"&I42-J42,I42-J42)*1,"")) -> -1 | L42: =IF(LEFT(RTD("cqg.rtd", ,"ContractData",B42, "LastTrade",, "T"),3)="768","",RTD("cqg.rtd",,"StudyData",B42, "Bar",, "ContractOI", "D", "-1",,,,,"T")) -> 2205 | M42: =IF(LEFT(RTD("cqg.rtd", ,"ContractData",B42, "LastTrade",, "T"),3)="768","",RTD("cqg.rtd",,"StudyData",B42, "Bar",, "ContractOI", "D", "-2",,,,,"T")) -> 2204 | N42: =IF(LEFT(RTD("cqg.rtd", ,"ContractData",B42, "LastTrade",, "T"),3)="768","",IFERROR(IF(L42>M42,"+"&L42-M42,L42-M42)*1,"")) -> 1
A43: 6700 | B43: C.US.CLEJ266700 | C43: =IF(LEFT(RTD("cqg.rtd", ,"ContractData",B43, "LastTrade",, "T"),3)="768","",RTD("cqg.rtd", ,"ContractData",B43, "LastTrade",, "T")) -> 17.78 | D43: =IF(C43="","",RTD("cqg.rtd", ,"ContractData",B43, "NetLastTrade",, "T")) -> -2.81 | E43: =IF(LEFT(RTD("cqg.rtd", ,"ContractData",B43, "LastTrade",, "T"),3)="768","",RTD("cqg.rtd", ,"ContractData",B43, "MT_LastBidVolume",, "T")) -> 1 | F43: =IF(LEFT(RTD("cqg.rtd", ,"ContractData",B43, "LastTrade",, "T"),3)="768","",RTD("cqg.rtd", ,"ContractData",B43, "Bid",, "T")) -> 24.63 | G43: =IF(LEFT(RTD("cqg.rtd", ,"ContractData",B43, "LastTrade",, "T"),3)="768","",RTD("cqg.rtd", ,"ContractData",B43, "Ask",, "T")) -> 25.15 | H43: =IF(LEFT(RTD("cqg.rtd", ,"ContractData",B43, "LastTrade",, "T"),3)="768","",RTD("cqg.rtd", ,"ContractData",B43, "MT_LastAskVolume",, "T")) -> 1 | I43: =IF(LEFT(RTD("cqg.rtd", ,"ContractData",B43, "LastTrade",, "T"),3)="768","",RTD("cqg.rtd", ,"ContractData",B43, "T_CVol",, "T")) -> 2 | J43: =IF(LEFT(RTD("cqg.rtd", ,"ContractData",B43, "LastTrade",, "T"),3)="768","",RTD("cqg.rtd", ,"ContractData",B43, "Y_CVol",, "T")) -> 2 | K43: =IF(LEFT(RTD("cqg.rtd", ,"ContractData",B43, "LastTrade",, "T"),3)="768","",IFERROR(IF(I43>J43,"+"&I43-J43,I43-J43)*1,"")) -> 0 | L43: =IF(LEFT(RTD("cqg.rtd", ,"ContractData",B43, "LastTrade",, "T"),3)="768","",RTD("cqg.rtd",,"StudyData",B43, "Bar",, "ContractOI", "D", "-1",,,,,"T")) -> 4236 | M43: =IF(LEFT(RTD("cqg.rtd", ,"ContractData",B43, "LastTrade",, "T"),3)="768","",RTD("cqg.rtd",,"StudyData",B43, "Bar",, "ContractOI", "D", "-2",,,,,"T")) -> 4236 | N43: =IF(LEFT(RTD("cqg.rtd", ,"ContractData",B43, "LastTrade",, "T"),3)="768","",IFERROR(IF(L43>M43,"+"&L43-M43,L43-M43)*1,"")) -> 0
A44: 6750 | B44: C.US.CLEJ266750 | C44: =IF(LEFT(RTD("cqg.rtd", ,"ContractData",B44, "LastTrade",, "T"),3)="768","",RTD("cqg.rtd", ,"ContractData",B44, "LastTrade",, "T")) -> 20.24 | D44: =IF(C44="","",RTD("cqg.rtd", ,"ContractData",B44, "NetLastTrade",, "T")) -> 0.11 | E44: =IF(LEFT(RTD("cqg.rtd", ,"ContractData",B44, "LastTrade",, "T"),3)="768","",RTD("cqg.rtd", ,"ContractData",B44, "MT_LastBidVolume",, "T")) -> 1 | F44: =IF(LEFT(RTD("cqg.rtd", ,"ContractData",B44, "LastTrade",, "T"),3)="768","",RTD("cqg.rtd", ,"ContractData",B44, "Bid",, "T")) -> 24.15 | G44: =IF(LEFT(RTD("cqg.rtd", ,"ContractData",B44, "LastTrade",, "T"),3)="768","",RTD("cqg.rtd", ,"ContractData",B44, "Ask",, "T")) -> 24.65 | H44: =IF(LEFT(RTD("cqg.rtd", ,"ContractData",B44, "LastTrade",, "T"),3)="768","",RTD("cqg.rtd", ,"ContractData",B44, "MT_LastAskVolume",, "T")) -> 1 | I44: =IF(LEFT(RTD("cqg.rtd", ,"ContractData",B44, "LastTrade",, "T"),3)="768","",RTD("cqg.rtd", ,"ContractData",B44, "T_CVol",, "T")) -> 0 | J44: =IF(LEFT(RTD("cqg.rtd", ,"ContractData",B44, "LastTrade",, "T"),3)="768","",RTD("cqg.rtd", ,"ContractData",B44, "Y_CVol",, "T")) -> 3 | K44: =IF(LEFT(RTD("cqg.rtd", ,"ContractData",B44, "LastTrade",, "T"),3)="768","",IFERROR(IF(I44>J44,"+"&I44-J44,I44-J44)*1,"")) -> -3 | L44: =IF(LEFT(RTD("cqg.rtd", ,"ContractData",B44, "LastTrade",, "T"),3)="768","",RTD("cqg.rtd",,"StudyData",B44, "Bar",, "ContractOI", "D", "-1",,,,,"T")) -> 1382 | M44: =IF(LEFT(RTD("cqg.rtd", ,"ContractData",B44, "LastTrade",, "T"),3)="768","",RTD("cqg.rtd",,"StudyData",B44, "Bar",, "ContractOI", "D", "-2",,,,,"T")) -> 1383 | N44: =IF(LEFT(RTD("cqg.rtd", ,"ContractData",B44, "LastTrade",, "T"),3)="768","",IFERROR(IF(L44>M44,"+"&L44-M44,L44-M44)*1,"")) -> -1
A45: 6800 | B45: C.US.CLEJ266800 | C45: =IF(LEFT(RTD("cqg.rtd", ,"ContractData",B45, "LastTrade",, "T"),3)="768","",RTD("cqg.rtd", ,"ContractData",B45, "LastTrade",, "T")) -> 19.8 | D45: =IF(C45="","",RTD("cqg.rtd", ,"ContractData",B45, "NetLastTrade",, "T")) -> 0.12 | E45: =IF(LEFT(RTD("cqg.rtd", ,"ContractData",B45, "LastTrade",, "T"),3)="768","",RTD("cqg.rtd", ,"ContractData",B45, "MT_LastBidVolume",, "T")) -> 1 | F45: =IF(LEFT(RTD("cqg.rtd", ,"ContractData",B45, "LastTrade",, "T"),3)="768","",RTD("cqg.rtd", ,"ContractData",B45, "Bid",, "T")) -> 23.66 | G45: =IF(LEFT(RTD("cqg.rtd", ,"ContractData",B45, "LastTrade",, "T"),3)="768","",RTD("cqg.rtd", ,"ContractData",B45, "Ask",, "T")) -> 24.18 | H45: =IF(LEFT(RTD("cqg.rtd", ,"ContractData",B45, "LastTrade",, "T"),3)="768","",RTD("cqg.rtd", ,"ContractData",B45, "MT_LastAskVolume",, "T")) -> 1 | I45: =IF(LEFT(RTD("cqg.rtd", ,"ContractData",B45, "LastTrade",, "T"),3)="768","",RTD("cqg.rtd", ,"ContractData",B45, "T_CVol",, "T")) -> 0 | J45: =IF(LEFT(RTD("cqg.rtd", ,"ContractData",B45, "LastTrade",, "T"),3)="768","",RTD("cqg.rtd", ,"ContractData",B45, "Y_CVol",, "T")) -> 5 | K45: =IF(LEFT(RTD("cqg.rtd", ,"ContractData",B45, "LastTrade",, "T"),3)="768","",IFERROR(IF(I45>J45,"+"&I45-J45,I45-J45)*1,"")) -> -5 | L45: =IF(LEFT(RTD("cqg.rtd", ,"ContractData",B45, "LastTrade",, "T"),3)="768","",RTD("cqg.rtd",,"StudyData",B45, "Bar",, "ContractOI", "D", "-1",,,,,"T")) -> 7600 | M45: =IF(LEFT(RTD("cqg.rtd", ,"ContractData",B45, "LastTrade",, "T"),3)="768","",RTD("cqg.rtd",,"StudyData",B45, "Bar",, "ContractOI", "D", "-2",,,,,"T")) -> 7603 | N45: =IF(LEFT(RTD("cqg.rtd", ,"ContractData",B45, "LastTrade",, "T"),3)="768","",IFERROR(IF(L45>M45,"+"&L45-M45,L45-M45)*1,"")) -> -3
A46: 6850 | B46: C.US.CLEJ266850 | C46: =IF(LEFT(RTD("cqg.rtd", ,"ContractData",B46, "LastTrade",, "T"),3)="768","",RTD("cqg.rtd", ,"ContractData",B46, "LastTrade",, "T")) -> 19.48 | D46: =IF(C46="","",RTD("cqg.rtd", ,"ContractData",B46, "NetLastTrade",, "T")) -> 0.25 | E46: =IF(LEFT(RTD("cqg.rtd", ,"ContractData",B46, "LastTrade",, "T"),3)="768","",RTD("cqg.rtd", ,"ContractData",B46, "MT_LastBidVolume",, "T")) -> 1 | F46: =IF(LEFT(RTD("cqg.rtd", ,"ContractData",B46, "LastTrade",, "T"),3)="768","",RTD("cqg.rtd", ,"ContractData",B46, "Bid",, "T")) -> 23.18 | G46: =IF(LEFT(RTD("cqg.rtd", ,"ContractData",B46, "LastTrade",, "T"),3)="768","",RTD("cqg.rtd", ,"ContractData",B46, "Ask",, "T")) -> 23.7 | H46: =IF(LEFT(RTD("cqg.rtd", ,"ContractData",B46, "LastTrade",, "T"),3)="768","",RTD("cqg.rtd", ,"ContractData",B46, "MT_LastAskVolume",, "T")) -> 1 | I46: =IF(LEFT(RTD("cqg.rtd", ,"ContractData",B46, "LastTrade",, "T"),3)="768","",RTD("cqg.rtd", ,"ContractData",B46, "T_CVol",, "T")) -> 0 | J46: =IF(LEFT(RTD("cqg.rtd", ,"ContractData",B46, "LastTrade",, "T"),3)="768","",RTD("cqg.rtd", ,"ContractData",B46, "Y_CVol",, "T")) -> 2 | K46: =IF(LEFT(RTD("cqg.rtd", ,"ContractData",B46, "LastTrade",, "T"),3)="768","",IFERROR(IF(I46>J46,"+"&I46-J46,I46-J46)*1,"")) -> -2 | L46: =IF(LEFT(RTD("cqg.rtd", ,"ContractData",B46, "LastTrade",, "T"),3)="768","",RTD("cqg.rtd",,"StudyData",B46, "Bar",, "ContractOI", "D", "-1",,,,,"T")) -> 1702 | M46: =IF(LEFT(RTD("cqg.rtd", ,"ContractData",B46, "LastTrade",, "T"),3)="768","",RTD("cqg.rtd",,"StudyData",B46, "Bar",, "ContractOI", "D", "-2",,,,,"T")) -> 1702 | N46: =IF(LEFT(RTD("cqg.rtd", ,"ContractData",B46, "LastTrade",, "T"),3)="768","",IFERROR(IF(L46>M46,"+"&L46-M46,L46-M46)*1,"")) -> 0
A47: 6900 | B47: C.US.CLEJ266900 | C47: =IF(LEFT(RTD("cqg.rtd", ,"ContractData",B47, "LastTrade",, "T"),3)="768","",RTD("cqg.rtd", ,"ContractData",B47, "LastTrade",, "T")) -> 26.98 | D47: =IF(C47="","",RTD("cqg.rtd", ,"ContractData",B47, "NetLastTrade",, "T")) -> 8.19 | E47: =IF(LEFT(RTD("cqg.rtd", ,"ContractData",B47, "LastTrade",, "T"),3)="768","",RTD("cqg.rtd", ,"ContractData",B47, "MT_LastBidVolume",, "T")) -> 1 | F47: =IF(LEFT(RTD("cqg.rtd", ,"ContractData",B47, "LastTrade",, "T"),3)="768","",RTD("cqg.rtd", ,"ContractData",B47, "Bid",, "T")) -> 22.71 | G47: =IF(LEFT(RTD("cqg.rtd", ,"ContractData",B47, "LastTrade",, "T"),3)="768","",RTD("cqg.rtd", ,"ContractData",B47, "Ask",, "T")) -> 23.21 | H47: =IF(LEFT(RTD("cqg.rtd", ,"ContractData",B47, "LastTrade",, "T"),3)="768","",RTD("cqg.rtd", ,"ContractData",B47, "MT_LastAskVolume",, "T")) -> 1 | I47: =IF(LEFT(RTD("cqg.rtd", ,"ContractData",B47, "LastTrade",, "T"),3)="768","",RTD("cqg.rtd", ,"ContractData",B47, "T_CVol",, "T")) -> 5 | J47: =IF(LEFT(RTD("cqg.rtd", ,"ContractData",B47, "LastTrade",, "T"),3)="768","",RTD("cqg.rtd", ,"ContractData",B47, "Y_CVol",, "T")) -> 10 | K47: =IF(LEFT(RTD("cqg.rtd", ,"ContractData",B47, "LastTrade",, "T"),3)="768","",IFERROR(IF(I47>J47,"+"&I47-J47,I47-J47)*1,"")) -> -5 | L47: =IF(LEFT(RTD("cqg.rtd", ,"ContractData",B47, "LastTrade",, "T"),3)="768","",RTD("cqg.rtd",,"StudyData",B47, "Bar",, "ContractOI", "D", "-1",,,,,"T")) -> 1795 | M47: =IF(LEFT(RTD("cqg.rtd", ,"ContractData",B47, "LastTrade",, "T"),3)="768","",RTD("cqg.rtd",,"StudyData",B47, "Bar",, "ContractOI", "D", "-2",,,,,"T")) -> 1795 | N47: =IF(LEFT(RTD("cqg.rtd", ,"ContractData",B47, "LastTrade",, "T"),3)="768","",IFERROR(IF(L47>M47,"+"&L47-M47,L47-M47)*1,"")) -> 0
A48: 6950 | B48: C.US.CLEJ266950 | C48: =IF(LEFT(RTD("cqg.rtd", ,"ContractData",B48, "LastTrade",, "T"),3)="768","",RTD("cqg.rtd", ,"ContractData",B48, "LastTrade",, "T")) -> 15.41 | D48: =IF(C48="","",RTD("cqg.rtd", ,"ContractData",B48, "NetLastTrade",, "T")) -> -2.94 | E48: =IF(LEFT(RTD("cqg.rtd", ,"ContractData",B48, "LastTrade",, "T"),3)="768","",RTD("cqg.rtd", ,"ContractData",B48, "MT_LastBidVolume",, "T")) -> 1 | F48: =IF(LEFT(RTD("cqg.rtd", ,"ContractData",B48, "LastTrade",, "T"),3)="768","",RTD("cqg.rtd", ,"ContractData",B48, "Bid",, "T")) -> 22.37 | G48: =IF(LEFT(RTD("cqg.rtd", ,"ContractData",B48, "LastTrade",, "T"),3)="768","",RTD("cqg.rtd", ,"ContractData",B48, "Ask",, "T")) -> 22.58 | H48: =IF(LEFT(RTD("cqg.rtd", ,"ContractData",B48, "LastTrade",, "T"),3)="768","",RTD("cqg.rtd", ,"ContractData",B48, "MT_LastAskVolume",, "T")) -> 1 | I48: =IF(LEFT(RTD("cqg.rtd", ,"ContractData",B48, "LastTrade",, "T"),3)="768","",RTD("cqg.rtd", ,"ContractData",B48, "T_CVol",, "T")) -> 0 | J48: =IF(LEFT(RTD("cqg.rtd", ,"ContractData",B48, "LastTrade",, "T"),3)="768","",RTD("cqg.rtd", ,"ContractData",B48, "Y_CVol",, "T")) -> 10 | K48: =IF(LEFT(RTD("cqg.rtd", ,"ContractData",B48, "LastTrade",, "T"),3)="768","",IFERROR(IF(I48>J48,"+"&I48-J48,I48-J48)*1,"")) -> -10 | L48: =IF(LEFT(RTD("cqg.rtd", ,"ContractData",B48, "LastTrade",, "T"),3)="768","",RTD("cqg.rtd",,"StudyData",B48, "Bar",, "ContractOI", "D", "-1",,,,,"T")) -> 1573 | M48: =IF(LEFT(RTD("cqg.rtd", ,"ContractData",B48, "LastTrade",, "T"),3)="768","",RTD("cqg.rtd",,"StudyData",B48, "Bar",, "ContractOI", "D", "-2",,,,,"T")) -> 1573 | N48: =IF(LEFT(RTD("cqg.rtd", ,"ContractData",B48, "LastTrade",, "T"),3)="768","",IFERROR(IF(L48>M48,"+"&L48-M48,L48-M48)*1,"")) -> 0
A49: 7000 | B49: C.US.CLEJ267000 | C49: =IF(LEFT(RTD("cqg.rtd", ,"ContractData",B49, "LastTrade",, "T"),3)="768","",RTD("cqg.rtd", ,"ContractData",B49, "LastTrade",, "T")) -> 21.45 | D49: =IF(C49="","",RTD("cqg.rtd", ,"ContractData",B49, "NetLastTrade",, "T")) -> 3.53 | E49: =IF(LEFT(RTD("cqg.rtd", ,"ContractData",B49, "LastTrade",, "T"),3)="768","",RTD("cqg.rtd", ,"ContractData",B49, "MT_LastBidVolume",, "T")) -> 1 | F49: =IF(LEFT(RTD("cqg.rtd", ,"ContractData",B49, "LastTrade",, "T"),3)="768","",RTD("cqg.rtd", ,"ContractData",B49, "Bid",, "T")) -> 21.9 | G49: =IF(LEFT(RTD("cqg.rtd", ,"ContractData",B49, "LastTrade",, "T"),3)="768","",RTD("cqg.rtd", ,"ContractData",B49, "Ask",, "T")) -> 22.1 | H49: =IF(LEFT(RTD("cqg.rtd", ,"ContractData",B49, "LastTrade",, "T"),3)="768","",RTD("cqg.rtd", ,"ContractData",B49, "MT_LastAskVolume",, "T")) -> 1 | I49: =IF(LEFT(RTD("cqg.rtd", ,"ContractData",B49, "LastTrade",, "T"),3)="768","",RTD("cqg.rtd", ,"ContractData",B49, "T_CVol",, "T")) -> 27 | J49: =IF(LEFT(RTD("cqg.rtd", ,"ContractData",B49, "LastTrade",, "T"),3)="768","",RTD("cqg.rtd", ,"ContractData",B49, "Y_CVol",, "T")) -> 323 | K49: =IF(LEFT(RTD("cqg.rtd", ,"ContractData",B49, "LastTrade",, "T"),3)="768","",IFERROR(IF(I49>J49,"+"&I49-J49,I49-J49)*1,"")) -> -296 | L49: =IF(LEFT(RTD("cqg.rtd", ,"ContractData",B49, "LastTrade",, "T"),3)="768","",RTD("cqg.rtd",,"StudyData",B49, "Bar",, "ContractOI", "D", "-1",,,,,"T")) -> 19115 | M49: =IF(LEFT(RTD("cqg.rtd", ,"ContractData",B49, "LastTrade",, "T"),3)="768","",RTD("cqg.rtd",,"StudyData",B49, "Bar",, "ContractOI", "D", "-2",,,,,"T")) -> 19206 | N49: =IF(LEFT(RTD("cqg.rtd", ,"ContractData",B49, "LastTrade",, "T"),3)="768","",IFERROR(IF(L49>M49,"+"&L49-M49,L49-M49)*1,"")) -> -91
A50: 7050 | B50: C.US.CLEJ267050 | C50: =IF(LEFT(RTD("cqg.rtd", ,"ContractData",B50, "LastTrade",, "T"),3)="768","",RTD("cqg.rtd", ,"ContractData",B50, "LastTrade",, "T")) -> 17.34 | D50: =IF(C50="","",RTD("cqg.rtd", ,"ContractData",B50, "NetLastTrade",, "T")) -> -0.15 | E50: =IF(LEFT(RTD("cqg.rtd", ,"ContractData",B50, "LastTrade",, "T"),3)="768","",RTD("cqg.rtd", ,"ContractData",B50, "MT_LastBidVolume",, "T")) -> 2 | F50: =IF(LEFT(RTD("cqg.rtd", ,"ContractData",B50, "LastTrade",, "T"),3)="768","",RTD("cqg.rtd", ,"ContractData",B50, "Bid",, "T")) -> 21.43 | G50: =IF(LEFT(RTD("cqg.rtd", ,"ContractData",B50, "LastTrade",, "T"),3)="768","",RTD("cqg.rtd", ,"ContractData",B50, "Ask",, "T")) -> 21.64 | H50: =IF(LEFT(RTD("cqg.rtd", ,"ContractData",B50, "LastTrade",, "T"),3)="768","",RTD("cqg.rtd", ,"ContractData",B50, "MT_LastAskVolume",, "T")) -> 1 | I50: =IF(LEFT(RTD("cqg.rtd", ,"ContractData",B50, "LastTrade",, "T"),3)="768","",RTD("cqg.rtd", ,"ContractData",B50, "T_CVol",, "T")) -> 0 | J50: =IF(LEFT(RTD("cqg.rtd", ,"ContractData",B50, "LastTrade",, "T"),3)="768","",RTD("cqg.rtd", ,"ContractData",B50, "Y_CVol",, "T")) -> 1 | K50: =IF(LEFT(RTD("cqg.rtd", ,"ContractData",B50, "LastTrade",, "T"),3)="768","",IFERROR(IF(I50>J50,"+"&I50-J50,I50-J50)*1,"")) -> -1 | L50: =IF(LEFT(RTD("cqg.rtd", ,"ContractData",B50, "LastTrade",, "T"),3)="768","",RTD("cqg.rtd",,"StudyData",B50, "Bar",, "ContractOI", "D", "-1",,,,,"T")) -> 1909 | M50: =IF(LEFT(RTD("cqg.rtd", ,"ContractData",B50, "LastTrade",, "T"),3)="768","",RTD("cqg.rtd",,"StudyData",B50, "Bar",, "ContractOI", "D", "-2",,,,,"T")) -> 1909 | N50: =IF(LEFT(RTD("cqg.rtd", ,"ContractData",B50, "LastTrade",, "T"),3)="768","",IFERROR(IF(L50>M50,"+"&L50-M50,L50-M50)*1,"")) -> 0
A51: =A52-$A$7 -> 7100 | B51: =LEFT(B52,FIND(A52,B52)-1)&A51 -> C.US.CLEJ267100 | C51: =IF(LEFT(RTD("cqg.rtd", ,"ContractData",B51, "LastTrade",, "T"),3)="768","",RTD("cqg.rtd", ,"ContractData",B51, "LastTrade",, "T")) -> 21.41 | D51: =IF(C51="","",RTD("cqg.rtd", ,"ContractData",B51, "NetLastTrade",, "T")) -> 4.35 | E51: =IF(LEFT(RTD("cqg.rtd", ,"ContractData",B51, "LastTrade",, "T"),3)="768","",RTD("cqg.rtd", ,"ContractData",B51, "MT_LastBidVolume",, "T")) -> 1 | F51: =IF(LEFT(RTD("cqg.rtd", ,"ContractData",B51, "LastTrade",, "T"),3)="768","",RTD("cqg.rtd", ,"ContractData",B51, "Bid",, "T")) -> 20.98 | G51: =IF(LEFT(RTD("cqg.rtd", ,"ContractData",B51, "LastTrade",, "T"),3)="768","",RTD("cqg.rtd", ,"ContractData",B51, "Ask",, "T")) -> 21.17 | H51: =IF(LEFT(RTD("cqg.rtd", ,"ContractData",B51, "LastTrade",, "T"),3)="768","",RTD("cqg.rtd", ,"ContractData",B51, "MT_LastAskVolume",, "T")) -> 1 | I51: =IF(LEFT(RTD("cqg.rtd", ,"ContractData",B51, "LastTrade",, "T"),3)="768","",RTD("cqg.rtd", ,"ContractData",B51, "T_CVol",, "T")) -> 1 | J51: =IF(LEFT(RTD("cqg.rtd", ,"ContractData",B51, "LastTrade",, "T"),3)="768","",RTD("cqg.rtd", ,"ContractData",B51, "Y_CVol",, "T")) -> 3 | K51: =IF(LEFT(RTD("cqg.rtd", ,"ContractData",B51, "LastTrade",, "T"),3)="768","",IFERROR(IF(I51>J51,"+"&I51-J51,I51-J51)*1,"")) -> -2 | L51: =IF(LEFT(RTD("cqg.rtd", ,"ContractData",B51, "LastTrade",, "T"),3)="768","",RTD("cqg.rtd",,"StudyData",B51, "Bar",, "ContractOI", "D", "-1",,,,,"T")) -> 2395 | M51: =IF(LEFT(RTD("cqg.rtd", ,"ContractData",B51, "LastTrade",, "T"),3)="768","",RTD("cqg.rtd",,"StudyData",B51, "Bar",, "ContractOI", "D", "-2",,,,,"T")) -> 2397 | N51: =IF(LEFT(RTD("cqg.rtd", ,"ContractData",B51, "LastTrade",, "T"),3)="768","",IFERROR(IF(L51>M51,"+"&L51-M51,L51-M51)*1,"")) -> -2
A52: 7150 | B52: C.US.CLEJ267150 | C52: =IF(LEFT(RTD("cqg.rtd", ,"ContractData",B52, "LastTrade",, "T"),3)="768","",RTD("cqg.rtd", ,"ContractData",B52, "LastTrade",, "T")) -> 16.85 | D52: =IF(C52="","",RTD("cqg.rtd", ,"ContractData",B52, "NetLastTrade",, "T")) -> 0.21 | E52: =IF(LEFT(RTD("cqg.rtd", ,"ContractData",B52, "LastTrade",, "T"),3)="768","",RTD("cqg.rtd", ,"ContractData",B52, "MT_LastBidVolume",, "T")) -> 1 | F52: =IF(LEFT(RTD("cqg.rtd", ,"ContractData",B52, "LastTrade",, "T"),3)="768","",RTD("cqg.rtd", ,"ContractData",B52, "Bid",, "T")) -> 20.5 | G52: =IF(LEFT(RTD("cqg.rtd", ,"ContractData",B52, "LastTrade",, "T"),3)="768","",RTD("cqg.rtd", ,"ContractData",B52, "Ask",, "T")) -> 20.7 | H52: =IF(LEFT(RTD("cqg.rtd", ,"ContractData",B52, "LastTrade",, "T"),3)="768","",RTD("cqg.rtd", ,"ContractData",B52, "MT_LastAskVolume",, "T")) -> 1 | I52: =IF(LEFT(RTD("cqg.rtd", ,"ContractData",B52, "LastTrade",, "T"),3)="768","",RTD("cqg.rtd", ,"ContractData",B52, "T_CVol",, "T")) -> 0 | J52: =IF(LEFT(RTD("cqg.rtd", ,"ContractData",B52, "LastTrade",, "T"),3)="768","",RTD("cqg.rtd", ,"ContractData",B52, "Y_CVol",, "T")) -> 1 | K52: =IF(LEFT(RTD("cqg.rtd", ,"ContractData",B52, "LastTrade",, "T"),3)="768","",IFERROR(IF(I52>J52,"+"&I52-J52,I52-J52)*1,"")) -> -1 | L52: =IF(LEFT(RTD("cqg.rtd", ,"ContractData",B52, "LastTrade",, "T"),3)="768","",RTD("cqg.rtd",,"StudyData",B52, "Bar",, "ContractOI", "D", "-1",,,,,"T")) -> 973 | M52: =IF(LEFT(RTD("cqg.rtd", ,"ContractData",B52, "LastTrade",, "T"),3)="768","",RTD("cqg.rtd",,"StudyData",B52, "Bar",, "ContractOI", "D", "-2",,,,,"T")) -> 973 | N52: =IF(LEFT(RTD("cqg.rtd", ,"ContractData",B52, "LastTrade",, "T"),3)="768","",IFERROR(IF(L52>M52,"+"&L52-M52,L52-M52)*1,"")) -> 0
A53: 7200 | B53: C.US.CLEJ267200 | C53: =IF(LEFT(RTD("cqg.rtd", ,"ContractData",B53, "LastTrade",, "T"),3)="768","",RTD("cqg.rtd", ,"ContractData",B53, "LastTrade",, "T")) -> 21.44 | D53: =IF(C53="","",RTD("cqg.rtd", ,"ContractData",B53, "NetLastTrade",, "T")) -> 5.22 | E53: =IF(LEFT(RTD("cqg.rtd", ,"ContractData",B53, "LastTrade",, "T"),3)="768","",RTD("cqg.rtd", ,"ContractData",B53, "MT_LastBidVolume",, "T")) -> 1 | F53: =IF(LEFT(RTD("cqg.rtd", ,"ContractData",B53, "LastTrade",, "T"),3)="768","",RTD("cqg.rtd", ,"ContractData",B53, "Bid",, "T")) -> 20.04 | G53: =IF(LEFT(RTD("cqg.rtd", ,"ContractData",B53, "LastTrade",, "T"),3)="768","",RTD("cqg.rtd", ,"ContractData",B53, "Ask",, "T")) -> 20.24 | H53: =IF(LEFT(RTD("cqg.rtd", ,"ContractData",B53, "LastTrade",, "T"),3)="768","",RTD("cqg.rtd", ,"ContractData",B53, "MT_LastAskVolume",, "T")) -> 1 | I53: =IF(LEFT(RTD("cqg.rtd", ,"ContractData",B53, "LastTrade",, "T"),3)="768","",RTD("cqg.rtd", ,"ContractData",B53, "T_CVol",, "T")) -> 3 | J53: =IF(LEFT(RTD("cqg.rtd", ,"ContractData",B53, "LastTrade",, "T"),3)="768","",RTD("cqg.rtd", ,"ContractData",B53, "Y_CVol",, "T")) -> 183 | K53: =IF(LEFT(RTD("cqg.rtd", ,"ContractData",B53, "LastTrade",, "T"),3)="768","",IFERROR(IF(I53>J53,"+"&I53-J53,I53-J53)*1,"")) -> -180 | L53: =IF(LEFT(RTD("cqg.rtd", ,"ContractData",B53, "LastTrade",, "T"),3)="768","",RTD("cqg.rtd",,"StudyData",B53, "Bar",, "ContractOI", "D", "-1",,,,,"T")) -> 7193 | M53: =IF(LEFT(RTD("cqg.rtd", ,"ContractData",B53, "LastTrade",, "T"),3)="768","",RTD("cqg.rtd",,"StudyData",B53, "Bar",, "ContractOI", "D", "-2",,,,,"T")) -> 7204 | N53: =IF(LEFT(RTD("cqg.rtd", ,"ContractData",B53, "LastTrade",, "T"),3)="768","",IFERROR(IF(L53>M53,"+"&L53-M53,L53-M53)*1,"")) -> -11
A54: 7250 | B54: C.US.CLEJ267250 | C54: =IF(LEFT(RTD("cqg.rtd", ,"ContractData",B54, "LastTrade",, "T"),3)="768","",RTD("cqg.rtd", ,"ContractData",B54, "LastTrade",, "T")) -> 19.56 | D54: =IF(C54="","",RTD("cqg.rtd", ,"ContractData",B54, "NetLastTrade",, "T")) -> 3.75 | E54: =IF(LEFT(RTD("cqg.rtd", ,"ContractData",B54, "LastTrade",, "T"),3)="768","",RTD("cqg.rtd", ,"ContractData",B54, "MT_LastBidVolume",, "T")) -> 1 | F54: =IF(LEFT(RTD("cqg.rtd", ,"ContractData",B54, "LastTrade",, "T"),3)="768","",RTD("cqg.rtd", ,"ContractData",B54, "Bid",, "T")) -> 19.6 | G54: =IF(LEFT(RTD("cqg.rtd", ,"ContractData",B54, "LastTrade",, "T"),3)="768","",RTD("cqg.rtd", ,"ContractData",B54, "Ask",, "T")) -> 19.79 | H54: =IF(LEFT(RTD("cqg.rtd", ,"ContractData",B54, "LastTrade",, "T"),3)="768","",RTD("cqg.rtd", ,"ContractData",B54, "MT_LastAskVolume",, "T")) -> 1 | I54: =IF(LEFT(RTD("cqg.rtd", ,"ContractData",B54, "LastTrade",, "T"),3)="768","",RTD("cqg.rtd", ,"ContractData",B54, "T_CVol",, "T")) -> 15 | J54: =IF(LEFT(RTD("cqg.rtd", ,"ContractData",B54, "LastTrade",, "T"),3)="768","",RTD("cqg.rtd", ,"ContractData",B54, "Y_CVol",, "T")) -> 1 | K54: =IF(LEFT(RTD("cqg.rtd", ,"ContractData",B54, "LastTrade",, "T"),3)="768","",IFERROR(IF(I54>J54,"+"&I54-J54,I54-J54)*1,"")) -> 14 | L54: =IF(LEFT(RTD("cqg.rtd", ,"ContractData",B54, "LastTrade",, "T"),3)="768","",RTD("cqg.rtd",,"StudyData",B54, "Bar",, "ContractOI", "D", "-1",,,,,"T")) -> 1776 | M54: =IF(LEFT(RTD("cqg.rtd", ,"ContractData",B54, "LastTrade",, "T"),3)="768","",RTD("cqg.rtd",,"StudyData",B54, "Bar",, "ContractOI", "D", "-2",,,,,"T")) -> 1777 | N54: =IF(LEFT(RTD("cqg.rtd", ,"ContractData",B54, "LastTrade",, "T"),3)="768","",IFERROR(IF(L54>M54,"+"&L54-M54,L54-M54)*1,"")) -> -1
A55: 7300 | B55: C.US.CLEJ267300 | C55: =IF(LEFT(RTD("cqg.rtd", ,"ContractData",B55, "LastTrade",, "T"),3)="768","",RTD("cqg.rtd", ,"ContractData",B55, "LastTrade",, "T")) -> 21.57 | D55: =IF(C55="","",RTD("cqg.rtd", ,"ContractData",B55, "NetLastTrade",, "T")) -> 6.16 | E55: =IF(LEFT(RTD("cqg.rtd", ,"ContractData",B55, "LastTrade",, "T"),3)="768","",RTD("cqg.rtd", ,"ContractData",B55, "MT_LastBidVolume",, "T")) -> 1 | F55: =IF(LEFT(RTD("cqg.rtd", ,"ContractData",B55, "LastTrade",, "T"),3)="768","",RTD("cqg.rtd", ,"ContractData",B55, "Bid",, "T")) -> 19.14 | G55: =IF(LEFT(RTD("cqg.rtd", ,"ContractData",B55, "LastTrade",, "T"),3)="768","",RTD("cqg.rtd", ,"ContractData",B55, "Ask",, "T")) -> 19.34 | H55: =IF(LEFT(RTD("cqg.rtd", ,"ContractData",B55, "LastTrade",, "T"),3)="768","",RTD("cqg.rtd", ,"ContractData",B55, "MT_LastAskVolume",, "T")) -> 1 | I55: =IF(LEFT(RTD("cqg.rtd", ,"ContractData",B55, "LastTrade",, "T"),3)="768","",RTD("cqg.rtd", ,"ContractData",B55, "T_CVol",, "T")) -> 9 | J55: =IF(LEFT(RTD("cqg.rtd", ,"ContractData",B55, "LastTrade",, "T"),3)="768","",RTD("cqg.rtd", ,"ContractData",B55, "Y_CVol",, "T")) -> 4 | K55: =IF(LEFT(RTD("cqg.rtd", ,"ContractData",B55, "LastTrade",, "T"),3)="768","",IFERROR(IF(I55>J55,"+"&I55-J55,I55-J55)*1,"")) -> 5 | L55: =IF(LEFT(RTD("cqg.rtd", ,"ContractData",B55, "LastTrade",, "T"),3)="768","",RTD("cqg.rtd",,"StudyData",B55, "Bar",, "ContractOI", "D", "-1",,,,,"T")) -> 3215 | M55: =IF(LEFT(RTD("cqg.rtd", ,"ContractData",B55, "LastTrade",, "T"),3)="768","",RTD("cqg.rtd",,"StudyData",B55, "Bar",, "ContractOI", "D", "-2",,,,,"T")) -> 3217 | N55: =IF(LEFT(RTD("cqg.rtd", ,"ContractData",B55, "LastTrade",, "T"),3)="768","",IFERROR(IF(L55>M55,"+"&L55-M55,L55-M55)*1,"")) -> -2
A56: 7350 | B56: C.US.CLEJ267350 | C56: =IF(LEFT(RTD("cqg.rtd", ,"ContractData",B56, "LastTrade",, "T"),3)="768","",RTD("cqg.rtd", ,"ContractData",B56, "LastTrade",, "T")) -> 21.16 | D56: =IF(C56="","",RTD("cqg.rtd", ,"ContractData",B56, "NetLastTrade",, "T")) -> 6.14 | E56: =IF(LEFT(RTD("cqg.rtd", ,"ContractData",B56, "LastTrade",, "T"),3)="768","",RTD("cqg.rtd", ,"ContractData",B56, "MT_LastBidVolume",, "T")) -> 2 | F56: =IF(LEFT(RTD("cqg.rtd", ,"ContractData",B56, "LastTrade",, "T"),3)="768","",RTD("cqg.rtd", ,"ContractData",B56, "Bid",, "T")) -> 18.69 | G56: =IF(LEFT(RTD("cqg.rtd", ,"ContractData",B56, "LastTrade",, "T"),3)="768","",RTD("cqg.rtd", ,"ContractData",B56, "Ask",, "T")) -> 18.89 | H56: =IF(LEFT(RTD("cqg.rtd", ,"ContractData",B56, "LastTrade",, "T"),3)="768","",RTD("cqg.rtd", ,"ContractData",B56, "MT_LastAskVolume",, "T")) -> 1 | I56: =IF(LEFT(RTD("cqg.rtd", ,"ContractData",B56, "LastTrade",, "T"),3)="768","",RTD("cqg.rtd", ,"ContractData",B56, "T_CVol",, "T")) -> 1 | J56: =IF(LEFT(RTD("cqg.rtd", ,"ContractData",B56, "LastTrade",, "T"),3)="768","",RTD("cqg.rtd", ,"ContractData",B56, "Y_CVol",, "T")) -> 0 | K56: =IF(LEFT(RTD("cqg.rtd", ,"ContractData",B56, "LastTrade",, "T"),3)="768","",IFERROR(IF(I56>J56,"+"&I56-J56,I56-J56)*1,"")) -> 1 | L56: =IF(LEFT(RTD("cqg.rtd", ,"ContractData",B56, "LastTrade",, "T"),3)="768","",RTD("cqg.rtd",,"StudyData",B56, "Bar",, "ContractOI", "D", "-1",,,,,"T")) -> 966 | M56: =IF(LEFT(RTD("cqg.rtd", ,"ContractData",B56, "LastTrade",, "T"),3)="768","",RTD("cqg.rtd",,"StudyData",B56, "Bar",, "ContractOI", "D", "-2",,,,,"T")) -> 966 | N56: =IF(LEFT(RTD("cqg.rtd", ,"ContractData",B56, "LastTrade",, "T"),3)="768","",IFERROR(IF(L56>M56,"+"&L56-M56,L56-M56)*1,"")) -> 0
A57: 7400 | B57: C.US.CLEJ267400 | C57: =IF(LEFT(RTD("cqg.rtd", ,"ContractData",B57, "LastTrade",, "T"),3)="768","",RTD("cqg.rtd", ,"ContractData",B57, "LastTrade",, "T")) -> 14.99 | D57: =IF(C57="","",RTD("cqg.rtd", ,"ContractData",B57, "NetLastTrade",, "T")) -> 0.35 | E57: =IF(LEFT(RTD("cqg.rtd", ,"ContractData",B57, "LastTrade",, "T"),3)="768","",RTD("cqg.rtd", ,"ContractData",B57, "MT_LastBidVolume",, "T")) -> 1 | F57: =IF(LEFT(RTD("cqg.rtd", ,"ContractData",B57, "LastTrade",, "T"),3)="768","",RTD("cqg.rtd", ,"ContractData",B57, "Bid",, "T")) -> 18.26 | G57: =IF(LEFT(RTD("cqg.rtd", ,"ContractData",B57, "LastTrade",, "T"),3)="768","",RTD("cqg.rtd", ,"ContractData",B57, "Ask",, "T")) -> 18.45 | H57: =IF(LEFT(RTD("cqg.rtd", ,"ContractData",B57, "LastTrade",, "T"),3)="768","",RTD("cqg.rtd", ,"ContractData",B57, "MT_LastAskVolume",, "T")) -> 1 | I57: =IF(LEFT(RTD("cqg.rtd", ,"ContractData",B57, "LastTrade",, "T"),3)="768","",RTD("cqg.rtd", ,"ContractData",B57, "T_CVol",, "T")) -> 16 | J57: =IF(LEFT(RTD("cqg.rtd", ,"ContractData",B57, "LastTrade",, "T"),3)="768","",RTD("cqg.rtd", ,"ContractData",B57, "Y_CVol",, "T")) -> 31 | K57: =IF(LEFT(RTD("cqg.rtd", ,"ContractData",B57, "LastTrade",, "T"),3)="768","",IFERROR(IF(I57>J57,"+"&I57-J57,I57-J57)*1,"")) -> -15 | L57: =IF(LEFT(RTD("cqg.rtd", ,"ContractData",B57, "LastTrade",, "T"),3)="768","",RTD("cqg.rtd",,"StudyData",B57, "Bar",, "ContractOI", "D", "-1",,,,,"T")) -> 2343 | M57: =IF(LEFT(RTD("cqg.rtd", ,"ContractData",B57, "LastTrade",, "T"),3)="768","",RTD("cqg.rtd",,"StudyData",B57, "Bar",, "ContractOI", "D", "-2",,,,,"T")) -> 2374 | N57: =IF(LEFT(RTD("cqg.rtd", ,"ContractData",B57, "LastTrade",, "T"),3)="768","",IFERROR(IF(L57>M57,"+"&L57-M57,L57-M57)*1,"")) -> -31
A58: 7450 | B58: C.US.CLEJ267450 | C58: =IF(LEFT(RTD("cqg.rtd", ,"ContractData",B58, "LastTrade",, "T"),3)="768","",RTD("cqg.rtd", ,"ContractData",B58, "LastTrade",, "T")) -> 14.7 | D58: =IF(C58="","",RTD("cqg.rtd", ,"ContractData",B58, "NetLastTrade",, "T")) -> 0.43 | E58: =IF(LEFT(RTD("cqg.rtd", ,"ContractData",B58, "LastTrade",, "T"),3)="768","",RTD("cqg.rtd", ,"ContractData",B58, "MT_LastBidVolume",, "T")) -> 1 | F58: =IF(LEFT(RTD("cqg.rtd", ,"ContractData",B58, "LastTrade",, "T"),3)="768","",RTD("cqg.rtd", ,"ContractData",B58, "Bid",, "T")) -> 17.82 | G58: =IF(LEFT(RTD("cqg.rtd", ,"ContractData",B58, "LastTrade",, "T"),3)="768","",RTD("cqg.rtd", ,"ContractData",B58, "Ask",, "T")) -> 18.01 | H58: =IF(LEFT(RTD("cqg.rtd", ,"ContractData",B58, "LastTrade",, "T"),3)="768","",RTD("cqg.rtd", ,"ContractData",B58, "MT_LastAskVolume",, "T")) -> 1 | I58: =IF(LEFT(RTD("cqg.rtd", ,"ContractData",B58, "LastTrade",, "T"),3)="768","",RTD("cqg.rtd", ,"ContractData",B58, "T_CVol",, "T")) -> 2 | J58: =IF(LEFT(RTD("cqg.rtd", ,"ContractData",B58, "LastTrade",, "T"),3)="768","",RTD("cqg.rtd", ,"ContractData",B58, "Y_CVol",, "T")) -> 5 | K58: =IF(LEFT(RTD("cqg.rtd", ,"ContractData",B58, "LastTrade",, "T"),3)="768","",IFERROR(IF(I58>J58,"+"&I58-J58,I58-J58)*1,"")) -> -3 | L58: =IF(LEFT(RTD("cqg.rtd", ,"ContractData",B58, "LastTrade",, "T"),3)="768","",RTD("cqg.rtd",,"StudyData",B58, "Bar",, "ContractOI", "D", "-1",,,,,"T")) -> 3713 | M58: =IF(LEFT(RTD("cqg.rtd", ,"ContractData",B58, "LastTrade",, "T"),3)="768","",RTD("cqg.rtd",,"StudyData",B58, "Bar",, "ContractOI", "D", "-2",,,,,"T")) -> 3716 | N58: =IF(LEFT(RTD("cqg.rtd", ,"ContractData",B58, "LastTrade",, "T"),3)="768","",IFERROR(IF(L58>M58,"+"&L58-M58,L58-M58)*1,"")) -> -3
A59: 7500 | B59: C.US.CLEJ267500 | C59: =IF(LEFT(RTD("cqg.rtd", ,"ContractData",B59, "LastTrade",, "T"),3)="768","",RTD("cqg.rtd", ,"ContractData",B59, "LastTrade",, "T")) -> 13.94 | D59: =IF(C59="","",RTD("cqg.rtd", ,"ContractData",B59, "NetLastTrade",, "T")) -> 0.04 | E59: =IF(LEFT(RTD("cqg.rtd", ,"ContractData",B59, "LastTrade",, "T"),3)="768","",RTD("cqg.rtd", ,"ContractData",B59, "MT_LastBidVolume",, "T")) -> 1 | F59: =IF(LEFT(RTD("cqg.rtd", ,"ContractData",B59, "LastTrade",, "T"),3)="768","",RTD("cqg.rtd", ,"ContractData",B59, "Bid",, "T")) -> 17.38 | G59: =IF(LEFT(RTD("cqg.rtd", ,"ContractData",B59, "LastTrade",, "T"),3)="768","",RTD("cqg.rtd", ,"ContractData",B59, "Ask",, "T")) -> 17.58 | H59: =IF(LEFT(RTD("cqg.rtd", ,"ContractData",B59, "LastTrade",, "T"),3)="768","",RTD("cqg.rtd", ,"ContractData",B59, "MT_LastAskVolume",, "T")) -> 1 | I59: =IF(LEFT(RTD("cqg.rtd", ,"ContractData",B59, "LastTrade",, "T"),3)="768","",RTD("cqg.rtd", ,"ContractData",B59, "T_CVol",, "T")) -> 103 | J59: =IF(LEFT(RTD("cqg.rtd", ,"ContractData",B59, "LastTrade",, "T"),3)="768","",RTD("cqg.rtd", ,"ContractData",B59, "Y_CVol",, "T")) -> 145 | K59: =IF(LEFT(RTD("cqg.rtd", ,"ContractData",B59, "LastTrade",, "T"),3)="768","",IFERROR(IF(I59>J59,"+"&I59-J59,I59-J59)*1,"")) -> -42 | L59: =IF(LEFT(RTD("cqg.rtd", ,"ContractData",B59, "LastTrade",, "T"),3)="768","",RTD("cqg.rtd",,"StudyData",B59, "Bar",, "ContractOI", "D", "-1",,,,,"T")) -> 24343 | M59: =IF(LEFT(RTD("cqg.rtd", ,"ContractData",B59, "LastTrade",, "T"),3)="768","",RTD("cqg.rtd",,"StudyData",B59, "Bar",, "ContractOI", "D", "-2",,,,,"T")) -> 24246 | N59: =IF(LEFT(RTD("cqg.rtd", ,"ContractData",B59, "LastTrade",, "T"),3)="768","",IFERROR(IF(L59>M59,"+"&L59-M59,L59-M59)*1,"")) -> 97
A60: 7550 | B60: C.US.CLEJ267550 | C60: =IF(LEFT(RTD("cqg.rtd", ,"ContractData",B60, "LastTrade",, "T"),3)="768","",RTD("cqg.rtd", ,"ContractData",B60, "LastTrade",, "T")) -> 13.94 | D60: =IF(C60="","",RTD("cqg.rtd", ,"ContractData",B60, "NetLastTrade",, "T")) -> 0.41 | E60: =IF(LEFT(RTD("cqg.rtd", ,"ContractData",B60, "LastTrade",, "T"),3)="768","",RTD("cqg.rtd", ,"ContractData",B60, "MT_LastBidVolume",, "T")) -> 1 | F60: =IF(LEFT(RTD("cqg.rtd", ,"ContractData",B60, "LastTrade",, "T"),3)="768","",RTD("cqg.rtd", ,"ContractData",B60, "Bid",, "T")) -> 16.95 | G60: =IF(LEFT(RTD("cqg.rtd", ,"ContractData",B60, "LastTrade",, "T"),3)="768","",RTD("cqg.rtd", ,"ContractData",B60, "Ask",, "T")) -> 17.16 | H60: =IF(LEFT(RTD("cqg.rtd", ,"ContractData",B60, "LastTrade",, "T"),3)="768","",RTD("cqg.rtd", ,"ContractData",B60, "MT_LastAskVolume",, "T")) -> 2 | I60: =IF(LEFT(RTD("cqg.rtd", ,"ContractData",B60, "LastTrade",, "T"),3)="768","",RTD("cqg.rtd", ,"ContractData",B60, "T_CVol",, "T")) -> 0 | J60: =IF(LEFT(RTD("cqg.rtd", ,"ContractData",B60, "LastTrade",, "T"),3)="768","",RTD("cqg.rtd", ,"ContractData",B60, "Y_CVol",, "T")) -> 4 | K60: =IF(LEFT(RTD("cqg.rtd", ,"ContractData",B60, "LastTrade",, "T"),3)="768","",IFERROR(IF(I60>J60,"+"&I60-J60,I60-J60)*1,"")) -> -4 | L60: =IF(LEFT(RTD("cqg.rtd", ,"ContractData",B60, "LastTrade",, "T"),3)="768","",RTD("cqg.rtd",,"StudyData",B60, "Bar",, "ContractOI", "D", "-1",,,,,"T")) -> 2974 | M60: =IF(LEFT(RTD("cqg.rtd", ,"ContractData",B60, "LastTrade",, "T"),3)="768","",RTD("cqg.rtd",,"StudyData",B60, "Bar",, "ContractOI", "D", "-2",,,,,"T")) -> 2973 | N60: =IF(LEFT(RTD("cqg.rtd", ,"ContractData",B60, "LastTrade",, "T"),3)="768","",IFERROR(IF(L60>M60,"+"&L60-M60,L60-M60)*1,"")) -> 1
A61: 7600 | B61: C.US.CLEJ267600 | C61: =IF(LEFT(RTD("cqg.rtd", ,"ContractData",B61, "LastTrade",, "T"),3)="768","",RTD("cqg.rtd", ,"ContractData",B61, "LastTrade",, "T")) -> 16.66 | D61: =IF(C61="","",RTD("cqg.rtd", ,"ContractData",B61, "NetLastTrade",, "T")) -> 3.48 | E61: =IF(LEFT(RTD("cqg.rtd", ,"ContractData",B61, "LastTrade",, "T"),3)="768","",RTD("cqg.rtd", ,"ContractData",B61, "MT_LastBidVolume",, "T")) -> 1 | F61: =IF(LEFT(RTD("cqg.rtd", ,"ContractData",B61, "LastTrade",, "T"),3)="768","",RTD("cqg.rtd", ,"ContractData",B61, "Bid",, "T")) -> 16.54 | G61: =IF(LEFT(RTD("cqg.rtd", ,"ContractData",B61, "LastTrade",, "T"),3)="768","",RTD("cqg.rtd", ,"ContractData",B61, "Ask",, "T")) -> 16.73 | H61: =IF(LEFT(RTD("cqg.rtd", ,"ContractData",B61, "LastTrade",, "T"),3)="768","",RTD("cqg.rtd", ,"ContractData",B61, "MT_LastAskVolume",, "T")) -> 1 | I61: =IF(LEFT(RTD("cqg.rtd", ,"ContractData",B61, "LastTrade",, "T"),3)="768","",RTD("cqg.rtd", ,"ContractData",B61, "T_CVol",, "T")) -> 111 | J61: =IF(LEFT(RTD("cqg.rtd", ,"ContractData",B61, "LastTrade",, "T"),3)="768","",RTD("cqg.rtd", ,"ContractData",B61, "Y_CVol",, "T")) -> 49 | K61: =IF(LEFT(RTD("cqg.rtd", ,"ContractData",B61, "LastTrade",, "T"),3)="768","",IFERROR(IF(I61>J61,"+"&I61-J61,I61-J61)*1,"")) -> 62 | L61: =IF(LEFT(RTD("cqg.rtd", ,"ContractData",B61, "LastTrade",, "T"),3)="768","",RTD("cqg.rtd",,"StudyData",B61, "Bar",, "ContractOI", "D", "-1",,,,,"T")) -> 3951 | M61: =IF(LEFT(RTD("cqg.rtd", ,"ContractData",B61, "LastTrade",, "T"),3)="768","",RTD("cqg.rtd",,"StudyData",B61, "Bar",, "ContractOI", "D", "-2",,,,,"T")) -> 3952 | N61: =IF(LEFT(RTD("cqg.rtd", ,"ContractData",B61, "LastTrade",, "T"),3)="768","",IFERROR(IF(L61>M61,"+"&L61-M61,L61-M61)*1,"")) -> -1
A62: 7650 | B62: C.US.CLEJ267650 | C62: =IF(LEFT(RTD("cqg.rtd", ,"ContractData",B62, "LastTrade",, "T"),3)="768","",RTD("cqg.rtd", ,"ContractData",B62, "LastTrade",, "T")) -> 12.86 | D62: =IF(C62="","",RTD("cqg.rtd", ,"ContractData",B62, "NetLastTrade",, "T")) -> 0.03 | E62: =IF(LEFT(RTD("cqg.rtd", ,"ContractData",B62, "LastTrade",, "T"),3)="768","",RTD("cqg.rtd", ,"ContractData",B62, "MT_LastBidVolume",, "T")) -> 1 | F62: =IF(LEFT(RTD("cqg.rtd", ,"ContractData",B62, "LastTrade",, "T"),3)="768","",RTD("cqg.rtd", ,"ContractData",B62, "Bid",, "T")) -> 16.12 | G62: =IF(LEFT(RTD("cqg.rtd", ,"ContractData",B62, "LastTrade",, "T"),3)="768","",RTD("cqg.rtd", ,"ContractData",B62, "Ask",, "T")) -> 16.32 | H62: =IF(LEFT(RTD("cqg.rtd", ,"ContractData",B62, "LastTrade",, "T"),3)="768","",RTD("cqg.rtd", ,"ContractData",B62, "MT_LastAskVolume",, "T")) -> 1 | I62: =IF(LEFT(RTD("cqg.rtd", ,"ContractData",B62, "LastTrade",, "T"),3)="768","",RTD("cqg.rtd", ,"ContractData",B62, "T_CVol",, "T")) -> 0 | J62: =IF(LEFT(RTD("cqg.rtd", ,"ContractData",B62, "LastTrade",, "T"),3)="768","",RTD("cqg.rtd", ,"ContractData",B62, "Y_CVol",, "T")) -> 2 | K62: =IF(LEFT(RTD("cqg.rtd", ,"ContractData",B62, "LastTrade",, "T"),3)="768","",IFERROR(IF(I62>J62,"+"&I62-J62,I62-J62)*1,"")) -> -2 | L62: =IF(LEFT(RTD("cqg.rtd", ,"ContractData",B62, "LastTrade",, "T"),3)="768","",RTD("cqg.rtd",,"StudyData",B62, "Bar",, "ContractOI", "D", "-1",,,,,"T")) -> 876 | M62: =IF(LEFT(RTD("cqg.rtd", ,"ContractData",B62, "LastTrade",, "T"),3)="768","",RTD("cqg.rtd",,"StudyData",B62, "Bar",, "ContractOI", "D", "-2",,,,,"T")) -> 875 | N62: =IF(LEFT(RTD("cqg.rtd", ,"ContractData",B62, "LastTrade",, "T"),3)="768","",IFERROR(IF(L62>M62,"+"&L62-M62,L62-M62)*1,"")) -> 1
A63: 7700 | B63: C.US.CLEJ267700 | C63: =IF(LEFT(RTD("cqg.rtd", ,"ContractData",B63, "LastTrade",, "T"),3)="768","",RTD("cqg.rtd", ,"ContractData",B63, "LastTrade",, "T")) -> 12.24 | D63: =IF(C63="","",RTD("cqg.rtd", ,"ContractData",B63, "NetLastTrade",, "T")) -> -0.25 | E63: =IF(LEFT(RTD("cqg.rtd", ,"ContractData",B63, "LastTrade",, "T"),3)="768","",RTD("cqg.rtd", ,"ContractData",B63, "MT_LastBidVolume",, "T")) -> 1 | F63: =IF(LEFT(RTD("cqg.rtd", ,"ContractData",B63, "LastTrade",, "T"),3)="768","",RTD("cqg.rtd", ,"ContractData",B63, "Bid",, "T")) -> 15.72 | G63: =IF(LEFT(RTD("cqg.rtd", ,"ContractData",B63, "LastTrade",, "T"),3)="768","",RTD("cqg.rtd", ,"ContractData",B63, "Ask",, "T")) -> 15.91 | H63: =IF(LEFT(RTD("cqg.rtd", ,"ContractData",B63, "LastTrade",, "T"),3)="768","",RTD("cqg.rtd", ,"ContractData",B63, "MT_LastAskVolume",, "T")) -> 1 | I63: =IF(LEFT(RTD("cqg.rtd", ,"ContractData",B63, "LastTrade",, "T"),3)="768","",RTD("cqg.rtd", ,"ContractData",B63, "T_CVol",, "T")) -> 0 | J63: =IF(LEFT(RTD("cqg.rtd", ,"ContractData",B63, "LastTrade",, "T"),3)="768","",RTD("cqg.rtd", ,"ContractData",B63, "Y_CVol",, "T")) -> 125 | K63: =IF(LEFT(RTD("cqg.rtd", ,"ContractData",B63, "LastTrade",, "T"),3)="768","",IFERROR(IF(I63>J63,"+"&I63-J63,I63-J63)*1,"")) -> -125 | L63: =IF(LEFT(RTD("cqg.rtd", ,"ContractData",B63, "LastTrade",, "T"),3)="768","",RTD("cqg.rtd",,"StudyData",B63, "Bar",, "ContractOI", "D", "-1",,,,,"T")) -> 2799 | M63: =IF(LEFT(RTD("cqg.rtd", ,"ContractData",B63, "LastTrade",, "T"),3)="768","",RTD("cqg.rtd",,"StudyData",B63, "Bar",, "ContractOI", "D", "-2",,,,,"T")) -> 2900 | N63: =IF(LEFT(RTD("cqg.rtd", ,"ContractData",B63, "LastTrade",, "T"),3)="768","",IFERROR(IF(L63>M63,"+"&L63-M63,L63-M63)*1,"")) -> -101
A64: 7750 | B64: C.US.CLEJ267750 | C64: =IF(LEFT(RTD("cqg.rtd", ,"ContractData",B64, "LastTrade",, "T"),3)="768","",RTD("cqg.rtd", ,"ContractData",B64, "LastTrade",, "T")) -> 12.37 | D64: =IF(C64="","",RTD("cqg.rtd", ,"ContractData",B64, "NetLastTrade",, "T")) -> 0.21 | E64: =IF(LEFT(RTD("cqg.rtd", ,"ContractData",B64, "LastTrade",, "T"),3)="768","",RTD("cqg.rtd", ,"ContractData",B64, "MT_LastBidVolume",, "T")) -> 1 | F64: =IF(LEFT(RTD("cqg.rtd", ,"ContractData",B64, "LastTrade",, "T"),3)="768","",RTD("cqg.rtd", ,"ContractData",B64, "Bid",, "T")) -> 15.32 | G64: =IF(LEFT(RTD("cqg.rtd", ,"ContractData",B64, "LastTrade",, "T"),3)="768","",RTD("cqg.rtd", ,"ContractData",B64, "Ask",, "T")) -> 15.51 | H64: =IF(LEFT(RTD("cqg.rtd", ,"ContractData",B64, "LastTrade",, "T"),3)="768","",RTD("cqg.rtd", ,"ContractData",B64, "MT_LastAskVolume",, "T")) -> 1 | I64: =IF(LEFT(RTD("cqg.rtd", ,"ContractData",B64, "LastTrade",, "T"),3)="768","",RTD("cqg.rtd", ,"ContractData",B64, "T_CVol",, "T")) -> 0 | J64: =IF(LEFT(RTD("cqg.rtd", ,"ContractData",B64, "LastTrade",, "T"),3)="768","",RTD("cqg.rtd", ,"ContractData",B64, "Y_CVol",, "T")) -> 97 | K64: =IF(LEFT(RTD("cqg.rtd", ,"ContractData",B64, "LastTrade",, "T"),3)="768","",IFERROR(IF(I64>J64,"+"&I64-J64,I64-J64)*1,"")) -> -97 | L64: =IF(LEFT(RTD("cqg.rtd", ,"ContractData",B64, "LastTrade",, "T"),3)="768","",RTD("cqg.rtd",,"StudyData",B64, "Bar",, "ContractOI", "D", "-1",,,,,"T")) -> 922 | M64: =IF(LEFT(RTD("cqg.rtd", ,"ContractData",B64, "LastTrade",, "T"),3)="768","",RTD("cqg.rtd",,"StudyData",B64, "Bar",, "ContractOI", "D", "-2",,,,,"T")) -> 938 | N64: =IF(LEFT(RTD("cqg.rtd", ,"ContractData",B64, "LastTrade",, "T"),3)="768","",IFERROR(IF(L64>M64,"+"&L64-M64,L64-M64)*1,"")) -> -16
A65: 7800 | B65: C.US.CLEJ267800 | C65: =IF(LEFT(RTD("cqg.rtd", ,"ContractData",B65, "LastTrade",, "T"),3)="768","",RTD("cqg.rtd", ,"ContractData",B65, "LastTrade",, "T")) -> 11.98 | D65: =IF(C65="","",RTD("cqg.rtd", ,"ContractData",B65, "NetLastTrade",, "T")) -> 0.14 | E65: =IF(LEFT(RTD("cqg.rtd", ,"ContractData",B65, "LastTrade",, "T"),3)="768","",RTD("cqg.rtd", ,"ContractData",B65, "MT_LastBidVolume",, "T")) -> 1 | F65: =IF(LEFT(RTD("cqg.rtd", ,"ContractData",B65, "LastTrade",, "T"),3)="768","",RTD("cqg.rtd", ,"ContractData",B65, "Bid",, "T")) -> 14.92 | G65: =IF(LEFT(RTD("cqg.rtd", ,"ContractData",B65, "LastTrade",, "T"),3)="768","",RTD("cqg.rtd", ,"ContractData",B65, "Ask",, "T")) -> 15.12 | H65: =IF(LEFT(RTD("cqg.rtd", ,"ContractData",B65, "LastTrade",, "T"),3)="768","",RTD("cqg.rtd", ,"ContractData",B65, "MT_LastAskVolume",, "T")) -> 1 | I65: =IF(LEFT(RTD("cqg.rtd", ,"ContractData",B65, "LastTrade",, "T"),3)="768","",RTD("cqg.rtd", ,"ContractData",B65, "T_CVol",, "T")) -> 0 | J65: =IF(LEFT(RTD("cqg.rtd", ,"ContractData",B65, "LastTrade",, "T"),3)="768","",RTD("cqg.rtd", ,"ContractData",B65, "Y_CVol",, "T")) -> 13 | K65: =IF(LEFT(RTD("cqg.rtd", ,"ContractData",B65, "LastTrade",, "T"),3)="768","",IFERROR(IF(I65>J65,"+"&I65-J65,I65-J65)*1,"")) -> -13 | L65: =IF(LEFT(RTD("cqg.rtd", ,"ContractData",B65, "LastTrade",, "T"),3)="768","",RTD("cqg.rtd",,"StudyData",B65, "Bar",, "ContractOI", "D", "-1",,,,,"T")) -> 4008 | M65: =IF(LEFT(RTD("cqg.rtd", ,"ContractData",B65, "LastTrade",, "T"),3)="768","",RTD("cqg.rtd",,"StudyData",B65, "Bar",, "ContractOI", "D", "-2",,,,,"T")) -> 4016 | N65: =IF(LEFT(RTD("cqg.rtd", ,"ContractData",B65, "LastTrade",, "T"),3)="768","",IFERROR(IF(L65>M65,"+"&L65-M65,L65-M65)*1,"")) -> -8
A66: 7850 | B66: C.US.CLEJ267850 | C66: =IF(LEFT(RTD("cqg.rtd", ,"ContractData",B66, "LastTrade",, "T"),3)="768","",RTD("cqg.rtd", ,"ContractData",B66, "LastTrade",, "T")) -> 6.16 | D66: =IF(C66="","",RTD("cqg.rtd", ,"ContractData",B66, "NetLastTrade",, "T")) -> -5.36 | E66: =IF(LEFT(RTD("cqg.rtd", ,"ContractData",B66, "LastTrade",, "T"),3)="768","",RTD("cqg.rtd", ,"ContractData",B66, "MT_LastBidVolume",, "T")) -> 1 | F66: =IF(LEFT(RTD("cqg.rtd", ,"ContractData",B66, "LastTrade",, "T"),3)="768","",RTD("cqg.rtd", ,"ContractData",B66, "Bid",, "T")) -> 14.54 | G66: =IF(LEFT(RTD("cqg.rtd", ,"ContractData",B66, "LastTrade",, "T"),3)="768","",RTD("cqg.rtd", ,"ContractData",B66, "Ask",, "T")) -> 14.73 | H66: =IF(LEFT(RTD("cqg.rtd", ,"ContractData",B66, "LastTrade",, "T"),3)="768","",RTD("cqg.rtd", ,"ContractData",B66, "MT_LastAskVolume",, "T")) -> 1 | I66: =IF(LEFT(RTD("cqg.rtd", ,"ContractData",B66, "LastTrade",, "T"),3)="768","",RTD("cqg.rtd", ,"ContractData",B66, "T_CVol",, "T")) -> 0 | J66: =IF(LEFT(RTD("cqg.rtd", ,"ContractData",B66, "LastTrade",, "T"),3)="768","",RTD("cqg.rtd", ,"ContractData",B66, "Y_CVol",, "T")) -> 0 | K66: =IF(LEFT(RTD("cqg.rtd", ,"ContractData",B66, "LastTrade",, "T"),3)="768","",IFERROR(IF(I66>J66,"+"&I66-J66,I66-J66)*1,"")) -> 0 | L66: =IF(LEFT(RTD("cqg.rtd", ,"ContractData",B66, "LastTrade",, "T"),3)="768","",RTD("cqg.rtd",,"StudyData",B66, "Bar",, "ContractOI", "D", "-1",,,,,"T")) -> 604 | M66: =IF(LEFT(RTD("cqg.rtd", ,"ContractData",B66, "LastTrade",, "T"),3)="768","",RTD("cqg.rtd",,"StudyData",B66, "Bar",, "ContractOI", "D", "-2",,,,,"T")) -> 604 | N66: =IF(LEFT(RTD("cqg.rtd", ,"ContractData",B66, "LastTrade",, "T"),3)="768","",IFERROR(IF(L66>M66,"+"&L66-M66,L66-M66)*1,"")) -> 0
A67: 7900 | B67: C.US.CLEJ267900 | C67: =IF(LEFT(RTD("cqg.rtd", ,"ContractData",B67, "LastTrade",, "T"),3)="768","",RTD("cqg.rtd", ,"ContractData",B67, "LastTrade",, "T")) -> 11.73 | D67: =IF(C67="","",RTD("cqg.rtd", ,"ContractData",B67, "NetLastTrade",, "T")) -> 0.52 | E67: =IF(LEFT(RTD("cqg.rtd", ,"ContractData",B67, "LastTrade",, "T"),3)="768","",RTD("cqg.rtd", ,"ContractData",B67, "MT_LastBidVolume",, "T")) -> 2 | F67: =IF(LEFT(RTD("cqg.rtd", ,"ContractData",B67, "LastTrade",, "T"),3)="768","",RTD("cqg.rtd", ,"ContractData",B67, "Bid",, "T")) -> 14.16 | G67: =IF(LEFT(RTD("cqg.rtd", ,"ContractData",B67, "LastTrade",, "T"),3)="768","",RTD("cqg.rtd", ,"ContractData",B67, "Ask",, "T")) -> 14.35 | H67: =IF(LEFT(RTD("cqg.rtd", ,"ContractData",B67, "LastTrade",, "T"),3)="768","",RTD("cqg.rtd", ,"ContractData",B67, "MT_LastAskVolume",, "T")) -> 1 | I67: =IF(LEFT(RTD("cqg.rtd", ,"ContractData",B67, "LastTrade",, "T"),3)="768","",RTD("cqg.rtd", ,"ContractData",B67, "T_CVol",, "T")) -> 0 | J67: =IF(LEFT(RTD("cqg.rtd", ,"ContractData",B67, "LastTrade",, "T"),3)="768","",RTD("cqg.rtd", ,"ContractData",B67, "Y_CVol",, "T")) -> 8 | K67: =IF(LEFT(RTD("cqg.rtd", ,"ContractData",B67, "LastTrade",, "T"),3)="768","",IFERROR(IF(I67>J67,"+"&I67-J67,I67-J67)*1,"")) -> -8 | L67: =IF(LEFT(RTD("cqg.rtd", ,"ContractData",B67, "LastTrade",, "T"),3)="768","",RTD("cqg.rtd",,"StudyData",B67, "Bar",, "ContractOI", "D", "-1",,,,,"T")) -> 1382 | M67: =IF(LEFT(RTD("cqg.rtd", ,"ContractData",B67, "LastTrade",, "T"),3)="768","",RTD("cqg.rtd",,"StudyData",B67, "Bar",, "ContractOI", "D", "-2",,,,,"T")) -> 1380 | N67: =IF(LEFT(RTD("cqg.rtd", ,"ContractData",B67, "LastTrade",, "T"),3)="768","",IFERROR(IF(L67>M67,"+"&L67-M67,L67-M67)*1,"")) -> 2
A68: 7950 | B68: C.US.CLEJ267950 | C68: =IF(LEFT(RTD("cqg.rtd", ,"ContractData",B68, "LastTrade",, "T"),3)="768","",RTD("cqg.rtd", ,"ContractData",B68, "LastTrade",, "T")) -> 10.78 | D68: =IF(C68="","",RTD("cqg.rtd", ,"ContractData",B68, "NetLastTrade",, "T")) -> -0.13 | E68: =IF(LEFT(RTD("cqg.rtd", ,"ContractData",B68, "LastTrade",, "T"),3)="768","",RTD("cqg.rtd", ,"ContractData",B68, "MT_LastBidVolume",, "T")) -> 1 | F68: =IF(LEFT(RTD("cqg.rtd", ,"ContractData",B68, "LastTrade",, "T"),3)="768","",RTD("cqg.rtd", ,"ContractData",B68, "Bid",, "T")) -> 13.82 | G68: =IF(LEFT(RTD("cqg.rtd", ,"ContractData",B68, "LastTrade",, "T"),3)="768","",RTD("cqg.rtd", ,"ContractData",B68, "Ask",, "T")) -> 13.98 | H68: =IF(LEFT(RTD("cqg.rtd", ,"ContractData",B68, "LastTrade",, "T"),3)="768","",RTD("cqg.rtd", ,"ContractData",B68, "MT_LastAskVolume",, "T")) -> 1 | I68: =IF(LEFT(RTD("cqg.rtd", ,"ContractData",B68, "LastTrade",, "T"),3)="768","",RTD("cqg.rtd", ,"ContractData",B68, "T_CVol",, "T")) -> 0 | J68: =IF(LEFT(RTD("cqg.rtd", ,"ContractData",B68, "LastTrade",, "T"),3)="768","",RTD("cqg.rtd", ,"ContractData",B68, "Y_CVol",, "T")) -> 4 | K68: =IF(LEFT(RTD("cqg.rtd", ,"ContractData",B68, "LastTrade",, "T"),3)="768","",IFERROR(IF(I68>J68,"+"&I68-J68,I68-J68)*1,"")) -> -4 | L68: =IF(LEFT(RTD("cqg.rtd", ,"ContractData",B68, "LastTrade",, "T"),3)="768","",RTD("cqg.rtd",,"StudyData",B68, "Bar",, "ContractOI", "D", "-1",,,,,"T")) -> 654 | M68: =IF(LEFT(RTD("cqg.rtd", ,"ContractData",B68, "LastTrade",, "T"),3)="768","",RTD("cqg.rtd",,"StudyData",B68, "Bar",, "ContractOI", "D", "-2",,,,,"T")) -> 652 | N68: =IF(LEFT(RTD("cqg.rtd", ,"ContractData",B68, "LastTrade",, "T"),3)="768","",IFERROR(IF(L68>M68,"+"&L68-M68,L68-M68)*1,"")) -> 2
A69: 8000 | B69: C.US.CLEJ268000 | C69: =IF(LEFT(RTD("cqg.rtd", ,"ContractData",B69, "LastTrade",, "T"),3)="768","",RTD("cqg.rtd", ,"ContractData",B69, "LastTrade",, "T")) -> 13.96 | D69: =IF(C69="","",RTD("cqg.rtd", ,"ContractData",B69, "NetLastTrade",, "T")) -> 3.34 | E69: =IF(LEFT(RTD("cqg.rtd", ,"ContractData",B69, "LastTrade",, "T"),3)="768","",RTD("cqg.rtd", ,"ContractData",B69, "MT_LastBidVolume",, "T")) -> 1 | F69: =IF(LEFT(RTD("cqg.rtd", ,"ContractData",B69, "LastTrade",, "T"),3)="768","",RTD("cqg.rtd", ,"ContractData",B69, "Bid",, "T")) -> 13.46 | G69: =IF(LEFT(RTD("cqg.rtd", ,"ContractData",B69, "LastTrade",, "T"),3)="768","",RTD("cqg.rtd", ,"ContractData",B69, "Ask",, "T")) -> 13.62 | H69: =IF(LEFT(RTD("cqg.rtd", ,"ContractData",B69, "LastTrade",, "T"),3)="768","",RTD("cqg.rtd", ,"ContractData",B69, "MT_LastAskVolume",, "T")) -> 1 | I69: =IF(LEFT(RTD("cqg.rtd", ,"ContractData",B69, "LastTrade",, "T"),3)="768","",RTD("cqg.rtd", ,"ContractData",B69, "T_CVol",, "T")) -> 311 | J69: =IF(LEFT(RTD("cqg.rtd", ,"ContractData",B69, "LastTrade",, "T"),3)="768","",RTD("cqg.rtd", ,"ContractData",B69, "Y_CVol",, "T")) -> 1372 | K69: =IF(LEFT(RTD("cqg.rtd", ,"ContractData",B69, "LastTrade",, "T"),3)="768","",IFERROR(IF(I69>J69,"+"&I69-J69,I69-J69)*1,"")) -> -1061 | L69: =IF(LEFT(RTD("cqg.rtd", ,"ContractData",B69, "LastTrade",, "T"),3)="768","",RTD("cqg.rtd",,"StudyData",B69, "Bar",, "ContractOI", "D", "-1",,,,,"T")) -> 35441 | M69: =IF(LEFT(RTD("cqg.rtd", ,"ContractData",B69, "LastTrade",, "T"),3)="768","",RTD("cqg.rtd",,"StudyData",B69, "Bar",, "ContractOI", "D", "-2",,,,,"T")) -> 35635 | N69: =IF(LEFT(RTD("cqg.rtd", ,"ContractData",B69, "LastTrade",, "T"),3)="768","",IFERROR(IF(L69>M69,"+"&L69-M69,L69-M69)*1,"")) -> -194
A70: 8050 | B70: C.US.CLEJ268050 | C70: =IF(LEFT(RTD("cqg.rtd", ,"ContractData",B70, "LastTrade",, "T"),3)="768","",RTD("cqg.rtd", ,"ContractData",B70, "LastTrade",, "T")) -> 11.4 | D70: =IF(C70="","",RTD("cqg.rtd", ,"ContractData",B70, "NetLastTrade",, "T")) -> 1.07 | E70: =IF(LEFT(RTD("cqg.rtd", ,"ContractData",B70, "LastTrade",, "T"),3)="768","",RTD("cqg.rtd", ,"ContractData",B70, "MT_LastBidVolume",, "T")) -> 1 | F70: =IF(LEFT(RTD("cqg.rtd", ,"ContractData",B70, "LastTrade",, "T"),3)="768","",RTD("cqg.rtd", ,"ContractData",B70, "Bid",, "T")) -> 13.08 | G70: =IF(LEFT(RTD("cqg.rtd", ,"ContractData",B70, "LastTrade",, "T"),3)="768","",RTD("cqg.rtd", ,"ContractData",B70, "Ask",, "T")) -> 13.26 | H70: =IF(LEFT(RTD("cqg.rtd", ,"ContractData",B70, "LastTrade",, "T"),3)="768","",RTD("cqg.rtd", ,"ContractData",B70, "MT_LastAskVolume",, "T")) -> 1 | I70: =IF(LEFT(RTD("cqg.rtd", ,"ContractData",B70, "LastTrade",, "T"),3)="768","",RTD("cqg.rtd", ,"ContractData",B70, "T_CVol",, "T")) -> 0 | J70: =IF(LEFT(RTD("cqg.rtd", ,"ContractData",B70, "LastTrade",, "T"),3)="768","",RTD("cqg.rtd", ,"ContractData",B70, "Y_CVol",, "T")) -> 2 | K70: =IF(LEFT(RTD("cqg.rtd", ,"ContractData",B70, "LastTrade",, "T"),3)="768","",IFERROR(IF(I70>J70,"+"&I70-J70,I70-J70)*1,"")) -> -2 | L70: =IF(LEFT(RTD("cqg.rtd", ,"ContractData",B70, "LastTrade",, "T"),3)="768","",RTD("cqg.rtd",,"StudyData",B70, "Bar",, "ContractOI", "D", "-1",,,,,"T")) -> 706 | M70: =IF(LEFT(RTD("cqg.rtd", ,"ContractData",B70, "LastTrade",, "T"),3)="768","",RTD("cqg.rtd",,"StudyData",B70, "Bar",, "ContractOI", "D", "-2",,,,,"T")) -> 706 | N70: =IF(LEFT(RTD("cqg.rtd", ,"ContractData",B70, "LastTrade",, "T"),3)="768","",IFERROR(IF(L70>M70,"+"&L70-M70,L70-M70)*1,"")) -> 0
A71: 8100 | B71: C.US.CLEJ268100 | C71: =IF(LEFT(RTD("cqg.rtd", ,"ContractData",B71, "LastTrade",, "T"),3)="768","",RTD("cqg.rtd", ,"ContractData",B71, "LastTrade",, "T")) -> 11.02 | D71: =IF(C71="","",RTD("cqg.rtd", ,"ContractData",B71, "NetLastTrade",, "T")) -> 0.97 | E71: =IF(LEFT(RTD("cqg.rtd", ,"ContractData",B71, "LastTrade",, "T"),3)="768","",RTD("cqg.rtd", ,"ContractData",B71, "MT_LastBidVolume",, "T")) -> 1 | F71: =IF(LEFT(RTD("cqg.rtd", ,"ContractData",B71, "LastTrade",, "T"),3)="768","",RTD("cqg.rtd", ,"ContractData",B71, "Bid",, "T")) -> 12.77 | G71: =IF(LEFT(RTD("cqg.rtd", ,"ContractData",B71, "LastTrade",, "T"),3)="768","",RTD("cqg.rtd", ,"ContractData",B71, "Ask",, "T")) -> 12.92 | H71: =IF(LEFT(RTD("cqg.rtd", ,"ContractData",B71, "LastTrade",, "T"),3)="768","",RTD("cqg.rtd", ,"ContractData",B71, "MT_LastAskVolume",, "T")) -> 1 | I71: =IF(LEFT(RTD("cqg.rtd", ,"ContractData",B71, "LastTrade",, "T"),3)="768","",RTD("cqg.rtd", ,"ContractData",B71, "T_CVol",, "T")) -> 0 | J71: =IF(LEFT(RTD("cqg.rtd", ,"ContractData",B71, "LastTrade",, "T"),3)="768","",RTD("cqg.rtd", ,"ContractData",B71, "Y_CVol",, "T")) -> 83 | K71: =IF(LEFT(RTD("cqg.rtd", ,"ContractData",B71, "LastTrade",, "T"),3)="768","",IFERROR(IF(I71>J71,"+"&I71-J71,I71-J71)*1,"")) -> -83 | L71: =IF(LEFT(RTD("cqg.rtd", ,"ContractData",B71, "LastTrade",, "T"),3)="768","",RTD("cqg.rtd",,"StudyData",B71, "Bar",, "ContractOI", "D", "-1",,,,,"T")) -> 1937 | M71: =IF(LEFT(RTD("cqg.rtd", ,"ContractData",B71, "LastTrade",, "T"),3)="768","",RTD("cqg.rtd",,"StudyData",B71, "Bar",, "ContractOI", "D", "-2",,,,,"T")) -> 1938 | N71: =IF(LEFT(RTD("cqg.rtd", ,"ContractData",B71, "LastTrade",, "T"),3)="768","",IFERROR(IF(L71>M71,"+"&L71-M71,L71-M71)*1,"")) -> -1
A72: 8150 | B72: C.US.CLEJ268150 | C72: =IF(LEFT(RTD("cqg.rtd", ,"ContractData",B72, "LastTrade",, "T"),3)="768","",RTD("cqg.rtd", ,"ContractData",B72, "LastTrade",, "T")) -> 14.15 | D72: =IF(C72="","",RTD("cqg.rtd", ,"ContractData",B72, "NetLastTrade",, "T")) -> 4.37 | E72: =IF(LEFT(RTD("cqg.rtd", ,"ContractData",B72, "LastTrade",, "T"),3)="768","",RTD("cqg.rtd", ,"ContractData",B72, "MT_LastBidVolume",, "T")) -> 1 | F72: =IF(LEFT(RTD("cqg.rtd", ,"ContractData",B72, "LastTrade",, "T"),3)="768","",RTD("cqg.rtd", ,"ContractData",B72, "Bid",, "T")) -> 12.43 | G72: =IF(LEFT(RTD("cqg.rtd", ,"ContractData",B72, "LastTrade",, "T"),3)="768","",RTD("cqg.rtd", ,"ContractData",B72, "Ask",, "T")) -> 12.58 | H72: =IF(LEFT(RTD("cqg.rtd", ,"ContractData",B72, "LastTrade",, "T"),3)="768","",RTD("cqg.rtd", ,"ContractData",B72, "MT_LastAskVolume",, "T")) -> 1 | I72: =IF(LEFT(RTD("cqg.rtd", ,"ContractData",B72, "LastTrade",, "T"),3)="768","",RTD("cqg.rtd", ,"ContractData",B72, "T_CVol",, "T")) -> 1 | J72: =IF(LEFT(RTD("cqg.rtd", ,"ContractData",B72, "LastTrade",, "T"),3)="768","",RTD("cqg.rtd", ,"ContractData",B72, "Y_CVol",, "T")) -> 74 | K72: =IF(LEFT(RTD("cqg.rtd", ,"ContractData",B72, "LastTrade",, "T"),3)="768","",IFERROR(IF(I72>J72,"+"&I72-J72,I72-J72)*1,"")) -> -73 | L72: =IF(LEFT(RTD("cqg.rtd", ,"ContractData",B72, "LastTrade",, "T"),3)="768","",RTD("cqg.rtd",,"StudyData",B72, "Bar",, "ContractOI", "D", "-1",,,,,"T")) -> 631 | M72: =IF(LEFT(RTD("cqg.rtd", ,"ContractData",B72, "LastTrade",, "T"),3)="768","",RTD("cqg.rtd",,"StudyData",B72, "Bar",, "ContractOI", "D", "-2",,,,,"T")) -> 703 | N72: =IF(LEFT(RTD("cqg.rtd", ,"ContractData",B72, "LastTrade",, "T"),3)="768","",IFERROR(IF(L72>M72,"+"&L72-M72,L72-M72)*1,"")) -> -72
A73: 8200 | B73: C.US.CLEJ268200 | C73: =IF(LEFT(RTD("cqg.rtd", ,"ContractData",B73, "LastTrade",, "T"),3)="768","",RTD("cqg.rtd", ,"ContractData",B73, "LastTrade",, "T")) -> 14.45 | D73: =IF(C73="","",RTD("cqg.rtd", ,"ContractData",B73, "NetLastTrade",, "T")) -> 4.94 | E73: =IF(LEFT(RTD("cqg.rtd", ,"ContractData",B73, "LastTrade",, "T"),3)="768","",RTD("cqg.rtd", ,"ContractData",B73, "MT_LastBidVolume",, "T")) -> 1 | F73: =IF(LEFT(RTD("cqg.rtd", ,"ContractData",B73, "LastTrade",, "T"),3)="768","",RTD("cqg.rtd", ,"ContractData",B73, "Bid",, "T")) -> 12.1 | G73: =IF(LEFT(RTD("cqg.rtd", ,"ContractData",B73, "LastTrade",, "T"),3)="768","",RTD("cqg.rtd", ,"ContractData",B73, "Ask",, "T")) -> 12.24 | H73: =IF(LEFT(RTD("cqg.rtd", ,"ContractData",B73, "LastTrade",, "T"),3)="768","",RTD("cqg.rtd", ,"ContractData",B73, "MT_LastAskVolume",, "T")) -> 1 | I73: =IF(LEFT(RTD("cqg.rtd", ,"ContractData",B73, "LastTrade",, "T"),3)="768","",RTD("cqg.rtd", ,"ContractData",B73, "T_CVol",, "T")) -> 9 | J73: =IF(LEFT(RTD("cqg.rtd", ,"ContractData",B73, "LastTrade",, "T"),3)="768","",RTD("cqg.rtd", ,"ContractData",B73, "Y_CVol",, "T")) -> 51 | K73: =IF(LEFT(RTD("cqg.rtd", ,"ContractData",B73, "LastTrade",, "T"),3)="768","",IFERROR(IF(I73>J73,"+"&I73-J73,I73-J73)*1,"")) -> -42 | L73: =IF(LEFT(RTD("cqg.rtd", ,"ContractData",B73, "LastTrade",, "T"),3)="768","",RTD("cqg.rtd",,"StudyData",B73, "Bar",, "ContractOI", "D", "-1",,,,,"T")) -> 4731 | M73: =IF(LEFT(RTD("cqg.rtd", ,"ContractData",B73, "LastTrade",, "T"),3)="768","",RTD("cqg.rtd",,"StudyData",B73, "Bar",, "ContractOI", "D", "-2",,,,,"T")) -> 4746 | N73: =IF(LEFT(RTD("cqg.rtd", ,"ContractData",B73, "LastTrade",, "T"),3)="768","",IFERROR(IF(L73>M73,"+"&L73-M73,L73-M73)*1,"")) -> -15
A74: 8250 | B74: C.US.CLEJ268250 | C74: =IF(LEFT(RTD("cqg.rtd", ,"ContractData",B74, "LastTrade",, "T"),3)="768","",RTD("cqg.rtd", ,"ContractData",B74, "LastTrade",, "T")) -> 11.32 | D74: =IF(C74="","",RTD("cqg.rtd", ,"ContractData",B74, "NetLastTrade",, "T")) -> 2.07 | E74: =IF(LEFT(RTD("cqg.rtd", ,"ContractData",B74, "LastTrade",, "T"),3)="768","",RTD("cqg.rtd", ,"ContractData",B74, "MT_LastBidVolume",, "T")) -> 3 | F74: =IF(LEFT(RTD("cqg.rtd", ,"ContractData",B74, "LastTrade",, "T"),3)="768","",RTD("cqg.rtd", ,"ContractData",B74, "Bid",, "T")) -> 11.77 | G74: =IF(LEFT(RTD("cqg.rtd", ,"ContractData",B74, "LastTrade",, "T"),3)="768","",RTD("cqg.rtd", ,"ContractData",B74, "Ask",, "T")) -> 11.92 | H74: =IF(LEFT(RTD("cqg.rtd", ,"ContractData",B74, "LastTrade",, "T"),3)="768","",RTD("cqg.rtd", ,"ContractData",B74, "MT_LastAskVolume",, "T")) -> 2 | I74: =IF(LEFT(RTD("cqg.rtd", ,"ContractData",B74, "LastTrade",, "T"),3)="768","",RTD("cqg.rtd", ,"ContractData",B74, "T_CVol",, "T")) -> 1 | J74: =IF(LEFT(RTD("cqg.rtd", ,"ContractData",B74, "LastTrade",, "T"),3)="768","",RTD("cqg.rtd", ,"ContractData",B74, "Y_CVol",, "T")) -> 59 | K74: =IF(LEFT(RTD("cqg.rtd", ,"ContractData",B74, "LastTrade",, "T"),3)="768","",IFERROR(IF(I74>J74,"+"&I74-J74,I74-J74)*1,"")) -> -58 | L74: =IF(LEFT(RTD("cqg.rtd", ,"ContractData",B74, "LastTrade",, "T"),3)="768","",RTD("cqg.rtd",,"StudyData",B74, "Bar",, "ContractOI", "D", "-1",,,,,"T")) -> 547 | M74: =IF(LEFT(RTD("cqg.rtd", ,"ContractData",B74, "LastTrade",, "T"),3)="768","",RTD("cqg.rtd",,"StudyData",B74, "Bar",, "ContractOI", "D", "-2",,,,,"T")) -> 547 | N74: =IF(LEFT(RTD("cqg.rtd", ,"ContractData",B74, "LastTrade",, "T"),3)="768","",IFERROR(IF(L74>M74,"+"&L74-M74,L74-M74)*1,"")) -> 0
A75: 8300 | B75: C.US.CLEJ268300 | C75: =IF(LEFT(RTD("cqg.rtd", ,"ContractData",B75, "LastTrade",, "T"),3)="768","",RTD("cqg.rtd", ,"ContractData",B75, "LastTrade",, "T")) -> 8.95 | D75: =IF(C75="","",RTD("cqg.rtd", ,"ContractData",B75, "NetLastTrade",, "T")) -> -0.05 | E75: =IF(LEFT(RTD("cqg.rtd", ,"ContractData",B75, "LastTrade",, "T"),3)="768","",RTD("cqg.rtd", ,"ContractData",B75, "MT_LastBidVolume",, "T")) -> 1 | F75: =IF(LEFT(RTD("cqg.rtd", ,"ContractData",B75, "LastTrade",, "T"),3)="768","",RTD("cqg.rtd", ,"ContractData",B75, "Bid",, "T")) -> 11.47 | G75: =IF(LEFT(RTD("cqg.rtd", ,"ContractData",B75, "LastTrade",, "T"),3)="768","",RTD("cqg.rtd", ,"ContractData",B75, "Ask",, "T")) -> 11.6 | H75: =IF(LEFT(RTD("cqg.rtd", ,"ContractData",B75, "LastTrade",, "T"),3)="768","",RTD("cqg.rtd", ,"ContractData",B75, "MT_LastAskVolume",, "T")) -> 1 | I75: =IF(LEFT(RTD("cqg.rtd", ,"ContractData",B75, "LastTrade",, "T"),3)="768","",RTD("cqg.rtd", ,"ContractData",B75, "T_CVol",, "T")) -> 1 | J75: =IF(LEFT(RTD("cqg.rtd", ,"ContractData",B75, "LastTrade",, "T"),3)="768","",RTD("cqg.rtd", ,"ContractData",B75, "Y_CVol",, "T")) -> 224 | K75: =IF(LEFT(RTD("cqg.rtd", ,"ContractData",B75, "LastTrade",, "T"),3)="768","",IFERROR(IF(I75>J75,"+"&I75-J75,I75-J75)*1,"")) -> -223 | L75: =IF(LEFT(RTD("cqg.rtd", ,"ContractData",B75, "LastTrade",, "T"),3)="768","",RTD("cqg.rtd",,"StudyData",B75, "Bar",, "ContractOI", "D", "-1",,,,,"T")) -> 1390 | M75: =IF(LEFT(RTD("cqg.rtd", ,"ContractData",B75, "LastTrade",, "T"),3)="768","",RTD("cqg.rtd",,"StudyData",B75, "Bar",, "ContractOI", "D", "-2",,,,,"T")) -> 1387 | N75: =IF(LEFT(RTD("cqg.rtd", ,"ContractData",B75, "LastTrade",, "T"),3)="768","",IFERROR(IF(L75>M75,"+"&L75-M75,L75-M75)*1,"")) -> 3
A76: 8350 | B76: C.US.CLEJ268350 | C76: =IF(LEFT(RTD("cqg.rtd", ,"ContractData",B76, "LastTrade",, "T"),3)="768","",RTD("cqg.rtd", ,"ContractData",B76, "LastTrade",, "T")) -> 8.07 | D76: =IF(C76="","",RTD("cqg.rtd", ,"ContractData",B76, "NetLastTrade",, "T")) -> -0.68 | E76: =IF(LEFT(RTD("cqg.rtd", ,"ContractData",B76, "LastTrade",, "T"),3)="768","",RTD("cqg.rtd", ,"ContractData",B76, "MT_LastBidVolume",, "T")) -> 1 | F76: =IF(LEFT(RTD("cqg.rtd", ,"ContractData",B76, "LastTrade",, "T"),3)="768","",RTD("cqg.rtd", ,"ContractData",B76, "Bid",, "T")) -> 11.16 | G76: =IF(LEFT(RTD("cqg.rtd", ,"ContractData",B76, "LastTrade",, "T"),3)="768","",RTD("cqg.rtd", ,"ContractData",B76, "Ask",, "T")) -> 11.3 | H76: =IF(LEFT(RTD("cqg.rtd", ,"ContractData",B76, "LastTrade",, "T"),3)="768","",RTD("cqg.rtd", ,"ContractData",B76, "MT_LastAskVolume",, "T")) -> 2 | I76: =IF(LEFT(RTD("cqg.rtd", ,"ContractData",B76, "LastTrade",, "T"),3)="768","",RTD("cqg.rtd", ,"ContractData",B76, "T_CVol",, "T")) -> 1 | J76: =IF(LEFT(RTD("cqg.rtd", ,"ContractData",B76, "LastTrade",, "T"),3)="768","",RTD("cqg.rtd", ,"ContractData",B76, "Y_CVol",, "T")) -> 9 | K76: =IF(LEFT(RTD("cqg.rtd", ,"ContractData",B76, "LastTrade",, "T"),3)="768","",IFERROR(IF(I76>J76,"+"&I76-J76,I76-J76)*1,"")) -> -8 | L76: =IF(LEFT(RTD("cqg.rtd", ,"ContractData",B76, "LastTrade",, "T"),3)="768","",RTD("cqg.rtd",,"StudyData",B76, "Bar",, "ContractOI", "D", "-1",,,,,"T")) -> 710 | M76: =IF(LEFT(RTD("cqg.rtd", ,"ContractData",B76, "LastTrade",, "T"),3)="768","",RTD("cqg.rtd",,"StudyData",B76, "Bar",, "ContractOI", "D", "-2",,,,,"T")) -> 708 | N76: =IF(LEFT(RTD("cqg.rtd", ,"ContractData",B76, "LastTrade",, "T"),3)="768","",IFERROR(IF(L76>M76,"+"&L76-M76,L76-M76)*1,"")) -> 2
A77: 8400 | B77: C.US.CLEJ268400 | C77: =IF(LEFT(RTD("cqg.rtd", ,"ContractData",B77, "LastTrade",, "T"),3)="768","",RTD("cqg.rtd", ,"ContractData",B77, "LastTrade",, "T")) -> 13.39 | D77: =IF(C77="","",RTD("cqg.rtd", ,"ContractData",B77, "NetLastTrade",, "T")) -> 4.88 | E77: =IF(LEFT(RTD("cqg.rtd", ,"ContractData",B77, "LastTrade",, "T"),3)="768","",RTD("cqg.rtd", ,"ContractData",B77, "MT_LastBidVolume",, "T")) -> 2 | F77: =IF(LEFT(RTD("cqg.rtd", ,"ContractData",B77, "LastTrade",, "T"),3)="768","",RTD("cqg.rtd", ,"ContractData",B77, "Bid",, "T")) -> 10.86 | G77: =IF(LEFT(RTD("cqg.rtd", ,"ContractData",B77, "LastTrade",, "T"),3)="768","",RTD("cqg.rtd", ,"ContractData",B77, "Ask",, "T")) -> 11 | H77: =IF(LEFT(RTD("cqg.rtd", ,"ContractData",B77, "LastTrade",, "T"),3)="768","",RTD("cqg.rtd", ,"ContractData",B77, "MT_LastAskVolume",, "T")) -> 2 | I77: =IF(LEFT(RTD("cqg.rtd", ,"ContractData",B77, "LastTrade",, "T"),3)="768","",RTD("cqg.rtd", ,"ContractData",B77, "T_CVol",, "T")) -> 2 | J77: =IF(LEFT(RTD("cqg.rtd", ,"ContractData",B77, "LastTrade",, "T"),3)="768","",RTD("cqg.rtd", ,"ContractData",B77, "Y_CVol",, "T")) -> 214 | K77: =IF(LEFT(RTD("cqg.rtd", ,"ContractData",B77, "LastTrade",, "T"),3)="768","",IFERROR(IF(I77>J77,"+"&I77-J77,I77-J77)*1,"")) -> -212 | L77: =IF(LEFT(RTD("cqg.rtd", ,"ContractData",B77, "LastTrade",, "T"),3)="768","",RTD("cqg.rtd",,"StudyData",B77, "Bar",, "ContractOI", "D", "-1",,,,,"T")) -> 1641 | M77: =IF(LEFT(RTD("cqg.rtd", ,"ContractData",B77, "LastTrade",, "T"),3)="768","",RTD("cqg.rtd",,"StudyData",B77, "Bar",, "ContractOI", "D", "-2",,,,,"T")) -> 1649 | N77: =IF(LEFT(RTD("cqg.rtd", ,"ContractData",B77, "LastTrade",, "T"),3)="768","",IFERROR(IF(L77>M77,"+"&L77-M77,L77-M77)*1,"")) -> -8
A78: =A79-$A$7 -> 8450 | B78: =LEFT(B79,FIND(A79,B79)-1)&A78 -> C.US.CLEJ268450 | C78: =IF(LEFT(RTD("cqg.rtd", ,"ContractData",B78, "LastTrade",, "T"),3)="768","",RTD("cqg.rtd", ,"ContractData",B78, "LastTrade",, "T")) -> 8.73 | D78: =IF(C78="","",RTD("cqg.rtd", ,"ContractData",B78, "NetLastTrade",, "T")) -> 0.46 | E78: =IF(LEFT(RTD("cqg.rtd", ,"ContractData",B78, "LastTrade",, "T"),3)="768","",RTD("cqg.rtd", ,"ContractData",B78, "MT_LastBidVolume",, "T")) -> 1 | F78: =IF(LEFT(RTD("cqg.rtd", ,"ContractData",B78, "LastTrade",, "T"),3)="768","",RTD("cqg.rtd", ,"ContractData",B78, "Bid",, "T")) -> 10.57 | G78: =IF(LEFT(RTD("cqg.rtd", ,"ContractData",B78, "LastTrade",, "T"),3)="768","",RTD("cqg.rtd", ,"ContractData",B78, "Ask",, "T")) -> 10.7 | H78: =IF(LEFT(RTD("cqg.rtd", ,"ContractData",B78, "LastTrade",, "T"),3)="768","",RTD("cqg.rtd", ,"ContractData",B78, "MT_LastAskVolume",, "T")) -> 1 | I78: =IF(LEFT(RTD("cqg.rtd", ,"ContractData",B78, "LastTrade",, "T"),3)="768","",RTD("cqg.rtd", ,"ContractData",B78, "T_CVol",, "T")) -> 0 | J78: =IF(LEFT(RTD("cqg.rtd", ,"ContractData",B78, "LastTrade",, "T"),3)="768","",RTD("cqg.rtd", ,"ContractData",B78, "Y_CVol",, "T")) -> 22 | K78: =IF(LEFT(RTD("cqg.rtd", ,"ContractData",B78, "LastTrade",, "T"),3)="768","",IFERROR(IF(I78>J78,"+"&I78-J78,I78-J78)*1,"")) -> -22 | L78: =IF(LEFT(RTD("cqg.rtd", ,"ContractData",B78, "LastTrade",, "T"),3)="768","",RTD("cqg.rtd",,"StudyData",B78, "Bar",, "ContractOI", "D", "-1",,,,,"T")) -> 267 | M78: =IF(LEFT(RTD("cqg.rtd", ,"ContractData",B78, "LastTrade",, "T"),3)="768","",RTD("cqg.rtd",,"StudyData",B78, "Bar",, "ContractOI", "D", "-2",,,,,"T")) -> 266 | N78: =IF(LEFT(RTD("cqg.rtd", ,"ContractData",B78, "LastTrade",, "T"),3)="768","",IFERROR(IF(L78>M78,"+"&L78-M78,L78-M78)*1,"")) -> 1
A79: =A80-$A$7 -> 8500 | B79: C.US.CLEJ268500 | C79: =IF(LEFT(RTD("cqg.rtd", ,"ContractData",B79, "LastTrade",, "T"),3)="768","",RTD("cqg.rtd", ,"ContractData",B79, "LastTrade",, "T")) -> 10.35 | D79: =IF(C79="","",RTD("cqg.rtd", ,"ContractData",B79, "NetLastTrade",, "T")) -> 2.3 | E79: =IF(LEFT(RTD("cqg.rtd", ,"ContractData",B79, "LastTrade",, "T"),3)="768","",RTD("cqg.rtd", ,"ContractData",B79, "MT_LastBidVolume",, "T")) -> 2 | F79: =IF(LEFT(RTD("cqg.rtd", ,"ContractData",B79, "LastTrade",, "T"),3)="768","",RTD("cqg.rtd", ,"ContractData",B79, "Bid",, "T")) -> 10.27 | G79: =IF(LEFT(RTD("cqg.rtd", ,"ContractData",B79, "LastTrade",, "T"),3)="768","",RTD("cqg.rtd", ,"ContractData",B79, "Ask",, "T")) -> 10.42 | H79: =IF(LEFT(RTD("cqg.rtd", ,"ContractData",B79, "LastTrade",, "T"),3)="768","",RTD("cqg.rtd", ,"ContractData",B79, "MT_LastAskVolume",, "T")) -> 2 | I79: =IF(LEFT(RTD("cqg.rtd", ,"ContractData",B79, "LastTrade",, "T"),3)="768","",RTD("cqg.rtd", ,"ContractData",B79, "T_CVol",, "T")) -> 205 | J79: =IF(LEFT(RTD("cqg.rtd", ,"ContractData",B79, "LastTrade",, "T"),3)="768","",RTD("cqg.rtd", ,"ContractData",B79, "Y_CVol",, "T")) -> 1238 | K79: =IF(LEFT(RTD("cqg.rtd", ,"ContractData",B79, "LastTrade",, "T"),3)="768","",IFERROR(IF(I79>J79,"+"&I79-J79,I79-J79)*1,"")) -> -1033 | L79: =IF(LEFT(RTD("cqg.rtd", ,"ContractData",B79, "LastTrade",, "T"),3)="768","",RTD("cqg.rtd",,"StudyData",B79, "Bar",, "ContractOI", "D", "-1",,,,,"T")) -> 36667 | M79: =IF(LEFT(RTD("cqg.rtd", ,"ContractData",B79, "LastTrade",, "T"),3)="768","",RTD("cqg.rtd",,"StudyData",B79, "Bar",, "ContractOI", "D", "-2",,,,,"T")) -> 36716 | N79: =IF(LEFT(RTD("cqg.rtd", ,"ContractData",B79, "LastTrade",, "T"),3)="768","",IFERROR(IF(L79>M79,"+"&L79-M79,L79-M79)*1,"")) -> -49
A80: 8550 | B80: C.US.CLEJ268550 | C80: =IF(LEFT(RTD("cqg.rtd", ,"ContractData",B80, "LastTrade",, "T"),3)="768","",RTD("cqg.rtd", ,"ContractData",B80, "LastTrade",, "T")) -> 7.97 | D80: =IF(C80="","",RTD("cqg.rtd", ,"ContractData",B80, "NetLastTrade",, "T")) -> 0.13 | E80: =IF(LEFT(RTD("cqg.rtd", ,"ContractData",B80, "LastTrade",, "T"),3)="768","",RTD("cqg.rtd", ,"ContractData",B80, "MT_LastBidVolume",, "T")) -> 3 | F80: =IF(LEFT(RTD("cqg.rtd", ,"ContractData",B80, "LastTrade",, "T"),3)="768","",RTD("cqg.rtd", ,"ContractData",B80, "Bid",, "T")) -> 10.01 | G80: =IF(LEFT(RTD("cqg.rtd", ,"ContractData",B80, "LastTrade",, "T"),3)="768","",RTD("cqg.rtd", ,"ContractData",B80, "Ask",, "T")) -> 10.14 | H80: =IF(LEFT(RTD("cqg.rtd", ,"ContractData",B80, "LastTrade",, "T"),3)="768","",RTD("cqg.rtd", ,"ContractData",B80, "MT_LastAskVolume",, "T")) -> 2 | I80: =IF(LEFT(RTD("cqg.rtd", ,"ContractData",B80, "LastTrade",, "T"),3)="768","",RTD("cqg.rtd", ,"ContractData",B80, "T_CVol",, "T")) -> 1 | J80: =IF(LEFT(RTD("cqg.rtd", ,"ContractData",B80, "LastTrade",, "T"),3)="768","",RTD("cqg.rtd", ,"ContractData",B80, "Y_CVol",, "T")) -> 17 | K80: =IF(LEFT(RTD("cqg.rtd", ,"ContractData",B80, "LastTrade",, "T"),3)="768","",IFERROR(IF(I80>J80,"+"&I80-J80,I80-J80)*1,"")) -> -16 | L80: =IF(LEFT(RTD("cqg.rtd", ,"ContractData",B80, "LastTrade",, "T"),3)="768","",RTD("cqg.rtd",,"StudyData",B80, "Bar",, "ContractOI", "D", "-1",,,,,"T")) -> 709 | M80: =IF(LEFT(RTD("cqg.rtd", ,"ContractData",B80, "LastTrade",, "T"),3)="768","",RTD("cqg.rtd",,"StudyData",B80, "Bar",, "ContractOI", "D", "-2",,,,,"T")) -> 712 | N80: =IF(LEFT(RTD("cqg.rtd", ,"ContractData",B80, "LastTrade",, "T"),3)="768","",IFERROR(IF(L80>M80,"+"&L80-M80,L80-M80)*1,"")) -> -3
A81: 8600 | B81: C.US.CLEJ268600 | C81: =IF(LEFT(RTD("cqg.rtd", ,"ContractData",B81, "LastTrade",, "T"),3)="768","",RTD("cqg.rtd", ,"ContractData",B81, "LastTrade",, "T")) -> 9.11 | D81: =IF(C81="","",RTD("cqg.rtd", ,"ContractData",B81, "NetLastTrade",, "T")) -> 1.48 | E81: =IF(LEFT(RTD("cqg.rtd", ,"ContractData",B81, "LastTrade",, "T"),3)="768","",RTD("cqg.rtd", ,"ContractData",B81, "MT_LastBidVolume",, "T")) -> 1 | F81: =IF(LEFT(RTD("cqg.rtd", ,"ContractData",B81, "LastTrade",, "T"),3)="768","",RTD("cqg.rtd", ,"ContractData",B81, "Bid",, "T")) -> 9.75 | G81: =IF(LEFT(RTD("cqg.rtd", ,"ContractData",B81, "LastTrade",, "T"),3)="768","",RTD("cqg.rtd", ,"ContractData",B81, "Ask",, "T")) -> 9.87 | H81: =IF(LEFT(RTD("cqg.rtd", ,"ContractData",B81, "LastTrade",, "T"),3)="768","",RTD("cqg.rtd", ,"ContractData",B81, "MT_LastAskVolume",, "T")) -> 1 | I81: =IF(LEFT(RTD("cqg.rtd", ,"ContractData",B81, "LastTrade",, "T"),3)="768","",RTD("cqg.rtd", ,"ContractData",B81, "T_CVol",, "T")) -> 39 | J81: =IF(LEFT(RTD("cqg.rtd", ,"ContractData",B81, "LastTrade",, "T"),3)="768","",RTD("cqg.rtd", ,"ContractData",B81, "Y_CVol",, "T")) -> 132 | K81: =IF(LEFT(RTD("cqg.rtd", ,"ContractData",B81, "LastTrade",, "T"),3)="768","",IFERROR(IF(I81>J81,"+"&I81-J81,I81-J81)*1,"")) -> -93 | L81: =IF(LEFT(RTD("cqg.rtd", ,"ContractData",B81, "LastTrade",, "T"),3)="768","",RTD("cqg.rtd",,"StudyData",B81, "Bar",, "ContractOI", "D", "-1",,,,,"T")) -> 697 | M81: =IF(LEFT(RTD("cqg.rtd", ,"ContractData",B81, "LastTrade",, "T"),3)="768","",RTD("cqg.rtd",,"StudyData",B81, "Bar",, "ContractOI", "D", "-2",,,,,"T")) -> 711 | N81: =IF(LEFT(RTD("cqg.rtd", ,"ContractData",B81, "LastTrade",, "T"),3)="768","",IFERROR(IF(L81>M81,"+"&L81-M81,L81-M81)*1,"")) -> -14
A82: 8650 | B82: C.US.CLEJ268650 | C82: =IF(LEFT(RTD("cqg.rtd", ,"ContractData",B82, "LastTrade",, "T"),3)="768","",RTD("cqg.rtd", ,"ContractData",B82, "LastTrade",, "T")) -> 7.97 | D82: =IF(C82="","",RTD("cqg.rtd", ,"ContractData",B82, "NetLastTrade",, "T")) -> 0.54 | E82: =IF(LEFT(RTD("cqg.rtd", ,"ContractData",B82, "LastTrade",, "T"),3)="768","",RTD("cqg.rtd", ,"ContractData",B82, "MT_LastBidVolume",, "T")) -> 1 | F82: =IF(LEFT(RTD("cqg.rtd", ,"ContractData",B82, "LastTrade",, "T"),3)="768","",RTD("cqg.rtd", ,"ContractData",B82, "Bid",, "T")) -> 9.48 | G82: =IF(LEFT(RTD("cqg.rtd", ,"ContractData",B82, "LastTrade",, "T"),3)="768","",RTD("cqg.rtd", ,"ContractData",B82, "Ask",, "T")) -> 9.61 | H82: =IF(LEFT(RTD("cqg.rtd", ,"ContractData",B82, "LastTrade",, "T"),3)="768","",RTD("cqg.rtd", ,"ContractData",B82, "MT_LastAskVolume",, "T")) -> 2 | I82: =IF(LEFT(RTD("cqg.rtd", ,"ContractData",B82, "LastTrade",, "T"),3)="768","",RTD("cqg.rtd", ,"ContractData",B82, "T_CVol",, "T")) -> 0 | J82: =IF(LEFT(RTD("cqg.rtd", ,"ContractData",B82, "LastTrade",, "T"),3)="768","",RTD("cqg.rtd", ,"ContractData",B82, "Y_CVol",, "T")) -> 104 | K82: =IF(LEFT(RTD("cqg.rtd", ,"ContractData",B82, "LastTrade",, "T"),3)="768","",IFERROR(IF(I82>J82,"+"&I82-J82,I82-J82)*1,"")) -> -104 | L82: =IF(LEFT(RTD("cqg.rtd", ,"ContractData",B82, "LastTrade",, "T"),3)="768","",RTD("cqg.rtd",,"StudyData",B82, "Bar",, "ContractOI", "D", "-1",,,,,"T")) -> 1565 | M82: =IF(LEFT(RTD("cqg.rtd", ,"ContractData",B82, "LastTrade",, "T"),3)="768","",RTD("cqg.rtd",,"StudyData",B82, "Bar",, "ContractOI", "D", "-2",,,,,"T")) -> 1566 | N82: =IF(LEFT(RTD("cqg.rtd", ,"ContractData",B82, "LastTrade",, "T"),3)="768","",IFERROR(IF(L82>M82,"+"&L82-M82,L82-M82)*1,"")) -> -1
A83: 8700 | B83: C.US.CLEJ268700 | C83: =IF(LEFT(RTD("cqg.rtd", ,"ContractData",B83, "LastTrade",, "T"),3)="768","",RTD("cqg.rtd", ,"ContractData",B83, "LastTrade",, "T")) -> 9.1 | D83: =IF(C83="","",RTD("cqg.rtd", ,"ContractData",B83, "NetLastTrade",, "T")) -> 1.86 | E83: =IF(LEFT(RTD("cqg.rtd", ,"ContractData",B83, "LastTrade",, "T"),3)="768","",RTD("cqg.rtd", ,"ContractData",B83, "MT_LastBidVolume",, "T")) -> 2 | F83: =IF(LEFT(RTD("cqg.rtd", ,"ContractData",B83, "LastTrade",, "T"),3)="768","",RTD("cqg.rtd", ,"ContractData",B83, "Bid",, "T")) -> 9.23 | G83: =IF(LEFT(RTD("cqg.rtd", ,"ContractData",B83, "LastTrade",, "T"),3)="768","",RTD("cqg.rtd", ,"ContractData",B83, "Ask",, "T")) -> 9.35 | H83: =IF(LEFT(RTD("cqg.rtd", ,"ContractData",B83, "LastTrade",, "T"),3)="768","",RTD("cqg.rtd", ,"ContractData",B83, "MT_LastAskVolume",, "T")) -> 1 | I83: =IF(LEFT(RTD("cqg.rtd", ,"ContractData",B83, "LastTrade",, "T"),3)="768","",RTD("cqg.rtd", ,"ContractData",B83, "T_CVol",, "T")) -> 50 | J83: =IF(LEFT(RTD("cqg.rtd", ,"ContractData",B83, "LastTrade",, "T"),3)="768","",RTD("cqg.rtd", ,"ContractData",B83, "Y_CVol",, "T")) -> 268 | K83: =IF(LEFT(RTD("cqg.rtd", ,"ContractData",B83, "LastTrade",, "T"),3)="768","",IFERROR(IF(I83>J83,"+"&I83-J83,I83-J83)*1,"")) -> -218 | L83: =IF(LEFT(RTD("cqg.rtd", ,"ContractData",B83, "LastTrade",, "T"),3)="768","",RTD("cqg.rtd",,"StudyData",B83, "Bar",, "ContractOI", "D", "-1",,,,,"T")) -> 1618 | M83: =IF(LEFT(RTD("cqg.rtd", ,"ContractData",B83, "LastTrade",, "T"),3)="768","",RTD("cqg.rtd",,"StudyData",B83, "Bar",, "ContractOI", "D", "-2",,,,,"T")) -> 1674 | N83: =IF(LEFT(RTD("cqg.rtd", ,"ContractData",B83, "LastTrade",, "T"),3)="768","",IFERROR(IF(L83>M83,"+"&L83-M83,L83-M83)*1,"")) -> -56
A84: 8750 | B84: C.US.CLEJ268750 | C84: =IF(LEFT(RTD("cqg.rtd", ,"ContractData",B84, "LastTrade",, "T"),3)="768","",RTD("cqg.rtd", ,"ContractData",B84, "LastTrade",, "T")) -> 11.26 | D84: =IF(C84="","",RTD("cqg.rtd", ,"ContractData",B84, "NetLastTrade",, "T")) -> 4.19 | E84: =IF(LEFT(RTD("cqg.rtd", ,"ContractData",B84, "LastTrade",, "T"),3)="768","",RTD("cqg.rtd", ,"ContractData",B84, "MT_LastBidVolume",, "T")) -> 2 | F84: =IF(LEFT(RTD("cqg.rtd", ,"ContractData",B84, "LastTrade",, "T"),3)="768","",RTD("cqg.rtd", ,"ContractData",B84, "Bid",, "T")) -> 8.97 | G84: =IF(LEFT(RTD("cqg.rtd", ,"ContractData",B84, "LastTrade",, "T"),3)="768","",RTD("cqg.rtd", ,"ContractData",B84, "Ask",, "T")) -> 9.1 | H84: =IF(LEFT(RTD("cqg.rtd", ,"ContractData",B84, "LastTrade",, "T"),3)="768","",RTD("cqg.rtd", ,"ContractData",B84, "MT_LastAskVolume",, "T")) -> 4 | I84: =IF(LEFT(RTD("cqg.rtd", ,"ContractData",B84, "LastTrade",, "T"),3)="768","",RTD("cqg.rtd", ,"ContractData",B84, "T_CVol",, "T")) -> 17 | J84: =IF(LEFT(RTD("cqg.rtd", ,"ContractData",B84, "LastTrade",, "T"),3)="768","",RTD("cqg.rtd", ,"ContractData",B84, "Y_CVol",, "T")) -> 64 | K84: =IF(LEFT(RTD("cqg.rtd", ,"ContractData",B84, "LastTrade",, "T"),3)="768","",IFERROR(IF(I84>J84,"+"&I84-J84,I84-J84)*1,"")) -> -47 | L84: =IF(LEFT(RTD("cqg.rtd", ,"ContractData",B84, "LastTrade",, "T"),3)="768","",RTD("cqg.rtd",,"StudyData",B84, "Bar",, "ContractOI", "D", "-1",,,,,"T")) -> 552 | M84: =IF(LEFT(RTD("cqg.rtd", ,"ContractData",B84, "LastTrade",, "T"),3)="768","",RTD("cqg.rtd",,"StudyData",B84, "Bar",, "ContractOI", "D", "-2",,,,,"T")) -> 549 | N84: =IF(LEFT(RTD("cqg.rtd", ,"ContractData",B84, "LastTrade",, "T"),3)="768","",IFERROR(IF(L84>M84,"+"&L84-M84,L84-M84)*1,"")) -> 3
A85: 8800 | B85: C.US.CLEJ268800 | C85: =IF(LEFT(RTD("cqg.rtd", ,"ContractData",B85, "LastTrade",, "T"),3)="768","",RTD("cqg.rtd", ,"ContractData",B85, "LastTrade",, "T")) -> 8.41 | D85: =IF(C85="","",RTD("cqg.rtd", ,"ContractData",B85, "NetLastTrade",, "T")) -> 1.52 | E85: =IF(LEFT(RTD("cqg.rtd", ,"ContractData",B85, "LastTrade",, "T"),3)="768","",RTD("cqg.rtd", ,"ContractData",B85, "MT_LastBidVolume",, "T")) -> 2 | F85: =IF(LEFT(RTD("cqg.rtd", ,"ContractData",B85, "LastTrade",, "T"),3)="768","",RTD("cqg.rtd", ,"ContractData",B85, "Bid",, "T")) -> 8.73 | G85: =IF(LEFT(RTD("cqg.rtd", ,"ContractData",B85, "LastTrade",, "T"),3)="768","",RTD("cqg.rtd", ,"ContractData",B85, "Ask",, "T")) -> 8.86 | H85: =IF(LEFT(RTD("cqg.rtd", ,"ContractData",B85, "LastTrade",, "T"),3)="768","",RTD("cqg.rtd", ,"ContractData",B85, "MT_LastAskVolume",, "T")) -> 7 | I85: =IF(LEFT(RTD("cqg.rtd", ,"ContractData",B85, "LastTrade",, "T"),3)="768","",RTD("cqg.rtd", ,"ContractData",B85, "T_CVol",, "T")) -> 27 | J85: =IF(LEFT(RTD("cqg.rtd", ,"ContractData",B85, "LastTrade",, "T"),3)="768","",RTD("cqg.rtd", ,"ContractData",B85, "Y_CVol",, "T")) -> 2086 | K85: =IF(LEFT(RTD("cqg.rtd", ,"ContractData",B85, "LastTrade",, "T"),3)="768","",IFERROR(IF(I85>J85,"+"&I85-J85,I85-J85)*1,"")) -> -2059 | L85: =IF(LEFT(RTD("cqg.rtd", ,"ContractData",B85, "LastTrade",, "T"),3)="768","",RTD("cqg.rtd",,"StudyData",B85, "Bar",, "ContractOI", "D", "-1",,,,,"T")) -> 2788 | M85: =IF(LEFT(RTD("cqg.rtd", ,"ContractData",B85, "LastTrade",, "T"),3)="768","",RTD("cqg.rtd",,"StudyData",B85, "Bar",, "ContractOI", "D", "-2",,,,,"T")) -> 1639 | N85: =IF(LEFT(RTD("cqg.rtd", ,"ContractData",B85, "LastTrade",, "T"),3)="768","",IFERROR(IF(L85>M85,"+"&L85-M85,L85-M85)*1,"")) -> 1149
A86: 8850 | B86: C.US.CLEJ268850 | C86: =IF(LEFT(RTD("cqg.rtd", ,"ContractData",B86, "LastTrade",, "T"),3)="768","",RTD("cqg.rtd", ,"ContractData",B86, "LastTrade",, "T")) -> 11.02 | D86: =IF(C86="","",RTD("cqg.rtd", ,"ContractData",B86, "NetLastTrade",, "T")) -> 4.31 | E86: =IF(LEFT(RTD("cqg.rtd", ,"ContractData",B86, "LastTrade",, "T"),3)="768","",RTD("cqg.rtd", ,"ContractData",B86, "MT_LastBidVolume",, "T")) -> 4 | F86: =IF(LEFT(RTD("cqg.rtd", ,"ContractData",B86, "LastTrade",, "T"),3)="768","",RTD("cqg.rtd", ,"ContractData",B86, "Bid",, "T")) -> 8.5 | G86: =IF(LEFT(RTD("cqg.rtd", ,"ContractData",B86, "LastTrade",, "T"),3)="768","",RTD("cqg.rtd", ,"ContractData",B86, "Ask",, "T")) -> 8.62 | H86: =IF(LEFT(RTD("cqg.rtd", ,"ContractData",B86, "LastTrade",, "T"),3)="768","",RTD("cqg.rtd", ,"ContractData",B86, "MT_LastAskVolume",, "T")) -> 9 | I86: =IF(LEFT(RTD("cqg.rtd", ,"ContractData",B86, "LastTrade",, "T"),3)="768","",RTD("cqg.rtd", ,"ContractData",B86, "T_CVol",, "T")) -> 5 | J86: =IF(LEFT(RTD("cqg.rtd", ,"ContractData",B86, "LastTrade",, "T"),3)="768","",RTD("cqg.rtd", ,"ContractData",B86, "Y_CVol",, "T")) -> 264 | K86: =IF(LEFT(RTD("cqg.rtd", ,"ContractData",B86, "LastTrade",, "T"),3)="768","",IFERROR(IF(I86>J86,"+"&I86-J86,I86-J86)*1,"")) -> -259 | L86: =IF(LEFT(RTD("cqg.rtd", ,"ContractData",B86, "LastTrade",, "T"),3)="768","",RTD("cqg.rtd",,"StudyData",B86, "Bar",, "ContractOI", "D", "-1",,,,,"T")) -> 1422 | M86: =IF(LEFT(RTD("cqg.rtd", ,"ContractData",B86, "LastTrade",, "T"),3)="768","",RTD("cqg.rtd",,"StudyData",B86, "Bar",, "ContractOI", "D", "-2",,,,,"T")) -> 1247 | N86: =IF(LEFT(RTD("cqg.rtd", ,"ContractData",B86, "LastTrade",, "T"),3)="768","",IFERROR(IF(L86>M86,"+"&L86-M86,L86-M86)*1,"")) -> 175
A87: 8900 | B87: C.US.CLEJ268900 | C87: =IF(LEFT(RTD("cqg.rtd", ,"ContractData",B87, "LastTrade",, "T"),3)="768","",RTD("cqg.rtd", ,"ContractData",B87, "LastTrade",, "T")) -> 8.22 | D87: =IF(C87="","",RTD("cqg.rtd", ,"ContractData",B87, "NetLastTrade",, "T")) -> 1.7 | E87: =IF(LEFT(RTD("cqg.rtd", ,"ContractData",B87, "LastTrade",, "T"),3)="768","",RTD("cqg.rtd", ,"ContractData",B87, "MT_LastBidVolume",, "T")) -> 4 | F87: =IF(LEFT(RTD("cqg.rtd", ,"ContractData",B87, "LastTrade",, "T"),3)="768","",RTD("cqg.rtd", ,"ContractData",B87, "Bid",, "T")) -> 8.27 | G87: =IF(LEFT(RTD("cqg.rtd", ,"ContractData",B87, "LastTrade",, "T"),3)="768","",RTD("cqg.rtd", ,"ContractData",B87, "Ask",, "T")) -> 8.39 | H87: =IF(LEFT(RTD("cqg.rtd", ,"ContractData",B87, "LastTrade",, "T"),3)="768","",RTD("cqg.rtd", ,"ContractData",B87, "MT_LastAskVolume",, "T")) -> 13 | I87: =IF(LEFT(RTD("cqg.rtd", ,"ContractData",B87, "LastTrade",, "T"),3)="768","",RTD("cqg.rtd", ,"ContractData",B87, "T_CVol",, "T")) -> 33 | J87: =IF(LEFT(RTD("cqg.rtd", ,"ContractData",B87, "LastTrade",, "T"),3)="768","",RTD("cqg.rtd", ,"ContractData",B87, "Y_CVol",, "T")) -> 279 | K87: =IF(LEFT(RTD("cqg.rtd", ,"ContractData",B87, "LastTrade",, "T"),3)="768","",IFERROR(IF(I87>J87,"+"&I87-J87,I87-J87)*1,"")) -> -246 | L87: =IF(LEFT(RTD("cqg.rtd", ,"ContractData",B87, "LastTrade",, "T"),3)="768","",RTD("cqg.rtd",,"StudyData",B87, "Bar",, "ContractOI", "D", "-1",,,,,"T")) -> 3187 | M87: =IF(LEFT(RTD("cqg.rtd", ,"ContractData",B87, "LastTrade",, "T"),3)="768","",RTD("cqg.rtd",,"StudyData",B87, "Bar",, "ContractOI", "D", "-2",,,,,"T")) -> 3080 | N87: =IF(LEFT(RTD("cqg.rtd", ,"ContractData",B87, "LastTrade",, "T"),3)="768","",IFERROR(IF(L87>M87,"+"&L87-M87,L87-M87)*1,"")) -> 107
A88: 8950 | B88: C.US.CLEJ268950 | C88: =IF(LEFT(RTD("cqg.rtd", ,"ContractData",B88, "LastTrade",, "T"),3)="768","",RTD("cqg.rtd", ,"ContractData",B88, "LastTrade",, "T")) -> 7.95 | D88: =IF(C88="","",RTD("cqg.rtd", ,"ContractData",B88, "NetLastTrade",, "T")) -> 1.61 | E88: =IF(LEFT(RTD("cqg.rtd", ,"ContractData",B88, "LastTrade",, "T"),3)="768","",RTD("cqg.rtd", ,"ContractData",B88, "MT_LastBidVolume",, "T")) -> 7 | F88: =IF(LEFT(RTD("cqg.rtd", ,"ContractData",B88, "LastTrade",, "T"),3)="768","",RTD("cqg.rtd", ,"ContractData",B88, "Bid",, "T")) -> 8.04 | G88: =IF(LEFT(RTD("cqg.rtd", ,"ContractData",B88, "LastTrade",, "T"),3)="768","",RTD("cqg.rtd", ,"ContractData",B88, "Ask",, "T")) -> 8.17 | H88: =IF(LEFT(RTD("cqg.rtd", ,"ContractData",B88, "LastTrade",, "T"),3)="768","",RTD("cqg.rtd", ,"ContractData",B88, "MT_LastAskVolume",, "T")) -> 28 | I88: =IF(LEFT(RTD("cqg.rtd", ,"ContractData",B88, "LastTrade",, "T"),3)="768","",RTD("cqg.rtd", ,"ContractData",B88, "T_CVol",, "T")) -> 5 | J88: =IF(LEFT(RTD("cqg.rtd", ,"ContractData",B88, "LastTrade",, "T"),3)="768","",RTD("cqg.rtd", ,"ContractData",B88, "Y_CVol",, "T")) -> 37 | K88: =IF(LEFT(RTD("cqg.rtd", ,"ContractData",B88, "LastTrade",, "T"),3)="768","",IFERROR(IF(I88>J88,"+"&I88-J88,I88-J88)*1,"")) -> -32 | L88: =IF(LEFT(RTD("cqg.rtd", ,"ContractData",B88, "LastTrade",, "T"),3)="768","",RTD("cqg.rtd",,"StudyData",B88, "Bar",, "ContractOI", "D", "-1",,,,,"T")) -> 257 | M88: =IF(LEFT(RTD("cqg.rtd", ,"ContractData",B88, "LastTrade",, "T"),3)="768","",RTD("cqg.rtd",,"StudyData",B88, "Bar",, "ContractOI", "D", "-2",,,,,"T")) -> 243 | N88: =IF(LEFT(RTD("cqg.rtd", ,"ContractData",B88, "LastTrade",, "T"),3)="768","",IFERROR(IF(L88>M88,"+"&L88-M88,L88-M88)*1,"")) -> 14
A89: 9000 | B89: C.US.CLEJ269000 | C89: =IF(LEFT(RTD("cqg.rtd", ,"ContractData",B89, "LastTrade",, "T"),3)="768","",RTD("cqg.rtd", ,"ContractData",B89, "LastTrade",, "T")) -> 8 | D89: =IF(C89="","",RTD("cqg.rtd", ,"ContractData",B89, "NetLastTrade",, "T")) -> 1.84 | E89: =IF(LEFT(RTD("cqg.rtd", ,"ContractData",B89, "LastTrade",, "T"),3)="768","",RTD("cqg.rtd", ,"ContractData",B89, "MT_LastBidVolume",, "T")) -> 6 | F89: =IF(LEFT(RTD("cqg.rtd", ,"ContractData",B89, "LastTrade",, "T"),3)="768","",RTD("cqg.rtd", ,"ContractData",B89, "Bid",, "T")) -> 7.82 | G89: =IF(LEFT(RTD("cqg.rtd", ,"ContractData",B89, "LastTrade",, "T"),3)="768","",RTD("cqg.rtd", ,"ContractData",B89, "Ask",, "T")) -> 7.95 | H89: =IF(LEFT(RTD("cqg.rtd", ,"ContractData",B89, "LastTrade",, "T"),3)="768","",RTD("cqg.rtd", ,"ContractData",B89, "MT_LastAskVolume",, "T")) -> 30 | I89: =IF(LEFT(RTD("cqg.rtd", ,"ContractData",B89, "LastTrade",, "T"),3)="768","",RTD("cqg.rtd", ,"ContractData",B89, "T_CVol",, "T")) -> 737 | J89: =IF(LEFT(RTD("cqg.rtd", ,"ContractData",B89, "LastTrade",, "T"),3)="768","",RTD("cqg.rtd", ,"ContractData",B89, "Y_CVol",, "T")) -> 4784 | K89: =IF(LEFT(RTD("cqg.rtd", ,"ContractData",B89, "LastTrade",, "T"),3)="768","",IFERROR(IF(I89>J89,"+"&I89-J89,I89-J89)*1,"")) -> -4047 | L89: =IF(LEFT(RTD("cqg.rtd", ,"ContractData",B89, "LastTrade",, "T"),3)="768","",RTD("cqg.rtd",,"StudyData",B89, "Bar",, "ContractOI", "D", "-1",,,,,"T")) -> 15969 | M89: =IF(LEFT(RTD("cqg.rtd", ,"ContractData",B89, "LastTrade",, "T"),3)="768","",RTD("cqg.rtd",,"StudyData",B89, "Bar",, "ContractOI", "D", "-2",,,,,"T")) -> 15562 | N89: =IF(LEFT(RTD("cqg.rtd", ,"ContractData",B89, "LastTrade",, "T"),3)="768","",IFERROR(IF(L89>M89,"+"&L89-M89,L89-M89)*1,"")) -> 407
A90: 9050 | B90: C.US.CLEJ269050 | C90: =IF(LEFT(RTD("cqg.rtd", ,"ContractData",B90, "LastTrade",, "T"),3)="768","",RTD("cqg.rtd", ,"ContractData",B90, "LastTrade",, "T")) -> 7.8 | D90: =IF(C90="","",RTD("cqg.rtd", ,"ContractData",B90, "NetLastTrade",, "T")) -> 1.82 | E90: =IF(LEFT(RTD("cqg.rtd", ,"ContractData",B90, "LastTrade",, "T"),3)="768","",RTD("cqg.rtd", ,"ContractData",B90, "MT_LastBidVolume",, "T")) -> 22 | F90: =IF(LEFT(RTD("cqg.rtd", ,"ContractData",B90, "LastTrade",, "T"),3)="768","",RTD("cqg.rtd", ,"ContractData",B90, "Bid",, "T")) -> 7.6 | G90: =IF(LEFT(RTD("cqg.rtd", ,"ContractData",B90, "LastTrade",, "T"),3)="768","",RTD("cqg.rtd", ,"ContractData",B90, "Ask",, "T")) -> 7.73 | H90: =IF(LEFT(RTD("cqg.rtd", ,"ContractData",B90, "LastTrade",, "T"),3)="768","",RTD("cqg.rtd", ,"ContractData",B90, "MT_LastAskVolume",, "T")) -> 23 | I90: =IF(LEFT(RTD("cqg.rtd", ,"ContractData",B90, "LastTrade",, "T"),3)="768","",RTD("cqg.rtd", ,"ContractData",B90, "T_CVol",, "T")) -> 10 | J90: =IF(LEFT(RTD("cqg.rtd", ,"ContractData",B90, "LastTrade",, "T"),3)="768","",RTD("cqg.rtd", ,"ContractData",B90, "Y_CVol",, "T")) -> 76 | K90: =IF(LEFT(RTD("cqg.rtd", ,"ContractData",B90, "LastTrade",, "T"),3)="768","",IFERROR(IF(I90>J90,"+"&I90-J90,I90-J90)*1,"")) -> -66 | L90: =IF(LEFT(RTD("cqg.rtd", ,"ContractData",B90, "LastTrade",, "T"),3)="768","",RTD("cqg.rtd",,"StudyData",B90, "Bar",, "ContractOI", "D", "-1",,,,,"T")) -> 458 | M90: =IF(LEFT(RTD("cqg.rtd", ,"ContractData",B90, "LastTrade",, "T"),3)="768","",RTD("cqg.rtd",,"StudyData",B90, "Bar",, "ContractOI", "D", "-2",,,,,"T")) -> 439 | N90: =IF(LEFT(RTD("cqg.rtd", ,"ContractData",B90, "LastTrade",, "T"),3)="768","",IFERROR(IF(L90>M90,"+"&L90-M90,L90-M90)*1,"")) -> 19
A91: 9100 | B91: =LEFT(B92,FIND(A92,B92)-1)&A91 -> C.US.CLEJ269100 | C91: =IF(LEFT(RTD("cqg.rtd", ,"ContractData",B91, "LastTrade",, "T"),3)="768","",RTD("cqg.rtd", ,"ContractData",B91, "LastTrade",, "T")) -> 7.11 | D91: =IF(C91="","",RTD("cqg.rtd", ,"ContractData",B91, "NetLastTrade",, "T")) -> 1.29 | E91: =IF(LEFT(RTD("cqg.rtd", ,"ContractData",B91, "LastTrade",, "T"),3)="768","",RTD("cqg.rtd", ,"ContractData",B91, "MT_LastBidVolume",, "T")) -> 6 | F91: =IF(LEFT(RTD("cqg.rtd", ,"ContractData",B91, "LastTrade",, "T"),3)="768","",RTD("cqg.rtd", ,"ContractData",B91, "Bid",, "T")) -> 7.4 | G91: =IF(LEFT(RTD("cqg.rtd", ,"ContractData",B91, "LastTrade",, "T"),3)="768","",RTD("cqg.rtd", ,"ContractData",B91, "Ask",, "T")) -> 7.52 | H91: =IF(LEFT(RTD("cqg.rtd", ,"ContractData",B91, "LastTrade",, "T"),3)="768","",RTD("cqg.rtd", ,"ContractData",B91, "MT_LastAskVolume",, "T")) -> 21 | I91: =IF(LEFT(RTD("cqg.rtd", ,"ContractData",B91, "LastTrade",, "T"),3)="768","",RTD("cqg.rtd", ,"ContractData",B91, "T_CVol",, "T")) -> 98 | J91: =IF(LEFT(RTD("cqg.rtd", ,"ContractData",B91, "LastTrade",, "T"),3)="768","",RTD("cqg.rtd", ,"ContractData",B91, "Y_CVol",, "T")) -> 340 | K91: =IF(LEFT(RTD("cqg.rtd", ,"ContractData",B91, "LastTrade",, "T"),3)="768","",IFERROR(IF(I91>J91,"+"&I91-J91,I91-J91)*1,"")) -> -242 | L91: =IF(LEFT(RTD("cqg.rtd", ,"ContractData",B91, "LastTrade",, "T"),3)="768","",RTD("cqg.rtd",,"StudyData",B91, "Bar",, "ContractOI", "D", "-1",,,,,"T")) -> 1008 | M91: =IF(LEFT(RTD("cqg.rtd", ,"ContractData",B91, "LastTrade",, "T"),3)="768","",RTD("cqg.rtd",,"StudyData",B91, "Bar",, "ContractOI", "D", "-2",,,,,"T")) -> 1008 | N91: =IF(LEFT(RTD("cqg.rtd", ,"ContractData",B91, "LastTrade",, "T"),3)="768","",IFERROR(IF(L91>M91,"+"&L91-M91,L91-M91)*1,"")) -> 0
A92: =RTD("cqg.rtd", ,"ContractData",B92, "Strike",, "T") -> 9150 | B92: =A1 -> C.US.CLEJ269150 | C92: =IF(LEFT(RTD("cqg.rtd", ,"ContractData",B92, "LastTrade",, "T"),3)="768","",RTD("cqg.rtd", ,"ContractData",B92, "LastTrade",, "T")) -> 7.12 | D92: =IF(C92="","",RTD("cqg.rtd", ,"ContractData",B92, "NetLastTrade",, "T")) -> 1.46 | E92: =IF(LEFT(RTD("cqg.rtd", ,"ContractData",B92, "LastTrade",, "T"),3)="768","",RTD("cqg.rtd", ,"ContractData",B92, "MT_LastBidVolume",, "T")) -> 6 | F92: =IF(LEFT(RTD("cqg.rtd", ,"ContractData",B92, "LastTrade",, "T"),3)="768","",RTD("cqg.rtd", ,"ContractData",B92, "Bid",, "T")) -> 7.2 | G92: =IF(LEFT(RTD("cqg.rtd", ,"ContractData",B92, "LastTrade",, "T"),3)="768","",RTD("cqg.rtd", ,"ContractData",B92, "Ask",, "T")) -> 7.32 | H92: =IF(LEFT(RTD("cqg.rtd", ,"ContractData",B92, "LastTrade",, "T"),3)="768","",RTD("cqg.rtd", ,"ContractData",B92, "MT_LastAskVolume",, "T")) -> 4 | I92: =IF(LEFT(RTD("cqg.rtd", ,"ContractData",B92, "LastTrade",, "T"),3)="768","",RTD("cqg.rtd", ,"ContractData",B92, "T_CVol",, "T")) -> 36 | J92: =IF(LEFT(RTD("cqg.rtd", ,"ContractData",B92, "LastTrade",, "T"),3)="768","",RTD("cqg.rtd", ,"ContractData",B92, "Y_CVol",, "T")) -> 76 | K92: =IF(LEFT(RTD("cqg.rtd", ,"ContractData",B92, "LastTrade",, "T"),3)="768","",IFERROR(IF(I92>J92,"+"&I92-J92,I92-J92)*1,"")) -> -40 | L92: =IF(LEFT(RTD("cqg.rtd", ,"ContractData",B92, "LastTrade",, "T"),3)="768","",RTD("cqg.rtd",,"StudyData",B92, "Bar",, "ContractOI", "D", "-1",,,,,"T")) -> 289 | M92: =IF(LEFT(RTD("cqg.rtd", ,"ContractData",B92, "LastTrade",, "T"),3)="768","",RTD("cqg.rtd",,"StudyData",B92, "Bar",, "ContractOI", "D", "-2",,,,,"T")) -> 281 | N92: =IF(LEFT(RTD("cqg.rtd", ,"ContractData",B92, "LastTrade",, "T"),3)="768","",IFERROR(IF(L92>M92,"+"&L92-M92,L92-M92)*1,"")) -> 8
A93: =A92+$A$7 -> 9200 | B93: =LEFT(B92,FIND(A92,B92)-1)&A93 -> C.US.CLEJ269200 | C93: =IF(LEFT(RTD("cqg.rtd", ,"ContractData",B93, "LastTrade",, "T"),3)="768","",RTD("cqg.rtd", ,"ContractData",B93, "LastTrade",, "T")) -> 6.94 | D93: =IF(C93="","",RTD("cqg.rtd", ,"ContractData",B93, "NetLastTrade",, "T")) -> 1.43 | E93: =IF(LEFT(RTD("cqg.rtd", ,"ContractData",B93, "LastTrade",, "T"),3)="768","",RTD("cqg.rtd", ,"ContractData",B93, "MT_LastBidVolume",, "T")) -> 6 | F93: =IF(LEFT(RTD("cqg.rtd", ,"ContractData",B93, "LastTrade",, "T"),3)="768","",RTD("cqg.rtd", ,"ContractData",B93, "Bid",, "T")) -> 7 | G93: =IF(LEFT(RTD("cqg.rtd", ,"ContractData",B93, "LastTrade",, "T"),3)="768","",RTD("cqg.rtd", ,"ContractData",B93, "Ask",, "T")) -> 7.12 | H93: =IF(LEFT(RTD("cqg.rtd", ,"ContractData",B93, "LastTrade",, "T"),3)="768","",RTD("cqg.rtd", ,"ContractData",B93, "MT_LastAskVolume",, "T")) -> 21 | I93: =IF(LEFT(RTD("cqg.rtd", ,"ContractData",B93, "LastTrade",, "T"),3)="768","",RTD("cqg.rtd", ,"ContractData",B93, "T_CVol",, "T")) -> 68 | J93: =IF(LEFT(RTD("cqg.rtd", ,"ContractData",B93, "LastTrade",, "T"),3)="768","",RTD("cqg.rtd", ,"ContractData",B93, "Y_CVol",, "T")) -> 1500 | K93: =IF(LEFT(RTD("cqg.rtd", ,"ContractData",B93, "LastTrade",, "T"),3)="768","",IFERROR(IF(I93>J93,"+"&I93-J93,I93-J93)*1,"")) -> -1432 | L93: =IF(LEFT(RTD("cqg.rtd", ,"ContractData",B93, "LastTrade",, "T"),3)="768","",RTD("cqg.rtd",,"StudyData",B93, "Bar",, "ContractOI", "D", "-1",,,,,"T")) -> 4213 | M93: =IF(LEFT(RTD("cqg.rtd", ,"ContractData",B93, "LastTrade",, "T"),3)="768","",RTD("cqg.rtd",,"StudyData",B93, "Bar",, "ContractOI", "D", "-2",,,,,"T")) -> 5057 | N93: =IF(LEFT(RTD("cqg.rtd", ,"ContractData",B93, "LastTrade",, "T"),3)="768","",IFERROR(IF(L93>M93,"+"&L93-M93,L93-M93)*1,"")) -> -844
A94: =A93+$A$7 -> 9250 | B94: =LEFT(B93,FIND(A93,B93)-1)&A94 -> C.US.CLEJ269250 | C94: =IF(LEFT(RTD("cqg.rtd", ,"ContractData",B94, "LastTrade",, "T"),3)="768","",RTD("cqg.rtd", ,"ContractData",B94, "LastTrade",, "T")) -> 6.83 | D94: =IF(C94="","",RTD("cqg.rtd", ,"ContractData",B94, "NetLastTrade",, "T")) -> 1.46 | E94: =IF(LEFT(RTD("cqg.rtd", ,"ContractData",B94, "LastTrade",, "T"),3)="768","",RTD("cqg.rtd", ,"ContractData",B94, "MT_LastBidVolume",, "T")) -> 7 | F94: =IF(LEFT(RTD("cqg.rtd", ,"ContractData",B94, "LastTrade",, "T"),3)="768","",RTD("cqg.rtd", ,"ContractData",B94, "Bid",, "T")) -> 6.8 | G94: =IF(LEFT(RTD("cqg.rtd", ,"ContractData",B94, "LastTrade",, "T"),3)="768","",RTD("cqg.rtd", ,"ContractData",B94, "Ask",, "T")) -> 6.93 | H94: =IF(LEFT(RTD("cqg.rtd", ,"ContractData",B94, "LastTrade",, "T"),3)="768","",RTD("cqg.rtd", ,"ContractData",B94, "MT_LastAskVolume",, "T")) -> 42 | I94: =IF(LEFT(RTD("cqg.rtd", ,"ContractData",B94, "LastTrade",, "T"),3)="768","",RTD("cqg.rtd", ,"ContractData",B94, "T_CVol",, "T")) -> 473 | J94: =IF(LEFT(RTD("cqg.rtd", ,"ContractData",B94, "LastTrade",, "T"),3)="768","",RTD("cqg.rtd", ,"ContractData",B94, "Y_CVol",, "T")) -> 320 | K94: =IF(LEFT(RTD("cqg.rtd", ,"ContractData",B94, "LastTrade",, "T"),3)="768","",IFERROR(IF(I94>J94,"+"&I94-J94,I94-J94)*1,"")) -> 153 | L94: =IF(LEFT(RTD("cqg.rtd", ,"ContractData",B94, "LastTrade",, "T"),3)="768","",RTD("cqg.rtd",,"StudyData",B94, "Bar",, "ContractOI", "D", "-1",,,,,"T")) -> 1642 | M94: =IF(LEFT(RTD("cqg.rtd", ,"ContractData",B94, "LastTrade",, "T"),3)="768","",RTD("cqg.rtd",,"StudyData",B94, "Bar",, "ContractOI", "D", "-2",,,,,"T")) -> 1539 | N94: =IF(LEFT(RTD("cqg.rtd", ,"ContractData",B94, "LastTrade",, "T"),3)="768","",IFERROR(IF(L94>M94,"+"&L94-M94,L94-M94)*1,"")) -> 103
A95: 9300 | B95: C.US.CLEJ269300 | C95: =IF(LEFT(RTD("cqg.rtd", ,"ContractData",B95, "LastTrade",, "T"),3)="768","",RTD("cqg.rtd", ,"ContractData",B95, "LastTrade",, "T")) -> 6.57 | D95: =IF(C95="","",RTD("cqg.rtd", ,"ContractData",B95, "NetLastTrade",, "T")) -> 1.35 | E95: =IF(LEFT(RTD("cqg.rtd", ,"ContractData",B95, "LastTrade",, "T"),3)="768","",RTD("cqg.rtd", ,"ContractData",B95, "MT_LastBidVolume",, "T")) -> 20 | F95: =IF(LEFT(RTD("cqg.rtd", ,"ContractData",B95, "LastTrade",, "T"),3)="768","",RTD("cqg.rtd", ,"ContractData",B95, "Bid",, "T")) -> 6.62 | G95: =IF(LEFT(RTD("cqg.rtd", ,"ContractData",B95, "LastTrade",, "T"),3)="768","",RTD("cqg.rtd", ,"ContractData",B95, "Ask",, "T")) -> 6.74 | H95: =IF(LEFT(RTD("cqg.rtd", ,"ContractData",B95, "LastTrade",, "T"),3)="768","",RTD("cqg.rtd", ,"ContractData",B95, "MT_LastAskVolume",, "T")) -> 37 | I95: =IF(LEFT(RTD("cqg.rtd", ,"ContractData",B95, "LastTrade",, "T"),3)="768","",RTD("cqg.rtd", ,"ContractData",B95, "T_CVol",, "T")) -> 22 | J95: =IF(LEFT(RTD("cqg.rtd", ,"ContractData",B95, "LastTrade",, "T"),3)="768","",RTD("cqg.rtd", ,"ContractData",B95, "Y_CVol",, "T")) -> 357 | K95: =IF(LEFT(RTD("cqg.rtd", ,"ContractData",B95, "LastTrade",, "T"),3)="768","",IFERROR(IF(I95>J95,"+"&I95-J95,I95-J95)*1,"")) -> -335 | L95: =IF(LEFT(RTD("cqg.rtd", ,"ContractData",B95, "LastTrade",, "T"),3)="768","",RTD("cqg.rtd",,"StudyData",B95, "Bar",, "ContractOI", "D", "-1",,,,,"T")) -> 1334 | M95: =IF(LEFT(RTD("cqg.rtd", ,"ContractData",B95, "LastTrade",, "T"),3)="768","",RTD("cqg.rtd",,"StudyData",B95, "Bar",, "ContractOI", "D", "-2",,,,,"T")) -> 1310 | N95: =IF(LEFT(RTD("cqg.rtd", ,"ContractData",B95, "LastTrade",, "T"),3)="768","",IFERROR(IF(L95>M95,"+"&L95-M95,L95-M95)*1,"")) -> 24
A96: 9350 | B96: C.US.CLEJ269350 | C96: =IF(LEFT(RTD("cqg.rtd", ,"ContractData",B96, "LastTrade",, "T"),3)="768","",RTD("cqg.rtd", ,"ContractData",B96, "LastTrade",, "T")) -> 6.99 | D96: =IF(C96="","",RTD("cqg.rtd", ,"ContractData",B96, "NetLastTrade",, "T")) -> 1.91 | E96: =IF(LEFT(RTD("cqg.rtd", ,"ContractData",B96, "LastTrade",, "T"),3)="768","",RTD("cqg.rtd", ,"ContractData",B96, "MT_LastBidVolume",, "T")) -> 23 | F96: =IF(LEFT(RTD("cqg.rtd", ,"ContractData",B96, "LastTrade",, "T"),3)="768","",RTD("cqg.rtd", ,"ContractData",B96, "Bid",, "T")) -> 6.43 | G96: =IF(LEFT(RTD("cqg.rtd", ,"ContractData",B96, "LastTrade",, "T"),3)="768","",RTD("cqg.rtd", ,"ContractData",B96, "Ask",, "T")) -> 6.55 | H96: =IF(LEFT(RTD("cqg.rtd", ,"ContractData",B96, "LastTrade",, "T"),3)="768","",RTD("cqg.rtd", ,"ContractData",B96, "MT_LastAskVolume",, "T")) -> 1 | I96: =IF(LEFT(RTD("cqg.rtd", ,"ContractData",B96, "LastTrade",, "T"),3)="768","",RTD("cqg.rtd", ,"ContractData",B96, "T_CVol",, "T")) -> 69 | J96: =IF(LEFT(RTD("cqg.rtd", ,"ContractData",B96, "LastTrade",, "T"),3)="768","",RTD("cqg.rtd", ,"ContractData",B96, "Y_CVol",, "T")) -> 4 | K96: =IF(LEFT(RTD("cqg.rtd", ,"ContractData",B96, "LastTrade",, "T"),3)="768","",IFERROR(IF(I96>J96,"+"&I96-J96,I96-J96)*1,"")) -> 65 | L96: =IF(LEFT(RTD("cqg.rtd", ,"ContractData",B96, "LastTrade",, "T"),3)="768","",RTD("cqg.rtd",,"StudyData",B96, "Bar",, "ContractOI", "D", "-1",,,,,"T")) -> 209 | M96: =IF(LEFT(RTD("cqg.rtd", ,"ContractData",B96, "LastTrade",, "T"),3)="768","",RTD("cqg.rtd",,"StudyData",B96, "Bar",, "ContractOI", "D", "-2",,,,,"T")) -> 209 | N96: =IF(LEFT(RTD("cqg.rtd", ,"ContractData",B96, "LastTrade",, "T"),3)="768","",IFERROR(IF(L96>M96,"+"&L96-M96,L96-M96)*1,"")) -> 0
A97: 9400 | B97: C.US.CLEJ269400 | C97: =IF(LEFT(RTD("cqg.rtd", ,"ContractData",B97, "LastTrade",, "T"),3)="768","",RTD("cqg.rtd", ,"ContractData",B97, "LastTrade",, "T")) -> 6.27 | D97: =IF(C97="","",RTD("cqg.rtd", ,"ContractData",B97, "NetLastTrade",, "T")) -> 1.33 | E97: =IF(LEFT(RTD("cqg.rtd", ,"ContractData",B97, "LastTrade",, "T"),3)="768","",RTD("cqg.rtd", ,"ContractData",B97, "MT_LastBidVolume",, "T")) -> 23 | F97: =IF(LEFT(RTD("cqg.rtd", ,"ContractData",B97, "LastTrade",, "T"),3)="768","",RTD("cqg.rtd", ,"ContractData",B97, "Bid",, "T")) -> 6.26 | G97: =IF(LEFT(RTD("cqg.rtd", ,"ContractData",B97, "LastTrade",, "T"),3)="768","",RTD("cqg.rtd", ,"ContractData",B97, "Ask",, "T")) -> 6.37 | H97: =IF(LEFT(RTD("cqg.rtd", ,"ContractData",B97, "LastTrade",, "T"),3)="768","",RTD("cqg.rtd", ,"ContractData",B97, "MT_LastAskVolume",, "T")) -> 1 | I97: =IF(LEFT(RTD("cqg.rtd", ,"ContractData",B97, "LastTrade",, "T"),3)="768","",RTD("cqg.rtd", ,"ContractData",B97, "T_CVol",, "T")) -> 109 | J97: =IF(LEFT(RTD("cqg.rtd", ,"ContractData",B97, "LastTrade",, "T"),3)="768","",RTD("cqg.rtd", ,"ContractData",B97, "Y_CVol",, "T")) -> 603 | K97: =IF(LEFT(RTD("cqg.rtd", ,"ContractData",B97, "LastTrade",, "T"),3)="768","",IFERROR(IF(I97>J97,"+"&I97-J97,I97-J97)*1,"")) -> -494 | L97: =IF(LEFT(RTD("cqg.rtd", ,"ContractData",B97, "LastTrade",, "T"),3)="768","",RTD("cqg.rtd",,"StudyData",B97, "Bar",, "ContractOI", "D", "-1",,,,,"T")) -> 10143 | M97: =IF(LEFT(RTD("cqg.rtd", ,"ContractData",B97, "LastTrade",, "T"),3)="768","",RTD("cqg.rtd",,"StudyData",B97, "Bar",, "ContractOI", "D", "-2",,,,,"T")) -> 9739 | N97: =IF(LEFT(RTD("cqg.rtd", ,"ContractData",B97, "LastTrade",, "T"),3)="768","",IFERROR(IF(L97>M97,"+"&L97-M97,L97-M97)*1,"")) -> 404
A98: 9450 | B98: C.US.CLEJ269450 | C98: =IF(LEFT(RTD("cqg.rtd", ,"ContractData",B98, "LastTrade",, "T"),3)="768","",RTD("cqg.rtd", ,"ContractData",B98, "LastTrade",, "T")) -> 7.65 | D98: =IF(C98="","",RTD("cqg.rtd", ,"ContractData",B98, "NetLastTrade",, "T")) -> 2.84 | E98: =IF(LEFT(RTD("cqg.rtd", ,"ContractData",B98, "LastTrade",, "T"),3)="768","",RTD("cqg.rtd", ,"ContractData",B98, "MT_LastBidVolume",, "T")) -> 23 | F98: =IF(LEFT(RTD("cqg.rtd", ,"ContractData",B98, "LastTrade",, "T"),3)="768","",RTD("cqg.rtd", ,"ContractData",B98, "Bid",, "T")) -> 6.09 | G98: =IF(LEFT(RTD("cqg.rtd", ,"ContractData",B98, "LastTrade",, "T"),3)="768","",RTD("cqg.rtd", ,"ContractData",B98, "Ask",, "T")) -> 6.2 | H98: =IF(LEFT(RTD("cqg.rtd", ,"ContractData",B98, "LastTrade",, "T"),3)="768","",RTD("cqg.rtd", ,"ContractData",B98, "MT_LastAskVolume",, "T")) -> 1 | I98: =IF(LEFT(RTD("cqg.rtd", ,"ContractData",B98, "LastTrade",, "T"),3)="768","",RTD("cqg.rtd", ,"ContractData",B98, "T_CVol",, "T")) -> 8 | J98: =IF(LEFT(RTD("cqg.rtd", ,"ContractData",B98, "LastTrade",, "T"),3)="768","",RTD("cqg.rtd", ,"ContractData",B98, "Y_CVol",, "T")) -> 47 | K98: =IF(LEFT(RTD("cqg.rtd", ,"ContractData",B98, "LastTrade",, "T"),3)="768","",IFERROR(IF(I98>J98,"+"&I98-J98,I98-J98)*1,"")) -> -39 | L98: =IF(LEFT(RTD("cqg.rtd", ,"ContractData",B98, "LastTrade",, "T"),3)="768","",RTD("cqg.rtd",,"StudyData",B98, "Bar",, "ContractOI", "D", "-1",,,,,"T")) -> 986 | M98: =IF(LEFT(RTD("cqg.rtd", ,"ContractData",B98, "LastTrade",, "T"),3)="768","",RTD("cqg.rtd",,"StudyData",B98, "Bar",, "ContractOI", "D", "-2",,,,,"T")) -> 1001 | N98: =IF(LEFT(RTD("cqg.rtd", ,"ContractData",B98, "LastTrade",, "T"),3)="768","",IFERROR(IF(L98>M98,"+"&L98-M98,L98-M98)*1,"")) -> -15
A99: 9500 | B99: C.US.CLEJ269500 | C99: =IF(LEFT(RTD("cqg.rtd", ,"ContractData",B99, "LastTrade",, "T"),3)="768","",RTD("cqg.rtd", ,"ContractData",B99, "LastTrade",, "T")) -> 5.97 | D99: =IF(C99="","",RTD("cqg.rtd", ,"ContractData",B99, "NetLastTrade",, "T")) -> 1.29 | E99: =IF(LEFT(RTD("cqg.rtd", ,"ContractData",B99, "LastTrade",, "T"),3)="768","",RTD("cqg.rtd", ,"ContractData",B99, "MT_LastBidVolume",, "T")) -> 24 | F99: =IF(LEFT(RTD("cqg.rtd", ,"ContractData",B99, "LastTrade",, "T"),3)="768","",RTD("cqg.rtd", ,"ContractData",B99, "Bid",, "T")) -> 5.92 | G99: =IF(LEFT(RTD("cqg.rtd", ,"ContractData",B99, "LastTrade",, "T"),3)="768","",RTD("cqg.rtd", ,"ContractData",B99, "Ask",, "T")) -> 6.03 | H99: =IF(LEFT(RTD("cqg.rtd", ,"ContractData",B99, "LastTrade",, "T"),3)="768","",RTD("cqg.rtd", ,"ContractData",B99, "MT_LastAskVolume",, "T")) -> 1 | I99: =IF(LEFT(RTD("cqg.rtd", ,"ContractData",B99, "LastTrade",, "T"),3)="768","",RTD("cqg.rtd", ,"ContractData",B99, "T_CVol",, "T")) -> 665 | J99: =IF(LEFT(RTD("cqg.rtd", ,"ContractData",B99, "LastTrade",, "T"),3)="768","",RTD("cqg.rtd", ,"ContractData",B99, "Y_CVol",, "T")) -> 4674 | K99: =IF(LEFT(RTD("cqg.rtd", ,"ContractData",B99, "LastTrade",, "T"),3)="768","",IFERROR(IF(I99>J99,"+"&I99-J99,I99-J99)*1,"")) -> -4009 | L99: =IF(LEFT(RTD("cqg.rtd", ,"ContractData",B99, "LastTrade",, "T"),3)="768","",RTD("cqg.rtd",,"StudyData",B99, "Bar",, "ContractOI", "D", "-1",,,,,"T")) -> 9464 | M99: =IF(LEFT(RTD("cqg.rtd", ,"ContractData",B99, "LastTrade",, "T"),3)="768","",RTD("cqg.rtd",,"StudyData",B99, "Bar",, "ContractOI", "D", "-2",,,,,"T")) -> 9259 | N99: =IF(LEFT(RTD("cqg.rtd", ,"ContractData",B99, "LastTrade",, "T"),3)="768","",IFERROR(IF(L99>M99,"+"&L99-M99,L99-M99)*1,"")) -> 205
A100: 9550 | B100: C.US.CLEJ269550 | C100: =IF(LEFT(RTD("cqg.rtd", ,"ContractData",B100, "LastTrade",, "T"),3)="768","",RTD("cqg.rtd", ,"ContractData",B100, "LastTrade",, "T")) -> 5.74 | D100: =IF(C100="","",RTD("cqg.rtd", ,"ContractData",B100, "NetLastTrade",, "T")) -> 1.19 | E100: =IF(LEFT(RTD("cqg.rtd", ,"ContractData",B100, "LastTrade",, "T"),3)="768","",RTD("cqg.rtd", ,"ContractData",B100, "MT_LastBidVolume",, "T")) -> 2 | F100: =IF(LEFT(RTD("cqg.rtd", ,"ContractData",B100, "LastTrade",, "T"),3)="768","",RTD("cqg.rtd", ,"ContractData",B100, "Bid",, "T")) -> 5.75 | G100: =IF(LEFT(RTD("cqg.rtd", ,"ContractData",B100, "LastTrade",, "T"),3)="768","",RTD("cqg.rtd", ,"ContractData",B100, "Ask",, "T")) -> 5.87 | H100: =IF(LEFT(RTD("cqg.rtd", ,"ContractData",B100, "LastTrade",, "T"),3)="768","",RTD("cqg.rtd", ,"ContractData",B100, "MT_LastAskVolume",, "T")) -> 36 | I100: =IF(LEFT(RTD("cqg.rtd", ,"ContractData",B100, "LastTrade",, "T"),3)="768","",RTD("cqg.rtd", ,"ContractData",B100, "T_CVol",, "T")) -> 8 | J100: =IF(LEFT(RTD("cqg.rtd", ,"ContractData",B100, "LastTrade",, "T"),3)="768","",RTD("cqg.rtd", ,"ContractData",B100, "Y_CVol",, "T")) -> 127 | K100: =IF(LEFT(RTD("cqg.rtd", ,"ContractData",B100, "LastTrade",, "T"),3)="768","",IFERROR(IF(I100>J100,"+"&I100-J100,I100-J100)*1,"")) -> -119 | L100: =IF(LEFT(RTD("cqg.rtd", ,"ContractData",B100, "LastTrade",, "T"),3)="768","",RTD("cqg.rtd",,"StudyData",B100, "Bar",, "ContractOI", "D", "-1",,,,,"T")) -> 233 | M100: =IF(LEFT(RTD("cqg.rtd", ,"ContractData",B100, "LastTrade",, "T"),3)="768","",RTD("cqg.rtd",,"StudyData",B100, "Bar",, "ContractOI", "D", "-2",,,,,"T")) -> 205 | N100: =IF(LEFT(RTD("cqg.rtd", ,"ContractData",B100, "LastTrade",, "T"),3)="768","",IFERROR(IF(L100>M100,"+"&L100-M100,L100-M100)*1,"")) -> 28
A101: 9600 | B101: C.US.CLEJ269600 | C101: =IF(LEFT(RTD("cqg.rtd", ,"ContractData",B101, "LastTrade",, "T"),3)="768","",RTD("cqg.rtd", ,"ContractData",B101, "LastTrade",, "T")) -> 5.62 | D101: =IF(C101="","",RTD("cqg.rtd", ,"ContractData",B101, "NetLastTrade",, "T")) -> 1.19 | E101: =IF(LEFT(RTD("cqg.rtd", ,"ContractData",B101, "LastTrade",, "T"),3)="768","",RTD("cqg.rtd", ,"ContractData",B101, "MT_LastBidVolume",, "T")) -> 21 | F101: =IF(LEFT(RTD("cqg.rtd", ,"ContractData",B101, "LastTrade",, "T"),3)="768","",RTD("cqg.rtd", ,"ContractData",B101, "Bid",, "T")) -> 5.6 | G101: =IF(LEFT(RTD("cqg.rtd", ,"ContractData",B101, "LastTrade",, "T"),3)="768","",RTD("cqg.rtd", ,"ContractData",B101, "Ask",, "T")) -> 5.71 | H101: =IF(LEFT(RTD("cqg.rtd", ,"ContractData",B101, "LastTrade",, "T"),3)="768","",RTD("cqg.rtd", ,"ContractData",B101, "MT_LastAskVolume",, "T")) -> 14 | I101: =IF(LEFT(RTD("cqg.rtd", ,"ContractData",B101, "LastTrade",, "T"),3)="768","",RTD("cqg.rtd", ,"ContractData",B101, "T_CVol",, "T")) -> 44 | J101: =IF(LEFT(RTD("cqg.rtd", ,"ContractData",B101, "LastTrade",, "T"),3)="768","",RTD("cqg.rtd", ,"ContractData",B101, "Y_CVol",, "T")) -> 3352 | K101: =IF(LEFT(RTD("cqg.rtd", ,"ContractData",B101, "LastTrade",, "T"),3)="768","",IFERROR(IF(I101>J101,"+"&I101-J101,I101-J101)*1,"")) -> -3308 | L101: =IF(LEFT(RTD("cqg.rtd", ,"ContractData",B101, "LastTrade",, "T"),3)="768","",RTD("cqg.rtd",,"StudyData",B101, "Bar",, "ContractOI", "D", "-1",,,,,"T")) -> 2592 | M101: =IF(LEFT(RTD("cqg.rtd", ,"ContractData",B101, "LastTrade",, "T"),3)="768","",RTD("cqg.rtd",,"StudyData",B101, "Bar",, "ContractOI", "D", "-2",,,,,"T")) -> 1623 | N101: =IF(LEFT(RTD("cqg.rtd", ,"ContractData",B101, "LastTrade",, "T"),3)="768","",IFERROR(IF(L101>M101,"+"&L101-M101,L101-M101)*1,"")) -> 969
A102: 9650 | B102: C.US.CLEJ269650 | C102: =IF(LEFT(RTD("cqg.rtd", ,"ContractData",B102, "LastTrade",, "T"),3)="768","",RTD("cqg.rtd", ,"ContractData",B102, "LastTrade",, "T")) -> 5.55 | D102: =IF(C102="","",RTD("cqg.rtd", ,"ContractData",B102, "NetLastTrade",, "T")) -> 1.24 | E102: =IF(LEFT(RTD("cqg.rtd", ,"ContractData",B102, "LastTrade",, "T"),3)="768","",RTD("cqg.rtd", ,"ContractData",B102, "MT_LastBidVolume",, "T")) -> 23 | F102: =IF(LEFT(RTD("cqg.rtd", ,"ContractData",B102, "LastTrade",, "T"),3)="768","",RTD("cqg.rtd", ,"ContractData",B102, "Bid",, "T")) -> 5.44 | G102: =IF(LEFT(RTD("cqg.rtd", ,"ContractData",B102, "LastTrade",, "T"),3)="768","",RTD("cqg.rtd", ,"ContractData",B102, "Ask",, "T")) -> 5.55 | H102: =IF(LEFT(RTD("cqg.rtd", ,"ContractData",B102, "LastTrade",, "T"),3)="768","",RTD("cqg.rtd", ,"ContractData",B102, "MT_LastAskVolume",, "T")) -> 1 | I102: =IF(LEFT(RTD("cqg.rtd", ,"ContractData",B102, "LastTrade",, "T"),3)="768","",RTD("cqg.rtd", ,"ContractData",B102, "T_CVol",, "T")) -> 76 | J102: =IF(LEFT(RTD("cqg.rtd", ,"ContractData",B102, "LastTrade",, "T"),3)="768","",RTD("cqg.rtd", ,"ContractData",B102, "Y_CVol",, "T")) -> 91 | K102: =IF(LEFT(RTD("cqg.rtd", ,"ContractData",B102, "LastTrade",, "T"),3)="768","",IFERROR(IF(I102>J102,"+"&I102-J102,I102-J102)*1,"")) -> -15 | L102: =IF(LEFT(RTD("cqg.rtd", ,"ContractData",B102, "LastTrade",, "T"),3)="768","",RTD("cqg.rtd",,"StudyData",B102, "Bar",, "ContractOI", "D", "-1",,,,,"T")) -> 443 | M102: =IF(LEFT(RTD("cqg.rtd", ,"ContractData",B102, "LastTrade",, "T"),3)="768","",RTD("cqg.rtd",,"StudyData",B102, "Bar",, "ContractOI", "D", "-2",,,,,"T")) -> 438 | N102: =IF(LEFT(RTD("cqg.rtd", ,"ContractData",B102, "LastTrade",, "T"),3)="768","",IFERROR(IF(L102>M102,"+"&L102-M102,L102-M102)*1,"")) -> 5
A103: 9700 | B103: C.US.CLEJ269700 | C103: =IF(LEFT(RTD("cqg.rtd", ,"ContractData",B103, "LastTrade",, "T"),3)="768","",RTD("cqg.rtd", ,"ContractData",B103, "LastTrade",, "T")) -> 5.35 | D103: =IF(C103="","",RTD("cqg.rtd", ,"ContractData",B103, "NetLastTrade",, "T")) -> 1.15 | E103: =IF(LEFT(RTD("cqg.rtd", ,"ContractData",B103, "LastTrade",, "T"),3)="768","",RTD("cqg.rtd", ,"ContractData",B103, "MT_LastBidVolume",, "T")) -> 24 | F103: =IF(LEFT(RTD("cqg.rtd", ,"ContractData",B103, "LastTrade",, "T"),3)="768","",RTD("cqg.rtd", ,"ContractData",B103, "Bid",, "T")) -> 5.29 | G103: =IF(LEFT(RTD("cqg.rtd", ,"ContractData",B103, "LastTrade",, "T"),3)="768","",RTD("cqg.rtd", ,"ContractData",B103, "Ask",, "T")) -> 5.4 | H103: =IF(LEFT(RTD("cqg.rtd", ,"ContractData",B103, "LastTrade",, "T"),3)="768","",RTD("cqg.rtd", ,"ContractData",B103, "MT_LastAskVolume",, "T")) -> 1 | I103: =IF(LEFT(RTD("cqg.rtd", ,"ContractData",B103, "LastTrade",, "T"),3)="768","",RTD("cqg.rtd", ,"ContractData",B103, "T_CVol",, "T")) -> 168 | J103: =IF(LEFT(RTD("cqg.rtd", ,"ContractData",B103, "LastTrade",, "T"),3)="768","",RTD("cqg.rtd", ,"ContractData",B103, "Y_CVol",, "T")) -> 571 | K103: =IF(LEFT(RTD("cqg.rtd", ,"ContractData",B103, "LastTrade",, "T"),3)="768","",IFERROR(IF(I103>J103,"+"&I103-J103,I103-J103)*1,"")) -> -403 | L103: =IF(LEFT(RTD("cqg.rtd", ,"ContractData",B103, "LastTrade",, "T"),3)="768","",RTD("cqg.rtd",,"StudyData",B103, "Bar",, "ContractOI", "D", "-1",,,,,"T")) -> 542 | M103: =IF(LEFT(RTD("cqg.rtd", ,"ContractData",B103, "LastTrade",, "T"),3)="768","",RTD("cqg.rtd",,"StudyData",B103, "Bar",, "ContractOI", "D", "-2",,,,,"T")) -> 466 | N103: =IF(LEFT(RTD("cqg.rtd", ,"ContractData",B103, "LastTrade",, "T"),3)="768","",IFERROR(IF(L103>M103,"+"&L103-M103,L103-M103)*1,"")) -> 76
A104: 9750 | B104: C.US.CLEJ269750 | C104: =IF(LEFT(RTD("cqg.rtd", ,"ContractData",B104, "LastTrade",, "T"),3)="768","",RTD("cqg.rtd", ,"ContractData",B104, "LastTrade",, "T")) -> 5.22 | D104: =IF(C104="","",RTD("cqg.rtd", ,"ContractData",B104, "NetLastTrade",, "T")) -> 1.13 | E104: =IF(LEFT(RTD("cqg.rtd", ,"ContractData",B104, "LastTrade",, "T"),3)="768","",RTD("cqg.rtd", ,"ContractData",B104, "MT_LastBidVolume",, "T")) -> 37 | F104: =IF(LEFT(RTD("cqg.rtd", ,"ContractData",B104, "LastTrade",, "T"),3)="768","",RTD("cqg.rtd", ,"ContractData",B104, "Bid",, "T")) -> 5.14 | G104: =IF(LEFT(RTD("cqg.rtd", ,"ContractData",B104, "LastTrade",, "T"),3)="768","",RTD("cqg.rtd", ,"ContractData",B104, "Ask",, "T")) -> 5.26 | H104: =IF(LEFT(RTD("cqg.rtd", ,"ContractData",B104, "LastTrade",, "T"),3)="768","",RTD("cqg.rtd", ,"ContractData",B104, "MT_LastAskVolume",, "T")) -> 1 | I104: =IF(LEFT(RTD("cqg.rtd", ,"ContractData",B104, "LastTrade",, "T"),3)="768","",RTD("cqg.rtd", ,"ContractData",B104, "T_CVol",, "T")) -> 45 | J104: =IF(LEFT(RTD("cqg.rtd", ,"ContractData",B104, "LastTrade",, "T"),3)="768","",RTD("cqg.rtd", ,"ContractData",B104, "Y_CVol",, "T")) -> 155 | K104: =IF(LEFT(RTD("cqg.rtd", ,"ContractData",B104, "LastTrade",, "T"),3)="768","",IFERROR(IF(I104>J104,"+"&I104-J104,I104-J104)*1,"")) -> -110 | L104: =IF(LEFT(RTD("cqg.rtd", ,"ContractData",B104, "LastTrade",, "T"),3)="768","",RTD("cqg.rtd",,"StudyData",B104, "Bar",, "ContractOI", "D", "-1",,,,,"T")) -> 355 | M104: =IF(LEFT(RTD("cqg.rtd", ,"ContractData",B104, "LastTrade",, "T"),3)="768","",RTD("cqg.rtd",,"StudyData",B104, "Bar",, "ContractOI", "D", "-2",,,,,"T")) -> 274 | N104: =IF(LEFT(RTD("cqg.rtd", ,"ContractData",B104, "LastTrade",, "T"),3)="768","",IFERROR(IF(L104>M104,"+"&L104-M104,L104-M104)*1,"")) -> 81
A105: 9800 | B105: C.US.CLEJ269800 | C105: =IF(LEFT(RTD("cqg.rtd", ,"ContractData",B105, "LastTrade",, "T"),3)="768","",RTD("cqg.rtd", ,"ContractData",B105, "LastTrade",, "T")) -> 6.2 | D105: =IF(C105="","",RTD("cqg.rtd", ,"ContractData",B105, "NetLastTrade",, "T")) -> 2.22 | E105: =IF(LEFT(RTD("cqg.rtd", ,"ContractData",B105, "LastTrade",, "T"),3)="768","",RTD("cqg.rtd", ,"ContractData",B105, "MT_LastBidVolume",, "T")) -> 28 | F105: =IF(LEFT(RTD("cqg.rtd", ,"ContractData",B105, "LastTrade",, "T"),3)="768","",RTD("cqg.rtd", ,"ContractData",B105, "Bid",, "T")) -> 5 | G105: =IF(LEFT(RTD("cqg.rtd", ,"ContractData",B105, "LastTrade",, "T"),3)="768","",RTD("cqg.rtd", ,"ContractData",B105, "Ask",, "T")) -> 5.11 | H105: =IF(LEFT(RTD("cqg.rtd", ,"ContractData",B105, "LastTrade",, "T"),3)="768","",RTD("cqg.rtd", ,"ContractData",B105, "MT_LastAskVolume",, "T")) -> 2 | I105: =IF(LEFT(RTD("cqg.rtd", ,"ContractData",B105, "LastTrade",, "T"),3)="768","",RTD("cqg.rtd", ,"ContractData",B105, "T_CVol",, "T")) -> 42 | J105: =IF(LEFT(RTD("cqg.rtd", ,"ContractData",B105, "LastTrade",, "T"),3)="768","",RTD("cqg.rtd", ,"ContractData",B105, "Y_CVol",, "T")) -> 649 | K105: =IF(LEFT(RTD("cqg.rtd", ,"ContractData",B105, "LastTrade",, "T"),3)="768","",IFERROR(IF(I105>J105,"+"&I105-J105,I105-J105)*1,"")) -> -607 | L105: =IF(LEFT(RTD("cqg.rtd", ,"ContractData",B105, "LastTrade",, "T"),3)="768","",RTD("cqg.rtd",,"StudyData",B105, "Bar",, "ContractOI", "D", "-1",,,,,"T")) -> 2294 | M105: =IF(LEFT(RTD("cqg.rtd", ,"ContractData",B105, "LastTrade",, "T"),3)="768","",RTD("cqg.rtd",,"StudyData",B105, "Bar",, "ContractOI", "D", "-2",,,,,"T")) -> 2182 | N105: =IF(LEFT(RTD("cqg.rtd", ,"ContractData",B105, "LastTrade",, "T"),3)="768","",IFERROR(IF(L105>M105,"+"&L105-M105,L105-M105)*1,"")) -> 112
A106: 9850 | B106: C.US.CLEJ269850 | C106: =IF(LEFT(RTD("cqg.rtd", ,"ContractData",B106, "LastTrade",, "T"),3)="768","",RTD("cqg.rtd", ,"ContractData",B106, "LastTrade",, "T")) -> 6.25 | D106: =IF(C106="","",RTD("cqg.rtd", ,"ContractData",B106, "NetLastTrade",, "T")) -> 2.38 | E106: =IF(LEFT(RTD("cqg.rtd", ,"ContractData",B106, "LastTrade",, "T"),3)="768","",RTD("cqg.rtd", ,"ContractData",B106, "MT_LastBidVolume",, "T")) -> 28 | F106: =IF(LEFT(RTD("cqg.rtd", ,"ContractData",B106, "LastTrade",, "T"),3)="768","",RTD("cqg.rtd", ,"ContractData",B106, "Bid",, "T")) -> 4.86 | G106: =IF(LEFT(RTD("cqg.rtd", ,"ContractData",B106, "LastTrade",, "T"),3)="768","",RTD("cqg.rtd", ,"ContractData",B106, "Ask",, "T")) -> 4.97 | H106: =IF(LEFT(RTD("cqg.rtd", ,"ContractData",B106, "LastTrade",, "T"),3)="768","",RTD("cqg.rtd", ,"ContractData",B106, "MT_LastAskVolume",, "T")) -> 2 | I106: =IF(LEFT(RTD("cqg.rtd", ,"ContractData",B106, "LastTrade",, "T"),3)="768","",RTD("cqg.rtd", ,"ContractData",B106, "T_CVol",, "T")) -> 7 | J106: =IF(LEFT(RTD("cqg.rtd", ,"ContractData",B106, "LastTrade",, "T"),3)="768","",RTD("cqg.rtd", ,"ContractData",B106, "Y_CVol",, "T")) -> 100 | K106: =IF(LEFT(RTD("cqg.rtd", ,"ContractData",B106, "LastTrade",, "T"),3)="768","",IFERROR(IF(I106>J106,"+"&I106-J106,I106-J106)*1,"")) -> -93 | L106: =IF(LEFT(RTD("cqg.rtd", ,"ContractData",B106, "LastTrade",, "T"),3)="768","",RTD("cqg.rtd",,"StudyData",B106, "Bar",, "ContractOI", "D", "-1",,,,,"T")) -> 567 | M106: =IF(LEFT(RTD("cqg.rtd", ,"ContractData",B106, "LastTrade",, "T"),3)="768","",RTD("cqg.rtd",,"StudyData",B106, "Bar",, "ContractOI", "D", "-2",,,,,"T")) -> 528 | N106: =IF(LEFT(RTD("cqg.rtd", ,"ContractData",B106, "LastTrade",, "T"),3)="768","",IFERROR(IF(L106>M106,"+"&L106-M106,L106-M106)*1,"")) -> 39
A107: 9900 | B107: C.US.CLEJ269900 | C107: =IF(LEFT(RTD("cqg.rtd", ,"ContractData",B107, "LastTrade",, "T"),3)="768","",RTD("cqg.rtd", ,"ContractData",B107, "LastTrade",, "T")) -> 4.73 | D107: =IF(C107="","",RTD("cqg.rtd", ,"ContractData",B107, "NetLastTrade",, "T")) -> 0.96 | E107: =IF(LEFT(RTD("cqg.rtd", ,"ContractData",B107, "LastTrade",, "T"),3)="768","",RTD("cqg.rtd", ,"ContractData",B107, "MT_LastBidVolume",, "T")) -> 47 | F107: =IF(LEFT(RTD("cqg.rtd", ,"ContractData",B107, "LastTrade",, "T"),3)="768","",RTD("cqg.rtd", ,"ContractData",B107, "Bid",, "T")) -> 4.72 | G107: =IF(LEFT(RTD("cqg.rtd", ,"ContractData",B107, "LastTrade",, "T"),3)="768","",RTD("cqg.rtd", ,"ContractData",B107, "Ask",, "T")) -> 4.84 | H107: =IF(LEFT(RTD("cqg.rtd", ,"ContractData",B107, "LastTrade",, "T"),3)="768","",RTD("cqg.rtd", ,"ContractData",B107, "MT_LastAskVolume",, "T")) -> 2 | I107: =IF(LEFT(RTD("cqg.rtd", ,"ContractData",B107, "LastTrade",, "T"),3)="768","",RTD("cqg.rtd", ,"ContractData",B107, "T_CVol",, "T")) -> 3 | J107: =IF(LEFT(RTD("cqg.rtd", ,"ContractData",B107, "LastTrade",, "T"),3)="768","",RTD("cqg.rtd", ,"ContractData",B107, "Y_CVol",, "T")) -> 550 | K107: =IF(LEFT(RTD("cqg.rtd", ,"ContractData",B107, "LastTrade",, "T"),3)="768","",IFERROR(IF(I107>J107,"+"&I107-J107,I107-J107)*1,"")) -> -547 | L107: =IF(LEFT(RTD("cqg.rtd", ,"ContractData",B107, "LastTrade",, "T"),3)="768","",RTD("cqg.rtd",,"StudyData",B107, "Bar",, "ContractOI", "D", "-1",,,,,"T")) -> 858 | M107: =IF(LEFT(RTD("cqg.rtd", ,"ContractData",B107, "LastTrade",, "T"),3)="768","",RTD("cqg.rtd",,"StudyData",B107, "Bar",, "ContractOI", "D", "-2",,,,,"T")) -> 569 | N107: =IF(LEFT(RTD("cqg.rtd", ,"ContractData",B107, "LastTrade",, "T"),3)="768","",IFERROR(IF(L107>M107,"+"&L107-M107,L107-M107)*1,"")) -> 289
A108: 9950 | B108: C.US.CLEJ269950 | C108: =IF(LEFT(RTD("cqg.rtd", ,"ContractData",B108, "LastTrade",, "T"),3)="768","",RTD("cqg.rtd", ,"ContractData",B108, "LastTrade",, "T")) -> 3.94 | D108: =IF(C108="","",RTD("cqg.rtd", ,"ContractData",B108, "NetLastTrade",, "T")) -> 0.27 | E108: =IF(LEFT(RTD("cqg.rtd", ,"ContractData",B108, "LastTrade",, "T"),3)="768","",RTD("cqg.rtd", ,"ContractData",B108, "MT_LastBidVolume",, "T")) -> 35 | F108: =IF(LEFT(RTD("cqg.rtd", ,"ContractData",B108, "LastTrade",, "T"),3)="768","",RTD("cqg.rtd", ,"ContractData",B108, "Bid",, "T")) -> 4.59 | G108: =IF(LEFT(RTD("cqg.rtd", ,"ContractData",B108, "LastTrade",, "T"),3)="768","",RTD("cqg.rtd", ,"ContractData",B108, "Ask",, "T")) -> 4.7 | H108: =IF(LEFT(RTD("cqg.rtd", ,"ContractData",B108, "LastTrade",, "T"),3)="768","",RTD("cqg.rtd", ,"ContractData",B108, "MT_LastAskVolume",, "T")) -> 2 | I108: =IF(LEFT(RTD("cqg.rtd", ,"ContractData",B108, "LastTrade",, "T"),3)="768","",RTD("cqg.rtd", ,"ContractData",B108, "T_CVol",, "T")) -> 107 | J108: =IF(LEFT(RTD("cqg.rtd", ,"ContractData",B108, "LastTrade",, "T"),3)="768","",RTD("cqg.rtd", ,"ContractData",B108, "Y_CVol",, "T")) -> 283 | K108: =IF(LEFT(RTD("cqg.rtd", ,"ContractData",B108, "LastTrade",, "T"),3)="768","",IFERROR(IF(I108>J108,"+"&I108-J108,I108-J108)*1,"")) -> -176 | L108: =IF(LEFT(RTD("cqg.rtd", ,"ContractData",B108, "LastTrade",, "T"),3)="768","",RTD("cqg.rtd",,"StudyData",B108, "Bar",, "ContractOI", "D", "-1",,,,,"T")) -> 7296 | M108: =IF(LEFT(RTD("cqg.rtd", ,"ContractData",B108, "LastTrade",, "T"),3)="768","",RTD("cqg.rtd",,"StudyData",B108, "Bar",, "ContractOI", "D", "-2",,,,,"T")) -> 7132 | N108: =IF(LEFT(RTD("cqg.rtd", ,"ContractData",B108, "LastTrade",, "T"),3)="768","",IFERROR(IF(L108>M108,"+"&L108-M108,L108-M108)*1,"")) -> 164
A109: 10000 | B109: C.US.CLEJ2610000 | C109: =IF(LEFT(RTD("cqg.rtd", ,"ContractData",B109, "LastTrade",, "T"),3)="768","",RTD("cqg.rtd", ,"ContractData",B109, "LastTrade",, "T")) -> 4.6 | D109: =IF(C109="","",RTD("cqg.rtd", ,"ContractData",B109, "NetLastTrade",, "T")) -> 1.03 | E109: =IF(LEFT(RTD("cqg.rtd", ,"ContractData",B109, "LastTrade",, "T"),3)="768","",RTD("cqg.rtd", ,"ContractData",B109, "MT_LastBidVolume",, "T")) -> 41 | F109: =IF(LEFT(RTD("cqg.rtd", ,"ContractData",B109, "LastTrade",, "T"),3)="768","",RTD("cqg.rtd", ,"ContractData",B109, "Bid",, "T")) -> 4.46 | G109: =IF(LEFT(RTD("cqg.rtd", ,"ContractData",B109, "LastTrade",, "T"),3)="768","",RTD("cqg.rtd", ,"ContractData",B109, "Ask",, "T")) -> 4.58 | H109: =IF(LEFT(RTD("cqg.rtd", ,"ContractData",B109, "LastTrade",, "T"),3)="768","",RTD("cqg.rtd", ,"ContractData",B109, "MT_LastAskVolume",, "T")) -> 2 | I109: =IF(LEFT(RTD("cqg.rtd", ,"ContractData",B109, "LastTrade",, "T"),3)="768","",RTD("cqg.rtd", ,"ContractData",B109, "T_CVol",, "T")) -> 942 | J109: =IF(LEFT(RTD("cqg.rtd", ,"ContractData",B109, "LastTrade",, "T"),3)="768","",RTD("cqg.rtd", ,"ContractData",B109, "Y_CVol",, "T")) -> 4144 | K109: =IF(LEFT(RTD("cqg.rtd", ,"ContractData",B109, "LastTrade",, "T"),3)="768","",IFERROR(IF(I109>J109,"+"&I109-J109,I109-J109)*1,"")) -> -3202 | L109: =IF(LEFT(RTD("cqg.rtd", ,"ContractData",B109, "LastTrade",, "T"),3)="768","",RTD("cqg.rtd",,"StudyData",B109, "Bar",, "ContractOI", "D", "-1",,,,,"T")) -> 28881 | M109: =IF(LEFT(RTD("cqg.rtd", ,"ContractData",B109, "LastTrade",, "T"),3)="768","",RTD("cqg.rtd",,"StudyData",B109, "Bar",, "ContractOI", "D", "-2",,,,,"T")) -> 28034 | N109: =IF(LEFT(RTD("cqg.rtd", ,"ContractData",B109, "LastTrade",, "T"),3)="768","",IFERROR(IF(L109>M109,"+"&L109-M109,L109-M109)*1,"")) -> 847
A110: 10050 | B110: C.US.CLEJ2610050 | C110: =IF(LEFT(RTD("cqg.rtd", ,"ContractData",B110, "LastTrade",, "T"),3)="768","",RTD("cqg.rtd", ,"ContractData",B110, "LastTrade",, "T")) -> 4.74 | D110: =IF(C110="","",RTD("cqg.rtd", ,"ContractData",B110, "NetLastTrade",, "T")) -> 1.26 | E110: =IF(LEFT(RTD("cqg.rtd", ,"ContractData",B110, "LastTrade",, "T"),3)="768","",RTD("cqg.rtd", ,"ContractData",B110, "MT_LastBidVolume",, "T")) -> 49 | F110: =IF(LEFT(RTD("cqg.rtd", ,"ContractData",B110, "LastTrade",, "T"),3)="768","",RTD("cqg.rtd", ,"ContractData",B110, "Bid",, "T")) -> 4.33 | G110: =IF(LEFT(RTD("cqg.rtd", ,"ContractData",B110, "LastTrade",, "T"),3)="768","",RTD("cqg.rtd", ,"ContractData",B110, "Ask",, "T")) -> 4.44 | H110: =IF(LEFT(RTD("cqg.rtd", ,"ContractData",B110, "LastTrade",, "T"),3)="768","",RTD("cqg.rtd", ,"ContractData",B110, "MT_LastAskVolume",, "T")) -> 1 | I110: =IF(LEFT(RTD("cqg.rtd", ,"ContractData",B110, "LastTrade",, "T"),3)="768","",RTD("cqg.rtd", ,"ContractData",B110, "T_CVol",, "T")) -> 168 | J110: =IF(LEFT(RTD("cqg.rtd", ,"ContractData",B110, "LastTrade",, "T"),3)="768","",RTD("cqg.rtd", ,"ContractData",B110, "Y_CVol",, "T")) -> 670 | K110: =IF(LEFT(RTD("cqg.rtd", ,"ContractData",B110, "LastTrade",, "T"),3)="768","",IFERROR(IF(I110>J110,"+"&I110-J110,I110-J110)*1,"")) -> -502 | L110: =IF(LEFT(RTD("cqg.rtd", ,"ContractData",B110, "LastTrade",, "T"),3)="768","",RTD("cqg.rtd",,"StudyData",B110, "Bar",, "ContractOI", "D", "-1",,,,,"T")) -> 18150 | M110: =IF(LEFT(RTD("cqg.rtd", ,"ContractData",B110, "LastTrade",, "T"),3)="768","",RTD("cqg.rtd",,"StudyData",B110, "Bar",, "ContractOI", "D", "-2",,,,,"T")) -> 17779 | N110: =IF(LEFT(RTD("cqg.rtd", ,"ContractData",B110, "LastTrade",, "T"),3)="768","",IFERROR(IF(L110>M110,"+"&L110-M110,L110-M110)*1,"")) -> 371
A111: 10100 | B111: C.US.CLEJ2610100 | C111: =IF(LEFT(RTD("cqg.rtd", ,"ContractData",B111, "LastTrade",, "T"),3)="768","",RTD("cqg.rtd", ,"ContractData",B111, "LastTrade",, "T")) -> 4.75 | D111: =IF(C111="","",RTD("cqg.rtd", ,"ContractData",B111, "NetLastTrade",, "T")) -> 1.37 | E111: =IF(LEFT(RTD("cqg.rtd", ,"ContractData",B111, "LastTrade",, "T"),3)="768","",RTD("cqg.rtd", ,"ContractData",B111, "MT_LastBidVolume",, "T")) -> 8 | F111: =IF(LEFT(RTD("cqg.rtd", ,"ContractData",B111, "LastTrade",, "T"),3)="768","",RTD("cqg.rtd", ,"ContractData",B111, "Bid",, "T")) -> 4.23 | G111: =IF(LEFT(RTD("cqg.rtd", ,"ContractData",B111, "LastTrade",, "T"),3)="768","",RTD("cqg.rtd", ,"ContractData",B111, "Ask",, "T")) -> 4.33 | H111: =IF(LEFT(RTD("cqg.rtd", ,"ContractData",B111, "LastTrade",, "T"),3)="768","",RTD("cqg.rtd", ,"ContractData",B111, "MT_LastAskVolume",, "T")) -> 1 | I111: =IF(LEFT(RTD("cqg.rtd", ,"ContractData",B111, "LastTrade",, "T"),3)="768","",RTD("cqg.rtd", ,"ContractData",B111, "T_CVol",, "T")) -> 70 | J111: =IF(LEFT(RTD("cqg.rtd", ,"ContractData",B111, "LastTrade",, "T"),3)="768","",RTD("cqg.rtd", ,"ContractData",B111, "Y_CVol",, "T")) -> 258 | K111: =IF(LEFT(RTD("cqg.rtd", ,"ContractData",B111, "LastTrade",, "T"),3)="768","",IFERROR(IF(I111>J111,"+"&I111-J111,I111-J111)*1,"")) -> -188 | L111: =IF(LEFT(RTD("cqg.rtd", ,"ContractData",B111, "LastTrade",, "T"),3)="768","",RTD("cqg.rtd",,"StudyData",B111, "Bar",, "ContractOI", "D", "-1",,,,,"T")) -> 612 | M111: =IF(LEFT(RTD("cqg.rtd", ,"ContractData",B111, "LastTrade",, "T"),3)="768","",RTD("cqg.rtd",,"StudyData",B111, "Bar",, "ContractOI", "D", "-2",,,,,"T")) -> 573 | N111: =IF(LEFT(RTD("cqg.rtd", ,"ContractData",B111, "LastTrade",, "T"),3)="768","",IFERROR(IF(L111>M111,"+"&L111-M111,L111-M111)*1,"")) -> 39
A112: 10150 | B112: C.US.CLEJ2610150 | C112: =IF(LEFT(RTD("cqg.rtd", ,"ContractData",B112, "LastTrade",, "T"),3)="768","",RTD("cqg.rtd", ,"ContractData",B112, "LastTrade",, "T")) -> 6.09 | D112: =IF(C112="","",RTD("cqg.rtd", ,"ContractData",B112, "NetLastTrade",, "T")) -> 2.8 | E112: =IF(LEFT(RTD("cqg.rtd", ,"ContractData",B112, "LastTrade",, "T"),3)="768","",RTD("cqg.rtd", ,"ContractData",B112, "MT_LastBidVolume",, "T")) -> 8 | F112: =IF(LEFT(RTD("cqg.rtd", ,"ContractData",B112, "LastTrade",, "T"),3)="768","",RTD("cqg.rtd", ,"ContractData",B112, "Bid",, "T")) -> 4.12 | G112: =IF(LEFT(RTD("cqg.rtd", ,"ContractData",B112, "LastTrade",, "T"),3)="768","",RTD("cqg.rtd", ,"ContractData",B112, "Ask",, "T")) -> 4.22 | H112: =IF(LEFT(RTD("cqg.rtd", ,"ContractData",B112, "LastTrade",, "T"),3)="768","",RTD("cqg.rtd", ,"ContractData",B112, "MT_LastAskVolume",, "T")) -> 47 | I112: =IF(LEFT(RTD("cqg.rtd", ,"ContractData",B112, "LastTrade",, "T"),3)="768","",RTD("cqg.rtd", ,"ContractData",B112, "T_CVol",, "T")) -> 1 | J112: =IF(LEFT(RTD("cqg.rtd", ,"ContractData",B112, "LastTrade",, "T"),3)="768","",RTD("cqg.rtd", ,"ContractData",B112, "Y_CVol",, "T")) -> 101 | K112: =IF(LEFT(RTD("cqg.rtd", ,"ContractData",B112, "LastTrade",, "T"),3)="768","",IFERROR(IF(I112>J112,"+"&I112-J112,I112-J112)*1,"")) -> -100 | L112: =IF(LEFT(RTD("cqg.rtd", ,"ContractData",B112, "LastTrade",, "T"),3)="768","",RTD("cqg.rtd",,"StudyData",B112, "Bar",, "ContractOI", "D", "-1",,,,,"T")) -> 238 | M112: =IF(LEFT(RTD("cqg.rtd", ,"ContractData",B112, "LastTrade",, "T"),3)="768","",RTD("cqg.rtd",,"StudyData",B112, "Bar",, "ContractOI", "D", "-2",,,,,"T")) -> 267 | N112: =IF(LEFT(RTD("cqg.rtd", ,"ContractData",B112, "LastTrade",, "T"),3)="768","",IFERROR(IF(L112>M112,"+"&L112-M112,L112-M112)*1,"")) -> -29
A113: 10200 | B113: C.US.CLEJ2610200 | C113: =IF(LEFT(RTD("cqg.rtd", ,"ContractData",B113, "LastTrade",, "T"),3)="768","",RTD("cqg.rtd", ,"ContractData",B113, "LastTrade",, "T")) -> 3.95 | D113: =IF(C113="","",RTD("cqg.rtd", ,"ContractData",B113, "NetLastTrade",, "T")) -> 0.74 | E113: =IF(LEFT(RTD("cqg.rtd", ,"ContractData",B113, "LastTrade",, "T"),3)="768","",RTD("cqg.rtd", ,"ContractData",B113, "MT_LastBidVolume",, "T")) -> 3 | F113: =IF(LEFT(RTD("cqg.rtd", ,"ContractData",B113, "LastTrade",, "T"),3)="768","",RTD("cqg.rtd", ,"ContractData",B113, "Bid",, "T")) -> 4 | G113: =IF(LEFT(RTD("cqg.rtd", ,"ContractData",B113, "LastTrade",, "T"),3)="768","",RTD("cqg.rtd", ,"ContractData",B113, "Ask",, "T")) -> 4.1 | H113: =IF(LEFT(RTD("cqg.rtd", ,"ContractData",B113, "LastTrade",, "T"),3)="768","",RTD("cqg.rtd", ,"ContractData",B113, "MT_LastAskVolume",, "T")) -> 19 | I113: =IF(LEFT(RTD("cqg.rtd", ,"ContractData",B113, "LastTrade",, "T"),3)="768","",RTD("cqg.rtd", ,"ContractData",B113, "T_CVol",, "T")) -> 247 | J113: =IF(LEFT(RTD("cqg.rtd", ,"ContractData",B113, "LastTrade",, "T"),3)="768","",RTD("cqg.rtd", ,"ContractData",B113, "Y_CVol",, "T")) -> 749 | K113: =IF(LEFT(RTD("cqg.rtd", ,"ContractData",B113, "LastTrade",, "T"),3)="768","",IFERROR(IF(I113>J113,"+"&I113-J113,I113-J113)*1,"")) -> -502 | L113: =IF(LEFT(RTD("cqg.rtd", ,"ContractData",B113, "LastTrade",, "T"),3)="768","",RTD("cqg.rtd",,"StudyData",B113, "Bar",, "ContractOI", "D", "-1",,,,,"T")) -> 499 | M113: =IF(LEFT(RTD("cqg.rtd", ,"ContractData",B113, "LastTrade",, "T"),3)="768","",RTD("cqg.rtd",,"StudyData",B113, "Bar",, "ContractOI", "D", "-2",,,,,"T")) -> 379 | N113: =IF(LEFT(RTD("cqg.rtd", ,"ContractData",B113, "LastTrade",, "T"),3)="768","",IFERROR(IF(L113>M113,"+"&L113-M113,L113-M113)*1,"")) -> 120
A114: 10250 | B114: C.US.CLEJ2610250 | C114: =IF(LEFT(RTD("cqg.rtd", ,"ContractData",B114, "LastTrade",, "T"),3)="768","",RTD("cqg.rtd", ,"ContractData",B114, "LastTrade",, "T")) -> 4.43 | D114: =IF(C114="","",RTD("cqg.rtd", ,"ContractData",B114, "NetLastTrade",, "T")) -> 1.31 | E114: =IF(LEFT(RTD("cqg.rtd", ,"ContractData",B114, "LastTrade",, "T"),3)="768","",RTD("cqg.rtd", ,"ContractData",B114, "MT_LastBidVolume",, "T")) -> 1 | F114: =IF(LEFT(RTD("cqg.rtd", ,"ContractData",B114, "LastTrade",, "T"),3)="768","",RTD("cqg.rtd", ,"ContractData",B114, "Bid",, "T")) -> 3.89 | G114: =IF(LEFT(RTD("cqg.rtd", ,"ContractData",B114, "LastTrade",, "T"),3)="768","",RTD("cqg.rtd", ,"ContractData",B114, "Ask",, "T")) -> 3.98 | H114: =IF(LEFT(RTD("cqg.rtd", ,"ContractData",B114, "LastTrade",, "T"),3)="768","",RTD("cqg.rtd", ,"ContractData",B114, "MT_LastAskVolume",, "T")) -> 14 | I114: =IF(LEFT(RTD("cqg.rtd", ,"ContractData",B114, "LastTrade",, "T"),3)="768","",RTD("cqg.rtd", ,"ContractData",B114, "T_CVol",, "T")) -> 9 | J114: =IF(LEFT(RTD("cqg.rtd", ,"ContractData",B114, "LastTrade",, "T"),3)="768","",RTD("cqg.rtd", ,"ContractData",B114, "Y_CVol",, "T")) -> 106 | K114: =IF(LEFT(RTD("cqg.rtd", ,"ContractData",B114, "LastTrade",, "T"),3)="768","",IFERROR(IF(I114>J114,"+"&I114-J114,I114-J114)*1,"")) -> -97 | L114: =IF(LEFT(RTD("cqg.rtd", ,"ContractData",B114, "LastTrade",, "T"),3)="768","",RTD("cqg.rtd",,"StudyData",B114, "Bar",, "ContractOI", "D", "-1",,,,,"T")) -> 410 | M114: =IF(LEFT(RTD("cqg.rtd", ,"ContractData",B114, "LastTrade",, "T"),3)="768","",RTD("cqg.rtd",,"StudyData",B114, "Bar",, "ContractOI", "D", "-2",,,,,"T")) -> 447 | N114: =IF(LEFT(RTD("cqg.rtd", ,"ContractData",B114, "LastTrade",, "T"),3)="768","",IFERROR(IF(L114>M114,"+"&L114-M114,L114-M114)*1,"")) -> -37
A115: 10300 | B115: C.US.CLEJ2610300 | C115: =IF(LEFT(RTD("cqg.rtd", ,"ContractData",B115, "LastTrade",, "T"),3)="768","",RTD("cqg.rtd", ,"ContractData",B115, "LastTrade",, "T")) -> 3.73 | D115: =IF(C115="","",RTD("cqg.rtd", ,"ContractData",B115, "NetLastTrade",, "T")) -> 0.69 | E115: =IF(LEFT(RTD("cqg.rtd", ,"ContractData",B115, "LastTrade",, "T"),3)="768","",RTD("cqg.rtd", ,"ContractData",B115, "MT_LastBidVolume",, "T")) -> 2 | F115: =IF(LEFT(RTD("cqg.rtd", ,"ContractData",B115, "LastTrade",, "T"),3)="768","",RTD("cqg.rtd", ,"ContractData",B115, "Bid",, "T")) -> 3.78 | G115: =IF(LEFT(RTD("cqg.rtd", ,"ContractData",B115, "LastTrade",, "T"),3)="768","",RTD("cqg.rtd", ,"ContractData",B115, "Ask",, "T")) -> 3.87 | H115: =IF(LEFT(RTD("cqg.rtd", ,"ContractData",B115, "LastTrade",, "T"),3)="768","",RTD("cqg.rtd", ,"ContractData",B115, "MT_LastAskVolume",, "T")) -> 1 | I115: =IF(LEFT(RTD("cqg.rtd", ,"ContractData",B115, "LastTrade",, "T"),3)="768","",RTD("cqg.rtd", ,"ContractData",B115, "T_CVol",, "T")) -> 57 | J115: =IF(LEFT(RTD("cqg.rtd", ,"ContractData",B115, "LastTrade",, "T"),3)="768","",RTD("cqg.rtd", ,"ContractData",B115, "Y_CVol",, "T")) -> 390 | K115: =IF(LEFT(RTD("cqg.rtd", ,"ContractData",B115, "LastTrade",, "T"),3)="768","",IFERROR(IF(I115>J115,"+"&I115-J115,I115-J115)*1,"")) -> -333 | L115: =IF(LEFT(RTD("cqg.rtd", ,"ContractData",B115, "LastTrade",, "T"),3)="768","",RTD("cqg.rtd",,"StudyData",B115, "Bar",, "ContractOI", "D", "-1",,,,,"T")) -> 692 | M115: =IF(LEFT(RTD("cqg.rtd", ,"ContractData",B115, "LastTrade",, "T"),3)="768","",RTD("cqg.rtd",,"StudyData",B115, "Bar",, "ContractOI", "D", "-2",,,,,"T")) -> 636 | N115: =IF(LEFT(RTD("cqg.rtd", ,"ContractData",B115, "LastTrade",, "T"),3)="768","",IFERROR(IF(L115>M115,"+"&L115-M115,L115-M115)*1,"")) -> 56
A116: 10350 | B116: C.US.CLEJ2610350 | C116: =IF(LEFT(RTD("cqg.rtd", ,"ContractData",B116, "LastTrade",, "T"),3)="768","",RTD("cqg.rtd", ,"ContractData",B116, "LastTrade",, "T")) -> 2.9 | D116: =IF(C116="","",RTD("cqg.rtd", ,"ContractData",B116, "NetLastTrade",, "T")) -> -0.05 | E116: =IF(LEFT(RTD("cqg.rtd", ,"ContractData",B116, "LastTrade",, "T"),3)="768","",RTD("cqg.rtd", ,"ContractData",B116, "MT_LastBidVolume",, "T")) -> 9 | F116: =IF(LEFT(RTD("cqg.rtd", ,"ContractData",B116, "LastTrade",, "T"),3)="768","",RTD("cqg.rtd", ,"ContractData",B116, "Bid",, "T")) -> 3.67 | G116: =IF(LEFT(RTD("cqg.rtd", ,"ContractData",B116, "LastTrade",, "T"),3)="768","",RTD("cqg.rtd", ,"ContractData",B116, "Ask",, "T")) -> 3.76 | H116: =IF(LEFT(RTD("cqg.rtd", ,"ContractData",B116, "LastTrade",, "T"),3)="768","",RTD("cqg.rtd", ,"ContractData",B116, "MT_LastAskVolume",, "T")) -> 1 | I116: =IF(LEFT(RTD("cqg.rtd", ,"ContractData",B116, "LastTrade",, "T"),3)="768","",RTD("cqg.rtd", ,"ContractData",B116, "T_CVol",, "T")) -> 50 | J116: =IF(LEFT(RTD("cqg.rtd", ,"ContractData",B116, "LastTrade",, "T"),3)="768","",RTD("cqg.rtd", ,"ContractData",B116, "Y_CVol",, "T")) -> 26 | K116: =IF(LEFT(RTD("cqg.rtd", ,"ContractData",B116, "LastTrade",, "T"),3)="768","",IFERROR(IF(I116>J116,"+"&I116-J116,I116-J116)*1,"")) -> 24 | L116: =IF(LEFT(RTD("cqg.rtd", ,"ContractData",B116, "LastTrade",, "T"),3)="768","",RTD("cqg.rtd",,"StudyData",B116, "Bar",, "ContractOI", "D", "-1",,,,,"T")) -> 232 | M116: =IF(LEFT(RTD("cqg.rtd", ,"ContractData",B116, "LastTrade",, "T"),3)="768","",RTD("cqg.rtd",,"StudyData",B116, "Bar",, "ContractOI", "D", "-2",,,,,"T")) -> 235 | N116: =IF(LEFT(RTD("cqg.rtd", ,"ContractData",B116, "LastTrade",, "T"),3)="768","",IFERROR(IF(L116>M116,"+"&L116-M116,L116-M116)*1,"")) -> -3
A117: 10400 | B117: C.US.CLEJ2610400 | C117: =IF(LEFT(RTD("cqg.rtd", ,"ContractData",B117, "LastTrade",, "T"),3)="768","",RTD("cqg.rtd", ,"ContractData",B117, "LastTrade",, "T")) -> 4.03 | D117: =IF(C117="","",RTD("cqg.rtd", ,"ContractData",B117, "NetLastTrade",, "T")) -> 1.16 | E117: =IF(LEFT(RTD("cqg.rtd", ,"ContractData",B117, "LastTrade",, "T"),3)="768","",RTD("cqg.rtd", ,"ContractData",B117, "MT_LastBidVolume",, "T")) -> 22 | F117: =IF(LEFT(RTD("cqg.rtd", ,"ContractData",B117, "LastTrade",, "T"),3)="768","",RTD("cqg.rtd", ,"ContractData",B117, "Bid",, "T")) -> 3.57 | G117: =IF(LEFT(RTD("cqg.rtd", ,"ContractData",B117, "LastTrade",, "T"),3)="768","",RTD("cqg.rtd", ,"ContractData",B117, "Ask",, "T")) -> 3.66 | H117: =IF(LEFT(RTD("cqg.rtd", ,"ContractData",B117, "LastTrade",, "T"),3)="768","",RTD("cqg.rtd", ,"ContractData",B117, "MT_LastAskVolume",, "T")) -> 2 | I117: =IF(LEFT(RTD("cqg.rtd", ,"ContractData",B117, "LastTrade",, "T"),3)="768","",RTD("cqg.rtd", ,"ContractData",B117, "T_CVol",, "T")) -> 4 | J117: =IF(LEFT(RTD("cqg.rtd", ,"ContractData",B117, "LastTrade",, "T"),3)="768","",RTD("cqg.rtd", ,"ContractData",B117, "Y_CVol",, "T")) -> 43 | K117: =IF(LEFT(RTD("cqg.rtd", ,"ContractData",B117, "LastTrade",, "T"),3)="768","",IFERROR(IF(I117>J117,"+"&I117-J117,I117-J117)*1,"")) -> -39 | L117: =IF(LEFT(RTD("cqg.rtd", ,"ContractData",B117, "LastTrade",, "T"),3)="768","",RTD("cqg.rtd",,"StudyData",B117, "Bar",, "ContractOI", "D", "-1",,,,,"T")) -> 269 | M117: =IF(LEFT(RTD("cqg.rtd", ,"ContractData",B117, "LastTrade",, "T"),3)="768","",RTD("cqg.rtd",,"StudyData",B117, "Bar",, "ContractOI", "D", "-2",,,,,"T")) -> 273 | N117: =IF(LEFT(RTD("cqg.rtd", ,"ContractData",B117, "LastTrade",, "T"),3)="768","",IFERROR(IF(L117>M117,"+"&L117-M117,L117-M117)*1,"")) -> -4
A118: 10450 | B118: C.US.CLEJ2610450 | C118: =IF(LEFT(RTD("cqg.rtd", ,"ContractData",B118, "LastTrade",, "T"),3)="768","",RTD("cqg.rtd", ,"ContractData",B118, "LastTrade",, "T")) -> 2.92 | D118: =IF(C118="","",RTD("cqg.rtd", ,"ContractData",B118, "NetLastTrade",, "T")) -> 0.12 | E118: =IF(LEFT(RTD("cqg.rtd", ,"ContractData",B118, "LastTrade",, "T"),3)="768","",RTD("cqg.rtd", ,"ContractData",B118, "MT_LastBidVolume",, "T")) -> 21 | F118: =IF(LEFT(RTD("cqg.rtd", ,"ContractData",B118, "LastTrade",, "T"),3)="768","",RTD("cqg.rtd", ,"ContractData",B118, "Bid",, "T")) -> 3.46 | G118: =IF(LEFT(RTD("cqg.rtd", ,"ContractData",B118, "LastTrade",, "T"),3)="768","",RTD("cqg.rtd", ,"ContractData",B118, "Ask",, "T")) -> 3.56 | H118: =IF(LEFT(RTD("cqg.rtd", ,"ContractData",B118, "LastTrade",, "T"),3)="768","",RTD("cqg.rtd", ,"ContractData",B118, "MT_LastAskVolume",, "T")) -> 6 | I118: =IF(LEFT(RTD("cqg.rtd", ,"ContractData",B118, "LastTrade",, "T"),3)="768","",RTD("cqg.rtd", ,"ContractData",B118, "T_CVol",, "T")) -> 0 | J118: =IF(LEFT(RTD("cqg.rtd", ,"ContractData",B118, "LastTrade",, "T"),3)="768","",RTD("cqg.rtd", ,"ContractData",B118, "Y_CVol",, "T")) -> 9 | K118: =IF(LEFT(RTD("cqg.rtd", ,"ContractData",B118, "LastTrade",, "T"),3)="768","",IFERROR(IF(I118>J118,"+"&I118-J118,I118-J118)*1,"")) -> -9 | L118: =IF(LEFT(RTD("cqg.rtd", ,"ContractData",B118, "LastTrade",, "T"),3)="768","",RTD("cqg.rtd",,"StudyData",B118, "Bar",, "ContractOI", "D", "-1",,,,,"T")) -> 326 | M118: =IF(LEFT(RTD("cqg.rtd", ,"ContractData",B118, "LastTrade",, "T"),3)="768","",RTD("cqg.rtd",,"StudyData",B118, "Bar",, "ContractOI", "D", "-2",,,,,"T")) -> 324 | N118: =IF(LEFT(RTD("cqg.rtd", ,"ContractData",B118, "LastTrade",, "T"),3)="768","",IFERROR(IF(L118>M118,"+"&L118-M118,L118-M118)*1,"")) -> 2
A119: 10500 | B119: C.US.CLEJ2610500 | C119: =IF(LEFT(RTD("cqg.rtd", ,"ContractData",B119, "LastTrade",, "T"),3)="768","",RTD("cqg.rtd", ,"ContractData",B119, "LastTrade",, "T")) -> 3.26 | D119: =IF(C119="","",RTD("cqg.rtd", ,"ContractData",B119, "NetLastTrade",, "T")) -> 0.54 | E119: =IF(LEFT(RTD("cqg.rtd", ,"ContractData",B119, "LastTrade",, "T"),3)="768","",RTD("cqg.rtd", ,"ContractData",B119, "MT_LastBidVolume",, "T")) -> 8 | F119: =IF(LEFT(RTD("cqg.rtd", ,"ContractData",B119, "LastTrade",, "T"),3)="768","",RTD("cqg.rtd", ,"ContractData",B119, "Bid",, "T")) -> 3.37 | G119: =IF(LEFT(RTD("cqg.rtd", ,"ContractData",B119, "LastTrade",, "T"),3)="768","",RTD("cqg.rtd", ,"ContractData",B119, "Ask",, "T")) -> 3.46 | H119: =IF(LEFT(RTD("cqg.rtd", ,"ContractData",B119, "LastTrade",, "T"),3)="768","",RTD("cqg.rtd", ,"ContractData",B119, "MT_LastAskVolume",, "T")) -> 1 | I119: =IF(LEFT(RTD("cqg.rtd", ,"ContractData",B119, "LastTrade",, "T"),3)="768","",RTD("cqg.rtd", ,"ContractData",B119, "T_CVol",, "T")) -> 174 | J119: =IF(LEFT(RTD("cqg.rtd", ,"ContractData",B119, "LastTrade",, "T"),3)="768","",RTD("cqg.rtd", ,"ContractData",B119, "Y_CVol",, "T")) -> 1643 | K119: =IF(LEFT(RTD("cqg.rtd", ,"ContractData",B119, "LastTrade",, "T"),3)="768","",IFERROR(IF(I119>J119,"+"&I119-J119,I119-J119)*1,"")) -> -1469 | L119: =IF(LEFT(RTD("cqg.rtd", ,"ContractData",B119, "LastTrade",, "T"),3)="768","",RTD("cqg.rtd",,"StudyData",B119, "Bar",, "ContractOI", "D", "-1",,,,,"T")) -> 6445 | M119: =IF(LEFT(RTD("cqg.rtd", ,"ContractData",B119, "LastTrade",, "T"),3)="768","",RTD("cqg.rtd",,"StudyData",B119, "Bar",, "ContractOI", "D", "-2",,,,,"T")) -> 7559 | N119: =IF(LEFT(RTD("cqg.rtd", ,"ContractData",B119, "LastTrade",, "T"),3)="768","",IFERROR(IF(L119>M119,"+"&L119-M119,L119-M119)*1,"")) -> -1114
A120: 10550 | B120: C.US.CLEJ2610550 | C120: =IF(LEFT(RTD("cqg.rtd", ,"ContractData",B120, "LastTrade",, "T"),3)="768","",RTD("cqg.rtd", ,"ContractData",B120, "LastTrade",, "T")) -> 2.84 | D120: =IF(C120="","",RTD("cqg.rtd", ,"ContractData",B120, "NetLastTrade",, "T")) -> 0.19 | E120: =IF(LEFT(RTD("cqg.rtd", ,"ContractData",B120, "LastTrade",, "T"),3)="768","",RTD("cqg.rtd", ,"ContractData",B120, "MT_LastBidVolume",, "T")) -> 24 | F120: =IF(LEFT(RTD("cqg.rtd", ,"ContractData",B120, "LastTrade",, "T"),3)="768","",RTD("cqg.rtd", ,"ContractData",B120, "Bid",, "T")) -> 3.27 | G120: =IF(LEFT(RTD("cqg.rtd", ,"ContractData",B120, "LastTrade",, "T"),3)="768","",RTD("cqg.rtd", ,"ContractData",B120, "Ask",, "T")) -> 3.37 | H120: =IF(LEFT(RTD("cqg.rtd", ,"ContractData",B120, "LastTrade",, "T"),3)="768","",RTD("cqg.rtd", ,"ContractData",B120, "MT_LastAskVolume",, "T")) -> 26 | I120: =IF(LEFT(RTD("cqg.rtd", ,"ContractData",B120, "LastTrade",, "T"),3)="768","",RTD("cqg.rtd", ,"ContractData",B120, "T_CVol",, "T")) -> 0 | J120: =IF(LEFT(RTD("cqg.rtd", ,"ContractData",B120, "LastTrade",, "T"),3)="768","",RTD("cqg.rtd", ,"ContractData",B120, "Y_CVol",, "T")) -> 9 | K120: =IF(LEFT(RTD("cqg.rtd", ,"ContractData",B120, "LastTrade",, "T"),3)="768","",IFERROR(IF(I120>J120,"+"&I120-J120,I120-J120)*1,"")) -> -9 | L120: =IF(LEFT(RTD("cqg.rtd", ,"ContractData",B120, "LastTrade",, "T"),3)="768","",RTD("cqg.rtd",,"StudyData",B120, "Bar",, "ContractOI", "D", "-1",,,,,"T")) -> 218 | M120: =IF(LEFT(RTD("cqg.rtd", ,"ContractData",B120, "LastTrade",, "T"),3)="768","",RTD("cqg.rtd",,"StudyData",B120, "Bar",, "ContractOI", "D", "-2",,,,,"T")) -> 212 | N120: =IF(LEFT(RTD("cqg.rtd", ,"ContractData",B120, "LastTrade",, "T"),3)="768","",IFERROR(IF(L120>M120,"+"&L120-M120,L120-M120)*1,"")) -> 6
A121: 10600 | B121: C.US.CLEJ2610600 | C121: =IF(LEFT(RTD("cqg.rtd", ,"ContractData",B121, "LastTrade",, "T"),3)="768","",RTD("cqg.rtd", ,"ContractData",B121, "LastTrade",, "T")) -> 3.61 | D121: =IF(C121="","",RTD("cqg.rtd", ,"ContractData",B121, "NetLastTrade",, "T")) -> 1.03 | E121: =IF(LEFT(RTD("cqg.rtd", ,"ContractData",B121, "LastTrade",, "T"),3)="768","",RTD("cqg.rtd", ,"ContractData",B121, "MT_LastBidVolume",, "T")) -> 9 | F121: =IF(LEFT(RTD("cqg.rtd", ,"ContractData",B121, "LastTrade",, "T"),3)="768","",RTD("cqg.rtd", ,"ContractData",B121, "Bid",, "T")) -> 3.18 | G121: =IF(LEFT(RTD("cqg.rtd", ,"ContractData",B121, "LastTrade",, "T"),3)="768","",RTD("cqg.rtd", ,"ContractData",B121, "Ask",, "T")) -> 3.27 | H121: =IF(LEFT(RTD("cqg.rtd", ,"ContractData",B121, "LastTrade",, "T"),3)="768","",RTD("cqg.rtd", ,"ContractData",B121, "MT_LastAskVolume",, "T")) -> 18 | I121: =IF(LEFT(RTD("cqg.rtd", ,"ContractData",B121, "LastTrade",, "T"),3)="768","",RTD("cqg.rtd", ,"ContractData",B121, "T_CVol",, "T")) -> 40 | J121: =IF(LEFT(RTD("cqg.rtd", ,"ContractData",B121, "LastTrade",, "T"),3)="768","",RTD("cqg.rtd", ,"ContractData",B121, "Y_CVol",, "T")) -> 314 | K121: =IF(LEFT(RTD("cqg.rtd", ,"ContractData",B121, "LastTrade",, "T"),3)="768","",IFERROR(IF(I121>J121,"+"&I121-J121,I121-J121)*1,"")) -> -274 | L121: =IF(LEFT(RTD("cqg.rtd", ,"ContractData",B121, "LastTrade",, "T"),3)="768","",RTD("cqg.rtd",,"StudyData",B121, "Bar",, "ContractOI", "D", "-1",,,,,"T")) -> 712 | M121: =IF(LEFT(RTD("cqg.rtd", ,"ContractData",B121, "LastTrade",, "T"),3)="768","",RTD("cqg.rtd",,"StudyData",B121, "Bar",, "ContractOI", "D", "-2",,,,,"T")) -> 756 | N121: =IF(LEFT(RTD("cqg.rtd", ,"ContractData",B121, "LastTrade",, "T"),3)="768","",IFERROR(IF(L121>M121,"+"&L121-M121,L121-M121)*1,"")) -> -44
A122: 10650 | B122: C.US.CLEJ2610650 | C122: =IF(LEFT(RTD("cqg.rtd", ,"ContractData",B122, "LastTrade",, "T"),3)="768","",RTD("cqg.rtd", ,"ContractData",B122, "LastTrade",, "T")) -> 4.12 | D122: =IF(C122="","",RTD("cqg.rtd", ,"ContractData",B122, "NetLastTrade",, "T")) -> 1.61 | E122: =IF(LEFT(RTD("cqg.rtd", ,"ContractData",B122, "LastTrade",, "T"),3)="768","",RTD("cqg.rtd", ,"ContractData",B122, "MT_LastBidVolume",, "T")) -> 23 | F122: =IF(LEFT(RTD("cqg.rtd", ,"ContractData",B122, "LastTrade",, "T"),3)="768","",RTD("cqg.rtd", ,"ContractData",B122, "Bid",, "T")) -> 3.09 | G122: =IF(LEFT(RTD("cqg.rtd", ,"ContractData",B122, "LastTrade",, "T"),3)="768","",RTD("cqg.rtd", ,"ContractData",B122, "Ask",, "T")) -> 3.18 | H122: =IF(LEFT(RTD("cqg.rtd", ,"ContractData",B122, "LastTrade",, "T"),3)="768","",RTD("cqg.rtd", ,"ContractData",B122, "MT_LastAskVolume",, "T")) -> 23 | I122: =IF(LEFT(RTD("cqg.rtd", ,"ContractData",B122, "LastTrade",, "T"),3)="768","",RTD("cqg.rtd", ,"ContractData",B122, "T_CVol",, "T")) -> 13 | J122: =IF(LEFT(RTD("cqg.rtd", ,"ContractData",B122, "LastTrade",, "T"),3)="768","",RTD("cqg.rtd", ,"ContractData",B122, "Y_CVol",, "T")) -> 223 | K122: =IF(LEFT(RTD("cqg.rtd", ,"ContractData",B122, "LastTrade",, "T"),3)="768","",IFERROR(IF(I122>J122,"+"&I122-J122,I122-J122)*1,"")) -> -210 | L122: =IF(LEFT(RTD("cqg.rtd", ,"ContractData",B122, "LastTrade",, "T"),3)="768","",RTD("cqg.rtd",,"StudyData",B122, "Bar",, "ContractOI", "D", "-1",,,,,"T")) -> 105 | M122: =IF(LEFT(RTD("cqg.rtd", ,"ContractData",B122, "LastTrade",, "T"),3)="768","",RTD("cqg.rtd",,"StudyData",B122, "Bar",, "ContractOI", "D", "-2",,,,,"T")) -> 141 | N122: =IF(LEFT(RTD("cqg.rtd", ,"ContractData",B122, "LastTrade",, "T"),3)="768","",IFERROR(IF(L122>M122,"+"&L122-M122,L122-M122)*1,"")) -> -36
A123: 10700 | B123: C.US.CLEJ2610700 | C123: =IF(LEFT(RTD("cqg.rtd", ,"ContractData",B123, "LastTrade",, "T"),3)="768","",RTD("cqg.rtd", ,"ContractData",B123, "LastTrade",, "T")) -> 3.05 | D123: =IF(C123="","",RTD("cqg.rtd", ,"ContractData",B123, "NetLastTrade",, "T")) -> 0.61 | E123: =IF(LEFT(RTD("cqg.rtd", ,"ContractData",B123, "LastTrade",, "T"),3)="768","",RTD("cqg.rtd", ,"ContractData",B123, "MT_LastBidVolume",, "T")) -> 9 | F123: =IF(LEFT(RTD("cqg.rtd", ,"ContractData",B123, "LastTrade",, "T"),3)="768","",RTD("cqg.rtd", ,"ContractData",B123, "Bid",, "T")) -> 3 | G123: =IF(LEFT(RTD("cqg.rtd", ,"ContractData",B123, "LastTrade",, "T"),3)="768","",RTD("cqg.rtd", ,"ContractData",B123, "Ask",, "T")) -> 3.09 | H123: =IF(LEFT(RTD("cqg.rtd", ,"ContractData",B123, "LastTrade",, "T"),3)="768","",RTD("cqg.rtd", ,"ContractData",B123, "MT_LastAskVolume",, "T")) -> 20 | I123: =IF(LEFT(RTD("cqg.rtd", ,"ContractData",B123, "LastTrade",, "T"),3)="768","",RTD("cqg.rtd", ,"ContractData",B123, "T_CVol",, "T")) -> 153 | J123: =IF(LEFT(RTD("cqg.rtd", ,"ContractData",B123, "LastTrade",, "T"),3)="768","",RTD("cqg.rtd", ,"ContractData",B123, "Y_CVol",, "T")) -> 525 | K123: =IF(LEFT(RTD("cqg.rtd", ,"ContractData",B123, "LastTrade",, "T"),3)="768","",IFERROR(IF(I123>J123,"+"&I123-J123,I123-J123)*1,"")) -> -372 | L123: =IF(LEFT(RTD("cqg.rtd", ,"ContractData",B123, "LastTrade",, "T"),3)="768","",RTD("cqg.rtd",,"StudyData",B123, "Bar",, "ContractOI", "D", "-1",,,,,"T")) -> 590 | M123: =IF(LEFT(RTD("cqg.rtd", ,"ContractData",B123, "LastTrade",, "T"),3)="768","",RTD("cqg.rtd",,"StudyData",B123, "Bar",, "ContractOI", "D", "-2",,,,,"T")) -> 354 | N123: =IF(LEFT(RTD("cqg.rtd", ,"ContractData",B123, "LastTrade",, "T"),3)="768","",IFERROR(IF(L123>M123,"+"&L123-M123,L123-M123)*1,"")) -> 236
A124: 10750 | B124: C.US.CLEJ2610750 | C124: =IF(LEFT(RTD("cqg.rtd", ,"ContractData",B124, "LastTrade",, "T"),3)="768","",RTD("cqg.rtd", ,"ContractData",B124, "LastTrade",, "T")) -> 2.89 | D124: =IF(C124="","",RTD("cqg.rtd", ,"ContractData",B124, "NetLastTrade",, "T")) -> 0.52 | E124: =IF(LEFT(RTD("cqg.rtd", ,"ContractData",B124, "LastTrade",, "T"),3)="768","",RTD("cqg.rtd", ,"ContractData",B124, "MT_LastBidVolume",, "T")) -> 23 | F124: =IF(LEFT(RTD("cqg.rtd", ,"ContractData",B124, "LastTrade",, "T"),3)="768","",RTD("cqg.rtd", ,"ContractData",B124, "Bid",, "T")) -> 2.92 | G124: =IF(LEFT(RTD("cqg.rtd", ,"ContractData",B124, "LastTrade",, "T"),3)="768","",RTD("cqg.rtd", ,"ContractData",B124, "Ask",, "T")) -> 3.01 | H124: =IF(LEFT(RTD("cqg.rtd", ,"ContractData",B124, "LastTrade",, "T"),3)="768","",RTD("cqg.rtd", ,"ContractData",B124, "MT_LastAskVolume",, "T")) -> 22 | I124: =IF(LEFT(RTD("cqg.rtd", ,"ContractData",B124, "LastTrade",, "T"),3)="768","",RTD("cqg.rtd", ,"ContractData",B124, "T_CVol",, "T")) -> 146 | J124: =IF(LEFT(RTD("cqg.rtd", ,"ContractData",B124, "LastTrade",, "T"),3)="768","",RTD("cqg.rtd", ,"ContractData",B124, "Y_CVol",, "T")) -> 556 | K124: =IF(LEFT(RTD("cqg.rtd", ,"ContractData",B124, "LastTrade",, "T"),3)="768","",IFERROR(IF(I124>J124,"+"&I124-J124,I124-J124)*1,"")) -> -410 | L124: =IF(LEFT(RTD("cqg.rtd", ,"ContractData",B124, "LastTrade",, "T"),3)="768","",RTD("cqg.rtd",,"StudyData",B124, "Bar",, "ContractOI", "D", "-1",,,,,"T")) -> 378 | M124: =IF(LEFT(RTD("cqg.rtd", ,"ContractData",B124, "LastTrade",, "T"),3)="768","",RTD("cqg.rtd",,"StudyData",B124, "Bar",, "ContractOI", "D", "-2",,,,,"T")) -> 203 | N124: =IF(LEFT(RTD("cqg.rtd", ,"ContractData",B124, "LastTrade",, "T"),3)="768","",IFERROR(IF(L124>M124,"+"&L124-M124,L124-M124)*1,"")) -> 175
A125: 10800 | B125: C.US.CLEJ2610800 | C125: =IF(LEFT(RTD("cqg.rtd", ,"ContractData",B125, "LastTrade",, "T"),3)="768","",RTD("cqg.rtd", ,"ContractData",B125, "LastTrade",, "T")) -> 2.93 | D125: =IF(C125="","",RTD("cqg.rtd", ,"ContractData",B125, "NetLastTrade",, "T")) -> 0.62 | E125: =IF(LEFT(RTD("cqg.rtd", ,"ContractData",B125, "LastTrade",, "T"),3)="768","",RTD("cqg.rtd", ,"ContractData",B125, "MT_LastBidVolume",, "T")) -> 22 | F125: =IF(LEFT(RTD("cqg.rtd", ,"ContractData",B125, "LastTrade",, "T"),3)="768","",RTD("cqg.rtd", ,"ContractData",B125, "Bid",, "T")) -> 2.84 | G125: =IF(LEFT(RTD("cqg.rtd", ,"ContractData",B125, "LastTrade",, "T"),3)="768","",RTD("cqg.rtd", ,"ContractData",B125, "Ask",, "T")) -> 2.92 | H125: =IF(LEFT(RTD("cqg.rtd", ,"ContractData",B125, "LastTrade",, "T"),3)="768","",RTD("cqg.rtd", ,"ContractData",B125, "MT_LastAskVolume",, "T")) -> 22 | I125: =IF(LEFT(RTD("cqg.rtd", ,"ContractData",B125, "LastTrade",, "T"),3)="768","",RTD("cqg.rtd", ,"ContractData",B125, "T_CVol",, "T")) -> 89 | J125: =IF(LEFT(RTD("cqg.rtd", ,"ContractData",B125, "LastTrade",, "T"),3)="768","",RTD("cqg.rtd", ,"ContractData",B125, "Y_CVol",, "T")) -> 236 | K125: =IF(LEFT(RTD("cqg.rtd", ,"ContractData",B125, "LastTrade",, "T"),3)="768","",IFERROR(IF(I125>J125,"+"&I125-J125,I125-J125)*1,"")) -> -147 | L125: =IF(LEFT(RTD("cqg.rtd", ,"ContractData",B125, "LastTrade",, "T"),3)="768","",RTD("cqg.rtd",,"StudyData",B125, "Bar",, "ContractOI", "D", "-1",,,,,"T")) -> 544 | M125: =IF(LEFT(RTD("cqg.rtd", ,"ContractData",B125, "LastTrade",, "T"),3)="768","",RTD("cqg.rtd",,"StudyData",B125, "Bar",, "ContractOI", "D", "-2",,,,,"T")) -> 483 | N125: =IF(LEFT(RTD("cqg.rtd", ,"ContractData",B125, "LastTrade",, "T"),3)="768","",IFERROR(IF(L125>M125,"+"&L125-M125,L125-M125)*1,"")) -> 61
A126: 10850 | B126: C.US.CLEJ2610850 | C126: =IF(LEFT(RTD("cqg.rtd", ,"ContractData",B126, "LastTrade",, "T"),3)="768","",RTD("cqg.rtd", ,"ContractData",B126, "LastTrade",, "T")) -> 2.8 | D126: =IF(C126="","",RTD("cqg.rtd", ,"ContractData",B126, "NetLastTrade",, "T")) -> 0.55 | E126: =IF(LEFT(RTD("cqg.rtd", ,"ContractData",B126, "LastTrade",, "T"),3)="768","",RTD("cqg.rtd", ,"ContractData",B126, "MT_LastBidVolume",, "T")) -> 25 | F126: =IF(LEFT(RTD("cqg.rtd", ,"ContractData",B126, "LastTrade",, "T"),3)="768","",RTD("cqg.rtd", ,"ContractData",B126, "Bid",, "T")) -> 2.75 | G126: =IF(LEFT(RTD("cqg.rtd", ,"ContractData",B126, "LastTrade",, "T"),3)="768","",RTD("cqg.rtd", ,"ContractData",B126, "Ask",, "T")) -> 2.84 | H126: =IF(LEFT(RTD("cqg.rtd", ,"ContractData",B126, "LastTrade",, "T"),3)="768","",RTD("cqg.rtd", ,"ContractData",B126, "MT_LastAskVolume",, "T")) -> 23 | I126: =IF(LEFT(RTD("cqg.rtd", ,"ContractData",B126, "LastTrade",, "T"),3)="768","",RTD("cqg.rtd", ,"ContractData",B126, "T_CVol",, "T")) -> 2 | J126: =IF(LEFT(RTD("cqg.rtd", ,"ContractData",B126, "LastTrade",, "T"),3)="768","",RTD("cqg.rtd", ,"ContractData",B126, "Y_CVol",, "T")) -> 24 | K126: =IF(LEFT(RTD("cqg.rtd", ,"ContractData",B126, "LastTrade",, "T"),3)="768","",IFERROR(IF(I126>J126,"+"&I126-J126,I126-J126)*1,"")) -> -22 | L126: =IF(LEFT(RTD("cqg.rtd", ,"ContractData",B126, "LastTrade",, "T"),3)="768","",RTD("cqg.rtd",,"StudyData",B126, "Bar",, "ContractOI", "D", "-1",,,,,"T")) -> 143 | M126: =IF(LEFT(RTD("cqg.rtd", ,"ContractData",B126, "LastTrade",, "T"),3)="768","",RTD("cqg.rtd",,"StudyData",B126, "Bar",, "ContractOI", "D", "-2",,,,,"T")) -> 153 | N126: =IF(LEFT(RTD("cqg.rtd", ,"ContractData",B126, "LastTrade",, "T"),3)="768","",IFERROR(IF(L126>M126,"+"&L126-M126,L126-M126)*1,"")) -> -10
A127: 10900 | B127: C.US.CLEJ2610900 | C127: =IF(LEFT(RTD("cqg.rtd", ,"ContractData",B127, "LastTrade",, "T"),3)="768","",RTD("cqg.rtd", ,"ContractData",B127, "LastTrade",, "T")) -> 2.69 | D127: =IF(C127="","",RTD("cqg.rtd", ,"ContractData",B127, "NetLastTrade",, "T")) -> 0.5 | E127: =IF(LEFT(RTD("cqg.rtd", ,"ContractData",B127, "LastTrade",, "T"),3)="768","",RTD("cqg.rtd", ,"ContractData",B127, "MT_LastBidVolume",, "T")) -> 25 | F127: =IF(LEFT(RTD("cqg.rtd", ,"ContractData",B127, "LastTrade",, "T"),3)="768","",RTD("cqg.rtd", ,"ContractData",B127, "Bid",, "T")) -> 2.67 | G127: =IF(LEFT(RTD("cqg.rtd", ,"ContractData",B127, "LastTrade",, "T"),3)="768","",RTD("cqg.rtd", ,"ContractData",B127, "Ask",, "T")) -> 2.76 | H127: =IF(LEFT(RTD("cqg.rtd", ,"ContractData",B127, "LastTrade",, "T"),3)="768","",RTD("cqg.rtd", ,"ContractData",B127, "MT_LastAskVolume",, "T")) -> 21 | I127: =IF(LEFT(RTD("cqg.rtd", ,"ContractData",B127, "LastTrade",, "T"),3)="768","",RTD("cqg.rtd", ,"ContractData",B127, "T_CVol",, "T")) -> 17 | J127: =IF(LEFT(RTD("cqg.rtd", ,"ContractData",B127, "LastTrade",, "T"),3)="768","",RTD("cqg.rtd", ,"ContractData",B127, "Y_CVol",, "T")) -> 155 | K127: =IF(LEFT(RTD("cqg.rtd", ,"ContractData",B127, "LastTrade",, "T"),3)="768","",IFERROR(IF(I127>J127,"+"&I127-J127,I127-J127)*1,"")) -> -138 | L127: =IF(LEFT(RTD("cqg.rtd", ,"ContractData",B127, "LastTrade",, "T"),3)="768","",RTD("cqg.rtd",,"StudyData",B127, "Bar",, "ContractOI", "D", "-1",,,,,"T")) -> 1643 | M127: =IF(LEFT(RTD("cqg.rtd", ,"ContractData",B127, "LastTrade",, "T"),3)="768","",RTD("cqg.rtd",,"StudyData",B127, "Bar",, "ContractOI", "D", "-2",,,,,"T")) -> 1717 | N127: =IF(LEFT(RTD("cqg.rtd", ,"ContractData",B127, "LastTrade",, "T"),3)="768","",IFERROR(IF(L127>M127,"+"&L127-M127,L127-M127)*1,"")) -> -74
A128: 10950 | B128: C.US.CLEJ2610950 | C128: =IF(LEFT(RTD("cqg.rtd", ,"ContractData",B128, "LastTrade",, "T"),3)="768","",RTD("cqg.rtd", ,"ContractData",B128, "LastTrade",, "T")) -> 2.15 | D128: =IF(C128="","",RTD("cqg.rtd", ,"ContractData",B128, "NetLastTrade",, "T")) -> 0.02 | E128: =IF(LEFT(RTD("cqg.rtd", ,"ContractData",B128, "LastTrade",, "T"),3)="768","",RTD("cqg.rtd", ,"ContractData",B128, "MT_LastBidVolume",, "T")) -> 23 | F128: =IF(LEFT(RTD("cqg.rtd", ,"ContractData",B128, "LastTrade",, "T"),3)="768","",RTD("cqg.rtd", ,"ContractData",B128, "Bid",, "T")) -> 2.6 | G128: =IF(LEFT(RTD("cqg.rtd", ,"ContractData",B128, "LastTrade",, "T"),3)="768","",RTD("cqg.rtd", ,"ContractData",B128, "Ask",, "T")) -> 2.69 | H128: =IF(LEFT(RTD("cqg.rtd", ,"ContractData",B128, "LastTrade",, "T"),3)="768","",RTD("cqg.rtd", ,"ContractData",B128, "MT_LastAskVolume",, "T")) -> 48 | I128: =IF(LEFT(RTD("cqg.rtd", ,"ContractData",B128, "LastTrade",, "T"),3)="768","",RTD("cqg.rtd", ,"ContractData",B128, "T_CVol",, "T")) -> 0 | J128: =IF(LEFT(RTD("cqg.rtd", ,"ContractData",B128, "LastTrade",, "T"),3)="768","",RTD("cqg.rtd", ,"ContractData",B128, "Y_CVol",, "T")) -> 9 | K128: =IF(LEFT(RTD("cqg.rtd", ,"ContractData",B128, "LastTrade",, "T"),3)="768","",IFERROR(IF(I128>J128,"+"&I128-J128,I128-J128)*1,"")) -> -9 | L128: =IF(LEFT(RTD("cqg.rtd", ,"ContractData",B128, "LastTrade",, "T"),3)="768","",RTD("cqg.rtd",,"StudyData",B128, "Bar",, "ContractOI", "D", "-1",,,,,"T")) -> 140 | M128: =IF(LEFT(RTD("cqg.rtd", ,"ContractData",B128, "LastTrade",, "T"),3)="768","",RTD("cqg.rtd",,"StudyData",B128, "Bar",, "ContractOI", "D", "-2",,,,,"T")) -> 144 | N128: =IF(LEFT(RTD("cqg.rtd", ,"ContractData",B128, "LastTrade",, "T"),3)="768","",IFERROR(IF(L128>M128,"+"&L128-M128,L128-M128)*1,"")) -> -4
A129: 11000 | B129: C.US.CLEJ2611000 | C129: =IF(LEFT(RTD("cqg.rtd", ,"ContractData",B129, "LastTrade",, "T"),3)="768","",RTD("cqg.rtd", ,"ContractData",B129, "LastTrade",, "T")) -> 2.55 | D129: =IF(C129="","",RTD("cqg.rtd", ,"ContractData",B129, "NetLastTrade",, "T")) -> 0.48 | E129: =IF(LEFT(RTD("cqg.rtd", ,"ContractData",B129, "LastTrade",, "T"),3)="768","",RTD("cqg.rtd", ,"ContractData",B129, "MT_LastBidVolume",, "T")) -> 1 | F129: =IF(LEFT(RTD("cqg.rtd", ,"ContractData",B129, "LastTrade",, "T"),3)="768","",RTD("cqg.rtd", ,"ContractData",B129, "Bid",, "T")) -> 2.58 | G129: =IF(LEFT(RTD("cqg.rtd", ,"ContractData",B129, "LastTrade",, "T"),3)="768","",RTD("cqg.rtd", ,"ContractData",B129, "Ask",, "T")) -> 2.6 | H129: =IF(LEFT(RTD("cqg.rtd", ,"ContractData",B129, "LastTrade",, "T"),3)="768","",RTD("cqg.rtd", ,"ContractData",B129, "MT_LastAskVolume",, "T")) -> 4 | I129: =IF(LEFT(RTD("cqg.rtd", ,"ContractData",B129, "LastTrade",, "T"),3)="768","",RTD("cqg.rtd", ,"ContractData",B129, "T_CVol",, "T")) -> 686 | J129: =IF(LEFT(RTD("cqg.rtd", ,"ContractData",B129, "LastTrade",, "T"),3)="768","",RTD("cqg.rtd", ,"ContractData",B129, "Y_CVol",, "T")) -> 2942 | K129: =IF(LEFT(RTD("cqg.rtd", ,"ContractData",B129, "LastTrade",, "T"),3)="768","",IFERROR(IF(I129>J129,"+"&I129-J129,I129-J129)*1,"")) -> -2256 | L129: =IF(LEFT(RTD("cqg.rtd", ,"ContractData",B129, "LastTrade",, "T"),3)="768","",RTD("cqg.rtd",,"StudyData",B129, "Bar",, "ContractOI", "D", "-1",,,,,"T")) -> 11582 | M129: =IF(LEFT(RTD("cqg.rtd", ,"ContractData",B129, "LastTrade",, "T"),3)="768","",RTD("cqg.rtd",,"StudyData",B129, "Bar",, "ContractOI", "D", "-2",,,,,"T")) -> 10578 | N129: =IF(LEFT(RTD("cqg.rtd", ,"ContractData",B129, "LastTrade",, "T"),3)="768","",IFERROR(IF(L129>M129,"+"&L129-M129,L129-M129)*1,"")) -> 1004
A130: 11050 | B130: C.US.CLEJ2611050 | C130: =IF(LEFT(RTD("cqg.rtd", ,"ContractData",B130, "LastTrade",, "T"),3)="768","",RTD("cqg.rtd", ,"ContractData",B130, "LastTrade",, "T")) -> 3.38 | D130: =IF(C130="","",RTD("cqg.rtd", ,"ContractData",B130, "NetLastTrade",, "T")) -> 1.36 | E130: =IF(LEFT(RTD("cqg.rtd", ,"ContractData",B130, "LastTrade",, "T"),3)="768","",RTD("cqg.rtd", ,"ContractData",B130, "MT_LastBidVolume",, "T")) -> 1 | F130: =IF(LEFT(RTD("cqg.rtd", ,"ContractData",B130, "LastTrade",, "T"),3)="768","",RTD("cqg.rtd", ,"ContractData",B130, "Bid",, "T")) -> 2.46 | G130: =IF(LEFT(RTD("cqg.rtd", ,"ContractData",B130, "LastTrade",, "T"),3)="768","",RTD("cqg.rtd", ,"ContractData",B130, "Ask",, "T")) -> 2.53 | H130: =IF(LEFT(RTD("cqg.rtd", ,"ContractData",B130, "LastTrade",, "T"),3)="768","",RTD("cqg.rtd", ,"ContractData",B130, "MT_LastAskVolume",, "T")) -> 17 | I130: =IF(LEFT(RTD("cqg.rtd", ,"ContractData",B130, "LastTrade",, "T"),3)="768","",RTD("cqg.rtd", ,"ContractData",B130, "T_CVol",, "T")) -> 8 | J130: =IF(LEFT(RTD("cqg.rtd", ,"ContractData",B130, "LastTrade",, "T"),3)="768","",RTD("cqg.rtd", ,"ContractData",B130, "Y_CVol",, "T")) -> 49 | K130: =IF(LEFT(RTD("cqg.rtd", ,"ContractData",B130, "LastTrade",, "T"),3)="768","",IFERROR(IF(I130>J130,"+"&I130-J130,I130-J130)*1,"")) -> -41 | L130: =IF(LEFT(RTD("cqg.rtd", ,"ContractData",B130, "LastTrade",, "T"),3)="768","",RTD("cqg.rtd",,"StudyData",B130, "Bar",, "ContractOI", "D", "-1",,,,,"T")) -> 245 | M130: =IF(LEFT(RTD("cqg.rtd", ,"ContractData",B130, "LastTrade",, "T"),3)="768","",RTD("cqg.rtd",,"StudyData",B130, "Bar",, "ContractOI", "D", "-2",,,,,"T")) -> 247 | N130: =IF(LEFT(RTD("cqg.rtd", ,"ContractData",B130, "LastTrade",, "T"),3)="768","",IFERROR(IF(L130>M130,"+"&L130-M130,L130-M130)*1,"")) -> -2
A131: 11100 | B131: C.US.CLEJ2611100 | C131: =IF(LEFT(RTD("cqg.rtd", ,"ContractData",B131, "LastTrade",, "T"),3)="768","",RTD("cqg.rtd", ,"ContractData",B131, "LastTrade",, "T")) -> 3.53 | D131: =IF(C131="","",RTD("cqg.rtd", ,"ContractData",B131, "NetLastTrade",, "T")) -> 1.56 | E131: =IF(LEFT(RTD("cqg.rtd", ,"ContractData",B131, "LastTrade",, "T"),3)="768","",RTD("cqg.rtd", ,"ContractData",B131, "MT_LastBidVolume",, "T")) -> 23 | F131: =IF(LEFT(RTD("cqg.rtd", ,"ContractData",B131, "LastTrade",, "T"),3)="768","",RTD("cqg.rtd", ,"ContractData",B131, "Bid",, "T")) -> 2.39 | G131: =IF(LEFT(RTD("cqg.rtd", ,"ContractData",B131, "LastTrade",, "T"),3)="768","",RTD("cqg.rtd", ,"ContractData",B131, "Ask",, "T")) -> 2.46 | H131: =IF(LEFT(RTD("cqg.rtd", ,"ContractData",B131, "LastTrade",, "T"),3)="768","",RTD("cqg.rtd", ,"ContractData",B131, "MT_LastAskVolume",, "T")) -> 17 | I131: =IF(LEFT(RTD("cqg.rtd", ,"ContractData",B131, "LastTrade",, "T"),3)="768","",RTD("cqg.rtd", ,"ContractData",B131, "T_CVol",, "T")) -> 4 | J131: =IF(LEFT(RTD("cqg.rtd", ,"ContractData",B131, "LastTrade",, "T"),3)="768","",RTD("cqg.rtd", ,"ContractData",B131, "Y_CVol",, "T")) -> 80 | K131: =IF(LEFT(RTD("cqg.rtd", ,"ContractData",B131, "LastTrade",, "T"),3)="768","",IFERROR(IF(I131>J131,"+"&I131-J131,I131-J131)*1,"")) -> -76 | L131: =IF(LEFT(RTD("cqg.rtd", ,"ContractData",B131, "LastTrade",, "T"),3)="768","",RTD("cqg.rtd",,"StudyData",B131, "Bar",, "ContractOI", "D", "-1",,,,,"T")) -> 1584 | M131: =IF(LEFT(RTD("cqg.rtd", ,"ContractData",B131, "LastTrade",, "T"),3)="768","",RTD("cqg.rtd",,"StudyData",B131, "Bar",, "ContractOI", "D", "-2",,,,,"T")) -> 1584 | N131: =IF(LEFT(RTD("cqg.rtd", ,"ContractData",B131, "LastTrade",, "T"),3)="768","",IFERROR(IF(L131>M131,"+"&L131-M131,L131-M131)*1,"")) -> 0
A132: 11150 | B132: C.US.CLEJ2611150 | C132: =IF(LEFT(RTD("cqg.rtd", ,"ContractData",B132, "LastTrade",, "T"),3)="768","",RTD("cqg.rtd", ,"ContractData",B132, "LastTrade",, "T")) -> 3.21 | D132: =IF(C132="","",RTD("cqg.rtd", ,"ContractData",B132, "NetLastTrade",, "T")) -> 1.3 | E132: =IF(LEFT(RTD("cqg.rtd", ,"ContractData",B132, "LastTrade",, "T"),3)="768","",RTD("cqg.rtd", ,"ContractData",B132, "MT_LastBidVolume",, "T")) -> 9 | F132: =IF(LEFT(RTD("cqg.rtd", ,"ContractData",B132, "LastTrade",, "T"),3)="768","",RTD("cqg.rtd", ,"ContractData",B132, "Bid",, "T")) -> 2.32 | G132: =IF(LEFT(RTD("cqg.rtd", ,"ContractData",B132, "LastTrade",, "T"),3)="768","",RTD("cqg.rtd", ,"ContractData",B132, "Ask",, "T")) -> 2.4 | H132: =IF(LEFT(RTD("cqg.rtd", ,"ContractData",B132, "LastTrade",, "T"),3)="768","",RTD("cqg.rtd", ,"ContractData",B132, "MT_LastAskVolume",, "T")) -> 49 | I132: =IF(LEFT(RTD("cqg.rtd", ,"ContractData",B132, "LastTrade",, "T"),3)="768","",RTD("cqg.rtd", ,"ContractData",B132, "T_CVol",, "T")) -> 11 | J132: =IF(LEFT(RTD("cqg.rtd", ,"ContractData",B132, "LastTrade",, "T"),3)="768","",RTD("cqg.rtd", ,"ContractData",B132, "Y_CVol",, "T")) -> 15 | K132: =IF(LEFT(RTD("cqg.rtd", ,"ContractData",B132, "LastTrade",, "T"),3)="768","",IFERROR(IF(I132>J132,"+"&I132-J132,I132-J132)*1,"")) -> -4 | L132: =IF(LEFT(RTD("cqg.rtd", ,"ContractData",B132, "LastTrade",, "T"),3)="768","",RTD("cqg.rtd",,"StudyData",B132, "Bar",, "ContractOI", "D", "-1",,,,,"T")) -> 175 | M132: =IF(LEFT(RTD("cqg.rtd", ,"ContractData",B132, "LastTrade",, "T"),3)="768","",RTD("cqg.rtd",,"StudyData",B132, "Bar",, "ContractOI", "D", "-2",,,,,"T")) -> 183 | N132: =IF(LEFT(RTD("cqg.rtd", ,"ContractData",B132, "LastTrade",, "T"),3)="768","",IFERROR(IF(L132>M132,"+"&L132-M132,L132-M132)*1,"")) -> -8
A133: 11200 | B133: C.US.CLEJ2611200 | C133: =IF(LEFT(RTD("cqg.rtd", ,"ContractData",B133, "LastTrade",, "T"),3)="768","",RTD("cqg.rtd", ,"ContractData",B133, "LastTrade",, "T")) -> 2.18 | D133: =IF(C133="","",RTD("cqg.rtd", ,"ContractData",B133, "NetLastTrade",, "T")) -> 0.32 | E133: =IF(LEFT(RTD("cqg.rtd", ,"ContractData",B133, "LastTrade",, "T"),3)="768","",RTD("cqg.rtd", ,"ContractData",B133, "MT_LastBidVolume",, "T")) -> 23 | F133: =IF(LEFT(RTD("cqg.rtd", ,"ContractData",B133, "LastTrade",, "T"),3)="768","",RTD("cqg.rtd", ,"ContractData",B133, "Bid",, "T")) -> 2.24 | G133: =IF(LEFT(RTD("cqg.rtd", ,"ContractData",B133, "LastTrade",, "T"),3)="768","",RTD("cqg.rtd", ,"ContractData",B133, "Ask",, "T")) -> 2.32 | H133: =IF(LEFT(RTD("cqg.rtd", ,"ContractData",B133, "LastTrade",, "T"),3)="768","",RTD("cqg.rtd", ,"ContractData",B133, "MT_LastAskVolume",, "T")) -> 18 | I133: =IF(LEFT(RTD("cqg.rtd", ,"ContractData",B133, "LastTrade",, "T"),3)="768","",RTD("cqg.rtd", ,"ContractData",B133, "T_CVol",, "T")) -> 41 | J133: =IF(LEFT(RTD("cqg.rtd", ,"ContractData",B133, "LastTrade",, "T"),3)="768","",RTD("cqg.rtd", ,"ContractData",B133, "Y_CVol",, "T")) -> 104 | K133: =IF(LEFT(RTD("cqg.rtd", ,"ContractData",B133, "LastTrade",, "T"),3)="768","",IFERROR(IF(I133>J133,"+"&I133-J133,I133-J133)*1,"")) -> -63 | L133: =IF(LEFT(RTD("cqg.rtd", ,"ContractData",B133, "LastTrade",, "T"),3)="768","",RTD("cqg.rtd",,"StudyData",B133, "Bar",, "ContractOI", "D", "-1",,,,,"T")) -> 1401 | M133: =IF(LEFT(RTD("cqg.rtd", ,"ContractData",B133, "LastTrade",, "T"),3)="768","",RTD("cqg.rtd",,"StudyData",B133, "Bar",, "ContractOI", "D", "-2",,,,,"T")) -> 1393 | N133: =IF(LEFT(RTD("cqg.rtd", ,"ContractData",B133, "LastTrade",, "T"),3)="768","",IFERROR(IF(L133>M133,"+"&L133-M133,L133-M133)*1,"")) -> 8
A134: 11250 | B134: C.US.CLEJ2611250 | C134: =IF(LEFT(RTD("cqg.rtd", ,"ContractData",B134, "LastTrade",, "T"),3)="768","",RTD("cqg.rtd", ,"ContractData",B134, "LastTrade",, "T")) -> 2.12 | D134: =IF(C134="","",RTD("cqg.rtd", ,"ContractData",B134, "NetLastTrade",, "T")) -> 0.3 | E134: =IF(LEFT(RTD("cqg.rtd", ,"ContractData",B134, "LastTrade",, "T"),3)="768","",RTD("cqg.rtd", ,"ContractData",B134, "MT_LastBidVolume",, "T")) -> 22 | F134: =IF(LEFT(RTD("cqg.rtd", ,"ContractData",B134, "LastTrade",, "T"),3)="768","",RTD("cqg.rtd", ,"ContractData",B134, "Bid",, "T")) -> 2.19 | G134: =IF(LEFT(RTD("cqg.rtd", ,"ContractData",B134, "LastTrade",, "T"),3)="768","",RTD("cqg.rtd", ,"ContractData",B134, "Ask",, "T")) -> 2.26 | H134: =IF(LEFT(RTD("cqg.rtd", ,"ContractData",B134, "LastTrade",, "T"),3)="768","",RTD("cqg.rtd", ,"ContractData",B134, "MT_LastAskVolume",, "T")) -> 4 | I134: =IF(LEFT(RTD("cqg.rtd", ,"ContractData",B134, "LastTrade",, "T"),3)="768","",RTD("cqg.rtd", ,"ContractData",B134, "T_CVol",, "T")) -> 134 | J134: =IF(LEFT(RTD("cqg.rtd", ,"ContractData",B134, "LastTrade",, "T"),3)="768","",RTD("cqg.rtd", ,"ContractData",B134, "Y_CVol",, "T")) -> 185 | K134: =IF(LEFT(RTD("cqg.rtd", ,"ContractData",B134, "LastTrade",, "T"),3)="768","",IFERROR(IF(I134>J134,"+"&I134-J134,I134-J134)*1,"")) -> -51 | L134: =IF(LEFT(RTD("cqg.rtd", ,"ContractData",B134, "LastTrade",, "T"),3)="768","",RTD("cqg.rtd",,"StudyData",B134, "Bar",, "ContractOI", "D", "-1",,,,,"T")) -> 615 | M134: =IF(LEFT(RTD("cqg.rtd", ,"ContractData",B134, "LastTrade",, "T"),3)="768","",RTD("cqg.rtd",,"StudyData",B134, "Bar",, "ContractOI", "D", "-2",,,,,"T")) -> 615 | N134: =IF(LEFT(RTD("cqg.rtd", ,"ContractData",B134, "LastTrade",, "T"),3)="768","",IFERROR(IF(L134>M134,"+"&L134-M134,L134-M134)*1,"")) -> 0
A135: 11300 | B135: C.US.CLEJ2611300 | C135: =IF(LEFT(RTD("cqg.rtd", ,"ContractData",B135, "LastTrade",, "T"),3)="768","",RTD("cqg.rtd", ,"ContractData",B135, "LastTrade",, "T")) -> 2.04 | D135: =IF(C135="","",RTD("cqg.rtd", ,"ContractData",B135, "NetLastTrade",, "T")) -> 0.27 | E135: =IF(LEFT(RTD("cqg.rtd", ,"ContractData",B135, "LastTrade",, "T"),3)="768","",RTD("cqg.rtd", ,"ContractData",B135, "MT_LastBidVolume",, "T")) -> 23 | F135: =IF(LEFT(RTD("cqg.rtd", ,"ContractData",B135, "LastTrade",, "T"),3)="768","",RTD("cqg.rtd", ,"ContractData",B135, "Bid",, "T")) -> 2.13 | G135: =IF(LEFT(RTD("cqg.rtd", ,"ContractData",B135, "LastTrade",, "T"),3)="768","",RTD("cqg.rtd", ,"ContractData",B135, "Ask",, "T")) -> 2.2 | H135: =IF(LEFT(RTD("cqg.rtd", ,"ContractData",B135, "LastTrade",, "T"),3)="768","",RTD("cqg.rtd", ,"ContractData",B135, "MT_LastAskVolume",, "T")) -> 22 | I135: =IF(LEFT(RTD("cqg.rtd", ,"ContractData",B135, "LastTrade",, "T"),3)="768","",RTD("cqg.rtd", ,"ContractData",B135, "T_CVol",, "T")) -> 42 | J135: =IF(LEFT(RTD("cqg.rtd", ,"ContractData",B135, "LastTrade",, "T"),3)="768","",RTD("cqg.rtd", ,"ContractData",B135, "Y_CVol",, "T")) -> 136 | K135: =IF(LEFT(RTD("cqg.rtd", ,"ContractData",B135, "LastTrade",, "T"),3)="768","",IFERROR(IF(I135>J135,"+"&I135-J135,I135-J135)*1,"")) -> -94 | L135: =IF(LEFT(RTD("cqg.rtd", ,"ContractData",B135, "LastTrade",, "T"),3)="768","",RTD("cqg.rtd",,"StudyData",B135, "Bar",, "ContractOI", "D", "-1",,,,,"T")) -> 694 | M135: =IF(LEFT(RTD("cqg.rtd", ,"ContractData",B135, "LastTrade",, "T"),3)="768","",RTD("cqg.rtd",,"StudyData",B135, "Bar",, "ContractOI", "D", "-2",,,,,"T")) -> 704 | N135: =IF(LEFT(RTD("cqg.rtd", ,"ContractData",B135, "LastTrade",, "T"),3)="768","",IFERROR(IF(L135>M135,"+"&L135-M135,L135-M135)*1,"")) -> -10
A136: 11350 | B136: C.US.CLEJ2611350 | C136: =IF(LEFT(RTD("cqg.rtd", ,"ContractData",B136, "LastTrade",, "T"),3)="768","",RTD("cqg.rtd", ,"ContractData",B136, "LastTrade",, "T")) -> 2.09 | D136: =IF(C136="","",RTD("cqg.rtd", ,"ContractData",B136, "NetLastTrade",, "T")) -> 0.37 | E136: =IF(LEFT(RTD("cqg.rtd", ,"ContractData",B136, "LastTrade",, "T"),3)="768","",RTD("cqg.rtd", ,"ContractData",B136, "MT_LastBidVolume",, "T")) -> 2 | F136: =IF(LEFT(RTD("cqg.rtd", ,"ContractData",B136, "LastTrade",, "T"),3)="768","",RTD("cqg.rtd", ,"ContractData",B136, "Bid",, "T")) -> 2.06 | G136: =IF(LEFT(RTD("cqg.rtd", ,"ContractData",B136, "LastTrade",, "T"),3)="768","",RTD("cqg.rtd", ,"ContractData",B136, "Ask",, "T")) -> 2.14 | H136: =IF(LEFT(RTD("cqg.rtd", ,"ContractData",B136, "LastTrade",, "T"),3)="768","",RTD("cqg.rtd", ,"ContractData",B136, "MT_LastAskVolume",, "T")) -> 22 | I136: =IF(LEFT(RTD("cqg.rtd", ,"ContractData",B136, "LastTrade",, "T"),3)="768","",RTD("cqg.rtd", ,"ContractData",B136, "T_CVol",, "T")) -> 20 | J136: =IF(LEFT(RTD("cqg.rtd", ,"ContractData",B136, "LastTrade",, "T"),3)="768","",RTD("cqg.rtd", ,"ContractData",B136, "Y_CVol",, "T")) -> 31 | K136: =IF(LEFT(RTD("cqg.rtd", ,"ContractData",B136, "LastTrade",, "T"),3)="768","",IFERROR(IF(I136>J136,"+"&I136-J136,I136-J136)*1,"")) -> -11 | L136: =IF(LEFT(RTD("cqg.rtd", ,"ContractData",B136, "LastTrade",, "T"),3)="768","",RTD("cqg.rtd",,"StudyData",B136, "Bar",, "ContractOI", "D", "-1",,,,,"T")) -> 150 | M136: =IF(LEFT(RTD("cqg.rtd", ,"ContractData",B136, "LastTrade",, "T"),3)="768","",RTD("cqg.rtd",,"StudyData",B136, "Bar",, "ContractOI", "D", "-2",,,,,"T")) -> 129 | N136: =IF(LEFT(RTD("cqg.rtd", ,"ContractData",B136, "LastTrade",, "T"),3)="768","",IFERROR(IF(L136>M136,"+"&L136-M136,L136-M136)*1,"")) -> 21
A137: 11400 | B137: C.US.CLEJ2611400 | C137: =IF(LEFT(RTD("cqg.rtd", ,"ContractData",B137, "LastTrade",, "T"),3)="768","",RTD("cqg.rtd", ,"ContractData",B137, "LastTrade",, "T")) -> 2.15 | D137: =IF(C137="","",RTD("cqg.rtd", ,"ContractData",B137, "NetLastTrade",, "T")) -> 0.47 | E137: =IF(LEFT(RTD("cqg.rtd", ,"ContractData",B137, "LastTrade",, "T"),3)="768","",RTD("cqg.rtd", ,"ContractData",B137, "MT_LastBidVolume",, "T")) -> 2 | F137: =IF(LEFT(RTD("cqg.rtd", ,"ContractData",B137, "LastTrade",, "T"),3)="768","",RTD("cqg.rtd", ,"ContractData",B137, "Bid",, "T")) -> 2 | G137: =IF(LEFT(RTD("cqg.rtd", ,"ContractData",B137, "LastTrade",, "T"),3)="768","",RTD("cqg.rtd", ,"ContractData",B137, "Ask",, "T")) -> 2.08 | H137: =IF(LEFT(RTD("cqg.rtd", ,"ContractData",B137, "LastTrade",, "T"),3)="768","",RTD("cqg.rtd", ,"ContractData",B137, "MT_LastAskVolume",, "T")) -> 1 | I137: =IF(LEFT(RTD("cqg.rtd", ,"ContractData",B137, "LastTrade",, "T"),3)="768","",RTD("cqg.rtd", ,"ContractData",B137, "T_CVol",, "T")) -> 242 | J137: =IF(LEFT(RTD("cqg.rtd", ,"ContractData",B137, "LastTrade",, "T"),3)="768","",RTD("cqg.rtd", ,"ContractData",B137, "Y_CVol",, "T")) -> 101 | K137: =IF(LEFT(RTD("cqg.rtd", ,"ContractData",B137, "LastTrade",, "T"),3)="768","",IFERROR(IF(I137>J137,"+"&I137-J137,I137-J137)*1,"")) -> 141 | L137: =IF(LEFT(RTD("cqg.rtd", ,"ContractData",B137, "LastTrade",, "T"),3)="768","",RTD("cqg.rtd",,"StudyData",B137, "Bar",, "ContractOI", "D", "-1",,,,,"T")) -> 305 | M137: =IF(LEFT(RTD("cqg.rtd", ,"ContractData",B137, "LastTrade",, "T"),3)="768","",RTD("cqg.rtd",,"StudyData",B137, "Bar",, "ContractOI", "D", "-2",,,,,"T")) -> 293 | N137: =IF(LEFT(RTD("cqg.rtd", ,"ContractData",B137, "LastTrade",, "T"),3)="768","",IFERROR(IF(L137>M137,"+"&L137-M137,L137-M137)*1,"")) -> 12
A138: 11450 | B138: C.US.CLEJ2611450 | C138: =IF(LEFT(RTD("cqg.rtd", ,"ContractData",B138, "LastTrade",, "T"),3)="768","",RTD("cqg.rtd", ,"ContractData",B138, "LastTrade",, "T")) -> 2.05 | D138: =IF(C138="","",RTD("cqg.rtd", ,"ContractData",B138, "NetLastTrade",, "T")) -> 0.41 | E138: =IF(LEFT(RTD("cqg.rtd", ,"ContractData",B138, "LastTrade",, "T"),3)="768","",RTD("cqg.rtd", ,"ContractData",B138, "MT_LastBidVolume",, "T")) -> 1 | F138: =IF(LEFT(RTD("cqg.rtd", ,"ContractData",B138, "LastTrade",, "T"),3)="768","",RTD("cqg.rtd", ,"ContractData",B138, "Bid",, "T")) -> 1.95 | G138: =IF(LEFT(RTD("cqg.rtd", ,"ContractData",B138, "LastTrade",, "T"),3)="768","",RTD("cqg.rtd", ,"ContractData",B138, "Ask",, "T")) -> 2.02 | H138: =IF(LEFT(RTD("cqg.rtd", ,"ContractData",B138, "LastTrade",, "T"),3)="768","",RTD("cqg.rtd", ,"ContractData",B138, "MT_LastAskVolume",, "T")) -> 16 | I138: =IF(LEFT(RTD("cqg.rtd", ,"ContractData",B138, "LastTrade",, "T"),3)="768","",RTD("cqg.rtd", ,"ContractData",B138, "T_CVol",, "T")) -> 4 | J138: =IF(LEFT(RTD("cqg.rtd", ,"ContractData",B138, "LastTrade",, "T"),3)="768","",RTD("cqg.rtd", ,"ContractData",B138, "Y_CVol",, "T")) -> 25 | K138: =IF(LEFT(RTD("cqg.rtd", ,"ContractData",B138, "LastTrade",, "T"),3)="768","",IFERROR(IF(I138>J138,"+"&I138-J138,I138-J138)*1,"")) -> -21 | L138: =IF(LEFT(RTD("cqg.rtd", ,"ContractData",B138, "LastTrade",, "T"),3)="768","",RTD("cqg.rtd",,"StudyData",B138, "Bar",, "ContractOI", "D", "-1",,,,,"T")) -> 420 | M138: =IF(LEFT(RTD("cqg.rtd", ,"ContractData",B138, "LastTrade",, "T"),3)="768","",RTD("cqg.rtd",,"StudyData",B138, "Bar",, "ContractOI", "D", "-2",,,,,"T")) -> 419 | N138: =IF(LEFT(RTD("cqg.rtd", ,"ContractData",B138, "LastTrade",, "T"),3)="768","",IFERROR(IF(L138>M138,"+"&L138-M138,L138-M138)*1,"")) -> 1
A139: 11500 | B139: C.US.CLEJ2611500 | C139: =IF(LEFT(RTD("cqg.rtd", ,"ContractData",B139, "LastTrade",, "T"),3)="768","",RTD("cqg.rtd", ,"ContractData",B139, "LastTrade",, "T")) -> 1.86 | D139: =IF(C139="","",RTD("cqg.rtd", ,"ContractData",B139, "NetLastTrade",, "T")) -> 0.26 | E139: =IF(LEFT(RTD("cqg.rtd", ,"ContractData",B139, "LastTrade",, "T"),3)="768","",RTD("cqg.rtd", ,"ContractData",B139, "MT_LastBidVolume",, "T")) -> 2 | F139: =IF(LEFT(RTD("cqg.rtd", ,"ContractData",B139, "LastTrade",, "T"),3)="768","",RTD("cqg.rtd", ,"ContractData",B139, "Bid",, "T")) -> 1.88 | G139: =IF(LEFT(RTD("cqg.rtd", ,"ContractData",B139, "LastTrade",, "T"),3)="768","",RTD("cqg.rtd", ,"ContractData",B139, "Ask",, "T")) -> 1.96 | H139: =IF(LEFT(RTD("cqg.rtd", ,"ContractData",B139, "LastTrade",, "T"),3)="768","",RTD("cqg.rtd", ,"ContractData",B139, "MT_LastAskVolume",, "T")) -> 17 | I139: =IF(LEFT(RTD("cqg.rtd", ,"ContractData",B139, "LastTrade",, "T"),3)="768","",RTD("cqg.rtd", ,"ContractData",B139, "T_CVol",, "T")) -> 186 | J139: =IF(LEFT(RTD("cqg.rtd", ,"ContractData",B139, "LastTrade",, "T"),3)="768","",RTD("cqg.rtd", ,"ContractData",B139, "Y_CVol",, "T")) -> 392 | K139: =IF(LEFT(RTD("cqg.rtd", ,"ContractData",B139, "LastTrade",, "T"),3)="768","",IFERROR(IF(I139>J139,"+"&I139-J139,I139-J139)*1,"")) -> -206 | L139: =IF(LEFT(RTD("cqg.rtd", ,"ContractData",B139, "LastTrade",, "T"),3)="768","",RTD("cqg.rtd",,"StudyData",B139, "Bar",, "ContractOI", "D", "-1",,,,,"T")) -> 5673 | M139: =IF(LEFT(RTD("cqg.rtd", ,"ContractData",B139, "LastTrade",, "T"),3)="768","",RTD("cqg.rtd",,"StudyData",B139, "Bar",, "ContractOI", "D", "-2",,,,,"T")) -> 6687 | N139: =IF(LEFT(RTD("cqg.rtd", ,"ContractData",B139, "LastTrade",, "T"),3)="768","",IFERROR(IF(L139>M139,"+"&L139-M139,L139-M139)*1,"")) -> -1014
A140: 11550 | B140: C.US.CLEJ2611550 | C140: =IF(LEFT(RTD("cqg.rtd", ,"ContractData",B140, "LastTrade",, "T"),3)="768","",RTD("cqg.rtd", ,"ContractData",B140, "LastTrade",, "T")) -> 1.69 | D140: =IF(C140="","",RTD("cqg.rtd", ,"ContractData",B140, "NetLastTrade",, "T")) -> 0.13 | E140: =IF(LEFT(RTD("cqg.rtd", ,"ContractData",B140, "LastTrade",, "T"),3)="768","",RTD("cqg.rtd", ,"ContractData",B140, "MT_LastBidVolume",, "T")) -> 2 | F140: =IF(LEFT(RTD("cqg.rtd", ,"ContractData",B140, "LastTrade",, "T"),3)="768","",RTD("cqg.rtd", ,"ContractData",B140, "Bid",, "T")) -> 1.83 | G140: =IF(LEFT(RTD("cqg.rtd", ,"ContractData",B140, "LastTrade",, "T"),3)="768","",RTD("cqg.rtd", ,"ContractData",B140, "Ask",, "T")) -> 1.91 | H140: =IF(LEFT(RTD("cqg.rtd", ,"ContractData",B140, "LastTrade",, "T"),3)="768","",RTD("cqg.rtd", ,"ContractData",B140, "MT_LastAskVolume",, "T")) -> 16 | I140: =IF(LEFT(RTD("cqg.rtd", ,"ContractData",B140, "LastTrade",, "T"),3)="768","",RTD("cqg.rtd", ,"ContractData",B140, "T_CVol",, "T")) -> 1 | J140: =IF(LEFT(RTD("cqg.rtd", ,"ContractData",B140, "LastTrade",, "T"),3)="768","",RTD("cqg.rtd", ,"ContractData",B140, "Y_CVol",, "T")) -> 3 | K140: =IF(LEFT(RTD("cqg.rtd", ,"ContractData",B140, "LastTrade",, "T"),3)="768","",IFERROR(IF(I140>J140,"+"&I140-J140,I140-J140)*1,"")) -> -2 | L140: =IF(LEFT(RTD("cqg.rtd", ,"ContractData",B140, "LastTrade",, "T"),3)="768","",RTD("cqg.rtd",,"StudyData",B140, "Bar",, "ContractOI", "D", "-1",,,,,"T")) -> 272 | M140: =IF(LEFT(RTD("cqg.rtd", ,"ContractData",B140, "LastTrade",, "T"),3)="768","",RTD("cqg.rtd",,"StudyData",B140, "Bar",, "ContractOI", "D", "-2",,,,,"T")) -> 272 | N140: =IF(LEFT(RTD("cqg.rtd", ,"ContractData",B140, "LastTrade",, "T"),3)="768","",IFERROR(IF(L140>M140,"+"&L140-M140,L140-M140)*1,"")) -> 0
A141: 11600 | B141: C.US.CLEJ2611600 | C141: =IF(LEFT(RTD("cqg.rtd", ,"ContractData",B141, "LastTrade",, "T"),3)="768","",RTD("cqg.rtd", ,"ContractData",B141, "LastTrade",, "T")) -> 1.73 | D141: =IF(C141="","",RTD("cqg.rtd", ,"ContractData",B141, "NetLastTrade",, "T")) -> 0.21 | E141: =IF(LEFT(RTD("cqg.rtd", ,"ContractData",B141, "LastTrade",, "T"),3)="768","",RTD("cqg.rtd", ,"ContractData",B141, "MT_LastBidVolume",, "T")) -> 2 | F141: =IF(LEFT(RTD("cqg.rtd", ,"ContractData",B141, "LastTrade",, "T"),3)="768","",RTD("cqg.rtd", ,"ContractData",B141, "Bid",, "T")) -> 1.77 | G141: =IF(LEFT(RTD("cqg.rtd", ,"ContractData",B141, "LastTrade",, "T"),3)="768","",RTD("cqg.rtd", ,"ContractData",B141, "Ask",, "T")) -> 1.85 | H141: =IF(LEFT(RTD("cqg.rtd", ,"ContractData",B141, "LastTrade",, "T"),3)="768","",RTD("cqg.rtd", ,"ContractData",B141, "MT_LastAskVolume",, "T")) -> 17 | I141: =IF(LEFT(RTD("cqg.rtd", ,"ContractData",B141, "LastTrade",, "T"),3)="768","",RTD("cqg.rtd", ,"ContractData",B141, "T_CVol",, "T")) -> 15 | J141: =IF(LEFT(RTD("cqg.rtd", ,"ContractData",B141, "LastTrade",, "T"),3)="768","",RTD("cqg.rtd", ,"ContractData",B141, "Y_CVol",, "T")) -> 21 | K141: =IF(LEFT(RTD("cqg.rtd", ,"ContractData",B141, "LastTrade",, "T"),3)="768","",IFERROR(IF(I141>J141,"+"&I141-J141,I141-J141)*1,"")) -> -6 | L141: =IF(LEFT(RTD("cqg.rtd", ,"ContractData",B141, "LastTrade",, "T"),3)="768","",RTD("cqg.rtd",,"StudyData",B141, "Bar",, "ContractOI", "D", "-1",,,,,"T")) -> 894 | M141: =IF(LEFT(RTD("cqg.rtd", ,"ContractData",B141, "LastTrade",, "T"),3)="768","",RTD("cqg.rtd",,"StudyData",B141, "Bar",, "ContractOI", "D", "-2",,,,,"T")) -> 899 | N141: =IF(LEFT(RTD("cqg.rtd", ,"ContractData",B141, "LastTrade",, "T"),3)="768","",IFERROR(IF(L141>M141,"+"&L141-M141,L141-M141)*1,"")) -> -5
A142: 11650 | B142: C.US.CLEJ2611650 | C142: =IF(LEFT(RTD("cqg.rtd", ,"ContractData",B142, "LastTrade",, "T"),3)="768","",RTD("cqg.rtd", ,"ContractData",B142, "LastTrade",, "T")) -> 3.06 | D142: =IF(C142="","",RTD("cqg.rtd", ,"ContractData",B142, "NetLastTrade",, "T")) -> 1.58 | E142: =IF(LEFT(RTD("cqg.rtd", ,"ContractData",B142, "LastTrade",, "T"),3)="768","",RTD("cqg.rtd", ,"ContractData",B142, "MT_LastBidVolume",, "T")) -> 1 | F142: =IF(LEFT(RTD("cqg.rtd", ,"ContractData",B142, "LastTrade",, "T"),3)="768","",RTD("cqg.rtd", ,"ContractData",B142, "Bid",, "T")) -> 1.73 | G142: =IF(LEFT(RTD("cqg.rtd", ,"ContractData",B142, "LastTrade",, "T"),3)="768","",RTD("cqg.rtd", ,"ContractData",B142, "Ask",, "T")) -> 1.8 | H142: =IF(LEFT(RTD("cqg.rtd", ,"ContractData",B142, "LastTrade",, "T"),3)="768","",RTD("cqg.rtd", ,"ContractData",B142, "MT_LastAskVolume",, "T")) -> 17 | I142: =IF(LEFT(RTD("cqg.rtd", ,"ContractData",B142, "LastTrade",, "T"),3)="768","",RTD("cqg.rtd", ,"ContractData",B142, "T_CVol",, "T")) -> 2 | J142: =IF(LEFT(RTD("cqg.rtd", ,"ContractData",B142, "LastTrade",, "T"),3)="768","",RTD("cqg.rtd", ,"ContractData",B142, "Y_CVol",, "T")) -> 29 | K142: =IF(LEFT(RTD("cqg.rtd", ,"ContractData",B142, "LastTrade",, "T"),3)="768","",IFERROR(IF(I142>J142,"+"&I142-J142,I142-J142)*1,"")) -> -27 | L142: =IF(LEFT(RTD("cqg.rtd", ,"ContractData",B142, "LastTrade",, "T"),3)="768","",RTD("cqg.rtd",,"StudyData",B142, "Bar",, "ContractOI", "D", "-1",,,,,"T")) -> 209 | M142: =IF(LEFT(RTD("cqg.rtd", ,"ContractData",B142, "LastTrade",, "T"),3)="768","",RTD("cqg.rtd",,"StudyData",B142, "Bar",, "ContractOI", "D", "-2",,,,,"T")) -> 211 | N142: =IF(LEFT(RTD("cqg.rtd", ,"ContractData",B142, "LastTrade",, "T"),3)="768","",IFERROR(IF(L142>M142,"+"&L142-M142,L142-M142)*1,"")) -> -2
A143: 11700 | B143: C.US.CLEJ2611700 | C143: =IF(LEFT(RTD("cqg.rtd", ,"ContractData",B143, "LastTrade",, "T"),3)="768","",RTD("cqg.rtd", ,"ContractData",B143, "LastTrade",, "T")) -> 1.75 | D143: =IF(C143="","",RTD("cqg.rtd", ,"ContractData",B143, "NetLastTrade",, "T")) -> 0.3 | E143: =IF(LEFT(RTD("cqg.rtd", ,"ContractData",B143, "LastTrade",, "T"),3)="768","",RTD("cqg.rtd", ,"ContractData",B143, "MT_LastBidVolume",, "T")) -> 2 | F143: =IF(LEFT(RTD("cqg.rtd", ,"ContractData",B143, "LastTrade",, "T"),3)="768","",RTD("cqg.rtd", ,"ContractData",B143, "Bid",, "T")) -> 1.67 | G143: =IF(LEFT(RTD("cqg.rtd", ,"ContractData",B143, "LastTrade",, "T"),3)="768","",RTD("cqg.rtd", ,"ContractData",B143, "Ask",, "T")) -> 1.75 | H143: =IF(LEFT(RTD("cqg.rtd", ,"ContractData",B143, "LastTrade",, "T"),3)="768","",RTD("cqg.rtd", ,"ContractData",B143, "MT_LastAskVolume",, "T")) -> 17 | I143: =IF(LEFT(RTD("cqg.rtd", ,"ContractData",B143, "LastTrade",, "T"),3)="768","",RTD("cqg.rtd", ,"ContractData",B143, "T_CVol",, "T")) -> 63 | J143: =IF(LEFT(RTD("cqg.rtd", ,"ContractData",B143, "LastTrade",, "T"),3)="768","",RTD("cqg.rtd", ,"ContractData",B143, "Y_CVol",, "T")) -> 139 | K143: =IF(LEFT(RTD("cqg.rtd", ,"ContractData",B143, "LastTrade",, "T"),3)="768","",IFERROR(IF(I143>J143,"+"&I143-J143,I143-J143)*1,"")) -> -76 | L143: =IF(LEFT(RTD("cqg.rtd", ,"ContractData",B143, "LastTrade",, "T"),3)="768","",RTD("cqg.rtd",,"StudyData",B143, "Bar",, "ContractOI", "D", "-1",,,,,"T")) -> 1750 | M143: =IF(LEFT(RTD("cqg.rtd", ,"ContractData",B143, "LastTrade",, "T"),3)="768","",RTD("cqg.rtd",,"StudyData",B143, "Bar",, "ContractOI", "D", "-2",,,,,"T")) -> 1789 | N143: =IF(LEFT(RTD("cqg.rtd", ,"ContractData",B143, "LastTrade",, "T"),3)="768","",IFERROR(IF(L143>M143,"+"&L143-M143,L143-M143)*1,"")) -> -39
A144: 11750 | B144: C.US.CLEJ2611750 | C144: =IF(LEFT(RTD("cqg.rtd", ,"ContractData",B144, "LastTrade",, "T"),3)="768","",RTD("cqg.rtd", ,"ContractData",B144, "LastTrade",, "T")) -> 1.8 | D144: =IF(C144="","",RTD("cqg.rtd", ,"ContractData",B144, "NetLastTrade",, "T")) -> 0.39 | E144: =IF(LEFT(RTD("cqg.rtd", ,"ContractData",B144, "LastTrade",, "T"),3)="768","",RTD("cqg.rtd", ,"ContractData",B144, "MT_LastBidVolume",, "T")) -> 2 | F144: =IF(LEFT(RTD("cqg.rtd", ,"ContractData",B144, "LastTrade",, "T"),3)="768","",RTD("cqg.rtd", ,"ContractData",B144, "Bid",, "T")) -> 1.63 | G144: =IF(LEFT(RTD("cqg.rtd", ,"ContractData",B144, "LastTrade",, "T"),3)="768","",RTD("cqg.rtd", ,"ContractData",B144, "Ask",, "T")) -> 1.71 | H144: =IF(LEFT(RTD("cqg.rtd", ,"ContractData",B144, "LastTrade",, "T"),3)="768","",RTD("cqg.rtd", ,"ContractData",B144, "MT_LastAskVolume",, "T")) -> 18 | I144: =IF(LEFT(RTD("cqg.rtd", ,"ContractData",B144, "LastTrade",, "T"),3)="768","",RTD("cqg.rtd", ,"ContractData",B144, "T_CVol",, "T")) -> 18 | J144: =IF(LEFT(RTD("cqg.rtd", ,"ContractData",B144, "LastTrade",, "T"),3)="768","",RTD("cqg.rtd", ,"ContractData",B144, "Y_CVol",, "T")) -> 135 | K144: =IF(LEFT(RTD("cqg.rtd", ,"ContractData",B144, "LastTrade",, "T"),3)="768","",IFERROR(IF(I144>J144,"+"&I144-J144,I144-J144)*1,"")) -> -117 | L144: =IF(LEFT(RTD("cqg.rtd", ,"ContractData",B144, "LastTrade",, "T"),3)="768","",RTD("cqg.rtd",,"StudyData",B144, "Bar",, "ContractOI", "D", "-1",,,,,"T")) -> 578 | M144: =IF(LEFT(RTD("cqg.rtd", ,"ContractData",B144, "LastTrade",, "T"),3)="768","",RTD("cqg.rtd",,"StudyData",B144, "Bar",, "ContractOI", "D", "-2",,,,,"T")) -> 534 | N144: =IF(LEFT(RTD("cqg.rtd", ,"ContractData",B144, "LastTrade",, "T"),3)="768","",IFERROR(IF(L144>M144,"+"&L144-M144,L144-M144)*1,"")) -> 44
A145: 11800 | B145: C.US.CLEJ2611800 | C145: =IF(LEFT(RTD("cqg.rtd", ,"ContractData",B145, "LastTrade",, "T"),3)="768","",RTD("cqg.rtd", ,"ContractData",B145, "LastTrade",, "T")) -> 1.58 | D145: =IF(C145="","",RTD("cqg.rtd", ,"ContractData",B145, "NetLastTrade",, "T")) -> 0.2 | E145: =IF(LEFT(RTD("cqg.rtd", ,"ContractData",B145, "LastTrade",, "T"),3)="768","",RTD("cqg.rtd", ,"ContractData",B145, "MT_LastBidVolume",, "T")) -> 2 | F145: =IF(LEFT(RTD("cqg.rtd", ,"ContractData",B145, "LastTrade",, "T"),3)="768","",RTD("cqg.rtd", ,"ContractData",B145, "Bid",, "T")) -> 1.58 | G145: =IF(LEFT(RTD("cqg.rtd", ,"ContractData",B145, "LastTrade",, "T"),3)="768","",RTD("cqg.rtd", ,"ContractData",B145, "Ask",, "T")) -> 1.66 | H145: =IF(LEFT(RTD("cqg.rtd", ,"ContractData",B145, "LastTrade",, "T"),3)="768","",RTD("cqg.rtd", ,"ContractData",B145, "MT_LastAskVolume",, "T")) -> 18 | I145: =IF(LEFT(RTD("cqg.rtd", ,"ContractData",B145, "LastTrade",, "T"),3)="768","",RTD("cqg.rtd", ,"ContractData",B145, "T_CVol",, "T")) -> 39 | J145: =IF(LEFT(RTD("cqg.rtd", ,"ContractData",B145, "LastTrade",, "T"),3)="768","",RTD("cqg.rtd", ,"ContractData",B145, "Y_CVol",, "T")) -> 117 | K145: =IF(LEFT(RTD("cqg.rtd", ,"ContractData",B145, "LastTrade",, "T"),3)="768","",IFERROR(IF(I145>J145,"+"&I145-J145,I145-J145)*1,"")) -> -78 | L145: =IF(LEFT(RTD("cqg.rtd", ,"ContractData",B145, "LastTrade",, "T"),3)="768","",RTD("cqg.rtd",,"StudyData",B145, "Bar",, "ContractOI", "D", "-1",,,,,"T")) -> 213 | M145: =IF(LEFT(RTD("cqg.rtd", ,"ContractData",B145, "LastTrade",, "T"),3)="768","",RTD("cqg.rtd",,"StudyData",B145, "Bar",, "ContractOI", "D", "-2",,,,,"T")) -> 188 | N145: =IF(LEFT(RTD("cqg.rtd", ,"ContractData",B145, "LastTrade",, "T"),3)="768","",IFERROR(IF(L145>M145,"+"&L145-M145,L145-M145)*1,"")) -> 25
A146: 11850 | B146: C.US.CLEJ2611850 | C146: =IF(LEFT(RTD("cqg.rtd", ,"ContractData",B146, "LastTrade",, "T"),3)="768","",RTD("cqg.rtd", ,"ContractData",B146, "LastTrade",, "T")) -> 2.29 | D146: =IF(C146="","",RTD("cqg.rtd", ,"ContractData",B146, "NetLastTrade",, "T")) -> 0.94 | E146: =IF(LEFT(RTD("cqg.rtd", ,"ContractData",B146, "LastTrade",, "T"),3)="768","",RTD("cqg.rtd", ,"ContractData",B146, "MT_LastBidVolume",, "T")) -> 1 | F146: =IF(LEFT(RTD("cqg.rtd", ,"ContractData",B146, "LastTrade",, "T"),3)="768","",RTD("cqg.rtd", ,"ContractData",B146, "Bid",, "T")) -> 1.54 | G146: =IF(LEFT(RTD("cqg.rtd", ,"ContractData",B146, "LastTrade",, "T"),3)="768","",RTD("cqg.rtd", ,"ContractData",B146, "Ask",, "T")) -> 1.61 | H146: =IF(LEFT(RTD("cqg.rtd", ,"ContractData",B146, "LastTrade",, "T"),3)="768","",RTD("cqg.rtd", ,"ContractData",B146, "MT_LastAskVolume",, "T")) -> 16 | I146: =IF(LEFT(RTD("cqg.rtd", ,"ContractData",B146, "LastTrade",, "T"),3)="768","",RTD("cqg.rtd", ,"ContractData",B146, "T_CVol",, "T")) -> 10 | J146: =IF(LEFT(RTD("cqg.rtd", ,"ContractData",B146, "LastTrade",, "T"),3)="768","",RTD("cqg.rtd", ,"ContractData",B146, "Y_CVol",, "T")) -> 65 | K146: =IF(LEFT(RTD("cqg.rtd", ,"ContractData",B146, "LastTrade",, "T"),3)="768","",IFERROR(IF(I146>J146,"+"&I146-J146,I146-J146)*1,"")) -> -55 | L146: =IF(LEFT(RTD("cqg.rtd", ,"ContractData",B146, "LastTrade",, "T"),3)="768","",RTD("cqg.rtd",,"StudyData",B146, "Bar",, "ContractOI", "D", "-1",,,,,"T")) -> 363 | M146: =IF(LEFT(RTD("cqg.rtd", ,"ContractData",B146, "LastTrade",, "T"),3)="768","",RTD("cqg.rtd",,"StudyData",B146, "Bar",, "ContractOI", "D", "-2",,,,,"T")) -> 342 | N146: =IF(LEFT(RTD("cqg.rtd", ,"ContractData",B146, "LastTrade",, "T"),3)="768","",IFERROR(IF(L146>M146,"+"&L146-M146,L146-M146)*1,"")) -> 21
A147: 11900 | B147: C.US.CLEJ2611900 | C147: =IF(LEFT(RTD("cqg.rtd", ,"ContractData",B147, "LastTrade",, "T"),3)="768","",RTD("cqg.rtd", ,"ContractData",B147, "LastTrade",, "T")) -> 1.52 | D147: =IF(C147="","",RTD("cqg.rtd", ,"ContractData",B147, "NetLastTrade",, "T")) -> 0.21 | E147: =IF(LEFT(RTD("cqg.rtd", ,"ContractData",B147, "LastTrade",, "T"),3)="768","",RTD("cqg.rtd", ,"ContractData",B147, "MT_LastBidVolume",, "T")) -> 1 | F147: =IF(LEFT(RTD("cqg.rtd", ,"ContractData",B147, "LastTrade",, "T"),3)="768","",RTD("cqg.rtd", ,"ContractData",B147, "Bid",, "T")) -> 1.49 | G147: =IF(LEFT(RTD("cqg.rtd", ,"ContractData",B147, "LastTrade",, "T"),3)="768","",RTD("cqg.rtd", ,"ContractData",B147, "Ask",, "T")) -> 1.57 | H147: =IF(LEFT(RTD("cqg.rtd", ,"ContractData",B147, "LastTrade",, "T"),3)="768","",RTD("cqg.rtd", ,"ContractData",B147, "MT_LastAskVolume",, "T")) -> 21 | I147: =IF(LEFT(RTD("cqg.rtd", ,"ContractData",B147, "LastTrade",, "T"),3)="768","",RTD("cqg.rtd", ,"ContractData",B147, "T_CVol",, "T")) -> 17 | J147: =IF(LEFT(RTD("cqg.rtd", ,"ContractData",B147, "LastTrade",, "T"),3)="768","",RTD("cqg.rtd", ,"ContractData",B147, "Y_CVol",, "T")) -> 151 | K147: =IF(LEFT(RTD("cqg.rtd", ,"ContractData",B147, "LastTrade",, "T"),3)="768","",IFERROR(IF(I147>J147,"+"&I147-J147,I147-J147)*1,"")) -> -134 | L147: =IF(LEFT(RTD("cqg.rtd", ,"ContractData",B147, "LastTrade",, "T"),3)="768","",RTD("cqg.rtd",,"StudyData",B147, "Bar",, "ContractOI", "D", "-1",,,,,"T")) -> 181 | M147: =IF(LEFT(RTD("cqg.rtd", ,"ContractData",B147, "LastTrade",, "T"),3)="768","",RTD("cqg.rtd",,"StudyData",B147, "Bar",, "ContractOI", "D", "-2",,,,,"T")) -> 158 | N147: =IF(LEFT(RTD("cqg.rtd", ,"ContractData",B147, "LastTrade",, "T"),3)="768","",IFERROR(IF(L147>M147,"+"&L147-M147,L147-M147)*1,"")) -> 23
A148: 11950 | B148: C.US.CLEJ2611950 | C148: =IF(LEFT(RTD("cqg.rtd", ,"ContractData",B148, "LastTrade",, "T"),3)="768","",RTD("cqg.rtd", ,"ContractData",B148, "LastTrade",, "T")) -> 1.41 | D148: =IF(C148="","",RTD("cqg.rtd", ,"ContractData",B148, "NetLastTrade",, "T")) -> 0.13 | E148: =IF(LEFT(RTD("cqg.rtd", ,"ContractData",B148, "LastTrade",, "T"),3)="768","",RTD("cqg.rtd", ,"ContractData",B148, "MT_LastBidVolume",, "T")) -> 1 | F148: =IF(LEFT(RTD("cqg.rtd", ,"ContractData",B148, "LastTrade",, "T"),3)="768","",RTD("cqg.rtd", ,"ContractData",B148, "Bid",, "T")) -> 1.46 | G148: =IF(LEFT(RTD("cqg.rtd", ,"ContractData",B148, "LastTrade",, "T"),3)="768","",RTD("cqg.rtd", ,"ContractData",B148, "Ask",, "T")) -> 1.53 | H148: =IF(LEFT(RTD("cqg.rtd", ,"ContractData",B148, "LastTrade",, "T"),3)="768","",RTD("cqg.rtd", ,"ContractData",B148, "MT_LastAskVolume",, "T")) -> 19 | I148: =IF(LEFT(RTD("cqg.rtd", ,"ContractData",B148, "LastTrade",, "T"),3)="768","",RTD("cqg.rtd", ,"ContractData",B148, "T_CVol",, "T")) -> 4 | J148: =IF(LEFT(RTD("cqg.rtd", ,"ContractData",B148, "LastTrade",, "T"),3)="768","",RTD("cqg.rtd", ,"ContractData",B148, "Y_CVol",, "T")) -> 62 | K148: =IF(LEFT(RTD("cqg.rtd", ,"ContractData",B148, "LastTrade",, "T"),3)="768","",IFERROR(IF(I148>J148,"+"&I148-J148,I148-J148)*1,"")) -> -58 | L148: =IF(LEFT(RTD("cqg.rtd", ,"ContractData",B148, "LastTrade",, "T"),3)="768","",RTD("cqg.rtd",,"StudyData",B148, "Bar",, "ContractOI", "D", "-1",,,,,"T")) -> 98 | M148: =IF(LEFT(RTD("cqg.rtd", ,"ContractData",B148, "LastTrade",, "T"),3)="768","",RTD("cqg.rtd",,"StudyData",B148, "Bar",, "ContractOI", "D", "-2",,,,,"T")) -> 89 | N148: =IF(LEFT(RTD("cqg.rtd", ,"ContractData",B148, "LastTrade",, "T"),3)="768","",IFERROR(IF(L148>M148,"+"&L148-M148,L148-M148)*1,"")) -> 9
A149: 12000 | B149: C.US.CLEJ2612000 | C149: =IF(LEFT(RTD("cqg.rtd", ,"ContractData",B149, "LastTrade",, "T"),3)="768","",RTD("cqg.rtd", ,"ContractData",B149, "LastTrade",, "T")) -> 1.5 | D149: =IF(C149="","",RTD("cqg.rtd", ,"ContractData",B149, "NetLastTrade",, "T")) -> 0.25 | E149: =IF(LEFT(RTD("cqg.rtd", ,"ContractData",B149, "LastTrade",, "T"),3)="768","",RTD("cqg.rtd", ,"ContractData",B149, "MT_LastBidVolume",, "T")) -> 2 | F149: =IF(LEFT(RTD("cqg.rtd", ,"ContractData",B149, "LastTrade",, "T"),3)="768","",RTD("cqg.rtd", ,"ContractData",B149, "Bid",, "T")) -> 1.42 | G149: =IF(LEFT(RTD("cqg.rtd", ,"ContractData",B149, "LastTrade",, "T"),3)="768","",RTD("cqg.rtd", ,"ContractData",B149, "Ask",, "T")) -> 1.49 | H149: =IF(LEFT(RTD("cqg.rtd", ,"ContractData",B149, "LastTrade",, "T"),3)="768","",RTD("cqg.rtd", ,"ContractData",B149, "MT_LastAskVolume",, "T")) -> 19 | I149: =IF(LEFT(RTD("cqg.rtd", ,"ContractData",B149, "LastTrade",, "T"),3)="768","",RTD("cqg.rtd", ,"ContractData",B149, "T_CVol",, "T")) -> 443 | J149: =IF(LEFT(RTD("cqg.rtd", ,"ContractData",B149, "LastTrade",, "T"),3)="768","",RTD("cqg.rtd", ,"ContractData",B149, "Y_CVol",, "T")) -> 1081 | K149: =IF(LEFT(RTD("cqg.rtd", ,"ContractData",B149, "LastTrade",, "T"),3)="768","",IFERROR(IF(I149>J149,"+"&I149-J149,I149-J149)*1,"")) -> -638 | L149: =IF(LEFT(RTD("cqg.rtd", ,"ContractData",B149, "LastTrade",, "T"),3)="768","",RTD("cqg.rtd",,"StudyData",B149, "Bar",, "ContractOI", "D", "-1",,,,,"T")) -> 6631 | M149: =IF(LEFT(RTD("cqg.rtd", ,"ContractData",B149, "LastTrade",, "T"),3)="768","",RTD("cqg.rtd",,"StudyData",B149, "Bar",, "ContractOI", "D", "-2",,,,,"T")) -> 6886 | N149: =IF(LEFT(RTD("cqg.rtd", ,"ContractData",B149, "LastTrade",, "T"),3)="768","",IFERROR(IF(L149>M149,"+"&L149-M149,L149-M149)*1,"")) -> -255
A150: 12050 | B150: C.US.CLEJ2612050 | C150: =IF(LEFT(RTD("cqg.rtd", ,"ContractData",B150, "LastTrade",, "T"),3)="768","",RTD("cqg.rtd", ,"ContractData",B150, "LastTrade",, "T")) -> 1.26 | D150: =IF(C150="","",RTD("cqg.rtd", ,"ContractData",B150, "NetLastTrade",, "T")) -> 0.04 | E150: =IF(LEFT(RTD("cqg.rtd", ,"ContractData",B150, "LastTrade",, "T"),3)="768","",RTD("cqg.rtd", ,"ContractData",B150, "MT_LastBidVolume",, "T")) -> 1 | F150: =IF(LEFT(RTD("cqg.rtd", ,"ContractData",B150, "LastTrade",, "T"),3)="768","",RTD("cqg.rtd", ,"ContractData",B150, "Bid",, "T")) -> 1.38 | G150: =IF(LEFT(RTD("cqg.rtd", ,"ContractData",B150, "LastTrade",, "T"),3)="768","",RTD("cqg.rtd", ,"ContractData",B150, "Ask",, "T")) -> 1.44 | H150: =IF(LEFT(RTD("cqg.rtd", ,"ContractData",B150, "LastTrade",, "T"),3)="768","",RTD("cqg.rtd", ,"ContractData",B150, "MT_LastAskVolume",, "T")) -> 19 | I150: =IF(LEFT(RTD("cqg.rtd", ,"ContractData",B150, "LastTrade",, "T"),3)="768","",RTD("cqg.rtd", ,"ContractData",B150, "T_CVol",, "T")) -> 84 | J150: =IF(LEFT(RTD("cqg.rtd", ,"ContractData",B150, "LastTrade",, "T"),3)="768","",RTD("cqg.rtd", ,"ContractData",B150, "Y_CVol",, "T")) -> 99 | K150: =IF(LEFT(RTD("cqg.rtd", ,"ContractData",B150, "LastTrade",, "T"),3)="768","",IFERROR(IF(I150>J150,"+"&I150-J150,I150-J150)*1,"")) -> -15 | L150: =IF(LEFT(RTD("cqg.rtd", ,"ContractData",B150, "LastTrade",, "T"),3)="768","",RTD("cqg.rtd",,"StudyData",B150, "Bar",, "ContractOI", "D", "-1",,,,,"T")) -> 314 | M150: =IF(LEFT(RTD("cqg.rtd", ,"ContractData",B150, "LastTrade",, "T"),3)="768","",RTD("cqg.rtd",,"StudyData",B150, "Bar",, "ContractOI", "D", "-2",,,,,"T")) -> 265 | N150: =IF(LEFT(RTD("cqg.rtd", ,"ContractData",B150, "LastTrade",, "T"),3)="768","",IFERROR(IF(L150>M150,"+"&L150-M150,L150-M150)*1,"")) -> 49
A151: 12100 | B151: C.US.CLEJ2612100 | C151: =IF(LEFT(RTD("cqg.rtd", ,"ContractData",B151, "LastTrade",, "T"),3)="768","",RTD("cqg.rtd", ,"ContractData",B151, "LastTrade",, "T")) -> 1.56 | D151: =IF(C151="","",RTD("cqg.rtd", ,"ContractData",B151, "NetLastTrade",, "T")) -> 0.36 | E151: =IF(LEFT(RTD("cqg.rtd", ,"ContractData",B151, "LastTrade",, "T"),3)="768","",RTD("cqg.rtd", ,"ContractData",B151, "MT_LastBidVolume",, "T")) -> 2 | F151: =IF(LEFT(RTD("cqg.rtd", ,"ContractData",B151, "LastTrade",, "T"),3)="768","",RTD("cqg.rtd", ,"ContractData",B151, "Bid",, "T")) -> 1.33 | G151: =IF(LEFT(RTD("cqg.rtd", ,"ContractData",B151, "LastTrade",, "T"),3)="768","",RTD("cqg.rtd", ,"ContractData",B151, "Ask",, "T")) -> 1.41 | H151: =IF(LEFT(RTD("cqg.rtd", ,"ContractData",B151, "LastTrade",, "T"),3)="768","",RTD("cqg.rtd", ,"ContractData",B151, "MT_LastAskVolume",, "T")) -> 23 | I151: =IF(LEFT(RTD("cqg.rtd", ,"ContractData",B151, "LastTrade",, "T"),3)="768","",RTD("cqg.rtd", ,"ContractData",B151, "T_CVol",, "T")) -> 11 | J151: =IF(LEFT(RTD("cqg.rtd", ,"ContractData",B151, "LastTrade",, "T"),3)="768","",RTD("cqg.rtd", ,"ContractData",B151, "Y_CVol",, "T")) -> 68 | K151: =IF(LEFT(RTD("cqg.rtd", ,"ContractData",B151, "LastTrade",, "T"),3)="768","",IFERROR(IF(I151>J151,"+"&I151-J151,I151-J151)*1,"")) -> -57 | L151: =IF(LEFT(RTD("cqg.rtd", ,"ContractData",B151, "LastTrade",, "T"),3)="768","",RTD("cqg.rtd",,"StudyData",B151, "Bar",, "ContractOI", "D", "-1",,,,,"T")) -> 959 | M151: =IF(LEFT(RTD("cqg.rtd", ,"ContractData",B151, "LastTrade",, "T"),3)="768","",RTD("cqg.rtd",,"StudyData",B151, "Bar",, "ContractOI", "D", "-2",,,,,"T")) -> 952 | N151: =IF(LEFT(RTD("cqg.rtd", ,"ContractData",B151, "LastTrade",, "T"),3)="768","",IFERROR(IF(L151>M151,"+"&L151-M151,L151-M151)*1,"")) -> 7
A152: 12150 | B152: C.US.CLEJ2612150 | C152: =IF(LEFT(RTD("cqg.rtd", ,"ContractData",B152, "LastTrade",, "T"),3)="768","",RTD("cqg.rtd", ,"ContractData",B152, "LastTrade",, "T")) -> 2.15 | D152: =IF(C152="","",RTD("cqg.rtd", ,"ContractData",B152, "NetLastTrade",, "T")) -> 0.98 | E152: =IF(LEFT(RTD("cqg.rtd", ,"ContractData",B152, "LastTrade",, "T"),3)="768","",RTD("cqg.rtd", ,"ContractData",B152, "MT_LastBidVolume",, "T")) -> 2 | F152: =IF(LEFT(RTD("cqg.rtd", ,"ContractData",B152, "LastTrade",, "T"),3)="768","",RTD("cqg.rtd", ,"ContractData",B152, "Bid",, "T")) -> 1.3 | G152: =IF(LEFT(RTD("cqg.rtd", ,"ContractData",B152, "LastTrade",, "T"),3)="768","",RTD("cqg.rtd", ,"ContractData",B152, "Ask",, "T")) -> 1.37 | H152: =IF(LEFT(RTD("cqg.rtd", ,"ContractData",B152, "LastTrade",, "T"),3)="768","",RTD("cqg.rtd", ,"ContractData",B152, "MT_LastAskVolume",, "T")) -> 22 | I152: =IF(LEFT(RTD("cqg.rtd", ,"ContractData",B152, "LastTrade",, "T"),3)="768","",RTD("cqg.rtd", ,"ContractData",B152, "T_CVol",, "T")) -> 2 | J152: =IF(LEFT(RTD("cqg.rtd", ,"ContractData",B152, "LastTrade",, "T"),3)="768","",RTD("cqg.rtd", ,"ContractData",B152, "Y_CVol",, "T")) -> 15 | K152: =IF(LEFT(RTD("cqg.rtd", ,"ContractData",B152, "LastTrade",, "T"),3)="768","",IFERROR(IF(I152>J152,"+"&I152-J152,I152-J152)*1,"")) -> -13 | L152: =IF(LEFT(RTD("cqg.rtd", ,"ContractData",B152, "LastTrade",, "T"),3)="768","",RTD("cqg.rtd",,"StudyData",B152, "Bar",, "ContractOI", "D", "-1",,,,,"T")) -> 76 | M152: =IF(LEFT(RTD("cqg.rtd", ,"ContractData",B152, "LastTrade",, "T"),3)="768","",RTD("cqg.rtd",,"StudyData",B152, "Bar",, "ContractOI", "D", "-2",,,,,"T")) -> 70 | N152: =IF(LEFT(RTD("cqg.rtd", ,"ContractData",B152, "LastTrade",, "T"),3)="768","",IFERROR(IF(L152>M152,"+"&L152-M152,L152-M152)*1,"")) -> 6
A153: 12200 | B153: C.US.CLEJ2612200 | C153: =IF(LEFT(RTD("cqg.rtd", ,"ContractData",B153, "LastTrade",, "T"),3)="768","",RTD("cqg.rtd", ,"ContractData",B153, "LastTrade",, "T")) -> 2 | D153: =IF(C153="","",RTD("cqg.rtd", ,"ContractData",B153, "NetLastTrade",, "T")) -> 0.86 | E153: =IF(LEFT(RTD("cqg.rtd", ,"ContractData",B153, "LastTrade",, "T"),3)="768","",RTD("cqg.rtd", ,"ContractData",B153, "MT_LastBidVolume",, "T")) -> 1 | F153: =IF(LEFT(RTD("cqg.rtd", ,"ContractData",B153, "LastTrade",, "T"),3)="768","",RTD("cqg.rtd", ,"ContractData",B153, "Bid",, "T")) -> 1.26 | G153: =IF(LEFT(RTD("cqg.rtd", ,"ContractData",B153, "LastTrade",, "T"),3)="768","",RTD("cqg.rtd", ,"ContractData",B153, "Ask",, "T")) -> 1.33 | H153: =IF(LEFT(RTD("cqg.rtd", ,"ContractData",B153, "LastTrade",, "T"),3)="768","",RTD("cqg.rtd", ,"ContractData",B153, "MT_LastAskVolume",, "T")) -> 21 | I153: =IF(LEFT(RTD("cqg.rtd", ,"ContractData",B153, "LastTrade",, "T"),3)="768","",RTD("cqg.rtd", ,"ContractData",B153, "T_CVol",, "T")) -> 4 | J153: =IF(LEFT(RTD("cqg.rtd", ,"ContractData",B153, "LastTrade",, "T"),3)="768","",RTD("cqg.rtd", ,"ContractData",B153, "Y_CVol",, "T")) -> 37 | K153: =IF(LEFT(RTD("cqg.rtd", ,"ContractData",B153, "LastTrade",, "T"),3)="768","",IFERROR(IF(I153>J153,"+"&I153-J153,I153-J153)*1,"")) -> -33 | L153: =IF(LEFT(RTD("cqg.rtd", ,"ContractData",B153, "LastTrade",, "T"),3)="768","",RTD("cqg.rtd",,"StudyData",B153, "Bar",, "ContractOI", "D", "-1",,,,,"T")) -> 341 | M153: =IF(LEFT(RTD("cqg.rtd", ,"ContractData",B153, "LastTrade",, "T"),3)="768","",RTD("cqg.rtd",,"StudyData",B153, "Bar",, "ContractOI", "D", "-2",,,,,"T")) -> 348 | N153: =IF(LEFT(RTD("cqg.rtd", ,"ContractData",B153, "LastTrade",, "T"),3)="768","",IFERROR(IF(L153>M153,"+"&L153-M153,L153-M153)*1,"")) -> -7
A154: 12250 | B154: C.US.CLEJ2612250 | C154: =IF(LEFT(RTD("cqg.rtd", ,"ContractData",B154, "LastTrade",, "T"),3)="768","",RTD("cqg.rtd", ,"ContractData",B154, "LastTrade",, "T")) -> 1.86 | D154: =IF(C154="","",RTD("cqg.rtd", ,"ContractData",B154, "NetLastTrade",, "T")) -> 0.74 | E154: =IF(LEFT(RTD("cqg.rtd", ,"ContractData",B154, "LastTrade",, "T"),3)="768","",RTD("cqg.rtd", ,"ContractData",B154, "MT_LastBidVolume",, "T")) -> 1 | F154: =IF(LEFT(RTD("cqg.rtd", ,"ContractData",B154, "LastTrade",, "T"),3)="768","",RTD("cqg.rtd", ,"ContractData",B154, "Bid",, "T")) -> 1.23 | G154: =IF(LEFT(RTD("cqg.rtd", ,"ContractData",B154, "LastTrade",, "T"),3)="768","",RTD("cqg.rtd", ,"ContractData",B154, "Ask",, "T")) -> 1.3 | H154: =IF(LEFT(RTD("cqg.rtd", ,"ContractData",B154, "LastTrade",, "T"),3)="768","",RTD("cqg.rtd", ,"ContractData",B154, "MT_LastAskVolume",, "T")) -> 22 | I154: =IF(LEFT(RTD("cqg.rtd", ,"ContractData",B154, "LastTrade",, "T"),3)="768","",RTD("cqg.rtd", ,"ContractData",B154, "T_CVol",, "T")) -> 10 | J154: =IF(LEFT(RTD("cqg.rtd", ,"ContractData",B154, "LastTrade",, "T"),3)="768","",RTD("cqg.rtd", ,"ContractData",B154, "Y_CVol",, "T")) -> 30 | K154: =IF(LEFT(RTD("cqg.rtd", ,"ContractData",B154, "LastTrade",, "T"),3)="768","",IFERROR(IF(I154>J154,"+"&I154-J154,I154-J154)*1,"")) -> -20 | L154: =IF(LEFT(RTD("cqg.rtd", ,"ContractData",B154, "LastTrade",, "T"),3)="768","",RTD("cqg.rtd",,"StudyData",B154, "Bar",, "ContractOI", "D", "-1",,,,,"T")) -> 357 | M154: =IF(LEFT(RTD("cqg.rtd", ,"ContractData",B154, "LastTrade",, "T"),3)="768","",RTD("cqg.rtd",,"StudyData",B154, "Bar",, "ContractOI", "D", "-2",,,,,"T")) -> 355 | N154: =IF(LEFT(RTD("cqg.rtd", ,"ContractData",B154, "LastTrade",, "T"),3)="768","",IFERROR(IF(L154>M154,"+"&L154-M154,L154-M154)*1,"")) -> 2
A155: 12300 | B155: C.US.CLEJ2612300 | C155: =IF(LEFT(RTD("cqg.rtd", ,"ContractData",B155, "LastTrade",, "T"),3)="768","",RTD("cqg.rtd", ,"ContractData",B155, "LastTrade",, "T")) -> 2.53 | D155: =IF(C155="","",RTD("cqg.rtd", ,"ContractData",B155, "NetLastTrade",, "T")) -> 1.44 | E155: =IF(LEFT(RTD("cqg.rtd", ,"ContractData",B155, "LastTrade",, "T"),3)="768","",RTD("cqg.rtd", ,"ContractData",B155, "MT_LastBidVolume",, "T")) -> 3 | F155: =IF(LEFT(RTD("cqg.rtd", ,"ContractData",B155, "LastTrade",, "T"),3)="768","",RTD("cqg.rtd", ,"ContractData",B155, "Bid",, "T")) -> 1.19 | G155: =IF(LEFT(RTD("cqg.rtd", ,"ContractData",B155, "LastTrade",, "T"),3)="768","",RTD("cqg.rtd", ,"ContractData",B155, "Ask",, "T")) -> 1.26 | H155: =IF(LEFT(RTD("cqg.rtd", ,"ContractData",B155, "LastTrade",, "T"),3)="768","",RTD("cqg.rtd", ,"ContractData",B155, "MT_LastAskVolume",, "T")) -> 21 | I155: =IF(LEFT(RTD("cqg.rtd", ,"ContractData",B155, "LastTrade",, "T"),3)="768","",RTD("cqg.rtd", ,"ContractData",B155, "T_CVol",, "T")) -> 4 | J155: =IF(LEFT(RTD("cqg.rtd", ,"ContractData",B155, "LastTrade",, "T"),3)="768","",RTD("cqg.rtd", ,"ContractData",B155, "Y_CVol",, "T")) -> 29 | K155: =IF(LEFT(RTD("cqg.rtd", ,"ContractData",B155, "LastTrade",, "T"),3)="768","",IFERROR(IF(I155>J155,"+"&I155-J155,I155-J155)*1,"")) -> -25 | L155: =IF(LEFT(RTD("cqg.rtd", ,"ContractData",B155, "LastTrade",, "T"),3)="768","",RTD("cqg.rtd",,"StudyData",B155, "Bar",, "ContractOI", "D", "-1",,,,,"T")) -> 340 | M155: =IF(LEFT(RTD("cqg.rtd", ,"ContractData",B155, "LastTrade",, "T"),3)="768","",RTD("cqg.rtd",,"StudyData",B155, "Bar",, "ContractOI", "D", "-2",,,,,"T")) -> 337 | N155: =IF(LEFT(RTD("cqg.rtd", ,"ContractData",B155, "LastTrade",, "T"),3)="768","",IFERROR(IF(L155>M155,"+"&L155-M155,L155-M155)*1,"")) -> 3
A156: 12350 | B156: C.US.CLEJ2612350 | C156: =IF(LEFT(RTD("cqg.rtd", ,"ContractData",B156, "LastTrade",, "T"),3)="768","",RTD("cqg.rtd", ,"ContractData",B156, "LastTrade",, "T")) -> 1.14 | D156: =IF(C156="","",RTD("cqg.rtd", ,"ContractData",B156, "NetLastTrade",, "T")) -> 0.08 | E156: =IF(LEFT(RTD("cqg.rtd", ,"ContractData",B156, "LastTrade",, "T"),3)="768","",RTD("cqg.rtd", ,"ContractData",B156, "MT_LastBidVolume",, "T")) -> 1 | F156: =IF(LEFT(RTD("cqg.rtd", ,"ContractData",B156, "LastTrade",, "T"),3)="768","",RTD("cqg.rtd", ,"ContractData",B156, "Bid",, "T")) -> 1.16 | G156: =IF(LEFT(RTD("cqg.rtd", ,"ContractData",B156, "LastTrade",, "T"),3)="768","",RTD("cqg.rtd", ,"ContractData",B156, "Ask",, "T")) -> 1.23 | H156: =IF(LEFT(RTD("cqg.rtd", ,"ContractData",B156, "LastTrade",, "T"),3)="768","",RTD("cqg.rtd", ,"ContractData",B156, "MT_LastAskVolume",, "T")) -> 22 | I156: =IF(LEFT(RTD("cqg.rtd", ,"ContractData",B156, "LastTrade",, "T"),3)="768","",RTD("cqg.rtd", ,"ContractData",B156, "T_CVol",, "T")) -> 11 | J156: =IF(LEFT(RTD("cqg.rtd", ,"ContractData",B156, "LastTrade",, "T"),3)="768","",RTD("cqg.rtd", ,"ContractData",B156, "Y_CVol",, "T")) -> 44 | K156: =IF(LEFT(RTD("cqg.rtd", ,"ContractData",B156, "LastTrade",, "T"),3)="768","",IFERROR(IF(I156>J156,"+"&I156-J156,I156-J156)*1,"")) -> -33 | L156: =IF(LEFT(RTD("cqg.rtd", ,"ContractData",B156, "LastTrade",, "T"),3)="768","",RTD("cqg.rtd",,"StudyData",B156, "Bar",, "ContractOI", "D", "-1",,,,,"T")) -> 42 | M156: =IF(LEFT(RTD("cqg.rtd", ,"ContractData",B156, "LastTrade",, "T"),3)="768","",RTD("cqg.rtd",,"StudyData",B156, "Bar",, "ContractOI", "D", "-2",,,,,"T")) -> 32 | N156: =IF(LEFT(RTD("cqg.rtd", ,"ContractData",B156, "LastTrade",, "T"),3)="768","",IFERROR(IF(L156>M156,"+"&L156-M156,L156-M156)*1,"")) -> 10
A157: 12400 | B157: C.US.CLEJ2612400 | C157: =IF(LEFT(RTD("cqg.rtd", ,"ContractData",B157, "LastTrade",, "T"),3)="768","",RTD("cqg.rtd", ,"ContractData",B157, "LastTrade",, "T")) -> 1.07 | D157: =IF(C157="","",RTD("cqg.rtd", ,"ContractData",B157, "NetLastTrade",, "T")) -> 0.03 | E157: =IF(LEFT(RTD("cqg.rtd", ,"ContractData",B157, "LastTrade",, "T"),3)="768","",RTD("cqg.rtd", ,"ContractData",B157, "MT_LastBidVolume",, "T")) -> 2 | F157: =IF(LEFT(RTD("cqg.rtd", ,"ContractData",B157, "LastTrade",, "T"),3)="768","",RTD("cqg.rtd", ,"ContractData",B157, "Bid",, "T")) -> 1.12 | G157: =IF(LEFT(RTD("cqg.rtd", ,"ContractData",B157, "LastTrade",, "T"),3)="768","",RTD("cqg.rtd", ,"ContractData",B157, "Ask",, "T")) -> 1.2 | H157: =IF(LEFT(RTD("cqg.rtd", ,"ContractData",B157, "LastTrade",, "T"),3)="768","",RTD("cqg.rtd", ,"ContractData",B157, "MT_LastAskVolume",, "T")) -> 23 | I157: =IF(LEFT(RTD("cqg.rtd", ,"ContractData",B157, "LastTrade",, "T"),3)="768","",RTD("cqg.rtd", ,"ContractData",B157, "T_CVol",, "T")) -> 14 | J157: =IF(LEFT(RTD("cqg.rtd", ,"ContractData",B157, "LastTrade",, "T"),3)="768","",RTD("cqg.rtd", ,"ContractData",B157, "Y_CVol",, "T")) -> 15 | K157: =IF(LEFT(RTD("cqg.rtd", ,"ContractData",B157, "LastTrade",, "T"),3)="768","",IFERROR(IF(I157>J157,"+"&I157-J157,I157-J157)*1,"")) -> -1 | L157: =IF(LEFT(RTD("cqg.rtd", ,"ContractData",B157, "LastTrade",, "T"),3)="768","",RTD("cqg.rtd",,"StudyData",B157, "Bar",, "ContractOI", "D", "-1",,,,,"T")) -> 169 | M157: =IF(LEFT(RTD("cqg.rtd", ,"ContractData",B157, "LastTrade",, "T"),3)="768","",RTD("cqg.rtd",,"StudyData",B157, "Bar",, "ContractOI", "D", "-2",,,,,"T")) -> 167 | N157: =IF(LEFT(RTD("cqg.rtd", ,"ContractData",B157, "LastTrade",, "T"),3)="768","",IFERROR(IF(L157>M157,"+"&L157-M157,L157-M157)*1,"")) -> 2
A158: =A157+$A$7 -> 12450 | B158: =LEFT(B157,FIND(A157,B157)-1)&A158 -> C.US.CLEJ2612450 | C158: =IF(LEFT(RTD("cqg.rtd", ,"ContractData",B158, "LastTrade",, "T"),3)="768","",RTD("cqg.rtd", ,"ContractData",B158, "LastTrade",, "T")) -> 1.09 | D158: =IF(C158="","",RTD("cqg.rtd", ,"ContractData",B158, "NetLastTrade",, "T")) -> 0.07 | E158: =IF(LEFT(RTD("cqg.rtd", ,"ContractData",B158, "LastTrade",, "T"),3)="768","",RTD("cqg.rtd", ,"ContractData",B158, "MT_LastBidVolume",, "T")) -> 2 | F158: =IF(LEFT(RTD("cqg.rtd", ,"ContractData",B158, "LastTrade",, "T"),3)="768","",RTD("cqg.rtd", ,"ContractData",B158, "Bid",, "T")) -> 1.09 | G158: =IF(LEFT(RTD("cqg.rtd", ,"ContractData",B158, "LastTrade",, "T"),3)="768","",RTD("cqg.rtd", ,"ContractData",B158, "Ask",, "T")) -> 1.17 | H158: =IF(LEFT(RTD("cqg.rtd", ,"ContractData",B158, "LastTrade",, "T"),3)="768","",RTD("cqg.rtd", ,"ContractData",B158, "MT_LastAskVolume",, "T")) -> 25 | I158: =IF(LEFT(RTD("cqg.rtd", ,"ContractData",B158, "LastTrade",, "T"),3)="768","",RTD("cqg.rtd", ,"ContractData",B158, "T_CVol",, "T")) -> 19 | J158: =IF(LEFT(RTD("cqg.rtd", ,"ContractData",B158, "LastTrade",, "T"),3)="768","",RTD("cqg.rtd", ,"ContractData",B158, "Y_CVol",, "T")) -> 23 | K158: =IF(LEFT(RTD("cqg.rtd", ,"ContractData",B158, "LastTrade",, "T"),3)="768","",IFERROR(IF(I158>J158,"+"&I158-J158,I158-J158)*1,"")) -> -4 | L158: =IF(LEFT(RTD("cqg.rtd", ,"ContractData",B158, "LastTrade",, "T"),3)="768","",RTD("cqg.rtd",,"StudyData",B158, "Bar",, "ContractOI", "D", "-1",,,,,"T")) -> 16 | M158: =IF(LEFT(RTD("cqg.rtd", ,"ContractData",B158, "LastTrade",, "T"),3)="768","",RTD("cqg.rtd",,"StudyData",B158, "Bar",, "ContractOI", "D", "-2",,,,,"T")) -> 14 | N158: =IF(LEFT(RTD("cqg.rtd", ,"ContractData",B158, "LastTrade",, "T"),3)="768","",IFERROR(IF(L158>M158,"+"&L158-M158,L158-M158)*1,"")) -> 2
A159: 12500 | B159: C.US.CLEJ2612500 | C159: =IF(LEFT(RTD("cqg.rtd", ,"ContractData",B159, "LastTrade",, "T"),3)="768","",RTD("cqg.rtd", ,"ContractData",B159, "LastTrade",, "T")) -> 1 | D159: =IF(C159="","",RTD("cqg.rtd", ,"ContractData",B159, "NetLastTrade",, "T")) -> 0.01 | E159: =IF(LEFT(RTD("cqg.rtd", ,"ContractData",B159, "LastTrade",, "T"),3)="768","",RTD("cqg.rtd", ,"ContractData",B159, "MT_LastBidVolume",, "T")) -> 1 | F159: =IF(LEFT(RTD("cqg.rtd", ,"ContractData",B159, "LastTrade",, "T"),3)="768","",RTD("cqg.rtd", ,"ContractData",B159, "Bid",, "T")) -> 1.07 | G159: =IF(LEFT(RTD("cqg.rtd", ,"ContractData",B159, "LastTrade",, "T"),3)="768","",RTD("cqg.rtd", ,"ContractData",B159, "Ask",, "T")) -> 1.14 | H159: =IF(LEFT(RTD("cqg.rtd", ,"ContractData",B159, "LastTrade",, "T"),3)="768","",RTD("cqg.rtd", ,"ContractData",B159, "MT_LastAskVolume",, "T")) -> 28 | I159: =IF(LEFT(RTD("cqg.rtd", ,"ContractData",B159, "LastTrade",, "T"),3)="768","",RTD("cqg.rtd", ,"ContractData",B159, "T_CVol",, "T")) -> 189 | J159: =IF(LEFT(RTD("cqg.rtd", ,"ContractData",B159, "LastTrade",, "T"),3)="768","",RTD("cqg.rtd", ,"ContractData",B159, "Y_CVol",, "T")) -> 476 | K159: =IF(LEFT(RTD("cqg.rtd", ,"ContractData",B159, "LastTrade",, "T"),3)="768","",IFERROR(IF(I159>J159,"+"&I159-J159,I159-J159)*1,"")) -> -287 | L159: =IF(LEFT(RTD("cqg.rtd", ,"ContractData",B159, "LastTrade",, "T"),3)="768","",RTD("cqg.rtd",,"StudyData",B159, "Bar",, "ContractOI", "D", "-1",,,,,"T")) -> 2060 | M159: =IF(LEFT(RTD("cqg.rtd", ,"ContractData",B159, "LastTrade",, "T"),3)="768","",RTD("cqg.rtd",,"StudyData",B159, "Bar",, "ContractOI", "D", "-2",,,,,"T")) -> 2080 | N159: =IF(LEFT(RTD("cqg.rtd", ,"ContractData",B159, "LastTrade",, "T"),3)="768","",IFERROR(IF(L159>M159,"+"&L159-M159,L159-M159)*1,"")) -> -20
A160: 12550 | B160: C.US.CLEJ2612550 | C160: =IF(LEFT(RTD("cqg.rtd", ,"ContractData",B160, "LastTrade",, "T"),3)="768","",RTD("cqg.rtd", ,"ContractData",B160, "LastTrade",, "T")) -> 0.95 | D160: =IF(C160="","",RTD("cqg.rtd", ,"ContractData",B160, "NetLastTrade",, "T")) -> -0.02 | E160: =IF(LEFT(RTD("cqg.rtd", ,"ContractData",B160, "LastTrade",, "T"),3)="768","",RTD("cqg.rtd", ,"ContractData",B160, "MT_LastBidVolume",, "T")) -> 2 | F160: =IF(LEFT(RTD("cqg.rtd", ,"ContractData",B160, "LastTrade",, "T"),3)="768","",RTD("cqg.rtd", ,"ContractData",B160, "Bid",, "T")) -> 1.03 | G160: =IF(LEFT(RTD("cqg.rtd", ,"ContractData",B160, "LastTrade",, "T"),3)="768","",RTD("cqg.rtd", ,"ContractData",B160, "Ask",, "T")) -> 1.1 | H160: =IF(LEFT(RTD("cqg.rtd", ,"ContractData",B160, "LastTrade",, "T"),3)="768","",RTD("cqg.rtd", ,"ContractData",B160, "MT_LastAskVolume",, "T")) -> 18 | I160: =IF(LEFT(RTD("cqg.rtd", ,"ContractData",B160, "LastTrade",, "T"),3)="768","",RTD("cqg.rtd", ,"ContractData",B160, "T_CVol",, "T")) -> 0 | J160: =IF(LEFT(RTD("cqg.rtd", ,"ContractData",B160, "LastTrade",, "T"),3)="768","",RTD("cqg.rtd", ,"ContractData",B160, "Y_CVol",, "T")) -> 16 | K160: =IF(LEFT(RTD("cqg.rtd", ,"ContractData",B160, "LastTrade",, "T"),3)="768","",IFERROR(IF(I160>J160,"+"&I160-J160,I160-J160)*1,"")) -> -16 | L160: =IF(LEFT(RTD("cqg.rtd", ,"ContractData",B160, "LastTrade",, "T"),3)="768","",RTD("cqg.rtd",,"StudyData",B160, "Bar",, "ContractOI", "D", "-1",,,,,"T")) -> 22 | M160: =IF(LEFT(RTD("cqg.rtd", ,"ContractData",B160, "LastTrade",, "T"),3)="768","",RTD("cqg.rtd",,"StudyData",B160, "Bar",, "ContractOI", "D", "-2",,,,,"T")) -> 15 | N160: =IF(LEFT(RTD("cqg.rtd", ,"ContractData",B160, "LastTrade",, "T"),3)="768","",IFERROR(IF(L160>M160,"+"&L160-M160,L160-M160)*1,"")) -> 7
A161: 12600 | B161: C.US.CLEJ2612600 | C161: =IF(LEFT(RTD("cqg.rtd", ,"ContractData",B161, "LastTrade",, "T"),3)="768","",RTD("cqg.rtd", ,"ContractData",B161, "LastTrade",, "T")) -> 1.63 | D161: =IF(C161="","",RTD("cqg.rtd", ,"ContractData",B161, "NetLastTrade",, "T")) -> 0.68 | E161: =IF(LEFT(RTD("cqg.rtd", ,"ContractData",B161, "LastTrade",, "T"),3)="768","",RTD("cqg.rtd", ,"ContractData",B161, "MT_LastBidVolume",, "T")) -> 33 | F161: =IF(LEFT(RTD("cqg.rtd", ,"ContractData",B161, "LastTrade",, "T"),3)="768","",RTD("cqg.rtd", ,"ContractData",B161, "Bid",, "T")) -> 1 | G161: =IF(LEFT(RTD("cqg.rtd", ,"ContractData",B161, "LastTrade",, "T"),3)="768","",RTD("cqg.rtd", ,"ContractData",B161, "Ask",, "T")) -> 1.07 | H161: =IF(LEFT(RTD("cqg.rtd", ,"ContractData",B161, "LastTrade",, "T"),3)="768","",RTD("cqg.rtd", ,"ContractData",B161, "MT_LastAskVolume",, "T")) -> 18 | I161: =IF(LEFT(RTD("cqg.rtd", ,"ContractData",B161, "LastTrade",, "T"),3)="768","",RTD("cqg.rtd", ,"ContractData",B161, "T_CVol",, "T")) -> 23 | J161: =IF(LEFT(RTD("cqg.rtd", ,"ContractData",B161, "LastTrade",, "T"),3)="768","",RTD("cqg.rtd", ,"ContractData",B161, "Y_CVol",, "T")) -> 180 | K161: =IF(LEFT(RTD("cqg.rtd", ,"ContractData",B161, "LastTrade",, "T"),3)="768","",IFERROR(IF(I161>J161,"+"&I161-J161,I161-J161)*1,"")) -> -157 | L161: =IF(LEFT(RTD("cqg.rtd", ,"ContractData",B161, "LastTrade",, "T"),3)="768","",RTD("cqg.rtd",,"StudyData",B161, "Bar",, "ContractOI", "D", "-1",,,,,"T")) -> 101 | M161: =IF(LEFT(RTD("cqg.rtd", ,"ContractData",B161, "LastTrade",, "T"),3)="768","",RTD("cqg.rtd",,"StudyData",B161, "Bar",, "ContractOI", "D", "-2",,,,,"T")) -> 81 | N161: =IF(LEFT(RTD("cqg.rtd", ,"ContractData",B161, "LastTrade",, "T"),3)="768","",IFERROR(IF(L161>M161,"+"&L161-M161,L161-M161)*1,"")) -> 20
A162: 12650 | B162: C.US.CLEJ2612650 | C162: =IF(LEFT(RTD("cqg.rtd", ,"ContractData",B162, "LastTrade",, "T"),3)="768","",RTD("cqg.rtd", ,"ContractData",B162, "LastTrade",, "T")) -> 0.96 | D162: =IF(C162="","",RTD("cqg.rtd", ,"ContractData",B162, "NetLastTrade",, "T")) -> 0.03 | E162: =IF(LEFT(RTD("cqg.rtd", ,"ContractData",B162, "LastTrade",, "T"),3)="768","",RTD("cqg.rtd", ,"ContractData",B162, "MT_LastBidVolume",, "T")) -> 1 | F162: =IF(LEFT(RTD("cqg.rtd", ,"ContractData",B162, "LastTrade",, "T"),3)="768","",RTD("cqg.rtd", ,"ContractData",B162, "Bid",, "T")) -> 0.98 | G162: =IF(LEFT(RTD("cqg.rtd", ,"ContractData",B162, "LastTrade",, "T"),3)="768","",RTD("cqg.rtd", ,"ContractData",B162, "Ask",, "T")) -> 1.04 | H162: =IF(LEFT(RTD("cqg.rtd", ,"ContractData",B162, "LastTrade",, "T"),3)="768","",RTD("cqg.rtd", ,"ContractData",B162, "MT_LastAskVolume",, "T")) -> 18 | I162: =IF(LEFT(RTD("cqg.rtd", ,"ContractData",B162, "LastTrade",, "T"),3)="768","",RTD("cqg.rtd", ,"ContractData",B162, "T_CVol",, "T")) -> 8 | J162: =IF(LEFT(RTD("cqg.rtd", ,"ContractData",B162, "LastTrade",, "T"),3)="768","",RTD("cqg.rtd", ,"ContractData",B162, "Y_CVol",, "T")) -> 6 | K162: =IF(LEFT(RTD("cqg.rtd", ,"ContractData",B162, "LastTrade",, "T"),3)="768","",IFERROR(IF(I162>J162,"+"&I162-J162,I162-J162)*1,"")) -> 2 | L162: =IF(LEFT(RTD("cqg.rtd", ,"ContractData",B162, "LastTrade",, "T"),3)="768","",RTD("cqg.rtd",,"StudyData",B162, "Bar",, "ContractOI", "D", "-1",,,,,"T")) -> 30 | M162: =IF(LEFT(RTD("cqg.rtd", ,"ContractData",B162, "LastTrade",, "T"),3)="768","",RTD("cqg.rtd",,"StudyData",B162, "Bar",, "ContractOI", "D", "-2",,,,,"T")) -> 30 | N162: =IF(LEFT(RTD("cqg.rtd", ,"ContractData",B162, "LastTrade",, "T"),3)="768","",IFERROR(IF(L162>M162,"+"&L162-M162,L162-M162)*1,"")) -> 0
A163: 12700 | B163: C.US.CLEJ2612700 | C163: =IF(LEFT(RTD("cqg.rtd", ,"ContractData",B163, "LastTrade",, "T"),3)="768","",RTD("cqg.rtd", ,"ContractData",B163, "LastTrade",, "T")) -> 1.08 | D163: =IF(C163="","",RTD("cqg.rtd", ,"ContractData",B163, "NetLastTrade",, "T")) -> 0.17 | E163: =IF(LEFT(RTD("cqg.rtd", ,"ContractData",B163, "LastTrade",, "T"),3)="768","",RTD("cqg.rtd", ,"ContractData",B163, "MT_LastBidVolume",, "T")) -> 2 | F163: =IF(LEFT(RTD("cqg.rtd", ,"ContractData",B163, "LastTrade",, "T"),3)="768","",RTD("cqg.rtd", ,"ContractData",B163, "Bid",, "T")) -> 0.95 | G163: =IF(LEFT(RTD("cqg.rtd", ,"ContractData",B163, "LastTrade",, "T"),3)="768","",RTD("cqg.rtd", ,"ContractData",B163, "Ask",, "T")) -> 1.02 | H163: =IF(LEFT(RTD("cqg.rtd", ,"ContractData",B163, "LastTrade",, "T"),3)="768","",RTD("cqg.rtd", ,"ContractData",B163, "MT_LastAskVolume",, "T")) -> 1 | I163: =IF(LEFT(RTD("cqg.rtd", ,"ContractData",B163, "LastTrade",, "T"),3)="768","",RTD("cqg.rtd", ,"ContractData",B163, "T_CVol",, "T")) -> 22 | J163: =IF(LEFT(RTD("cqg.rtd", ,"ContractData",B163, "LastTrade",, "T"),3)="768","",RTD("cqg.rtd", ,"ContractData",B163, "Y_CVol",, "T")) -> 6 | K163: =IF(LEFT(RTD("cqg.rtd", ,"ContractData",B163, "LastTrade",, "T"),3)="768","",IFERROR(IF(I163>J163,"+"&I163-J163,I163-J163)*1,"")) -> 16 | L163: =IF(LEFT(RTD("cqg.rtd", ,"ContractData",B163, "LastTrade",, "T"),3)="768","",RTD("cqg.rtd",,"StudyData",B163, "Bar",, "ContractOI", "D", "-1",,,,,"T")) -> 25 | M163: =IF(LEFT(RTD("cqg.rtd", ,"ContractData",B163, "LastTrade",, "T"),3)="768","",RTD("cqg.rtd",,"StudyData",B163, "Bar",, "ContractOI", "D", "-2",,,,,"T")) -> 25 | N163: =IF(LEFT(RTD("cqg.rtd", ,"ContractData",B163, "LastTrade",, "T"),3)="768","",IFERROR(IF(L163>M163,"+"&L163-M163,L163-M163)*1,"")) -> 0
A164: 12750 | B164: C.US.CLEJ2612750 | C164: =IF(LEFT(RTD("cqg.rtd", ,"ContractData",B164, "LastTrade",, "T"),3)="768","",RTD("cqg.rtd", ,"ContractData",B164, "LastTrade",, "T")) -> 1.92 | D164: =IF(C164="","",RTD("cqg.rtd", ,"ContractData",B164, "NetLastTrade",, "T")) -> 1.04 | E164: =IF(LEFT(RTD("cqg.rtd", ,"ContractData",B164, "LastTrade",, "T"),3)="768","",RTD("cqg.rtd", ,"ContractData",B164, "MT_LastBidVolume",, "T")) -> 2 | F164: =IF(LEFT(RTD("cqg.rtd", ,"ContractData",B164, "LastTrade",, "T"),3)="768","",RTD("cqg.rtd", ,"ContractData",B164, "Bid",, "T")) -> 0.92 | G164: =IF(LEFT(RTD("cqg.rtd", ,"ContractData",B164, "LastTrade",, "T"),3)="768","",RTD("cqg.rtd", ,"ContractData",B164, "Ask",, "T")) -> 0.99 | H164: =IF(LEFT(RTD("cqg.rtd", ,"ContractData",B164, "LastTrade",, "T"),3)="768","",RTD("cqg.rtd", ,"ContractData",B164, "MT_LastAskVolume",, "T")) -> 17 | I164: =IF(LEFT(RTD("cqg.rtd", ,"ContractData",B164, "LastTrade",, "T"),3)="768","",RTD("cqg.rtd", ,"ContractData",B164, "T_CVol",, "T")) -> 13 | J164: =IF(LEFT(RTD("cqg.rtd", ,"ContractData",B164, "LastTrade",, "T"),3)="768","",RTD("cqg.rtd", ,"ContractData",B164, "Y_CVol",, "T")) -> 253 | K164: =IF(LEFT(RTD("cqg.rtd", ,"ContractData",B164, "LastTrade",, "T"),3)="768","",IFERROR(IF(I164>J164,"+"&I164-J164,I164-J164)*1,"")) -> -240 | L164: =IF(LEFT(RTD("cqg.rtd", ,"ContractData",B164, "LastTrade",, "T"),3)="768","",RTD("cqg.rtd",,"StudyData",B164, "Bar",, "ContractOI", "D", "-1",,,,,"T")) -> 244 | M164: =IF(LEFT(RTD("cqg.rtd", ,"ContractData",B164, "LastTrade",, "T"),3)="768","",RTD("cqg.rtd",,"StudyData",B164, "Bar",, "ContractOI", "D", "-2",,,,,"T")) -> 155 | N164: =IF(LEFT(RTD("cqg.rtd", ,"ContractData",B164, "LastTrade",, "T"),3)="768","",IFERROR(IF(L164>M164,"+"&L164-M164,L164-M164)*1,"")) -> 89 | Q164: =C163 -> 1.08
A165: 12800 | B165: C.US.CLEJ2612800 | C165: =IF(LEFT(RTD("cqg.rtd", ,"ContractData",B165, "LastTrade",, "T"),3)="768","",RTD("cqg.rtd", ,"ContractData",B165, "LastTrade",, "T")) -> 0.92 | D165: =IF(C165="","",RTD("cqg.rtd", ,"ContractData",B165, "NetLastTrade",, "T")) -> 0.06 | E165: =IF(LEFT(RTD("cqg.rtd", ,"ContractData",B165, "LastTrade",, "T"),3)="768","",RTD("cqg.rtd", ,"ContractData",B165, "MT_LastBidVolume",, "T")) -> 1 | F165: =IF(LEFT(RTD("cqg.rtd", ,"ContractData",B165, "LastTrade",, "T"),3)="768","",RTD("cqg.rtd", ,"ContractData",B165, "Bid",, "T")) -> 0.9 | G165: =IF(LEFT(RTD("cqg.rtd", ,"ContractData",B165, "LastTrade",, "T"),3)="768","",RTD("cqg.rtd", ,"ContractData",B165, "Ask",, "T")) -> 0.96 | H165: =IF(LEFT(RTD("cqg.rtd", ,"ContractData",B165, "LastTrade",, "T"),3)="768","",RTD("cqg.rtd", ,"ContractData",B165, "MT_LastAskVolume",, "T")) -> 20 | I165: =IF(LEFT(RTD("cqg.rtd", ,"ContractData",B165, "LastTrade",, "T"),3)="768","",RTD("cqg.rtd", ,"ContractData",B165, "T_CVol",, "T")) -> 125 | J165: =IF(LEFT(RTD("cqg.rtd", ,"ContractData",B165, "LastTrade",, "T"),3)="768","",RTD("cqg.rtd", ,"ContractData",B165, "Y_CVol",, "T")) -> 234 | K165: =IF(LEFT(RTD("cqg.rtd", ,"ContractData",B165, "LastTrade",, "T"),3)="768","",IFERROR(IF(I165>J165,"+"&I165-J165,I165-J165)*1,"")) -> -109 | L165: =IF(LEFT(RTD("cqg.rtd", ,"ContractData",B165, "LastTrade",, "T"),3)="768","",RTD("cqg.rtd",,"StudyData",B165, "Bar",, "ContractOI", "D", "-1",,,,,"T")) -> 246 | M165: =IF(LEFT(RTD("cqg.rtd", ,"ContractData",B165, "LastTrade",, "T"),3)="768","",RTD("cqg.rtd",,"StudyData",B165, "Bar",, "ContractOI", "D", "-2",,,,,"T")) -> 171 | N165: =IF(LEFT(RTD("cqg.rtd", ,"ContractData",B165, "LastTrade",, "T"),3)="768","",IFERROR(IF(L165>M165,"+"&L165-M165,L165-M165)*1,"")) -> 75
A166: 12850 | B166: C.US.CLEJ2612850 | C166: =IF(LEFT(RTD("cqg.rtd", ,"ContractData",B166, "LastTrade",, "T"),3)="768","",RTD("cqg.rtd", ,"ContractData",B166, "LastTrade",, "T")) -> 0.86 | D166: =IF(C166="","",RTD("cqg.rtd", ,"ContractData",B166, "NetLastTrade",, "T")) -> 0.02 | E166: =IF(LEFT(RTD("cqg.rtd", ,"ContractData",B166, "LastTrade",, "T"),3)="768","",RTD("cqg.rtd", ,"ContractData",B166, "MT_LastBidVolume",, "T")) -> 34 | F166: =IF(LEFT(RTD("cqg.rtd", ,"ContractData",B166, "LastTrade",, "T"),3)="768","",RTD("cqg.rtd", ,"ContractData",B166, "Bid",, "T")) -> 0.87 | G166: =IF(LEFT(RTD("cqg.rtd", ,"ContractData",B166, "LastTrade",, "T"),3)="768","",RTD("cqg.rtd", ,"ContractData",B166, "Ask",, "T")) -> 0.94 | H166: =IF(LEFT(RTD("cqg.rtd", ,"ContractData",B166, "LastTrade",, "T"),3)="768","",RTD("cqg.rtd", ,"ContractData",B166, "MT_LastAskVolume",, "T")) -> 19 | I166: =IF(LEFT(RTD("cqg.rtd", ,"ContractData",B166, "LastTrade",, "T"),3)="768","",RTD("cqg.rtd", ,"ContractData",B166, "T_CVol",, "T")) -> 108 | J166: =IF(LEFT(RTD("cqg.rtd", ,"ContractData",B166, "LastTrade",, "T"),3)="768","",RTD("cqg.rtd", ,"ContractData",B166, "Y_CVol",, "T")) -> 150 | K166: =IF(LEFT(RTD("cqg.rtd", ,"ContractData",B166, "LastTrade",, "T"),3)="768","",IFERROR(IF(I166>J166,"+"&I166-J166,I166-J166)*1,"")) -> -42 | L166: =IF(LEFT(RTD("cqg.rtd", ,"ContractData",B166, "LastTrade",, "T"),3)="768","",RTD("cqg.rtd",,"StudyData",B166, "Bar",, "ContractOI", "D", "-1",,,,,"T")) -> 167 | M166: =IF(LEFT(RTD("cqg.rtd", ,"ContractData",B166, "LastTrade",, "T"),3)="768","",RTD("cqg.rtd",,"StudyData",B166, "Bar",, "ContractOI", "D", "-2",,,,,"T")) -> 160 | N166: =IF(LEFT(RTD("cqg.rtd", ,"ContractData",B166, "LastTrade",, "T"),3)="768","",IFERROR(IF(L166>M166,"+"&L166-M166,L166-M166)*1,"")) -> 7 | Q166: =IF(LEFT(RTD("cqg.rtd", ,"ContractData",B165, "LastTrade",, "T"),3)="768","",RTD("cqg.rtd", ,"ContractData",B165, "LastTrade",, "T")) -> 0.92
A167: 12900 | B167: C.US.CLEJ2612900 | C167: =IF(LEFT(RTD("cqg.rtd", ,"ContractData",B167, "LastTrade",, "T"),3)="768","",RTD("cqg.rtd", ,"ContractData",B167, "LastTrade",, "T")) -> 0.83 | D167: =IF(C167="","",RTD("cqg.rtd", ,"ContractData",B167, "NetLastTrade",, "T")) -> 0 | E167: =IF(LEFT(RTD("cqg.rtd", ,"ContractData",B167, "LastTrade",, "T"),3)="768","",RTD("cqg.rtd", ,"ContractData",B167, "MT_LastBidVolume",, "T")) -> 1 | F167: =IF(LEFT(RTD("cqg.rtd", ,"ContractData",B167, "LastTrade",, "T"),3)="768","",RTD("cqg.rtd", ,"ContractData",B167, "Bid",, "T")) -> 0.85 | G167: =IF(LEFT(RTD("cqg.rtd", ,"ContractData",B167, "LastTrade",, "T"),3)="768","",RTD("cqg.rtd", ,"ContractData",B167, "Ask",, "T")) -> 0.91 | H167: =IF(LEFT(RTD("cqg.rtd", ,"ContractData",B167, "LastTrade",, "T"),3)="768","",RTD("cqg.rtd", ,"ContractData",B167, "MT_LastAskVolume",, "T")) -> 1 | I167: =IF(LEFT(RTD("cqg.rtd", ,"ContractData",B167, "LastTrade",, "T"),3)="768","",RTD("cqg.rtd", ,"ContractData",B167, "T_CVol",, "T")) -> 149 | J167: =IF(LEFT(RTD("cqg.rtd", ,"ContractData",B167, "LastTrade",, "T"),3)="768","",RTD("cqg.rtd", ,"ContractData",B167, "Y_CVol",, "T")) -> 209 | K167: =IF(LEFT(RTD("cqg.rtd", ,"ContractData",B167, "LastTrade",, "T"),3)="768","",IFERROR(IF(I167>J167,"+"&I167-J167,I167-J167)*1,"")) -> -60 | L167: =IF(LEFT(RTD("cqg.rtd", ,"ContractData",B167, "LastTrade",, "T"),3)="768","",RTD("cqg.rtd",,"StudyData",B167, "Bar",, "ContractOI", "D", "-1",,,,,"T")) -> 184 | M167: =IF(LEFT(RTD("cqg.rtd", ,"ContractData",B167, "LastTrade",, "T"),3)="768","",RTD("cqg.rtd",,"StudyData",B167, "Bar",, "ContractOI", "D", "-2",,,,,"T")) -> 131 | N167: =IF(LEFT(RTD("cqg.rtd", ,"ContractData",B167, "LastTrade",, "T"),3)="768","",IFERROR(IF(L167>M167,"+"&L167-M167,L167-M167)*1,"")) -> 53
A168: 12950 | B168: C.US.CLEJ2612950 | C168: =IF(LEFT(RTD("cqg.rtd", ,"ContractData",B168, "LastTrade",, "T"),3)="768","",RTD("cqg.rtd", ,"ContractData",B168, "LastTrade",, "T")) -> 1.3 | D168: =IF(C168="","",RTD("cqg.rtd", ,"ContractData",B168, "NetLastTrade",, "T")) -> 0.49 | E168: =IF(LEFT(RTD("cqg.rtd", ,"ContractData",B168, "LastTrade",, "T"),3)="768","",RTD("cqg.rtd", ,"ContractData",B168, "MT_LastBidVolume",, "T")) -> 36 | F168: =IF(LEFT(RTD("cqg.rtd", ,"ContractData",B168, "LastTrade",, "T"),3)="768","",RTD("cqg.rtd", ,"ContractData",B168, "Bid",, "T")) -> 0.82 | G168: =IF(LEFT(RTD("cqg.rtd", ,"ContractData",B168, "LastTrade",, "T"),3)="768","",RTD("cqg.rtd", ,"ContractData",B168, "Ask",, "T")) -> 0.89 | H168: =IF(LEFT(RTD("cqg.rtd", ,"ContractData",B168, "LastTrade",, "T"),3)="768","",RTD("cqg.rtd", ,"ContractData",B168, "MT_LastAskVolume",, "T")) -> 19 | I168: =IF(LEFT(RTD("cqg.rtd", ,"ContractData",B168, "LastTrade",, "T"),3)="768","",RTD("cqg.rtd", ,"ContractData",B168, "T_CVol",, "T")) -> 21 | J168: =IF(LEFT(RTD("cqg.rtd", ,"ContractData",B168, "LastTrade",, "T"),3)="768","",RTD("cqg.rtd", ,"ContractData",B168, "Y_CVol",, "T")) -> 60 | K168: =IF(LEFT(RTD("cqg.rtd", ,"ContractData",B168, "LastTrade",, "T"),3)="768","",IFERROR(IF(I168>J168,"+"&I168-J168,I168-J168)*1,"")) -> -39 | L168: =IF(LEFT(RTD("cqg.rtd", ,"ContractData",B168, "LastTrade",, "T"),3)="768","",RTD("cqg.rtd",,"StudyData",B168, "Bar",, "ContractOI", "D", "-1",,,,,"T")) -> 96 | M168: =IF(LEFT(RTD("cqg.rtd", ,"ContractData",B168, "LastTrade",, "T"),3)="768","",RTD("cqg.rtd",,"StudyData",B168, "Bar",, "ContractOI", "D", "-2",,,,,"T")) -> 67 | N168: =IF(LEFT(RTD("cqg.rtd", ,"ContractData",B168, "LastTrade",, "T"),3)="768","",IFERROR(IF(L168>M168,"+"&L168-M168,L168-M168)*1,"")) -> 29
A169: 13000 | B169: C.US.CLEJ2613000 | C169: =IF(LEFT(RTD("cqg.rtd", ,"ContractData",B169, "LastTrade",, "T"),3)="768","",RTD("cqg.rtd", ,"ContractData",B169, "LastTrade",, "T")) -> 0.88 | D169: =IF(C169="","",RTD("cqg.rtd", ,"ContractData",B169, "NetLastTrade",, "T")) -> 0.09 | E169: =IF(LEFT(RTD("cqg.rtd", ,"ContractData",B169, "LastTrade",, "T"),3)="768","",RTD("cqg.rtd", ,"ContractData",B169, "MT_LastBidVolume",, "T")) -> 3 | F169: =IF(LEFT(RTD("cqg.rtd", ,"ContractData",B169, "LastTrade",, "T"),3)="768","",RTD("cqg.rtd", ,"ContractData",B169, "Bid",, "T")) -> 0.81 | G169: =IF(LEFT(RTD("cqg.rtd", ,"ContractData",B169, "LastTrade",, "T"),3)="768","",RTD("cqg.rtd", ,"ContractData",B169, "Ask",, "T")) -> 0.87 | H169: =IF(LEFT(RTD("cqg.rtd", ,"ContractData",B169, "LastTrade",, "T"),3)="768","",RTD("cqg.rtd", ,"ContractData",B169, "MT_LastAskVolume",, "T")) -> 1 | I169: =IF(LEFT(RTD("cqg.rtd", ,"ContractData",B169, "LastTrade",, "T"),3)="768","",RTD("cqg.rtd", ,"ContractData",B169, "T_CVol",, "T")) -> 149 | J169: =IF(LEFT(RTD("cqg.rtd", ,"ContractData",B169, "LastTrade",, "T"),3)="768","",RTD("cqg.rtd", ,"ContractData",B169, "Y_CVol",, "T")) -> 2102 | K169: =IF(LEFT(RTD("cqg.rtd", ,"ContractData",B169, "LastTrade",, "T"),3)="768","",IFERROR(IF(I169>J169,"+"&I169-J169,I169-J169)*1,"")) -> -1953 | L169: =IF(LEFT(RTD("cqg.rtd", ,"ContractData",B169, "LastTrade",, "T"),3)="768","",RTD("cqg.rtd",,"StudyData",B169, "Bar",, "ContractOI", "D", "-1",,,,,"T")) -> 8013 | M169: =IF(LEFT(RTD("cqg.rtd", ,"ContractData",B169, "LastTrade",, "T"),3)="768","",RTD("cqg.rtd",,"StudyData",B169, "Bar",, "ContractOI", "D", "-2",,,,,"T")) -> 6604 | N169: =IF(LEFT(RTD("cqg.rtd", ,"ContractData",B169, "LastTrade",, "T"),3)="768","",IFERROR(IF(L169>M169,"+"&L169-M169,L169-M169)*1,"")) -> 1409
A170: 13050 | B170: C.US.CLEJ2613050 | C170: =IF(LEFT(RTD("cqg.rtd", ,"ContractData",B170, "LastTrade",, "T"),3)="768","",RTD("cqg.rtd", ,"ContractData",B170, "LastTrade",, "T")) -> 0.74 | D170: =IF(C170="","",RTD("cqg.rtd", ,"ContractData",B170, "NetLastTrade",, "T")) -> -0.03 | E170: =IF(LEFT(RTD("cqg.rtd", ,"ContractData",B170, "LastTrade",, "T"),3)="768","",RTD("cqg.rtd", ,"ContractData",B170, "MT_LastBidVolume",, "T")) -> 1 | F170: =IF(LEFT(RTD("cqg.rtd", ,"ContractData",B170, "LastTrade",, "T"),3)="768","",RTD("cqg.rtd", ,"ContractData",B170, "Bid",, "T")) -> 0.79 | G170: =IF(LEFT(RTD("cqg.rtd", ,"ContractData",B170, "LastTrade",, "T"),3)="768","",RTD("cqg.rtd", ,"ContractData",B170, "Ask",, "T")) -> 0.85 | H170: =IF(LEFT(RTD("cqg.rtd", ,"ContractData",B170, "LastTrade",, "T"),3)="768","",RTD("cqg.rtd", ,"ContractData",B170, "MT_LastAskVolume",, "T")) -> 76 | I170: =IF(LEFT(RTD("cqg.rtd", ,"ContractData",B170, "LastTrade",, "T"),3)="768","",RTD("cqg.rtd", ,"ContractData",B170, "T_CVol",, "T")) -> 1 | J170: =IF(LEFT(RTD("cqg.rtd", ,"ContractData",B170, "LastTrade",, "T"),3)="768","",RTD("cqg.rtd", ,"ContractData",B170, "Y_CVol",, "T")) -> 23 | K170: =IF(LEFT(RTD("cqg.rtd", ,"ContractData",B170, "LastTrade",, "T"),3)="768","",IFERROR(IF(I170>J170,"+"&I170-J170,I170-J170)*1,"")) -> -22 | L170: =IF(LEFT(RTD("cqg.rtd", ,"ContractData",B170, "LastTrade",, "T"),3)="768","",RTD("cqg.rtd",,"StudyData",B170, "Bar",, "ContractOI", "D", "-1",,,,,"T")) -> 25 | M170: =IF(LEFT(RTD("cqg.rtd", ,"ContractData",B170, "LastTrade",, "T"),3)="768","",RTD("cqg.rtd",,"StudyData",B170, "Bar",, "ContractOI", "D", "-2",,,,,"T")) -> 11 | N170: =IF(LEFT(RTD("cqg.rtd", ,"ContractData",B170, "LastTrade",, "T"),3)="768","",IFERROR(IF(L170>M170,"+"&L170-M170,L170-M170)*1,"")) -> 14
A171: 13100 | B171: C.US.CLEJ2613100 | C171: =IF(LEFT(RTD("cqg.rtd", ,"ContractData",B171, "LastTrade",, "T"),3)="768","",RTD("cqg.rtd", ,"ContractData",B171, "LastTrade",, "T")) -> 0.81 | D171: =IF(C171="","",RTD("cqg.rtd", ,"ContractData",B171, "NetLastTrade",, "T")) -> 0.06 | E171: =IF(LEFT(RTD("cqg.rtd", ,"ContractData",B171, "LastTrade",, "T"),3)="768","",RTD("cqg.rtd", ,"ContractData",B171, "MT_LastBidVolume",, "T")) -> 3 | F171: =IF(LEFT(RTD("cqg.rtd", ,"ContractData",B171, "LastTrade",, "T"),3)="768","",RTD("cqg.rtd", ,"ContractData",B171, "Bid",, "T")) -> 0.75 | G171: =IF(LEFT(RTD("cqg.rtd", ,"ContractData",B171, "LastTrade",, "T"),3)="768","",RTD("cqg.rtd", ,"ContractData",B171, "Ask",, "T")) -> 0.83 | H171: =IF(LEFT(RTD("cqg.rtd", ,"ContractData",B171, "LastTrade",, "T"),3)="768","",RTD("cqg.rtd", ,"ContractData",B171, "MT_LastAskVolume",, "T")) -> 77 | I171: =IF(LEFT(RTD("cqg.rtd", ,"ContractData",B171, "LastTrade",, "T"),3)="768","",RTD("cqg.rtd", ,"ContractData",B171, "T_CVol",, "T")) -> 0 | J171: =IF(LEFT(RTD("cqg.rtd", ,"ContractData",B171, "LastTrade",, "T"),3)="768","",RTD("cqg.rtd", ,"ContractData",B171, "Y_CVol",, "T")) -> 39 | K171: =IF(LEFT(RTD("cqg.rtd", ,"ContractData",B171, "LastTrade",, "T"),3)="768","",IFERROR(IF(I171>J171,"+"&I171-J171,I171-J171)*1,"")) -> -39 | L171: =IF(LEFT(RTD("cqg.rtd", ,"ContractData",B171, "LastTrade",, "T"),3)="768","",RTD("cqg.rtd",,"StudyData",B171, "Bar",, "ContractOI", "D", "-1",,,,,"T")) -> 47 | M171: =IF(LEFT(RTD("cqg.rtd", ,"ContractData",B171, "LastTrade",, "T"),3)="768","",RTD("cqg.rtd",,"StudyData",B171, "Bar",, "ContractOI", "D", "-2",,,,,"T")) -> 17 | N171: =IF(LEFT(RTD("cqg.rtd", ,"ContractData",B171, "LastTrade",, "T"),3)="768","",IFERROR(IF(L171>M171,"+"&L171-M171,L171-M171)*1,"")) -> 30
A172: 13150 | B172: C.US.CLEJ2613150 | C172: =IF(LEFT(RTD("cqg.rtd", ,"ContractData",B172, "LastTrade",, "T"),3)="768","",RTD("cqg.rtd", ,"ContractData",B172, "LastTrade",, "T")) -> 1.44 | D172: =IF(C172="","",RTD("cqg.rtd", ,"ContractData",B172, "NetLastTrade",, "T")) -> 0.7 | E172: =IF(LEFT(RTD("cqg.rtd", ,"ContractData",B172, "LastTrade",, "T"),3)="768","",RTD("cqg.rtd", ,"ContractData",B172, "MT_LastBidVolume",, "T")) -> 3 | F172: =IF(LEFT(RTD("cqg.rtd", ,"ContractData",B172, "LastTrade",, "T"),3)="768","",RTD("cqg.rtd", ,"ContractData",B172, "Bid",, "T")) -> 0.73 | G172: =IF(LEFT(RTD("cqg.rtd", ,"ContractData",B172, "LastTrade",, "T"),3)="768","",RTD("cqg.rtd", ,"ContractData",B172, "Ask",, "T")) -> 0.81 | H172: =IF(LEFT(RTD("cqg.rtd", ,"ContractData",B172, "LastTrade",, "T"),3)="768","",RTD("cqg.rtd", ,"ContractData",B172, "MT_LastAskVolume",, "T")) -> 76 | I172: =IF(LEFT(RTD("cqg.rtd", ,"ContractData",B172, "LastTrade",, "T"),3)="768","",RTD("cqg.rtd", ,"ContractData",B172, "T_CVol",, "T")) -> 2 | J172: =IF(LEFT(RTD("cqg.rtd", ,"ContractData",B172, "LastTrade",, "T"),3)="768","",RTD("cqg.rtd", ,"ContractData",B172, "Y_CVol",, "T")) -> 1 | K172: =IF(LEFT(RTD("cqg.rtd", ,"ContractData",B172, "LastTrade",, "T"),3)="768","",IFERROR(IF(I172>J172,"+"&I172-J172,I172-J172)*1,"")) -> 1 | L172: =IF(LEFT(RTD("cqg.rtd", ,"ContractData",B172, "LastTrade",, "T"),3)="768","",RTD("cqg.rtd",,"StudyData",B172, "Bar",, "ContractOI", "D", "-1",,,,,"T")) -> 49 | M172: =IF(LEFT(RTD("cqg.rtd", ,"ContractData",B172, "LastTrade",, "T"),3)="768","",RTD("cqg.rtd",,"StudyData",B172, "Bar",, "ContractOI", "D", "-2",,,,,"T")) -> 49 | N172: =IF(LEFT(RTD("cqg.rtd", ,"ContractData",B172, "LastTrade",, "T"),3)="768","",IFERROR(IF(L172>M172,"+"&L172-M172,L172-M172)*1,"")) -> 0
A173: 13200 | B173: C.US.CLEJ2613200 | C173: =IF(LEFT(RTD("cqg.rtd", ,"ContractData",B173, "LastTrade",, "T"),3)="768","",RTD("cqg.rtd", ,"ContractData",B173, "LastTrade",, "T")) -> 0.79 | D173: =IF(C173="","",RTD("cqg.rtd", ,"ContractData",B173, "NetLastTrade",, "T")) -> 0.07 | E173: =IF(LEFT(RTD("cqg.rtd", ,"ContractData",B173, "LastTrade",, "T"),3)="768","",RTD("cqg.rtd", ,"ContractData",B173, "MT_LastBidVolume",, "T")) -> 3 | F173: =IF(LEFT(RTD("cqg.rtd", ,"ContractData",B173, "LastTrade",, "T"),3)="768","",RTD("cqg.rtd", ,"ContractData",B173, "Bid",, "T")) -> 0.71 | G173: =IF(LEFT(RTD("cqg.rtd", ,"ContractData",B173, "LastTrade",, "T"),3)="768","",RTD("cqg.rtd", ,"ContractData",B173, "Ask",, "T")) -> 0.78 | H173: =IF(LEFT(RTD("cqg.rtd", ,"ContractData",B173, "LastTrade",, "T"),3)="768","",RTD("cqg.rtd", ,"ContractData",B173, "MT_LastAskVolume",, "T")) -> 15 | I173: =IF(LEFT(RTD("cqg.rtd", ,"ContractData",B173, "LastTrade",, "T"),3)="768","",RTD("cqg.rtd", ,"ContractData",B173, "T_CVol",, "T")) -> 0 | J173: =IF(LEFT(RTD("cqg.rtd", ,"ContractData",B173, "LastTrade",, "T"),3)="768","",RTD("cqg.rtd", ,"ContractData",B173, "Y_CVol",, "T")) -> 18 | K173: =IF(LEFT(RTD("cqg.rtd", ,"ContractData",B173, "LastTrade",, "T"),3)="768","",IFERROR(IF(I173>J173,"+"&I173-J173,I173-J173)*1,"")) -> -18 | L173: =IF(LEFT(RTD("cqg.rtd", ,"ContractData",B173, "LastTrade",, "T"),3)="768","",RTD("cqg.rtd",,"StudyData",B173, "Bar",, "ContractOI", "D", "-1",,,,,"T")) -> 13 | M173: =IF(LEFT(RTD("cqg.rtd", ,"ContractData",B173, "LastTrade",, "T"),3)="768","",RTD("cqg.rtd",,"StudyData",B173, "Bar",, "ContractOI", "D", "-2",,,,,"T")) -> 2 | N173: =IF(LEFT(RTD("cqg.rtd", ,"ContractData",B173, "LastTrade",, "T"),3)="768","",IFERROR(IF(L173>M173,"+"&L173-M173,L173-M173)*1,"")) -> 11
A174: 13250 | B174: C.US.CLEJ2613250 | C174: =IF(LEFT(RTD("cqg.rtd", ,"ContractData",B174, "LastTrade",, "T"),3)="768","",RTD("cqg.rtd", ,"ContractData",B174, "LastTrade",, "T")) -> 0.89 | D174: =IF(C174="","",RTD("cqg.rtd", ,"ContractData",B174, "NetLastTrade",, "T")) -> 0.19 | E174: =IF(LEFT(RTD("cqg.rtd", ,"ContractData",B174, "LastTrade",, "T"),3)="768","",RTD("cqg.rtd", ,"ContractData",B174, "MT_LastBidVolume",, "T")) -> 4 | F174: =IF(LEFT(RTD("cqg.rtd", ,"ContractData",B174, "LastTrade",, "T"),3)="768","",RTD("cqg.rtd", ,"ContractData",B174, "Bid",, "T")) -> 0.69 | G174: =IF(LEFT(RTD("cqg.rtd", ,"ContractData",B174, "LastTrade",, "T"),3)="768","",RTD("cqg.rtd", ,"ContractData",B174, "Ask",, "T")) -> 0.76 | H174: =IF(LEFT(RTD("cqg.rtd", ,"ContractData",B174, "LastTrade",, "T"),3)="768","",RTD("cqg.rtd", ,"ContractData",B174, "MT_LastAskVolume",, "T")) -> 15 | I174: =IF(LEFT(RTD("cqg.rtd", ,"ContractData",B174, "LastTrade",, "T"),3)="768","",RTD("cqg.rtd", ,"ContractData",B174, "T_CVol",, "T")) -> 4 | J174: =IF(LEFT(RTD("cqg.rtd", ,"ContractData",B174, "LastTrade",, "T"),3)="768","",RTD("cqg.rtd", ,"ContractData",B174, "Y_CVol",, "T")) -> 52 | K174: =IF(LEFT(RTD("cqg.rtd", ,"ContractData",B174, "LastTrade",, "T"),3)="768","",IFERROR(IF(I174>J174,"+"&I174-J174,I174-J174)*1,"")) -> -48 | L174: =IF(LEFT(RTD("cqg.rtd", ,"ContractData",B174, "LastTrade",, "T"),3)="768","",RTD("cqg.rtd",,"StudyData",B174, "Bar",, "ContractOI", "D", "-1",,,,,"T")) -> 101 | M174: =IF(LEFT(RTD("cqg.rtd", ,"ContractData",B174, "LastTrade",, "T"),3)="768","",RTD("cqg.rtd",,"StudyData",B174, "Bar",, "ContractOI", "D", "-2",,,,,"T")) -> 102 | N174: =IF(LEFT(RTD("cqg.rtd", ,"ContractData",B174, "LastTrade",, "T"),3)="768","",IFERROR(IF(L174>M174,"+"&L174-M174,L174-M174)*1,"")) -> -1
A175: 13300 | B175: C.US.CLEJ2613300 | C175: =IF(LEFT(RTD("cqg.rtd", ,"ContractData",B175, "LastTrade",, "T"),3)="768","",RTD("cqg.rtd", ,"ContractData",B175, "LastTrade",, "T")) -> 0.64 | D175: =IF(C175="","",RTD("cqg.rtd", ,"ContractData",B175, "NetLastTrade",, "T")) -> -0.05 | E175: =IF(LEFT(RTD("cqg.rtd", ,"ContractData",B175, "LastTrade",, "T"),3)="768","",RTD("cqg.rtd", ,"ContractData",B175, "MT_LastBidVolume",, "T")) -> 2 | F175: =IF(LEFT(RTD("cqg.rtd", ,"ContractData",B175, "LastTrade",, "T"),3)="768","",RTD("cqg.rtd", ,"ContractData",B175, "Bid",, "T")) -> 0.68 | G175: =IF(LEFT(RTD("cqg.rtd", ,"ContractData",B175, "LastTrade",, "T"),3)="768","",RTD("cqg.rtd", ,"ContractData",B175, "Ask",, "T")) -> 0.74 | H175: =IF(LEFT(RTD("cqg.rtd", ,"ContractData",B175, "LastTrade",, "T"),3)="768","",RTD("cqg.rtd", ,"ContractData",B175, "MT_LastAskVolume",, "T")) -> 15 | I175: =IF(LEFT(RTD("cqg.rtd", ,"ContractData",B175, "LastTrade",, "T"),3)="768","",RTD("cqg.rtd", ,"ContractData",B175, "T_CVol",, "T")) -> 0 | J175: =IF(LEFT(RTD("cqg.rtd", ,"ContractData",B175, "LastTrade",, "T"),3)="768","",RTD("cqg.rtd", ,"ContractData",B175, "Y_CVol",, "T")) -> 6 | K175: =IF(LEFT(RTD("cqg.rtd", ,"ContractData",B175, "LastTrade",, "T"),3)="768","",IFERROR(IF(I175>J175,"+"&I175-J175,I175-J175)*1,"")) -> -6 | L175: =IF(LEFT(RTD("cqg.rtd", ,"ContractData",B175, "LastTrade",, "T"),3)="768","",RTD("cqg.rtd",,"StudyData",B175, "Bar",, "ContractOI", "D", "-1",,,,,"T")) -> 8 | M175: =IF(LEFT(RTD("cqg.rtd", ,"ContractData",B175, "LastTrade",, "T"),3)="768","",RTD("cqg.rtd",,"StudyData",B175, "Bar",, "ContractOI", "D", "-2",,,,,"T")) -> 3 | N175: =IF(LEFT(RTD("cqg.rtd", ,"ContractData",B175, "LastTrade",, "T"),3)="768","",IFERROR(IF(L175>M175,"+"&L175-M175,L175-M175)*1,"")) -> 5

Sheet Put Data
A1: ="P"&RIGHT('Call Data'!A1,LEN('Call Data'!A1)-1) -> P.US.CLEJ269150
A2: =_xll.CQGOptions(B6, "1", "-1,0", "Put") -> P.US.CLEJ269100 | C2: Make changes on the Call Data Tab. | K2: =MOD(RTD("cqg.rtd", ,"SystemInfo", "Linetime"),1) -> 06:43:34
A3: P.US.CLEJ269150
B4: Underlying | M4: =RTD("cqg.rtd", ,"ContractData",B6, "LongDescription",, "T") -> Crude Light (Globex), Apr 26
B5: Symbol | C5: Live ATM | D5: =RTD("cqg.rtd", ,"ContractData",A1, "LongDescription",, "T") -> Crude Light (Globex), Apr 26 9150 Put | M5: Last | N5: NC
B6: ='Call Data'!B6 -> CLE | M6: =RTD("cqg.rtd", ,"ContractData",B6, "LastTrade",, "T") -> 91.71 | N6: =RTD("cqg.rtd", ,"ContractData",B6, "NetLastTrade",, "T") -> 4.46
B8: Symbol | C8: Last | D8: NC | E8: Bid Vol | F8: Bid | G8: Ask | H8: Ask Vol | I8: Volume | J8: Yesterday Vol | K8: Volume Change | L8: Open Int | M8: Prev OI | N8: OI Change
A9: ='Call Data'!A9 -> 5000 | B9: ="P"&RIGHT('Call Data'!B9,LEN('Call Data'!B9)-1) -> P.US.CLEJ265000 | C9: =IF(LEFT(RTD("cqg.rtd", ,"ContractData",B9, "LastTrade",, "T"),3)="768","",RTD("cqg.rtd", ,"ContractData",B9, "LastTrade",, "T")) -> 0.02 | D9: =IF(C9="","",RTD("cqg.rtd", ,"ContractData",B9, "NetLastTrade",, "T")) -> 0 | E9: =IF(LEFT(RTD("cqg.rtd", ,"ContractData",B9, "LastTrade",, "T"),3)="768","",RTD("cqg.rtd", ,"ContractData",B9, "MT_LastBidVolume",, "T")) -> 2 | F9: =IF(LEFT(RTD("cqg.rtd", ,"ContractData",B9, "LastTrade",, "T"),3)="768","",RTD("cqg.rtd", ,"ContractData",B9, "Bid",, "T")) -> 0.01 | G9: =IF(LEFT(RTD("cqg.rtd", ,"ContractData",B9, "LastTrade",, "T"),3)="768","",RTD("cqg.rtd", ,"ContractData",B9, "Ask",, "T")) -> 0.02 | H9: =IF(LEFT(RTD("cqg.rtd", ,"ContractData",B9, "LastTrade",, "T"),3)="768","",RTD("cqg.rtd", ,"ContractData",B9, "MT_LastAskVolume",, "T")) -> 2 | I9: =IF(LEFT(RTD("cqg.rtd", ,"ContractData",B9, "LastTrade",, "T"),3)="768","",RTD("cqg.rtd", ,"ContractData",B9, "T_CVol",, "T")) -> 11 | J9: =IF(LEFT(RTD("cqg.rtd", ,"ContractData",B9, "LastTrade",, "T"),3)="768","",RTD("cqg.rtd", ,"ContractData",B9, "Y_CVol",, "T")) -> 114 | K9: =IF(LEFT(RTD("cqg.rtd", ,"ContractData",B9, "LastTrade",, "T"),3)="768","",IFERROR(IF(I9>J9,"+"&I9-J9,I9-J9)*1,"")) -> -103 | L9: =IF(LEFT(RTD("cqg.rtd", ,"ContractData",B9, "LastTrade",, "T"),3)="768","",RTD("cqg.rtd",,"StudyData",B9, "Bar",, "ContractOI", "D", "-1",,,,,"T")) -> 16334 | M9: =IF(LEFT(RTD("cqg.rtd", ,"ContractData",B9, "LastTrade",, "T"),3)="768","",RTD("cqg.rtd",,"StudyData",B9, "Bar",, "ContractOI", "D", "-2",,,,,"T")) -> 16340 | N9: =IF(LEFT(RTD("cqg.rtd", ,"ContractData",B9, "LastTrade",, "T"),3)="768","",IFERROR(IF(L9>M9,"+"&L9-M9,L9-M9)*1,"")) -> -6
A10: ='Call Data'!A10 -> 5050 | B10: ="P"&RIGHT('Call Data'!B10,LEN('Call Data'!B10)-1) -> P.US.CLEJ265050 | C10: =IF(LEFT(RTD("cqg.rtd", ,"ContractData",B10, "LastTrade",, "T"),3)="768","",RTD("cqg.rtd", ,"ContractData",B10, "LastTrade",, "T")) -> 0.02 | D10: =IF(C10="","",RTD("cqg.rtd", ,"ContractData",B10, "NetLastTrade",, "T")) -> -0.01 | E10: =IF(LEFT(RTD("cqg.rtd", ,"ContractData",B10, "LastTrade",, "T"),3)="768","",RTD("cqg.rtd", ,"ContractData",B10, "MT_LastBidVolume",, "T")) -> 1 | F10: =IF(LEFT(RTD("cqg.rtd", ,"ContractData",B10, "LastTrade",, "T"),3)="768","",RTD("cqg.rtd", ,"ContractData",B10, "Bid",, "T")) -> 0.01 | G10: =IF(LEFT(RTD("cqg.rtd", ,"ContractData",B10, "LastTrade",, "T"),3)="768","",RTD("cqg.rtd", ,"ContractData",B10, "Ask",, "T")) -> 0.04 | H10: =IF(LEFT(RTD("cqg.rtd", ,"ContractData",B10, "LastTrade",, "T"),3)="768","",RTD("cqg.rtd", ,"ContractData",B10, "MT_LastAskVolume",, "T")) -> 108 | I10: =IF(LEFT(RTD("cqg.rtd", ,"ContractData",B10, "LastTrade",, "T"),3)="768","",RTD("cqg.rtd", ,"ContractData",B10, "T_CVol",, "T")) -> 0 | J10: =IF(LEFT(RTD("cqg.rtd", ,"ContractData",B10, "LastTrade",, "T"),3)="768","",RTD("cqg.rtd", ,"ContractData",B10, "Y_CVol",, "T")) -> 9 | K10: =IF(LEFT(RTD("cqg.rtd", ,"ContractData",B10, "LastTrade",, "T"),3)="768","",IFERROR(IF(I10>J10,"+"&I10-J10,I10-J10)*1,"")) -> -9 | L10: =IF(LEFT(RTD("cqg.rtd", ,"ContractData",B10, "LastTrade",, "T"),3)="768","",RTD("cqg.rtd",,"StudyData",B10, "Bar",, "ContractOI", "D", "-1",,,,,"T")) -> 671 | M10: =IF(LEFT(RTD("cqg.rtd", ,"ContractData",B10, "LastTrade",, "T"),3)="768","",RTD("cqg.rtd",,"StudyData",B10, "Bar",, "ContractOI", "D", "-2",,,,,"T")) -> 663 | N10: =IF(LEFT(RTD("cqg.rtd", ,"ContractData",B10, "LastTrade",, "T"),3)="768","",IFERROR(IF(L10>M10,"+"&L10-M10,L10-M10)*1,"")) -> 8
